Workbook

Sheet Matriz de busqueda de los cod (hidden)
A1: Codigo | C1: Clave
A2: 3070101 | B2: Single-phase installation (Double three-pronged outlet up to 2KW consumption/110V) rate per 3 days | C2: =CONCATENATE(A2:A478," ",B2:B484) -> 3070101 Single-phase installation (Double three-pronged outlet up to 2KW consumption/110V) rate per 3 days
A3: 3070101 | B3: Single-phase installation (Double three-pronged outlet up to 2KW consumption/110V) rate per 4 to 6 days | C3: =CONCATENATE(A3:A481," ",B3:B485) -> 3070101 Single-phase installation (Double three-pronged outlet up to 2KW consumption/110V) rate per 4 to 6 days
A4: 3070101 | B4: Single-phase installation (Double three-pronged outlet up to 2KW consumption/110V) rate per 7 to 11 days | C4: =CONCATENATE(A4:A482," ",B4:B486) -> 3070101 Single-phase installation (Double three-pronged outlet up to 2KW consumption/110V) rate per 7 to 11 days
A5: 3070101 | B5: Single-phase installation (Double three-pronged outlet up to 2KW consumption/110V) rate per 12 to 18 days | C5: =CONCATENATE(A5:A483," ",B5:B487) -> 3070101 Single-phase installation (Double three-pronged outlet up to 2KW consumption/110V) rate per 12 to 18 days
A6: 3070103 | B6: Additional Single-phase kilowatts (Requires a main connection MAX 2KW by connection) rate per 3 days | C6: =CONCATENATE(A6:A484," ",B6:B488) -> 3070103 Additional Single-phase kilowatts (Requires a main connection MAX 2KW by connection) rate per 3 days
A7: 3070103 | B7: Additional Single-phase kilowatts (Requires a main connection MAX 2KW by connection) rate per 4 to 6 days | C7: =CONCATENATE(A7:A485," ",B7:B489) -> 3070103 Additional Single-phase kilowatts (Requires a main connection MAX 2KW by connection) rate per 4 to 6 days
A8: 3070103 | B8: Additional Single-phase kilowatts (Requires a main connection MAX 2KW by connection) rate per 7 to 11 days | C8: =CONCATENATE(A8:A486," ",B8:B490) -> 3070103 Additional Single-phase kilowatts (Requires a main connection MAX 2KW by connection) rate per 7 to 11 days
A9: 3070103 | B9: Additional Single-phase kilowatts (Requires a main connection MAX 2KW by connection) rate per 12 to 18 days | C9: =CONCATENATE(A9:A487," ",B9:B491) -> 3070103 Additional Single-phase kilowatts (Requires a main connection MAX 2KW by connection) rate per 12 to 18 days
A10: 3070102 | B10: Three-phase installation ( Plastic strip up to 4KW consumption/208V) rate per 3 days | C10: =CONCATENATE(A10:A488," ",B10:B492) -> 3070102 Three-phase installation ( Plastic strip up to 4KW consumption/208V) rate per 3 days
A11: 3070102 | B11: Three-phase installation ( Plastic strip up to 4KW consumption/208V) rate per 4 to 6 days | C11: =CONCATENATE(A11:A489," ",B11:B493) -> 3070102 Three-phase installation ( Plastic strip up to 4KW consumption/208V) rate per 4 to 6 days
A12: 3070102 | B12: Three-phase installation ( Plastic strip up to 4KW consumption/208V) rate per 7 to 11 days | C12: =CONCATENATE(A12:A490," ",B12:B494) -> 3070102 Three-phase installation ( Plastic strip up to 4KW consumption/208V) rate per 7 to 11 days
A13: 3070102 | B13: Three-phase installation ( Plastic strip up to 4KW consumption/208V) rate per 12 to 18 days | C13: =CONCATENATE(A13:A491," ",B13:B495) -> 3070102 Three-phase installation ( Plastic strip up to 4KW consumption/208V) rate per 12 to 18 days
A14: 3070104 | B14: Additional Three-phase kilowatts (Requires a main connection) rate per 3 days | C14: =CONCATENATE(A14:A492," ",B14:B496) -> 3070104 Additional Three-phase kilowatts (Requires a main connection) rate per 3 days
A15: 3070104 | B15: Additional Three-phase kilowatts (Requires a main connection) rate per 4 to 6 days | C15: =CONCATENATE(A15:A493," ",B15:B497) -> 3070104 Additional Three-phase kilowatts (Requires a main connection) rate per 4 to 6 days
A16: 3070104 | B16: Additional Three-phase kilowatts (Requires a main connection) rate per 7 to 11 days | C16: =CONCATENATE(A16:A494," ",B16:B498) -> 3070104 Additional Three-phase kilowatts (Requires a main connection) rate per 7 to 11 days
A17: 3070104 | B17: Additional Three-phase kilowatts (Requires a main connection) rate per 12 to 18 days | C17: =CONCATENATE(A17:A495," ",B17:B499) -> 3070104 Additional Three-phase kilowatts (Requires a main connection) rate per 12 to 18 days
A18: 3071372 | B18: 21 to 50 additional Three-phase kilowatts (Rate per KW) (Requires a main connection) rate per 3 days | C18: =CONCATENATE(A18:A496," ",B18:B500) -> 3071372 21 to 50 additional Three-phase kilowatts (Rate per KW) (Requires a main connection) rate per 3 days
A19: 3071372 | B19: 21 to 50 additional Three-phase kilowatts (Rate per KW) (Requires a main connection) rate per 4 to 6 days | C19: =CONCATENATE(A19:A497," ",B19:B501) -> 3071372 21 to 50 additional Three-phase kilowatts (Rate per KW) (Requires a main connection) rate per 4 to 6 days
A20: 3071372 | B20: 21 to 50 additional Three-phase kilowatts (Rate per KW) (Requires a main connection) rate per 7 to 11 days | C20: =CONCATENATE(A20:A498," ",B20:B502) -> 3071372 21 to 50 additional Three-phase kilowatts (Rate per KW) (Requires a main connection) rate per 7 to 11 days
A21: 3071372 | B21: 21 to 50 additional Three-phase kilowatts (Rate per KW) (Requires a main connection) rate per 12 to 18 days | C21: =CONCATENATE(A21:A499," ",B21:B503) -> 3071372 21 to 50 additional Three-phase kilowatts (Rate per KW) (Requires a main connection) rate per 12 to 18 days
A22: 3071373 | B22: 51 to 100 additionalThree-phase kilowatts (Rate per KW) (Requires a main connection) rate per 3 days | C22: =CONCATENATE(A22:A500," ",B22:B504) -> 3071373 51 to 100 additionalThree-phase kilowatts (Rate per KW) (Requires a main connection) rate per 3 days
A23: 3071373 | B23: 51 to 100 additionalThree-phase kilowatts (Rate per KW) (Requires a main connection) rate per 4 to 6 days | C23: =CONCATENATE(A23:A501," ",B23:B505) -> 3071373 51 to 100 additionalThree-phase kilowatts (Rate per KW) (Requires a main connection) rate per 4 to 6 days
A24: 3071373 | B24: 51 to 100 additionalThree-phase kilowatts (Rate per KW) (Requires a main connection) rate per 7 to 11 days | C24: =CONCATENATE(A24:A502," ",B24:B506) -> 3071373 51 to 100 additionalThree-phase kilowatts (Rate per KW) (Requires a main connection) rate per 7 to 11 days
A25: 3071373 | B25: 51 to 100 additionalThree-phase kilowatts (Rate per KW) (Requires a main connection) rate per 12 to 18 days | C25: =CONCATENATE(A25:A503," ",B25:B507) -> 3071373 51 to 100 additionalThree-phase kilowatts (Rate per KW) (Requires a main connection) rate per 12 to 18 days
A26: 3071374 | B26: More than 100 additional Three-phase kilowatts (Rate per KW) (Requires a main connection) rate per 3 days | C26: =CONCATENATE(A26:A504," ",B26:B508) -> 3071374 More than 100 additional Three-phase kilowatts (Rate per KW) (Requires a main connection) rate per 3 days
A27: 3071374 | B27: More than 100 additional Three-phase kilowatts (Rate per KW) (Requires a main connection) rate per 4 to 6 days | C27: =CONCATENATE(A27:A505," ",B27:B509) -> 3071374 More than 100 additional Three-phase kilowatts (Rate per KW) (Requires a main connection) rate per 4 to 6 days
A28: 3071374 | B28: More than 100 additional Three-phase kilowatts (Rate per KW) (Requires a main connection) rate pero 7 to 11 days | C28: =CONCATENATE(A28:A506," ",B28:B510) -> 3071374 More than 100 additional Three-phase kilowatts (Rate per KW) (Requires a main connection) rate pero 7 to 11 days
A29: 3071374 | B29: More than 100 additional Three-phase kilowatts (Rate per KW) (Requires a main connection) rate per 12 to 18 days | C29: =CONCATENATE(A29:A507," ",B29:B511) -> 3071374 More than 100 additional Three-phase kilowatts (Rate per KW) (Requires a main connection) rate per 12 to 18 days
A30: 3070402 | B30: Adjustable spotlight arm (150W/110V) rate per 3 days | C30: =CONCATENATE(A30:A508," ",B30:B512) -> 3070402 Adjustable spotlight arm (150W/110V) rate per 3 days
A31: 3070402 | B31: Adjustable spotlight arm (150W/110V) rate per 4 to 6 days | C31: =CONCATENATE(A31:A509," ",B31:B513) -> 3070402 Adjustable spotlight arm (150W/110V) rate per 4 to 6 days
A32: 3070402 | B32: Adjustable spotlight arm (150W/110V) rate per 7 to 11 days | C32: =CONCATENATE(A32:A510," ",B32:B514) -> 3070402 Adjustable spotlight arm (150W/110V) rate per 7 to 11 days
A33: 3070402 | B33: Adjustable spotlight arm (150W/110V) rate per 12 to 18 days | C33: =CONCATENATE(A33:A511," ",B33:B515) -> 3070402 Adjustable spotlight arm (150W/110V) rate per 12 to 18 days
A34: 3070405 | B34: LED Reflector (50W- mltV) rate per 3 days | C34: =CONCATENATE(A34:A512," ",B34:B516) -> 3070405 LED Reflector (50W- mltV) rate per 3 days
A35: 3070405 | B35: LED Reflector (50W- mltV) rate per 4 to 6 days | C35: =CONCATENATE(A35:A513," ",B35:B517) -> 3070405 LED Reflector (50W- mltV) rate per 4 to 6 days
A36: 3070405 | B36: LED Reflector (50W- mltV) rate per 7 to 11 days | C36: =CONCATENATE(A36:A514," ",B36:B518) -> 3070405 LED Reflector (50W- mltV) rate per 7 to 11 days
A37: 3070405 | B37: LED Reflector (50W- mltV) rate per 12 to 8 days | C37: =CONCATENATE(A37:A515," ",B37:B519) -> 3070405 LED Reflector (50W- mltV) rate per 12 to 8 days
A38: 3070403 | B38: Extension cord – Double three-pronged outlet (1500W/110V)Max 6mts, Requires a main connection. Does not include electricity. Rate per 3 days | C38: =CONCATENATE(A38:A516," ",B38:B520) -> 3070403 Extension cord – Double three-pronged outlet (1500W/110V)Max 6mts, Requires a main connection. Does not include electricity. Rate per 3 days
A39: 3070403 | B39: Extension cord – Double three-pronged outlet (1500W/110V)Max 6mts, Requires a main connection. Does not include electricity. Rate per 4 to 6 days | C39: =CONCATENATE(A39:A517," ",B39:B521) -> 3070403 Extension cord – Double three-pronged outlet (1500W/110V)Max 6mts, Requires a main connection. Does not include electricity. Rate per 4 to 6 days
A40: 3070403 | B40: Extension cord – Double three-pronged outlet (1500W/110V)Max 6mts, Requires a main connection. Does not include electricity. Rate per 7 to 11 days | C40: =CONCATENATE(A40:A518," ",B40:B522) -> 3070403 Extension cord – Double three-pronged outlet (1500W/110V)Max 6mts, Requires a main connection. Does not include electricity. Rate per 7 to 11 days
A41: 3070403 | B41: Extension cord – Double three-pronged outlet (1500W/110V)Max 6mts, Requires a main connection. Does not include electricity. Rate per 12 to 18 days | C41: =CONCATENATE(A41:A519," ",B41:B523) -> 3070403 Extension cord – Double three-pronged outlet (1500W/110V)Max 6mts, Requires a main connection. Does not include electricity. Rate per 12 to 18 days
A42: 3071345 | B42: Sink 90cm x 60cm x 90cm (Does not include water supply or drain connection) rate per 3 days | C42: =CONCATENATE(A42:A520," ",B42:B524) -> 3071345 Sink 90cm x 60cm x 90cm (Does not include water supply or drain connection) rate per 3 days
A43: 3071345 | B43: Sink 90cm x 60cm x 90cm (Does not include water supply or drain connection) rate per 4 to 6 days | C43: =CONCATENATE(A43:A521," ",B43:B525) -> 3071345 Sink 90cm x 60cm x 90cm (Does not include water supply or drain connection) rate per 4 to 6 days
A44: 3071345 | B44: Sink 90cm x 60cm x 90cm (Does not include water supply or drain connection) rate per 7 to 11 days | C44: =CONCATENATE(A44:A522," ",B44:B526) -> 3071345 Sink 90cm x 60cm x 90cm (Does not include water supply or drain connection) rate per 7 to 11 days
A45: 3071345 | B45: Sink 90cm x 60cm x 90cm (Does not include water supply or drain connection) rate per 12 to 18 days | C45: =CONCATENATE(A45:A523," ",B45:B527) -> 3071345 Sink 90cm x 60cm x 90cm (Does not include water supply or drain connection) rate per 12 to 18 days
A46: 3070301 | B46: 1/2" Water supply (Consumption included) rate per 3 days | C46: =CONCATENATE(A46:A524," ",B46:B528) -> 3070301 1/2" Water supply (Consumption included) rate per 3 days
A47: 3070301 | B47: 1/2" Water supply (Consumption included) rate per 4 to 6 days | C47: =CONCATENATE(A47:A525," ",B47:B529) -> 3070301 1/2" Water supply (Consumption included) rate per 4 to 6 days
A48: 3070301 | B48: 1/2" Water supply (Consumption included) rate for 7 to 11 days | C48: =CONCATENATE(A48:A526," ",B48:B530) -> 3070301 1/2" Water supply (Consumption included) rate for 7 to 11 days
A49: 3070301 | B49: 1/2" Water supply (Consumption included) rate for 12 to 18 days | C49: =CONCATENATE(A49:A527," ",B49:B531) -> 3070301 1/2" Water supply (Consumption included) rate for 12 to 18 days
A50: 3070302 | B50: 1/2" Drain connection (Location determined by Corferias on your booth) rate per 3 days | C50: =CONCATENATE(A50:A528," ",B50:B532) -> 3070302 1/2" Drain connection (Location determined by Corferias on your booth) rate per 3 days
A51: 3070302 | B51: 1/2" Drain connection (Location determined by Corferias on your booth) rate per 4 to 6 days | C51: =CONCATENATE(A51:A529," ",B51:B533) -> 3070302 1/2" Drain connection (Location determined by Corferias on your booth) rate per 4 to 6 days
A52: 3070302 | B52: 1/2" Drain connection (Location determined by Corferias on your booth) rate per 7 to 11 days | C52: =CONCATENATE(A52:A530," ",B52:B534) -> 3070302 1/2" Drain connection (Location determined by Corferias on your booth) rate per 7 to 11 days
A53: 3070302 | B53: 1/2" Drain connection (Location determined by Corferias on your booth) rate per 12 to 18 days | C53: =CONCATENATE(A53:A531," ",B53:B535) -> 3070302 1/2" Drain connection (Location determined by Corferias on your booth) rate per 12 to 18 days
A54: 3071341 | B54: Compressed air connection. Max pressure: 100 PSI, Max flow: 35CFM. rate per 3 days | C54: =CONCATENATE(A54:A532," ",B54:B536) -> 3071341 Compressed air connection. Max pressure: 100 PSI, Max flow: 35CFM. rate per 3 days
A55: 3071341 | B55: Compressed air connection. Max pressure: 100 PSI, Max flow: 35CFM. rate per 4 to 6 days | C55: =CONCATENATE(A55:A533," ",B55:B537) -> 3071341 Compressed air connection. Max pressure: 100 PSI, Max flow: 35CFM. rate per 4 to 6 days
A56: 3071341 | B56: Compressed air connection. Max pressure: 100 PSI, Max flow: 35CFM. rate per 7 to 11 days | C56: =CONCATENATE(A56:A534," ",B56:B538) -> 3071341 Compressed air connection. Max pressure: 100 PSI, Max flow: 35CFM. rate per 7 to 11 days
A57: 3071341 | B57: Compressed air connection. Max pressure: 100 PSI, Max flow: 35CFM. rate per 12 to 18 days | C57: =CONCATENATE(A57:A535," ",B57:B539) -> 3071341 Compressed air connection. Max pressure: 100 PSI, Max flow: 35CFM. rate per 12 to 18 days
A58: 3070307 | B58: 1/2" Water supply (consumption included) + 1/2" Drain + Sink. rate per 3 days | C58: =CONCATENATE(A58:A536," ",B58:B540) -> 3070307 1/2" Water supply (consumption included) + 1/2" Drain + Sink. rate per 3 days
A59: 3070307 | B59: 1/2" Water supply (consumption included) + 1/2" Drain + Sink. rate per 4 to 6 days | C59: =CONCATENATE(A59:A537," ",B59:B541) -> 3070307 1/2" Water supply (consumption included) + 1/2" Drain + Sink. rate per 4 to 6 days
A60: 3070307 | B60: 1/2" Water supply (consumption included) + 1/2" Drain + Sink. rate per 7 to 11 days | C60: =CONCATENATE(A60:A538," ",B60:B542) -> 3070307 1/2" Water supply (consumption included) + 1/2" Drain + Sink. rate per 7 to 11 days
A61: 3070307 | B61: 1/2" Water supply (consumption included) + 1/2" Drain + Sink. rate per 12 to 18 days | C61: =CONCATENATE(A61:A539," ",B61:B543) -> 3070307 1/2" Water supply (consumption included) + 1/2" Drain + Sink. rate per 12 to 18 days
A62: 3071321 | B62: Installation of ONE (1) propane gas point per ONE (1) Equipment (Includes materials and labor) (Does not include gas consumption) rate per 3 days | C62: =CONCATENATE(A62:A540," ",B62:B544) -> 3071321 Installation of ONE (1) propane gas point per ONE (1) Equipment (Includes materials and labor) (Does not include gas consumption) rate per 3 days
A63: 3071321 | B63: Installation of ONE (1) propane gas point per ONE (1) Equipment (Includes materials and labor) (Does not include gas consumption) rate per 4 to 6 days | C63: =CONCATENATE(A63:A541," ",B63:B545) -> 3071321 Installation of ONE (1) propane gas point per ONE (1) Equipment (Includes materials and labor) (Does not include gas consumption) rate per 4 to 6 days
A64: 3071321 | B64: Installation of ONE (1) propane gas point per ONE (1) Equipment (Includes materials and labor) (Does not include gas consumption) rate per 7 to 11 days | C64: =CONCATENATE(A64:A542," ",B64:B546) -> 3071321 Installation of ONE (1) propane gas point per ONE (1) Equipment (Includes materials and labor) (Does not include gas consumption) rate per 7 to 11 days
A65: 3071321 | B65: Installation of ONE (1) propane gas point per ONE (1) Equipment (Includes materials and labor) (Does not include gas consumption) rate per 12 to 18 days | C65: =CONCATENATE(A65:A543," ",B65:B547) -> 3071321 Installation of ONE (1) propane gas point per ONE (1) Equipment (Includes materials and labor) (Does not include gas consumption) rate per 12 to 18 days
A66: 3070601 | B66: Additional CFE System panel 100cm x 240cm | C66: =CONCATENATE(A66:A544," ",B66:B548) -> 3070601 Additional CFE System panel 100cm x 240cm
A67: 3070801 | B67: CFE System door 90cm x 240cm | C67: =CONCATENATE(A67:A545," ",B67:B549) -> 3070801 CFE System door 90cm x 240cm
A68: 3070803 | B68: Standard storage with door 150cm x 150cm ( Corferias System) | C68: =CONCATENATE(A68:A546," ",B68:B550) -> 3070803 Standard storage with door 150cm x 150cm ( Corferias System)
A69: 3071418 | B69: Wired Internet service "FOR ONE DEVICE DURING ONE DAY" | C69: =CONCATENATE(A69:A547," ",B69:B551) -> 3071418 Wired Internet service "FOR ONE DEVICE DURING ONE DAY"
A70: 3071419 | B70: Wi-Fi Network access "FOR ONE DEVICE DURING ONE DAY" | C70: =CONCATENATE(A70:A548," ",B70:B552) -> 3071419 Wi-Fi Network access "FOR ONE DEVICE DURING ONE DAY"
A71: 3071417 | B71: Wired Internet service "FOR ONE DEVICE DURING THE TRADE FAIR" rate for 3 days | C71: =CONCATENATE(A71:A549," ",B71:B553) -> 3071417 Wired Internet service "FOR ONE DEVICE DURING THE TRADE FAIR" rate for 3 days
A72: 3071417 | B72: Wired Internet service "FOR ONE DEVICE DURING THE TRADE FAIR" rate for 4 to 6 days | C72: =CONCATENATE(A72:A550," ",B72:B554) -> 3071417 Wired Internet service "FOR ONE DEVICE DURING THE TRADE FAIR" rate for 4 to 6 days
A73: 3071417 | B73: Wired Internet service "FOR ONE DEVICE DURING THE TRADE FAIR" rate for 7 to 11 days | C73: =CONCATENATE(A73:A551," ",B73:B555) -> 3071417 Wired Internet service "FOR ONE DEVICE DURING THE TRADE FAIR" rate for 7 to 11 days
A74: 3071417 | B74: Wired Internet service "FOR ONE DEVICE DURING THE TRADE FAIR" rate for 12 to 18 days | C74: =CONCATENATE(A74:A552," ",B74:B556) -> 3071417 Wired Internet service "FOR ONE DEVICE DURING THE TRADE FAIR" rate for 12 to 18 days
A75: 3071420 | B75: Wi-Fi Network access "FOR ONE DEVICE DURING THE TRADE FAIR" rate for 3 days | C75: =CONCATENATE(A75:A553," ",B75:B557) -> 3071420 Wi-Fi Network access "FOR ONE DEVICE DURING THE TRADE FAIR" rate for 3 days
A76: 3071420 | B76: Wi-Fi Network access "FOR ONE DEVICE DURING THE TRADE FAIR" rate for 4 to 6 days | C76: =CONCATENATE(A76:A554," ",B76:B558) -> 3071420 Wi-Fi Network access "FOR ONE DEVICE DURING THE TRADE FAIR" rate for 4 to 6 days
A77: 3071420 | B77: Wi-Fi Network access "FOR ONE DEVICE DURING THE TRADE FAIR" rate for 7 to 11 days | C77: =CONCATENATE(A77:A555," ",B77:B559) -> 3071420 Wi-Fi Network access "FOR ONE DEVICE DURING THE TRADE FAIR" rate for 7 to 11 days
A78: 3071420 | B78: Wi-Fi Network access "FOR ONE DEVICE DURING THE TRADE FAIR" rate for 12 to 18 days | C78: =CONCATENATE(A78:A556," ",B78:B560) -> 3071420 Wi-Fi Network access "FOR ONE DEVICE DURING THE TRADE FAIR" rate for 12 to 18 days
A79: 3071423 | B79: POS terminal connection + Wi-Fi Network access (For one device during the trade fair) rate for 3 days | C79: =CONCATENATE(A79:A557," ",B79:B561) -> 3071423 POS terminal connection + Wi-Fi Network access (For one device during the trade fair) rate for 3 days
A80: 3071423 | B80: POS terminal connection + Wi-Fi Network access (For one device during the trade fair) rate for 4 to 6 days | C80: =CONCATENATE(A80:A558," ",B80:B562) -> 3071423 POS terminal connection + Wi-Fi Network access (For one device during the trade fair) rate for 4 to 6 days
A81: 3071423 | B81: POS terminal connection + Wi-Fi Network access (For one device during the trade fair) rate for 7 to 11 days | C81: =CONCATENATE(A81:A559," ",B81:B563) -> 3071423 POS terminal connection + Wi-Fi Network access (For one device during the trade fair) rate for 7 to 11 days
A82: 3071423 | B82: POS terminal connection + Wi-Fi Network access (For one device during the trade fair) rate for 12 to 18 days | C82: =CONCATENATE(A82:A560," ",B82:B564) -> 3071423 POS terminal connection + Wi-Fi Network access (For one device during the trade fair) rate for 12 to 18 days
A83: 3071424 | B83: POS terminal connection + Wired Internet service (For one device during the trade fair) rate for 3 days | C83: =CONCATENATE(A83:A561," ",B83:B565) -> 3071424 POS terminal connection + Wired Internet service (For one device during the trade fair) rate for 3 days
A84: 3071424 | B84: POS terminal connection + Wired Internet service (For one device during the trade fair) rate for 4 to 6 days | C84: =CONCATENATE(A84:A562," ",B84:B566) -> 3071424 POS terminal connection + Wired Internet service (For one device during the trade fair) rate for 4 to 6 days
A85: 3071424 | B85: POS terminal connection + Wired Internet service (For one device during the trade fair) rate for 7 to 11 days | C85: =CONCATENATE(A85:A563," ",B85:B567) -> 3071424 POS terminal connection + Wired Internet service (For one device during the trade fair) rate for 7 to 11 days
A86: 3071424 | B86: POS terminal connection + Wired Internet service (For one device during the trade fair) rate for 12 to 18 days | C86: =CONCATENATE(A86:A564," ",B86:B568) -> 3071424 POS terminal connection + Wired Internet service (For one device during the trade fair) rate for 12 to 18 days
A87: 3071425 | B87: Wired Internet service + Wi-Fi Network access (For one device during the trade fair) rate for 3 days | C87: =CONCATENATE(A87:A565," ",B87:B569) -> 3071425 Wired Internet service + Wi-Fi Network access (For one device during the trade fair) rate for 3 days
A88: 3071425 | B88: Wired Internet service + Wi-Fi Network access (For one device during the trade fair) rate for 4 to 6 days | C88: =CONCATENATE(A88:A566," ",B88:B570) -> 3071425 Wired Internet service + Wi-Fi Network access (For one device during the trade fair) rate for 4 to 6 days
A89: 3071425 | B89: Wired Internet service + Wi-Fi Network access (For one device during the trade fair) rate for 7 to 11 days | C89: =CONCATENATE(A89:A567," ",B89:B571) -> 3071425 Wired Internet service + Wi-Fi Network access (For one device during the trade fair) rate for 7 to 11 days
A90: 3071425 | B90: Wired Internet service + Wi-Fi Network access (For one device during the trade fair) rate for 12 to 18 days | C90: =CONCATENATE(A90:A568," ",B90:B572) -> 3071425 Wired Internet service + Wi-Fi Network access (For one device during the trade fair) rate for 12 to 18 days
A91: 3071437 | B91: Dedicated internet connection: If you require a wider broadband internet connection for specific networks, please contact the PLUS at Corferias for further advisory and quotation. | C91: =CONCATENATE(A91:A569," ",B91:B573) -> 3071437 Dedicated internet connection: If you require a wider broadband internet connection for specific networks, please contact the PLUS at Corferias for further advisory and quotation.
A92: 3071406 | B92: Network Access Point Installation: Includes UTP cable per point | C92: =CONCATENATE(A92:A570," ",B92:B574) -> 3071406 Network Access Point Installation: Includes UTP cable per point
A93: 3071407 | B93: Switch rate per fair | C93: =CONCATENATE(A93:A571," ",B93:B575) -> 3071407 Switch rate per fair
A94: 3071402 | B94: VLAN Service: Virtual network service. rate per fair | C94: =CONCATENATE(A94:A572," ",B94:B576) -> 3071402 VLAN Service: Virtual network service. rate per fair
A95: 3071430 | B95: LAN Extension rate per fair (Includes network point and applies to extend the network service contracted with third parties) | C95: =CONCATENATE(A95:A573," ",B95:B577) -> 3071430 LAN Extension rate per fair (Includes network point and applies to extend the network service contracted with third parties)
A96: 3071442 | B96: Permanent technical support (8 hour shift) Must be requested at least 24h prior daily rate | C96: =CONCATENATE(A96:A574," ",B96:B578) -> 3071442 Permanent technical support (8 hour shift) Must be requested at least 24h prior daily rate
A97: 3070202 | B97: Local landline service (Includes unlimited local calls) rate per 3 days | C97: =CONCATENATE(A97:A575," ",B97:B579) -> 3070202 Local landline service (Includes unlimited local calls) rate per 3 days
A98: 3070202 | B98: Local landline service (Includes unlimited local calls) rate per 4 to 6 days | C98: =CONCATENATE(A98:A576," ",B98:B580) -> 3070202 Local landline service (Includes unlimited local calls) rate per 4 to 6 days
A99: 3070202 | B99: Local landline service (Includes unlimited local calls) rate per 7 to 11 days | C99: =CONCATENATE(A99:A577," ",B99:B581) -> 3070202 Local landline service (Includes unlimited local calls) rate per 7 to 11 days
A100: 3070202 | B100: Local landline service (Includes unlimited local calls) rate per 13 to 18 days | C100: =CONCATENATE(A100:A578," ",B100:B582) -> 3070202 Local landline service (Includes unlimited local calls) rate per 13 to 18 days
A101: 3070203 | B101: Long-distance landline service:The rate does not include national long distance. Rate per 3 days | C101: =CONCATENATE(A101:A579," ",B101:B583) -> 3070203 Long-distance landline service:The rate does not include national long distance. Rate per 3 days
A102: 3070203 | B102: Long-distance landline service:The rate does not include national long distance rate per 4 to 6 days | C102: =CONCATENATE(A102:A580," ",B102:B584) -> 3070203 Long-distance landline service:The rate does not include national long distance rate per 4 to 6 days
A103: 3070203 | B103: Long-distance landline service:The rate does not include national long distance rate per 7 to 11 days | C103: =CONCATENATE(A103:A581," ",B103:B585) -> 3070203 Long-distance landline service:The rate does not include national long distance rate per 7 to 11 days
A104: 3070203 | B104: Long-distance landline service:The rate does not include national long distance rate per 12 to 18 days | C104: =CONCATENATE(A104:A582," ",B104:B586) -> 3070203 Long-distance landline service:The rate does not include national long distance rate per 12 to 18 days
A105: 3070201 | B105: Non-switched external line (Must be previously requested to Etb, Claro, EPM, Colomsat or another operator) rate per 3 days | C105: =CONCATENATE(A105:A583," ",B105:B587) -> 3070201 Non-switched external line (Must be previously requested to Etb, Claro, EPM, Colomsat or another operator) rate per 3 days
A106: 3070201 | B106: Non-switched external line (Must be previously requested to Etb, Claro, EPM, Colomsat or another operator) rate per 4 to 6 days | C106: =CONCATENATE(A106:A584," ",B106:B588) -> 3070201 Non-switched external line (Must be previously requested to Etb, Claro, EPM, Colomsat or another operator) rate per 4 to 6 days
A107: 3070201 | B107: Non-switched external line (Must be previously requested to Etb, Claro, EPM, Colomsat or another operator) rate per 7 to 11 days | C107: =CONCATENATE(A107:A585," ",B107:B589) -> 3070201 Non-switched external line (Must be previously requested to Etb, Claro, EPM, Colomsat or another operator) rate per 7 to 11 days
A108: 3070201 | B108: Non-switched external line (Must be previously requested to Etb, Claro, EPM, Colomsat or another operator) rate per 12 to 18 days | C108: =CONCATENATE(A108:A586," ",B108:B590) -> 3070201 Non-switched external line (Must be previously requested to Etb, Claro, EPM, Colomsat or another operator) rate per 12 to 18 days
A109: 3070207 | B109: POS Terminal wired connection: (Does not include the dataphone) | C109: =CONCATENATE(A109:A531," ",B109:B535) -> 3070207 POS Terminal wired connection: (Does not include the dataphone)
A110: 3070503 | B110: Polo shelving unit (Melamine) (200cm x 93cm x 35cm) | C110: =CONCATENATE(A110:A533," ",B110:B537) -> 3070503 Polo shelving unit (Melamine) (200cm x 93cm x 35cm)
A111: 3070503 | B111: Polo shelving unit (Honey brown) (200cm x 93cm x 35cm) | C111: =CONCATENATE(A111:A534," ",B111:B538) -> 3070503 Polo shelving unit (Honey brown) (200cm x 93cm x 35cm)
A112: 3070503 | B112: Polo shelving unit (Oak finish) (200cm x 93cm x 35cm) | C112: =CONCATENATE(A112:A535," ",B112:B539) -> 3070503 Polo shelving unit (Oak finish) (200cm x 93cm x 35cm)
A113: 3070503 | B113: Polo shelving unit (Grey oak) (200cm x 93cm x 35cm) | C113: =CONCATENATE(A113:A536," ",B113:B540) -> 3070503 Polo shelving unit (Grey oak) (200cm x 93cm x 35cm)
A114: 3070503 | B114: Polo shelving unit (OSB) (200cm x 93cm x 35cm) | C114: =CONCATENATE(A114:A537," ",B114:B541) -> 3070503 Polo shelving unit (OSB) (200cm x 93cm x 35cm)
A115: 3070517 | B115: 1-tier glass showcase (100cm x 100cm x 40cm) | C115: =CONCATENATE(A115:A538," ",B115:B542) -> 3070517 1-tier glass showcase (100cm x 100cm x 40cm)
A116: 3070518 | B116: 1-tier glass showcase type 2 (White) (92cm x 90 cm x 40cm) | C116: =CONCATENATE(A116:A539," ",B116:B543) -> 3070518 1-tier glass showcase type 2 (White) (92cm x 90 cm x 40cm)
A117: 3070518 | B117: 1-tier glass showcase type 2 (Nacar) (92cm x 90 cm x 40cm) | C117: =CONCATENATE(A117:A540," ",B117:B544) -> 3070518 1-tier glass showcase type 2 (Nacar) (92cm x 90 cm x 40cm)
A118: 3070521 | B118: Basic clothes rack 1 pedestal (120cm Width - Height) adjustable + 5 hooks | C118: =CONCATENATE(A118:A541," ",B118:B545) -> 3070521 Basic clothes rack 1 pedestal (120cm Width - Height) adjustable + 5 hooks
A119: 3070521 | B119: Double clothes rack 2 pedestal (120cm Width-Height) adjustable + 5 hooks | C119: =CONCATENATE(A119:A542," ",B119:B546) -> 3070521 Double clothes rack 2 pedestal (120cm Width-Height) adjustable + 5 hooks
A120: 3070535 | B120: 2-tier Island showcase (190cm x 125cm x 41cm) | C120: =CONCATENATE(A120:A543," ",B120:B547) -> 3070535 2-tier Island showcase (190cm x 125cm x 41cm)
A121: 3070714 | B121: Exhibition cube (40cm x 40cm x 25cm) | C121: =CONCATENATE(A121:A544," ",B121:B548) -> 3070714 Exhibition cube (40cm x 40cm x 25cm)
A122: 3070936 | B122: Plastic folding table (White or grey) (73cm x 182cm x 76cm) | C122: =CONCATENATE(A122:A545," ",B122:B549) -> 3070936 Plastic folding table (White or grey) (73cm x 182cm x 76cm)
A123: 3070954 | B123: Monaco counter (Melamine) (100cm x 100cm x 30cm) | C123: =CONCATENATE(A123:A546," ",B123:B550) -> 3070954 Monaco counter (Melamine) (100cm x 100cm x 30cm)
A124: 3070954 | B124: Monaco counter (Honey brown) (100cm x 100cm x 30cm) | C124: =CONCATENATE(A124:A547," ",B124:B551) -> 3070954 Monaco counter (Honey brown) (100cm x 100cm x 30cm)
A125: 3070954 | B125: Monaco counter (Oak finish) (100cm x 100cm x 30cm) | C125: =CONCATENATE(A125:A548," ",B125:B552) -> 3070954 Monaco counter (Oak finish) (100cm x 100cm x 30cm)
A126: 3070954 | B126: Monaco counter (Grey oak) (100cm x 100cm x 30cm) | C126: =CONCATENATE(A126:A549," ",B126:B553) -> 3070954 Monaco counter (Grey oak) (100cm x 100cm x 30cm)
A127: 3070955 | B127: 90cm Rectangular pedestal (90cm x 30cm x 30cm) | C127: =CONCATENATE(A127:A550," ",B127:B554) -> 3070955 90cm Rectangular pedestal (90cm x 30cm x 30cm)
A128: 3070956 | B128: 60cm Rectangular pedestal (60cm x 30cm x 30cm) | C128: =CONCATENATE(A128:A551," ",B128:B555) -> 3070956 60cm Rectangular pedestal (60cm x 30cm x 30cm)
A129: 3070957 | B129: Squared pedestal (30cm x 30cm x 30cm) | C129: =CONCATENATE(A129:A552," ",B129:B556) -> 3070957 Squared pedestal (30cm x 30cm x 30cm)
A130: 3071006 | B130: Cushioned standard black chair (79cm x 53cm x 42cm) | C130: =CONCATENATE(A130:A553," ",B130:B557) -> 3071006 Cushioned standard black chair (79cm x 53cm x 42cm)
A131: 3071008 | B131: Egg standard chair (48cm x 46cm x 45cm) | C131: =CONCATENATE(A131:A554," ",B131:B558) -> 3071008 Egg standard chair (48cm x 46cm x 45cm)
A132: 3071013 | B132: Victoria right couch (70cm x 100cm x 75cm) | C132: =CONCATENATE(A132:A555," ",B132:B559) -> 3071013 Victoria right couch (70cm x 100cm x 75cm)
A133: 3071022 | B133: Versalles pneumatic high chair (80cm x 40 cm x 40 cm) | C133: =CONCATENATE(A133:A556," ",B133:B560) -> 3071022 Versalles pneumatic high chair (80cm x 40 cm x 40 cm)
A134: 3071023 | B134: Victoria left couch(70cm x 100cm x 75cm) | C134: =CONCATENATE(A134:A557," ",B134:B561) -> 3071023 Victoria left couch(70cm x 100cm x 75cm)
A135: 3071031 | B135: Terranova Couch - 2 seats (88cm x 173 cm x 80cm) | C135: =CONCATENATE(A135:A558," ",B135:B562) -> 3071031 Terranova Couch - 2 seats (88cm x 173 cm x 80cm)
A136: 3071036 | B136: Plastic folding table + 2 cushioned standard black chairs | C136: =CONCATENATE(A136:A559," ",B136:B563) -> 3071036 Plastic folding table + 2 cushioned standard black chairs
A137: 3071039 | B137: Daysa high table + 2 Marsella pneumatic high chairs | C137: =CONCATENATE(A137:A560," ",B137:B564) -> 3071039 Daysa high table + 2 Marsella pneumatic high chairs
A138: 3071054 | B138: Lotus standard table + 2 Egg standard chair | C138: =CONCATENATE(A138:A561," ",B138:B565) -> 3071054 Lotus standard table + 2 Egg standard chair
A139: 3071059 | B139: Levis armchair (73cm x 86cm x 73cm) | C139: =CONCATENATE(A139:A562," ",B139:B566) -> 3071059 Levis armchair (73cm x 86cm x 73cm)
A140: 3071061 | B140: Suiza standard chair (48cm x 46cm x 45cm) | C140: =CONCATENATE(A140:A563," ",B140:B567) -> 3071061 Suiza standard chair (48cm x 46cm x 45cm)
A141: 3071068 | B141: Double base rectangular table (Melamine) (50cm x 75cm x 50cm) | C141: =CONCATENATE(A141:A564," ",B141:B568) -> 3071068 Double base rectangular table (Melamine) (50cm x 75cm x 50cm)
A142: 3071077 | B142: Marsella pneumatic high chair (80cm x 40cm x 40cm) | C142: =CONCATENATE(A142:A565," ",B142:B569) -> 3071077 Marsella pneumatic high chair (80cm x 40cm x 40cm)
A143: 3071081 | B143: Executive Leather Chair (57cm x 93cm x 52cm) | C143: =CONCATENATE(A143:A566," ",B143:B570) -> 3071081 Executive Leather Chair (57cm x 93cm x 52cm)
A144: 3071081 | B144: Executive Mesh Chair (57cm x 93cm x 52cm) | C144: =CONCATENATE(A144:A567," ",B144:B571) -> 3071081 Executive Mesh Chair (57cm x 93cm x 52cm)
A145: 3071083 | B145: Toronto couch - 3 seats (88cm x 173cm x 80cm) | C145: =CONCATENATE(A145:A568," ",B145:B572) -> 3071083 Toronto couch - 3 seats (88cm x 173cm x 80cm)
A146: 3071085 | B146: Ottawa couch - 2 seats (85cm x 120cm x 76cm) | C146: =CONCATENATE(A146:A569," ",B146:B573) -> 3071085 Ottawa couch - 2 seats (85cm x 120cm x 76cm)
A147: 3071090 | B147: Standard square puff (43cm x 43cm x 43cm) | C147: =CONCATENATE(A147:A570," ",B147:B574) -> 3071090 Standard square puff (43cm x 43cm x 43cm)
A148: 3071091 | B148: Trunk puff - 2 seats (48cm x 81cm x 40cm) | C148: =CONCATENATE(A148:A571," ",B148:B575) -> 3071091 Trunk puff - 2 seats (48cm x 81cm x 40cm)
A149: 3071093 | B149: Daysa glass top high table (100cm x 60cm) | C149: =CONCATENATE(A149:A572," ",B149:B576) -> 3071093 Daysa glass top high table (100cm x 60cm)
A150: 3071095 | B150: VIP living room (1 Victoria right couch, 1 Victoria left couch, 2 Levis armchairs, 1 Double base square table) | C150: =CONCATENATE(A150:A573," ",B150:B577) -> 3071095 VIP living room (1 Victoria right couch, 1 Victoria left couch, 2 Levis armchairs, 1 Double base square table)
A151: 3071097 | B151: Daysa standard table (76cm x 60cm) | C151: =CONCATENATE(A151:A574," ",B151:B578) -> 3071097 Daysa standard table (76cm x 60cm)
A152: 3071098 | B152: Shia standard table black (76cm x 60cm x 60cm) | C152: =CONCATENATE(A152:A575," ",B152:B579) -> 3071098 Shia standard table black (76cm x 60cm x 60cm)
A153: 3071098 | B153: Shia standard table White (76cm x 60cm x 60cm) | C153: =CONCATENATE(A153:A576," ",B153:B580) -> 3071098 Shia standard table White (76cm x 60cm x 60cm)
A154: 3071100 | B154: Double base circular table (Melamine) (50cm x 110cm x 60cm) | C154: =CONCATENATE(A154:A577," ",B154:B581) -> 3071100 Double base circular table (Melamine) (50cm x 110cm x 60cm)
A155: 3071103 | B155: Minibar Refrigerator 121 LT (48.5cm X 85.1cm X 60cm) | C155: =CONCATENATE(A155:A578," ",B155:B582) -> 3071103 Minibar Refrigerator 121 LT (48.5cm X 85.1cm X 60cm)
A156: 3071103 | B156: Standard Refrigerator 230LT ( 55.6cm X 157.6cm X 67cm) | C156: =CONCATENATE(A156:A579," ",B156:B583) -> 3071103 Standard Refrigerator 230LT ( 55.6cm X 157.6cm X 67cm)
A157: 3071104 | B157: Double Base square table (Melamine) (50cm x 60cm x 60cm) | C157: =CONCATENATE(A157:A580," ",B157:B584) -> 3071104 Double Base square table (Melamine) (50cm x 60cm x 60cm)
A158: 3071105 | B158: Office KIT 2 (2 cushioned standard black chairs, 1 executive leather chair, 1 office desk) | C158: =CONCATENATE(A158:A581," ",B158:B585) -> 3071105 Office KIT 2 (2 cushioned standard black chairs, 1 executive leather chair, 1 office desk)
A159: 3071108 | B159: 4-tier shelving unit (190cm x 125cm x 41cm) | C159: =CONCATENATE(A159:A582," ",B159:B586) -> 3071108 4-tier shelving unit (190cm x 125cm x 41cm)
A160: 3071111 | B160: Rectangular 2-tier showcase (200cm x 100cm x 40cm) | C160: =CONCATENATE(A160:A583," ",B160:B587) -> 3071111 Rectangular 2-tier showcase (200cm x 100cm x 40cm)
A161: 3071113 | B161: Osaka living room (1 Toronto couch, 2 Donna puffs, 1 Double base square table) | C161: =CONCATENATE(A161:A584," ",B161:B588) -> 3071113 Osaka living room (1 Toronto couch, 2 Donna puffs, 1 Double base square table)
A162: 3071114 | B162: Trunk puff - 3 seats (46cm x 120cm x 54cm) | C162: =CONCATENATE(A162:A585," ",B162:B589) -> 3071114 Trunk puff - 3 seats (46cm x 120cm x 54cm)
A163: 3071115 | B163: Daysa high table (Melamine) (100cm x 60cm) | C163: =CONCATENATE(A163:A586," ",B163:B590) -> 3071115 Daysa high table (Melamine) (100cm x 60cm)
A164: 3071115 | B164: Daysa high table (Honey brown) (100cm x 60cm) | C164: =CONCATENATE(A164:A587," ",B164:B591) -> 3071115 Daysa high table (Honey brown) (100cm x 60cm)
A165: 3071115 | B165: Daysa high table (Oak finish) (100cm x 60cm) | C165: =CONCATENATE(A165:A588," ",B165:B592) -> 3071115 Daysa high table (Oak finish) (100cm x 60cm)
A166: 3071115 | B166: Daysa high table (Grey oak) (100cm x 60cm) | C166: =CONCATENATE(A166:A589," ",B166:B593) -> 3071115 Daysa high table (Grey oak) (100cm x 60cm)
A167: 3071116 | B167: Lotus standard table (70cm x 64cm x 81cm) | C167: =CONCATENATE(A167:A590," ",B167:B594) -> 3071116 Lotus standard table (70cm x 64cm x 81cm)
A168: 3071302 | B168: Stainless steel trash can | C168: =CONCATENATE(A168:A591," ",B168:B595) -> 3071302 Stainless steel trash can
A169: 3071325 | B169: 120cm Queue divider | C169: =CONCATENATE(A169:A592," ",B169:B596) -> 3071325 120cm Queue divider
A170: 3071370 | B170: Folding magazine rack (140cm x 25cm x 29cm) | C170: =CONCATENATE(A170:A593," ",B170:B597) -> 3071370 Folding magazine rack (140cm x 25cm x 29cm)
A171: 30710165 | B171: Red Bombonera Chair | C171: =CONCATENATE(A171:A594," ",B171:B598) -> 30710165 Red Bombonera Chair
A172: 30710166 | B172: Oslo Chair White | C172: =CONCATENATE(A172:A595," ",B172:B599) -> 30710166 Oslo Chair White
A173: 30710167 | B173: Wooden Bar Chair | C173: =CONCATENATE(A173:A596," ",B173:B600) -> 30710167 Wooden Bar Chair
A174: 30710168 | B174: Meeting Room | C174: =CONCATENATE(A174:A597," ",B174:B601) -> 30710168 Meeting Room
A175: 30713198 | B175: Executive Chair (100cm x 49cm x 49cm) | C175: =CONCATENATE(A175:A598," ",B175:B602) -> 30713198 Executive Chair (100cm x 49cm x 49cm)
A176: 30713200 | B176: Office desk (50cm x 120cm x 50cm) | C176: =CONCATENATE(A176:A599," ",B176:B603) -> 30713200 Office desk (50cm x 120cm x 50cm)
A177: 30713201 | B177: Buggy easy chair (72cm x 64cm) | C177: =CONCATENATE(A177:A600," ",B177:B604) -> 30713201 Buggy easy chair (72cm x 64cm)
A178: 30713225 | B178: Smooth carpet m2 + installation: Contact serviciosplus@corferias.com for advice and a quote. | C178: =CONCATENATE(A178:A601," ",B178:B605) -> 30713225 Smooth carpet m2 + installation: Contact serviciosplus@corferias.com for advice and a quote.
A179: 30713226 | B179: Exhibition carpet, ribbed type m2 + installation | C179: =CONCATENATE(A179:A602," ",B179:B606) -> 30713226 Exhibition carpet, ribbed type m2 + installation
A180: 30713227 | B180: Rubber mat m2 + installation | C180: =CONCATENATE(A180:A603," ",B180:B607) -> 30713227 Rubber mat m2 + installation
A181: 30713228 | B181: Laminate floor m2 + installation | C181: =CONCATENATE(A181:A604," ",B181:B608) -> 30713228 Laminate floor m2 + installation
A182: 30713229 | B182: Melamine floor m2 + installation | C182: =CONCATENATE(A182:A605," ",B182:B609) -> 30713229 Melamine floor m2 + installation
B183: Baru Living Room (1 Otawa Sofa, 2 Square Poufs, 1 Pouf 2 Seats, 1 Coffee Table 2 Levels) | C183: =CONCATENATE(A183:A606," ",B183:B610) -> Baru Living Room (1 Otawa Sofa, 2 Square Poufs, 1 Pouf 2 Seats, 1 Coffee Table 2 Levels)
B184: Terranova Lounge (1 Terranova Sofa, 2 Buggy Armchairs, 1 Coffee Table 2 levels) | C184: =CONCATENATE(A184:A607," ",B184:B611) -> Terranova Lounge (1 Terranova Sofa, 2 Buggy Armchairs, 1 Coffee Table 2 levels)
B185: Flowerplot Melaminic (with 12 artificial mats) | C185: =CONCATENATE(A185:A608," ",B185:B612) -> Flowerplot Melaminic (with 12 artificial mats)
A186: 3070942 | B186: Office Kit Pine 1 (1 Pino Table, 3 Acrilic Chair K Black) | C186: =CONCATENATE(A186:A609," ",B186:B613) -> 3070942 Office Kit Pine 1 (1 Pino Table, 3 Acrilic Chair K Black)
A187: 3070940 | B187: Pine Office Desk 120 x 60 cms | C187: =CONCATENATE(A187:A610," ",B187:B614) -> 3070940 Pine Office Desk 120 x 60 cms
A188: 3071002 | B188: Acrilic Chair K Black 103C | C188: =CONCATENATE(A188:A611," ",B188:B615) -> 3071002 Acrilic Chair K Black 103C
A189: 3071346 | B189: Base for TV Led - LCD adaptable (Does not include installation) Value of event 1 day | C189: =CONCATENATE(A189:A602," ",B189:B606) -> 3071346 Base for TV Led - LCD adaptable (Does not include installation) Value of event 1 day
A190: 3071346 | B190: Base for TV Led - LCD adaptable (Does not include installation) Value of event 2 days (Value per day) | C190: =CONCATENATE(A190:A603," ",B190:B607) -> 3071346 Base for TV Led - LCD adaptable (Does not include installation) Value of event 2 days (Value per day)
A191: 3071346 | B191: Base for TV Led - LCD adaptable (Does not include installation) Value from 3 to 6 days (Day value) | C191: =CONCATENATE(A191:A604," ",B191:B608) -> 3071346 Base for TV Led - LCD adaptable (Does not include installation) Value from 3 to 6 days (Day value)
A192: 3071204 | B192: Base for TV Led - LCD adaptable (Does not include installation) Value from 7 to 18 days (Fair value) | C192: =CONCATENATE(A192:A605," ",B192:B609) -> 3071204 Base for TV Led - LCD adaptable (Does not include installation) Value from 7 to 18 days (Fair value)
A193: 3071204 | B193: Tv Smart 45" 114cms ( Includes tv stand / power cord / 1 HDMI cable) IN: HDMI, USB Value of event 1 day | C193: =CONCATENATE(A193:A606," ",B193:B610) -> 3071204 Tv Smart 45" 114cms ( Includes tv stand / power cord / 1 HDMI cable) IN: HDMI, USB Value of event 1 day
A194: 3071204 | B194: Tv Smart 45" 114cms ( Includes tv stand / power cord / 1 HDMI cable) IN: HDMI, USB Value of event 2 days (Value per day) | C194: =CONCATENATE(A194:A607," ",B194:B611) -> 3071204 Tv Smart 45" 114cms ( Includes tv stand / power cord / 1 HDMI cable) IN: HDMI, USB Value of event 2 days (Value per day)
A195: 3071204 | B195: Tv Smart 45" 114cms ( Includes tv stand / power cord / 1 HDMI cable) IN: HDMI, USB Value from 3 to 6 days (Day value) | C195: =CONCATENATE(A195:A608," ",B195:B612) -> 3071204 Tv Smart 45" 114cms ( Includes tv stand / power cord / 1 HDMI cable) IN: HDMI, USB Value from 3 to 6 days (Day value)
A196: 3071204 | B196: Tv Smart 45" 114cms ( Includes tv stand / power cord / 1 HDMI cable) IN: HDMI, USB Value from 7 to 18 days (Fair value) | C196: =CONCATENATE(A196:A609," ",B196:B613) -> 3071204 Tv Smart 45" 114cms ( Includes tv stand / power cord / 1 HDMI cable) IN: HDMI, USB Value from 7 to 18 days (Fair value)
A197: 30713202 | B197: Tv Smart 55" 140cms (Includes tv stand / power cord / 1 HDMI cable) IN: HDMI, USB Value of event 1 day | C197: =CONCATENATE(A197:A610," ",B197:B614) -> 30713202 Tv Smart 55" 140cms (Includes tv stand / power cord / 1 HDMI cable) IN: HDMI, USB Value of event 1 day
A198: 30713202 | B198: Tv Smart 55" 140cms (Includes tv stand / power cord / 1 HDMI cable) IN: HDMI, USB Value of event 2 days (Value per day) | C198: =CONCATENATE(A198:A611," ",B198:B615) -> 30713202 Tv Smart 55" 140cms (Includes tv stand / power cord / 1 HDMI cable) IN: HDMI, USB Value of event 2 days (Value per day)
A199: 30713202 | B199: Tv Smart 55" 140cms (Includes tv stand / power cord / 1 HDMI cable) IN: HDMI, USB Value from 3 to 6 days (Day value) | C199: =CONCATENATE(A199:A612," ",B199:B616) -> 30713202 Tv Smart 55" 140cms (Includes tv stand / power cord / 1 HDMI cable) IN: HDMI, USB Value from 3 to 6 days (Day value)
A200: 30713202 | B200: Tv Smart 55" 140cms (Includes tv stand / power cord / 1 HDMI cable) IN: HDMI, USB Value from 7 to 18 days (Fair value) | C200: =CONCATENATE(A200:A613," ",B200:B617) -> 30713202 Tv Smart 55" 140cms (Includes tv stand / power cord / 1 HDMI cable) IN: HDMI, USB Value from 7 to 18 days (Fair value)
... 284 more rows

Sheet FERIAS 3 DIAS (hidden)
A1: CLAVE | B1: CODIGO | C1: DESCRIPCIÓN | D1: FORMULA | E1: VALOR
A2: =CONCATENATE(B2:B494," ",C2:C494) -> 3070101 Single-phase installation (Double three-pronged outlet up to 2KW consumption/110V) rate per 3 days | B2: 3070101 | C2: Single-phase installation (Double three-pronged outlet up to 2KW consumption/110V) rate per 3 days | D2: =IF(G$3=TRUE,E2/I$3,E2) -> 306000 | E2: 306000 | F2: Celda vinculada | G2: USD | H2: PESOS | I2: TRM | J2: =E2/1.19 -> 257142.8571
A3: =CONCATENATE(B3:B495," ",C3:C495) -> 3070103 Additional Single-phase kilowatts (Requires a main connection MAX 2KW by connection) rate per 3 days | B3: 3070103 | C3: Additional Single-phase kilowatts (Requires a main connection MAX 2KW by connection) rate per 3 days | D3: =IF(G$3=TRUE,E3/I$3,E3) -> 98000 | E3: 98000 | F3: 0 | G3: FALSE | H3: FALSE | I3: =Q4 -> 4597.92 | J3: =E3/1.19 -> 82352.94118 | L3: USD | M3: EUR | N3: GBP | O3: CAD | P3: AUD | Q3: COP
A4: =CONCATENATE(B4:B496," ",C4:C496) -> 3070102 Three-phase installation ( Plastic strip up to 4KW consumption/208V) rate per 3 days | B4: 3070102 | C4: Three-phase installation ( Plastic strip up to 4KW consumption/208V) rate per 3 days | D4: 450000 | E4: 450000 | J4: 378151.2605 | K4: USD | L4: 1 | M4: 0.92267 | N4: 0.81077 | O4: 1.33774 | P4: 1.41885 | Q4: 4597.92
A5: =CONCATENATE(B5:B497," ",C5:C497) -> 3070104 Additional Three-phase kilowatts (Requires a main connection) rate per 3 days | B5: 3070104 | C5: Additional Three-phase kilowatts (Requires a main connection) rate per 3 days | D5: 130000 | E5: 130000 | J5: 109243.6975 | K5: EUR | L5: 1.08382 | M5: 1 | N5: 0.87873 | O5: 1.44987 | P5: 1.53777 | Q5: 4983.3
A6: =CONCATENATE(B6:B498," ",C6:C498) -> 3071372 21 to 50 additional Three-phase kilowatts (Rate per KW) (Requires a main connection) rate per 3 days | B6: 3071372 | C6: 21 to 50 additional Three-phase kilowatts (Rate per KW) (Requires a main connection) rate per 3 days | D6: 117000 | E6: 117000 | J6: 98319.32773 | K6: GBP | L6: 1.23339 | M6: 1.13801 | N6: 1 | O6: 1.64996 | P6: 1.74999 | Q6: 5671.02
A7: =CONCATENATE(B7:B499," ",C7:C499) -> 3071373 51 to 100 additionalThree-phase kilowatts (Rate per KW) (Requires a main connection) rate per 3 days | B7: 3071373 | C7: 51 to 100 additionalThree-phase kilowatts (Rate per KW) (Requires a main connection) rate per 3 days | D7: 112000 | E7: 112000 | J7: 94117.64706 | K7: CAD | L7: 0.74753 | M7: 0.68972 | N7: 0.60608 | O7: 1 | P7: 1.06063 | Q7: 3437.07
A8: =CONCATENATE(B8:B500," ",C8:C500) -> 3071374 More than 100 additional Three-phase kilowatts (Rate per KW) (Requires a main connection) rate per 3 days | B8: 3071374 | C8: More than 100 additional Three-phase kilowatts (Rate per KW) (Requires a main connection) rate per 3 days | D8: 79000 | E8: 79000 | J8: 66386.55462 | K8: AUD | L8: 0.7048 | M8: 0.65029 | N8: 0.57143 | O8: 0.94284 | P8: 1 | Q8: 3240.6
A9: =CONCATENATE(B9:B501," ",C9:C501) -> 3070402 Adjustable spotlight arm (150W/110V) rate per 3 days | B9: 3070402 | C9: Adjustable spotlight arm (150W/110V) rate per 3 days | D9: 62000 | E9: 62000 | J9: 52100.84034 | K9: COP | L9: 0.000217 | M9: 0.000201 | N9: 0.000176 | O9: 0.000291 | P9: 0.000309 | Q9: 1
A10: =CONCATENATE(B10:B502," ",C10:C502) -> 3070405 LED Reflector (50W- mltV) rate per 3 days | B10: 3070405 | C10: LED Reflector (50W- mltV) rate per 3 days | D10: 65000 | E10: 65000 | J10: 54621.84874
A11: =CONCATENATE(B11:B503," ",C11:C503) -> 3070403 Extension cord – Double three-pronged outlet (1500W/110V)Max 6mts, Requires a main connection. Does not include electricity. Rate per 3 days | B11: 3070403 | C11: Extension cord – Double three-pronged outlet (1500W/110V)Max 6mts, Requires a main connection. Does not include electricity. Rate per 3 days | D11: 36000 | E11: 36000 | J11: 30252.10084
A12: =CONCATENATE(B12:B504," ",C12:C504) -> 3071345 Sink 90cm x 60cm x 90cm (Does not include water supply or drain connection) rate per 3 days | B12: 3071345 | C12: Sink 90cm x 60cm x 90cm (Does not include water supply or drain connection) rate per 3 days | D12: 143000 | E12: 143000 | J12: 120168.0672
A13: =CONCATENATE(B13:B505," ",C13:C505) -> 3070301 1/2" Water supply (Consumption included) rate per 3 days | B13: 3070301 | C13: 1/2" Water supply (Consumption included) rate per 3 days | D13: 318000 | E13: 318000 | J13: 267226.8908
A14: =CONCATENATE(B14:B506," ",C14:C506) -> 3070302 1/2" Drain connection (Location determined by Corferias on your booth) rate per 3 days | B14: 3070302 | C14: 1/2" Drain connection (Location determined by Corferias on your booth) rate per 3 days | D14: 302000 | E14: 302000 | J14: 253781.5126
A15: =CONCATENATE(B15:B507," ",C15:C507) -> 3071341 Compressed air connection. Max pressure: 100 PSI, Max flow: 35CFM. rate per 3 days | B15: 3071341 | C15: Compressed air connection. Max pressure: 100 PSI, Max flow: 35CFM. rate per 3 days | D15: 450000 | E15: 450000 | J15: 378151.2605
A16: =CONCATENATE(B16:B508," ",C16:C508) -> 3070307 1/2" Water supply (consumption included) + 1/2" Drain + Sink. rate per 3 days | B16: 3070307 | C16: 1/2" Water supply (consumption included) + 1/2" Drain + Sink. rate per 3 days | D16: 680000 | E16: 680000 | J16: 571428.5714
A17: =CONCATENATE(B17:B509," ",C17:C509) -> 3071321 Installation of ONE (1) propane gas point per ONE (1) Equipment (Includes materials and labor) (Does not include gas consumption) rate per 3 days | B17: 3071321 | C17: Installation of ONE (1) propane gas point per ONE (1) Equipment (Includes materials and labor) (Does not include gas consumption) rate per 3 days | D17: 88000 | E17: 88000 | J17: 73949.57983
A18: =CONCATENATE(B18:B510," ",C18:C510) -> 3070601 Additional CFE System panel 100cm x 240cm | B18: 3070601 | C18: Additional CFE System panel 100cm x 240cm | D18: 38000 | E18: 38000 | J18: 31932.77311
A19: =CONCATENATE(B19:B511," ",C19:C511) -> 3070801 CFE System door 90cm x 240cm | B19: 3070801 | C19: CFE System door 90cm x 240cm | D19: 93000 | E19: 93000 | J19: 78151.2605
A20: =CONCATENATE(B20:B512," ",C20:C512) -> 3070803 Standard storage with door 150cm x 150cm ( Corferias System) | B20: 3070803 | C20: Standard storage with door 150cm x 150cm ( Corferias System) | D20: 148000 | E20: 148000 | J20: 124369.7479
A21: =CONCATENATE(B21:B513," ",C21:C513) -> 3071319 Articulating boom lift - 15 min fraction (Only for first levels) | B21: 3071319 | C21: Articulating boom lift - 15 min fraction (Only for first levels) | D21: 71700 | E21: 71700 | J21: 60252.10084
A22: =CONCATENATE(B22:B514," ",C22:C514) -> 3071319 Articulating boom lift - 30 min fraction (Only for first levels) | B22: 3071319 | C22: Articulating boom lift - 30 min fraction (Only for first levels) | D22: 122600 | E22: 122600 | J22: 103025.2101
A23: =CONCATENATE(B23:B516," ",C23:C516) -> 3071319 Articulating boom lift - 60 min fraction (Only for first levels) | B23: 3071319 | C23: Articulating boom lift - 60 min fraction (Only for first levels) | D23: 217800 | E23: 217800 | J23: 183025.2101
A24: =CONCATENATE(B24:B517," ",C24:C517) -> 3070413 Differential (cap. 1 ton) + Articulating boom lift (Assembly and disassembly) | B24: 3070413 | C24: Differential (cap. 1 ton) + Articulating boom lift (Assembly and disassembly) | D24: 338400 | E24: 338400 | J24: 284369.7479
A25: =CONCATENATE(B25:B518," ",C25:C518) -> 3070414 Electric scissor lifts per - 30 min fraction (Only for second levels) | B25: 3070414 | C25: Electric scissor lifts per - 30 min fraction (Only for second levels) | D25: 84200 | E25: 84200 | J25: 70756.30252
A26: =CONCATENATE(B26:B519," ",C26:C519) -> 3071387 Articulating boom lift + Differential + TRUSS 2,60 X 2,60 | B26: 3071387 | C26: Articulating boom lift + Differential + TRUSS 2,60 X 2,60 | D26: 2881400 | E26: 2881400 | J26: 2421344.538
A27: =CONCATENATE(B27:B520," ",C27:C520) -> 3071351 Articulating boom lift + Differential + TRUSS 3,60 X 2,60 | B27: 3071351 | C27: Articulating boom lift + Differential + TRUSS 3,60 X 2,60 | D27: 2881400 | E27: 2881400 | J27: 2421344.538
A28: =CONCATENATE(B28:B521," ",C28:C521) -> 3071395 Articulating boom lift + Differential + TRUSS 3,60 X 3,60 | B28: 3071395 | C28: Articulating boom lift + Differential + TRUSS 3,60 X 3,60 | D28: 2881400 | E28: 2881400 | J28: 2421344.538
A29: =CONCATENATE(B29:B522," ",C29:C522) -> 3071324 Articulating boom lift + Differential + TRUSS 5,90 X 5,90 | B29: 3071324 | C29: Articulating boom lift + Differential + TRUSS 5,90 X 5,90 | D29: 3601800 | E29: 3601800 | J29: 3026722.689
A30: =CONCATENATE(B30:B523," ",C30:C523) -> 3071436 Articulating boom lift + Differential + TRUSS 6,90 X 6,90 | B30: 3071436 | C30: Articulating boom lift + Differential + TRUSS 6,90 X 6,90 | D30: 3601800 | E30: 3601800 | J30: 3026722.689
A31: =CONCATENATE(B31:B524," ",C31:C524) -> 3071350 Articulating boom lift + Differential + TRUSS 5,60 X 5,60 | B31: 3071350 | C31: Articulating boom lift + Differential + TRUSS 5,60 X 5,60 | D31: 3601800 | E31: 3601800 | J31: 3026722.689
A32: =CONCATENATE(B32:B525," ",C32:C525) -> 3071371 Articulating boom lift + Differential + TRUSS 6,60 X 6,60 | B32: 3071371 | C32: Articulating boom lift + Differential + TRUSS 6,60 X 6,60 | D32: 3601800 | E32: 3601800 | J32: 3026722.689
A33: =CONCATENATE(B33:B526," ",C33:C526) -> 3071393 Articulating boom lift + Differential + TRUSS 9,60 X 2,60 | B33: 3071393 | C33: Articulating boom lift + Differential + TRUSS 9,60 X 2,60 | D33: 3601800 | E33: 3601800 | J33: 3026722.689
A34: =CONCATENATE(B34:B527," ",C34:C527) -> 3071394 Articulating boom lift + Differential + TRUSS 9,60 X 3,60 | B34: 3071394 | C34: Articulating boom lift + Differential + TRUSS 9,60 X 3,60 | D34: 3601800 | E34: 3601800 | J34: 3026722.689
A35: =CONCATENATE(B35:B528," ",C35:C528) -> 3071396 Articulating boom lift + Differential + TRUSS 9,60 X 5,60 | B35: 3071396 | C35: Articulating boom lift + Differential + TRUSS 9,60 X 5,60 | D35: 4769300 | E35: 4769300 | J35: 4007815.126
A36: =CONCATENATE(B36:B529," ",C36:C529) -> 3071397 Articulating boom lift + Differential + TRUSS 9,60 X 6,60 | B36: 3071397 | C36: Articulating boom lift + Differential + TRUSS 9,60 X 6,60 | D36: 4769300 | E36: 4769300 | J36: 4007815.126
A37: =CONCATENATE(B37:B530," ",C37:C530) -> 3071418 Wired Internet service "FOR ONE DEVICE DURING ONE DAY" | B37: 3071418 | C37: Wired Internet service "FOR ONE DEVICE DURING ONE DAY" | D37: 93000 | E37: 93000 | J37: 78151.2605
A38: =CONCATENATE(B38:B531," ",C38:C531) -> 3071419 Wi-Fi Network access "FOR ONE DEVICE DURING ONE DAY" | B38: 3071419 | C38: Wi-Fi Network access "FOR ONE DEVICE DURING ONE DAY" | D38: 93000 | E38: 93000 | J38: 78151.2605
A39: =CONCATENATE(B39:B532," ",C39:C532) -> 3071417 Wired Internet service "FOR ONE DEVICE DURING THE TRADE FAIR" rate for 3 days | B39: 3071417 | C39: Wired Internet service "FOR ONE DEVICE DURING THE TRADE FAIR" rate for 3 days | D39: 152000 | E39: 152000 | J39: 127731.0924
A40: =CONCATENATE(B40:B533," ",C40:C533) -> 3071420 Wi-Fi Network access "FOR ONE DEVICE DURING THE TRADE FAIR" rate for 3 days | B40: 3071420 | C40: Wi-Fi Network access "FOR ONE DEVICE DURING THE TRADE FAIR" rate for 3 days | D40: 152000 | E40: 152000 | J40: 127731.0924
A41: =CONCATENATE(B41:B534," ",C41:C534) -> 3071423 POS terminal connection + Wi-Fi Network access (For one device during the trade fair) rate for 3 days | B41: 3071423 | C41: POS terminal connection + Wi-Fi Network access (For one device during the trade fair) rate for 3 days | D41: 260000 | E41: 260000 | J41: 218487.395
A42: =CONCATENATE(B42:B535," ",C42:C535) -> 3071424 POS terminal connection + Wired Internet service (For one device during the trade fair) rate for 3 days | B42: 3071424 | C42: POS terminal connection + Wired Internet service (For one device during the trade fair) rate for 3 days | D42: 250000 | E42: 250000 | J42: 210084.0336
A43: =CONCATENATE(B43:B536," ",C43:C536) -> 3071425 Wired Internet service + Wi-Fi Network access (For one device during the trade fair) rate for 3 days | B43: 3071425 | C43: Wired Internet service + Wi-Fi Network access (For one device during the trade fair) rate for 3 days | D43: 273000 | E43: 273000 | J43: 229411.7647
A44: =CONCATENATE(B44:B537," ",C44:C537) -> 3071437 Dedicated internet connection: If you require a wider broadband internet connection for specific networks, please contact the PLUS at Corferias for further advisory and quotation. | B44: 3071437 | C44: Dedicated internet connection: If you require a wider broadband internet connection for specific networks, please contact the PLUS at Corferias for further advisory and quotation. | D44: Under quotation | E44: Según Cotización
A45: =CONCATENATE(B45:B538," ",C45:C538) -> 3071406 Network Access Point Installation: Includes UTP cable per point | B45: 3071406 | C45: Network Access Point Installation: Includes UTP cable per point | D45: 78000 | E45: 78000 | J45: 65546.21849
A46: =CONCATENATE(B46:B539," ",C46:C539) -> 3071407 Switch rate per fair | B46: 3071407 | C46: Switch rate per fair | D46: 75000 | E46: 75000 | J46: 63025.21008
A47: =CONCATENATE(B47:B540," ",C47:C540) -> 3071402 VLAN Service: Virtual network service. rate per fair | B47: 3071402 | C47: VLAN Service: Virtual network service. rate per fair | D47: 325000 | E47: 325000 | J47: 273109.2437
A48: =CONCATENATE(B48:B541," ",C48:C541) -> 3071430 LAN Extension rate per fair (Includes network point and applies to extend the network service contracted with third parties) | B48: 3071430 | C48: LAN Extension rate per fair (Includes network point and applies to extend the network service contracted with third parties) | D48: 1500000 | E48: 1500000 | J48: 1260504.202
A49: =CONCATENATE(B49:B542," ",C49:C542) -> 3071442 Permanent technical support (8 hour shift) Must be requested at least 24h prior daily rate | B49: 3071442 | C49: Permanent technical support (8 hour shift) Must be requested at least 24h prior daily rate | D49: 205000 | E49: 205000 | J49: 172268.9076
A50: =CONCATENATE(B50:B543," ",C50:C543) -> 3070202 Local landline service (Includes unlimited local calls) rate per 3 days | B50: 3070202 | C50: Local landline service (Includes unlimited local calls) rate per 3 days | D50: 41000 | E50: 41000 | J50: 34453.78151
A51: =CONCATENATE(B51:B544," ",C51:C544) -> 3070203 Long-distance landline service:The rate does not include national long distance. Rate per 3 days | B51: 3070203 | C51: Long-distance landline service:The rate does not include national long distance. Rate per 3 days | D51: 41000 | E51: 41000 | J51: 34453.78151
A52: =CONCATENATE(B52:B545," ",C52:C545) -> 3070201 Non-switched external line (Must be previously requested to Etb, Claro, EPM, Colomsat or another operator) rate per 3 days | B52: 3070201 | C52: Non-switched external line (Must be previously requested to Etb, Claro, EPM, Colomsat or another operator) rate per 3 days | D52: 115000 | E52: 115000 | J52: 96638.65546
A53: =CONCATENATE(B53:B546," ",C53:C546) -> 3070207 POS Terminal wired connection: (Does not include the dataphone) | B53: 3070207 | C53: POS Terminal wired connection: (Does not include the dataphone) | D53: 107000 | E53: 107000 | J53: 89915.96639
A54: =CONCATENATE(B54:B547," ",C54:C547) -> 3070503 Polo shelving unit (Melamine) (200cm x 93cm x 35cm) | B54: 3070503 | C54: Polo shelving unit (Melamine) (200cm x 93cm x 35cm) | D54: 165100 | E54: 165100 | J54: 138739.4958
A55: =CONCATENATE(B55:B548," ",C55:C548) -> 3070503 Polo shelving unit (Honey brown) (200cm x 93cm x 35cm) | B55: 3070503 | C55: Polo shelving unit (Honey brown) (200cm x 93cm x 35cm) | D55: 165100 | E55: 165100 | J55: 138739.4958
A56: =CONCATENATE(B56:B549," ",C56:C549) -> 3070503 Polo shelving unit (Oak finish) (200cm x 93cm x 35cm) | B56: 3070503 | C56: Polo shelving unit (Oak finish) (200cm x 93cm x 35cm) | D56: 165100 | E56: 165100 | J56: 138739.4958
A57: =CONCATENATE(B57:B550," ",C57:C550) -> 3070503 Polo shelving unit (Grey oak) (200cm x 93cm x 35cm) | B57: 3070503 | C57: Polo shelving unit (Grey oak) (200cm x 93cm x 35cm) | D57: 165100 | E57: 165100 | J57: 138739.4958
A58: =CONCATENATE(B58:B551," ",C58:C551) -> 3070503 Polo shelving unit (OSB) (200cm x 93cm x 35cm) | B58: 3070503 | C58: Polo shelving unit (OSB) (200cm x 93cm x 35cm) | D58: 165100 | E58: 165100 | J58: 138739.4958
A59: =CONCATENATE(B59:B552," ",C59:C552) -> 3070517 1-tier glass showcase (100cm x 100cm x 40cm) | B59: 3070517 | C59: 1-tier glass showcase (100cm x 100cm x 40cm) | D59: 194300 | E59: 194300 | J59: 163277.3109
A60: =CONCATENATE(B60:B553," ",C60:C553) -> 3070518 1-tier glass showcase type 2 (White) (92cm x 90 cm x 40cm) | B60: 3070518 | C60: 1-tier glass showcase type 2 (White) (92cm x 90 cm x 40cm) | D60: 194300 | E60: 194300 | J60: 163277.3109
A61: =CONCATENATE(B61:B554," ",C61:C554) -> 3070518 1-tier glass showcase type 2 (Nacar) (92cm x 90 cm x 40cm) | B61: 3070518 | C61: 1-tier glass showcase type 2 (Nacar) (92cm x 90 cm x 40cm) | D61: 194300 | E61: 194300 | J61: 163277.3109
A62: =CONCATENATE(B62:B555," ",C62:C555) -> 3070521 Basic clothes rack 1 pedestal (120cm Width - Height) adjustable + 5 hooks | B62: 3070521 | C62: Basic clothes rack 1 pedestal (120cm Width - Height) adjustable + 5 hooks | D62: 70300 | E62: 70300 | J62: 59075.63025
A63: =CONCATENATE(B63:B556," ",C63:C556) -> 3070521 Double clothes rack 2 pedestal (120cm Width-Height) adjustable + 5 hooks | B63: 3070521 | C63: Double clothes rack 2 pedestal (120cm Width-Height) adjustable + 5 hooks | D63: 81100 | E63: 81100 | J63: 68151.2605
A64: =CONCATENATE(B64:B557," ",C64:C557) -> 3070535 2-tier Island showcase (190cm x 125cm x 41cm) | B64: 3070535 | C64: 2-tier Island showcase (190cm x 125cm x 41cm) | D64: 225100 | E64: 225100 | J64: 189159.6639
A65: =CONCATENATE(B65:B558," ",C65:C558) -> 3070714 Exhibition cube (40cm x 40cm x 25cm) | B65: 3070714 | C65: Exhibition cube (40cm x 40cm x 25cm) | D65: 32400 | E65: 32400 | J65: 27226.89076
A66: =CONCATENATE(B66:B559," ",C66:C559) -> 3070936 Plastic folding table (White or grey) (73cm x 182cm x 76cm) | B66: 3070936 | C66: Plastic folding table (White or grey) (73cm x 182cm x 76cm) | D66: 94900 | E66: 94900 | J66: 79747.89916
A67: =CONCATENATE(B67:B560," ",C67:C560) -> 3070954 Monaco counter (Melamine) (100cm x 100cm x 30cm) | B67: 3070954 | C67: Monaco counter (Melamine) (100cm x 100cm x 30cm) | D67: =IF(G$3=TRUE,E67/I$3,E67) -> 155400 | E67: 155400 | J67: =E67/1.19 -> 130588.2353
A68: =CONCATENATE(B68:B561," ",C68:C561) -> 3070954 Monaco counter (Honey brown) (100cm x 100cm x 30cm) | B68: 3070954 | C68: Monaco counter (Honey brown) (100cm x 100cm x 30cm) | D68: 155400 | E68: 155400 | J68: 130588.2353
A69: =CONCATENATE(B69:B562," ",C69:C562) -> 3070954 Monaco counter (Oak finish) (100cm x 100cm x 30cm) | B69: 3070954 | C69: Monaco counter (Oak finish) (100cm x 100cm x 30cm) | D69: 155400 | E69: 155400 | J69: 130588.2353
A70: =CONCATENATE(B70:B563," ",C70:C563) -> 3070954 Monaco counter (Grey oak) (100cm x 100cm x 30cm) | B70: 3070954 | C70: Monaco counter (Grey oak) (100cm x 100cm x 30cm) | D70: 155400 | E70: 155400 | J70: 130588.2353
A71: =CONCATENATE(B71:B564," ",C71:C564) -> 3070955 90cm Rectangular pedestal (90cm x 30cm x 30cm) | B71: 3070955 | C71: 90cm Rectangular pedestal (90cm x 30cm x 30cm) | D71: 40800 | E71: 40800 | J71: 34285.71429
A72: =CONCATENATE(B72:B565," ",C72:C565) -> 3070956 60cm Rectangular pedestal (60cm x 30cm x 30cm) | B72: 3070956 | C72: 60cm Rectangular pedestal (60cm x 30cm x 30cm) | D72: 36000 | E72: 36000 | J72: 30252.10084
A73: =CONCATENATE(B73:B566," ",C73:C566) -> 3070957 Squared pedestal (30cm x 30cm x 30cm) | B73: 3070957 | C73: Squared pedestal (30cm x 30cm x 30cm) | D73: 31200 | E73: 31200 | J73: 26218.48739
A74: =CONCATENATE(B74:B567," ",C74:C567) -> 3071006 Cushioned standard black chair (79cm x 53cm x 42cm) | B74: 3071006 | C74: Cushioned standard black chair (79cm x 53cm x 42cm) | D74: 44900 | E74: 44900 | J74: 37731.09244
A75: =CONCATENATE(B75:B568," ",C75:C568) -> 3071008 Egg standard chair (48cm x 46cm x 45cm) | B75: 3071008 | C75: Egg standard chair (48cm x 46cm x 45cm) | D75: 62500 | E75: 62500 | J75: 52521.0084
A76: =CONCATENATE(B76:B569," ",C76:C569) -> 3071013 Victoria right couch (70cm x 100cm x 75cm) | B76: 3071013 | C76: Victoria right couch (70cm x 100cm x 75cm) | D76: 165200 | E76: 165200 | J76: 138823.5294
A77: =CONCATENATE(B77:B570," ",C77:C570) -> 3071022 Versalles pneumatic high chair (80cm x 40 cm x 40 cm) | B77: 3071022 | C77: Versalles pneumatic high chair (80cm x 40 cm x 40 cm) | D77: 94500 | E77: 94500 | J77: 79411.76471
A78: =CONCATENATE(B78:B571," ",C78:C571) -> 3071023 Victoria left couch(70cm x 100cm x 75cm) | B78: 3071023 | C78: Victoria left couch(70cm x 100cm x 75cm) | D78: 165200 | E78: 165200 | J78: 138823.5294
A79: =CONCATENATE(B79:B572," ",C79:C572) -> 3071031 Terranova Couch - 2 seats (88cm x 173 cm x 80cm) | B79: 3071031 | C79: Terranova Couch - 2 seats (88cm x 173 cm x 80cm) | D79: 203400 | E79: 203400 | J79: 170924.3697
A80: =CONCATENATE(B80:B573," ",C80:C573) -> 3071036 Plastic folding table + 2 cushioned standard black chairs | B80: 3071036 | C80: Plastic folding table + 2 cushioned standard black chairs | D80: 172800 | E80: 172800 | J80: 145210.084
A81: =CONCATENATE(B81:B574," ",C81:C574) -> 3071039 Daysa high table + 2 Marsella pneumatic high chairs | B81: 3071039 | C81: Daysa high table + 2 Marsella pneumatic high chairs | D81: 224300 | E81: 224300 | J81: 188487.395
A82: =CONCATENATE(B82:B575," ",C82:C575) -> 3071054 Lotus standard table + 2 Egg standard chair | B82: 3071054 | C82: Lotus standard table + 2 Egg standard chair | D82: 247000 | E82: 247000 | J82: 207563.0252
A83: =CONCATENATE(B83:B576," ",C83:C576) -> 3071059 Levis armchair (73cm x 86cm x 73cm) | B83: 3071059 | C83: Levis armchair (73cm x 86cm x 73cm) | D83: 179500 | E83: 179500 | J83: 150840.3361
A84: =CONCATENATE(B84:B577," ",C84:C577) -> 3071061 Suiza standard chair (48cm x 46cm x 45cm) | B84: 3071061 | C84: Suiza standard chair (48cm x 46cm x 45cm) | D84: 62500 | E84: 62500 | J84: 52521.0084
A85: =CONCATENATE(B85:B578," ",C85:C578) -> 3071068 Double base rectangular table (Melamine) (50cm x 75cm x 50cm) | B85: 3071068 | C85: Double base rectangular table (Melamine) (50cm x 75cm x 50cm) | D85: 77500 | E85: 77500 | J85: 65126.05042
A86: =CONCATENATE(B86:B579," ",C86:C579) -> 3071077 Marsella pneumatic high chair (80cm x 40cm x 40cm) | B86: 3071077 | C86: Marsella pneumatic high chair (80cm x 40cm x 40cm) | D86: 75200 | E86: 75200 | J86: 63193.27731
A87: =CONCATENATE(B87:B580," ",C87:C580) -> 3071081 Executive Leather Chair (57cm x 93cm x 52cm) | B87: 3071081 | C87: Executive Leather Chair (57cm x 93cm x 52cm) | D87: 68400 | E87: 68400 | J87: 57478.9916
A88: =CONCATENATE(B88:B581," ",C88:C581) -> 3071081 Executive Mesh Chair (57cm x 93cm x 52cm) | B88: 3071081 | C88: Executive Mesh Chair (57cm x 93cm x 52cm) | D88: 140800 | E88: 140800 | J88: 118319.3277
A89: =CONCATENATE(B89:B582," ",C89:C582) -> 3071083 Toronto couch - 3 seats (88cm x 173cm x 80cm) | B89: 3071083 | C89: Toronto couch - 3 seats (88cm x 173cm x 80cm) | D89: 203400 | E89: 203400 | J89: 170924.3697
A90: =CONCATENATE(B90:B583," ",C90:C583) -> 3071085 Ottawa couch - 2 seats (85cm x 120cm x 76cm) | B90: 3071085 | C90: Ottawa couch - 2 seats (85cm x 120cm x 76cm) | D90: 191500 | E90: 191500 | J90: 160924.3697
A91: =CONCATENATE(B91:B584," ",C91:C584) -> 3071090 Standard square puff (43cm x 43cm x 43cm) | B91: 3071090 | C91: Standard square puff (43cm x 43cm x 43cm) | D91: 50100 | E91: 50100 | J91: 42100.84034
A92: =CONCATENATE(B92:B585," ",C92:C585) -> 3071091 Trunk puff - 2 seats (48cm x 81cm x 40cm) | B92: 3071091 | C92: Trunk puff - 2 seats (48cm x 81cm x 40cm) | D92: 95800 | E92: 95800 | J92: 80504.20168
A93: =CONCATENATE(B93:B586," ",C93:C586) -> 3071093 Daysa glass top high table (100cm x 60cm) | B93: 3071093 | C93: Daysa glass top high table (100cm x 60cm) | D93: 107700 | E93: 107700 | J93: 90504.20168
A94: =CONCATENATE(B94:B587," ",C94:C587) -> 3071095 VIP living room (1 Victoria right couch, 1 Victoria left couch, 2 Levis armchairs, 1 Double base square table) | B94: 3071095 | C94: VIP living room (1 Victoria right couch, 1 Victoria left couch, 2 Levis armchairs, 1 Double base square table) | D94: 626400 | E94: 626400 | J94: 526386.5546
A95: =CONCATENATE(B95:B588," ",C95:C588) -> 3071097 Daysa standard table (76cm x 60cm) | B95: 3071097 | C95: Daysa standard table (76cm x 60cm) | D95: 95800 | E95: 95800 | J95: 80504.20168
A96: =CONCATENATE(B96:B589," ",C96:C589) -> 3071098 Shia standard table black (76cm x 60cm x 60cm) | B96: 3071098 | C96: Shia standard table black (76cm x 60cm x 60cm) | D96: 95800 | E96: 95800 | J96: 80504.20168
A97: =CONCATENATE(B97:B590," ",C97:C590) -> 3071098 Shia standard table White (76cm x 60cm x 60cm) | B97: 3071098 | C97: Shia standard table White (76cm x 60cm x 60cm) | D97: 95800 | E97: 95800 | J97: 80504.20168
A98: =CONCATENATE(B98:B591," ",C98:C591) -> 3071100 Double base circular table (Melamine) (50cm x 110cm x 60cm) | B98: 3071100 | C98: Double base circular table (Melamine) (50cm x 110cm x 60cm) | D98: 106600 | E98: 106600 | J98: 89579.83193
A99: =CONCATENATE(B99:B592," ",C99:C592) -> 3071103 Minibar Refrigerator 121 LT (48.5cm X 85.1cm X 60cm) | B99: 3071103 | C99: Minibar Refrigerator 121 LT (48.5cm X 85.1cm X 60cm) | D99: 184600 | E99: 184600 | J99: 155126.0504
A100: =CONCATENATE(B100:B593," ",C100:C593) -> 3071103 Standard Refrigerator 230LT ( 55.6cm X 157.6cm X 67cm) | B100: 3071103 | C100: Standard Refrigerator 230LT ( 55.6cm X 157.6cm X 67cm) | D100: 272300 | E100: 272300 | J100: 228823.5294
A101: =CONCATENATE(B101:B594," ",C101:C594) -> 3071104 Double Base square table (Melamine) (50cm x 60cm x 60cm) | B101: 3071104 | C101: Double Base square table (Melamine) (50cm x 60cm x 60cm) | D101: 77500 | E101: 77500 | J101: 65126.05042
A102: =CONCATENATE(B102:B595," ",C102:C595) -> 3071105 Office KIT 2 (2 cushioned standard black chairs, 1 executive leather chair, 1 office desk) | B102: 3071105 | C102: Office KIT 2 (2 cushioned standard black chairs, 1 executive leather chair, 1 office desk) | D102: 215400 | E102: 215400 | J102: 181008.4034
A103: =CONCATENATE(B103:B596," ",C103:C596) -> 3071108 4-tier shelving unit (190cm x 125cm x 41cm) | B103: 3071108 | C103: 4-tier shelving unit (190cm x 125cm x 41cm) | D103: 137600 | E103: 137600 | J103: 115630.2521
A104: =CONCATENATE(B104:B597," ",C104:C597) -> 3071111 Rectangular 2-tier showcase (200cm x 100cm x 40cm) | B104: 3071111 | C104: Rectangular 2-tier showcase (200cm x 100cm x 40cm) | D104: 260200 | E104: 260200 | J104: 218655.4622
A105: =CONCATENATE(B105:B598," ",C105:C598) -> 3071113 Osaka living room (1 Toronto couch, 2 Donna puffs, 1 Double base square table) | B105: 3071113 | C105: Osaka living room (1 Toronto couch, 2 Donna puffs, 1 Double base square table) | D105: 418600 | E105: 418600 | J105: 351764.7059
A106: =CONCATENATE(B106:B599," ",C106:C599) -> 3071114 Trunk puff - 3 seats (46cm x 120cm x 54cm) | B106: 3071114 | C106: Trunk puff - 3 seats (46cm x 120cm x 54cm) | D106: 95800 | E106: 95800 | J106: 80504.20168
A107: =CONCATENATE(B107:B600," ",C107:C600) -> 3071115 Daysa high table (Melamine) (100cm x 60cm) | B107: 3071115 | C107: Daysa high table (Melamine) (100cm x 60cm) | D107: 95800 | E107: 95800 | J107: 80504.20168
A108: =CONCATENATE(B108:B601," ",C108:C601) -> 3071115 Daysa high table (Honey brown) (100cm x 60cm) | B108: 3071115 | C108: Daysa high table (Honey brown) (100cm x 60cm) | D108: 95800 | E108: 95800 | J108: 80504.20168
A109: =CONCATENATE(B109:B602," ",C109:C602) -> 3071115 Daysa high table (Oak finish) (100cm x 60cm) | B109: 3071115 | C109: Daysa high table (Oak finish) (100cm x 60cm) | D109: 95800 | E109: 95800 | J109: 80504.20168
A110: =CONCATENATE(B110:B603," ",C110:C603) -> 3071115 Daysa high table (Grey oak) (100cm x 60cm) | B110: 3071115 | C110: Daysa high table (Grey oak) (100cm x 60cm) | D110: 95800 | E110: 95800 | J110: 80504.20168
A111: =CONCATENATE(B111:B604," ",C111:C604) -> 3071116 Lotus standard table (70cm x 64cm x 81cm) | B111: 3071116 | C111: Lotus standard table (70cm x 64cm x 81cm) | D111: 143500 | E111: 143500 | J111: 120588.2353
A112: =CONCATENATE(B112:B605," ",C112:C605) -> 3071302 Stainless steel trash can | B112: 3071302 | C112: Stainless steel trash can | D112: 23000 | E112: 23000 | J112: 19327.73109
A113: =CONCATENATE(B113:B606," ",C113:C606) -> 3071325 120cm Queue divider | B113: 3071325 | C113: 120cm Queue divider | D113: 44000 | E113: 44000 | J113: 36974.78992
A114: =CONCATENATE(B114:B607," ",C114:C607) -> 3071370 Folding magazine rack (140cm x 25cm x 29cm) | B114: 3071370 | C114: Folding magazine rack (140cm x 25cm x 29cm) | D114: 71300 | E114: 71300 | J114: 59915.96639
A115: =CONCATENATE(B115:B608," ",C115:C608) -> 30710165 Red Bombonera Chair | B115: 30710165 | C115: Red Bombonera Chair | D115: 59800 | E115: 59800 | J115: 50252.10084
A116: =CONCATENATE(B116:B609," ",C116:C609) -> 30710166 Oslo Chair White | B116: 30710166 | C116: Oslo Chair White | D116: 68400 | E116: 68400 | J116: 57478.9916
A117: =CONCATENATE(B117:B610," ",C117:C610) -> 30710167 Wooden Bar Chair | B117: 30710167 | C117: Wooden Bar Chair | D117: 74300 | E117: 74300 | J117: 62436.97479
A118: =CONCATENATE(B118:B611," ",C118:C611) -> 30710168 Meeting Room | B118: 30710168 | C118: Meeting Room | D118: 270000 | E118: 270000 | J118: 226890.7563
A119: =CONCATENATE(B119:B612," ",C119:C612) -> 30713198 Executive Chair (100cm x 49cm x 49cm) | B119: 30713198 | C119: Executive Chair (100cm x 49cm x 49cm) | D119: 140800 | E119: 140800 | J119: 118319.3277
A120: =CONCATENATE(B120:B613," ",C120:C613) -> 30713200 Office desk (50cm x 120cm x 50cm) | B120: 30713200 | C120: Office desk (50cm x 120cm x 50cm) | D120: 120700 | E120: 120700 | J120: 101428.5714
A121: =CONCATENATE(B121:B614," ",C121:C614) -> 30713201 Buggy easy chair (72cm x 64cm) | B121: 30713201 | C121: Buggy easy chair (72cm x 64cm) | D121: 140800 | E121: 140800 | J121: 118319.3277
A122: =CONCATENATE(B122:B615," ",C122:C615) -> 30713225 Smooth carpet m2 + installation: Contact serviciosplus@corferias.com for advice and a quote. | B122: 30713225 | C122: Smooth carpet m2 + installation: Contact serviciosplus@corferias.com for advice and a quote. | D122: 37800 | E122: 37800 | J122: 31764.70588
A123: =CONCATENATE(B123:B616," ",C123:C616) -> 30713226 Exhibition carpet, ribbed type m2 + installation | B123: 30713226 | C123: Exhibition carpet, ribbed type m2 + installation | D123: 37800 | E123: 37800 | J123: 31764.70588
A124: =CONCATENATE(B124:B614," ",C124:C614) -> 30713227 Rubber mat m2 + installation | B124: 30713227 | C124: Rubber mat m2 + installation | D124: 97200 | E124: 97200 | J124: 81680.67227
A125: =CONCATENATE(B125:B615," ",C125:C615) -> 30713228 Laminate floor m2 + installation | B125: 30713228 | C125: Laminate floor m2 + installation | D125: 97200 | E125: 97200 | J125: 81680.67227
A126: =CONCATENATE(B126:B616," ",C126:C616) -> 30713229 Melamine floor m2 + installation | B126: 30713229 | C126: Melamine floor m2 + installation | D126: 172800 | E126: 172800 | J126: 145210.084
A127: =CONCATENATE(B127:B617," ",C127:C617) -> Baru Living Room (1 Otawa Sofa, 2 Square Poufs, 1 Pouf 2 Seats, 1 Coffee Table 2 Levels) | C127: Baru Living Room (1 Otawa Sofa, 2 Square Poufs, 1 Pouf 2 Seats, 1 Coffee Table 2 Levels) | D127: 418600 | E127: 418600 | J127: 351764.7059
A128: =CONCATENATE(B128:B618," ",C128:C618) -> Terranova Lounge (1 Terranova Sofa, 2 Buggy Armchairs, 1 Coffee Table 2 levels) | C128: Terranova Lounge (1 Terranova Sofa, 2 Buggy Armchairs, 1 Coffee Table 2 levels) | D128: 418600 | E128: 418600 | J128: 351764.7059
A129: =CONCATENATE(B129:B619," ",C129:C619) -> Flowerplot Melaminic (with 12 artificial mats) | C129: Flowerplot Melaminic (with 12 artificial mats) | D129: 40800 | E129: 40800 | J129: 34285.71429
A130: =CONCATENATE(B130:B620," ",C130:C620) -> 3070942 Office Kit Pine 1 (1 Pino Table, 3 Acrilic Chair K Black) | B130: 3070942 | C130: Office Kit Pine 1 (1 Pino Table, 3 Acrilic Chair K Black) | D130: 181000 | E130: 181000
A131: =CONCATENATE(B131:B621," ",C131:C621) -> 3070940 Pine Office Desk 120 x 60 cms | B131: 3070940 | C131: Pine Office Desk 120 x 60 cms | D131: 106800 | E131: 106800
A132: =CONCATENATE(B132:B622," ",C132:C622) -> 3071002 Acrilic Chair K Black 103C | B132: 3071002 | C132: Acrilic Chair K Black 103C | D132: 45300 | E132: 45300
A133: =CONCATENATE(B133:B620," ",C133:C620) -> 3071375 Plant + Plastic planter (Small size) | B133: 3071375 | C133: Plant + Plastic planter (Small size) | D133: 130924.3697 | E133: 130924.3697 | J133: 110020.4788
A134: =CONCATENATE(B134:B621," ",C134:C621) -> 3071376 Plant + Plastic planter (Medium size) | B134: 3071376 | C134: Plant + Plastic planter (Medium size) | D134: =IF(G$3=TRUE,E134/I$3,E134) -> 26638.65546 | E134: 26638.65546 | J134: =E134/1.19 -> 22385.42476
A135: =CONCATENATE(B135:B622," ",C135:C622) -> 3071377 Plant + Plastic planter (Large size) | B135: 3071377 | C135: Plant + Plastic planter (Large size) | D135: 21008.40336 | E135: 21008.40336 | J135: 17654.12047
A136: =CONCATENATE(B136:B623," ",C136:C623) -> 3071378 Wooden planter + 3 Large size plants | B136: 3071378 | C136: Wooden planter + 3 Large size plants | D136: 9327.731092 | E136: 9327.731092 | J136: 7838.429489
A137: =CONCATENATE(B137:B624," ",C137:C624) -> 3071379 Wooden planter + 3 Medium size plants | B137: 3071379 | C137: Wooden planter + 3 Medium size plants | D137: 9327.731092 | E137: 9327.731092 | J137: 7838.429489
A138: =CONCATENATE(B138:B625," ",C138:C625) -> 3071380 Wooden planter + 7 Small size plants | B138: 3071380 | C138: Wooden planter + 7 Small size plants | D138: 9327.731092 | E138: 9327.731092 | J138: 7838.429489
A139: =CONCATENATE(B139:B626," ",C139:C626) -> 3071381 Wooden planter with flowers | B139: 3071381 | C139: Wooden planter with flowers | D139: 25798.31933 | E139: 25798.31933 | J139: 21679.25994
A140: =CONCATENATE(B140:B627," ",C140:C627) -> 3071314 Large size plant (61cm x 120cm) | B140: 3071314 | C140: Large size plant (61cm x 120cm) | D140: 20084.03361 | E140: 20084.03361 | J140: 16877.33917
A141: =CONCATENATE(B141:B628," ",C141:C628) -> 3071301 Medium size plant (31cm x 120cm) | B141: 3071301 | C141: Medium size plant (31cm x 120cm) | D141: 8907.563025 | E141: 8907.563025 | J141: 7485.34708
A142: =CONCATENATE(B142:B629," ",C142:C629) -> 3071317 Small size plant (10cm x 30cm) | B142: 3071317 | C142: Small size plant (10cm x 30cm) | D142: 25798.31933 | E142: 25798.31933 | J142: 21679.25994
A143: =CONCATENATE(B143:B630," ",C143:C630) -> 3071382 Succulents (10cm x 15cm) | B143: 3071382 | C143: Succulents (10cm x 15cm) | D143: 20084.03361 | E143: 20084.03361 | J143: 16877.33917
A144: =CONCATENATE(B144:B631," ",C144:C631) -> 3071383 Decorative branches | B144: 3071383 | C144: Decorative branches | D144: 8907.563025 | E144: 8907.563025 | J144: 7485.34708
A145: =CONCATENATE(B145:B632," ",C145:C632) -> 3071355 Large size clay planter | B145: 3071355 | C145: Large size clay planter | D145: 8907.563025 | E145: 8907.563025 | J145: 7485.34708
A146: =CONCATENATE(B146:B633," ",C146:C633) -> 3071356 Medium size clay planter | B146: 3071356 | C146: Medium size clay planter | D146: 78823.52941 | E146: 78823.52941 | J146: 66238.26001
A147: =CONCATENATE(B147:B634," ",C147:C634) -> 3071384 Small size clay planter | B147: 3071384 | C147: Small size clay planter | D147: 45882.35294 | E147: 45882.35294 | J147: 38556.59911
A148: =CONCATENATE(B148:B635," ",C148:C635) -> 3071357 Large size plastic planter | B148: 3071357 | C148: Large size plastic planter | D148: 20168.06723 | E148: 20168.06723 | J148: 16947.95565
A149: =CONCATENATE(B149:B636," ",C149:C636) -> 3071358 Medium size plastic planter | B149: 3071358 | C149: Medium size plastic planter | D149: 192016.8067 | E149: 192016.8067 | J149: 161358.6611
A150: =CONCATENATE(B150:B637," ",C150:C637) -> 3071359 Small size plastic planter | B150: 3071359 | C150: Small size plastic planter | D150: 192016.8067 | E150: 192016.8067 | J150: 161358.6611
A151: =CONCATENATE(B151:B638," ",C151:C638) -> 3071360 Wooden planter (35cm x 100cm x 35cm) | B151: 3071360 | C151: Wooden planter (35cm x 100cm x 35cm) | D151: 174537.8151 | E151: 174537.8151 | J151: 146670.4329
A152: =CONCATENATE(B152:B639," ",C152:C639) -> 3071352 Large size floral arrangement | B152: 3071352 | C152: Large size floral arrangement | D152: 20084.03361 | E152: 20084.03361 | J152: 16877.33917
A153: =CONCATENATE(B153:B640," ",C153:C640) -> 3071353 Medium size floral arrangement | B153: 3071353 | C153: Medium size floral arrangement | D153: 8907.563025 | E153: 8907.563025 | J153: 7485.34708
A154: =CONCATENATE(B154:B641," ",C154:C641) -> 3071354 Small size floral arrangement | B154: 3071354 | C154: Small size floral arrangement | D154: 8907.563025 | E154: 8907.563025 | J154: 7485.34708
A155: =CONCATENATE(B155:B642," ",C155:C642) -> 3071364 Animal or fruit shaped topiary | B155: 3071364 | C155: Animal or fruit shaped topiary | D155: 276050.4202 | E155: 276050.4202 | J155: 231975.143
A156: =CONCATENATE(B156:B643," ",C156:C643) -> 3071365 Large size round topiary | B156: 3071365 | C156: Large size round topiary | D156: 8907.563025 | E156: 8907.563025 | J156: 7485.34708
A157: =CONCATENATE(B157:B644," ",C157:C644) -> 3071385 Small size round topiary | B157: 3071385 | C157: Small size round topiary | D157: 53193.27731 | E157: 53193.27731 | J157: 44700.23303
A158: =CONCATENATE(B158:B645," ",C158:C645) -> 3071363 Stones (Per m2) | B158: 3071363 | C158: Stones (Per m2) | D158: 37600 | E158: 37600 | J158: 31596.63866
A159: =CONCATENATE(B159:B646," ",C159:C646) -> 3071367 Patula pine (Per bag) | B159: 3071367 | C159: Patula pine (Per bag) | D159: 37600 | E159: 37600 | J159: 31596.63866
A160: =CONCATENATE(B160:B647," ",C160:C647) -> 3071361 Gravel (Per m2) | B160: 3071361 | C160: Gravel (Per m2) | D160: 34200 | E160: 34200 | J160: 28739.4958
A161: =CONCATENATE(B161:B648," ",C161:C648) -> 3071386 Vertical walls (Per m2) | B161: 3071386 | C161: Vertical walls (Per m2) | D161: 243500 | E161: 243500 | J161: 204621.8487
A162: =CONCATENATE(B162:B649," ",C162:C649) -> 3071366 Mulch (Per bag) | B162: 3071366 | C162: Mulch (Per bag) | D162: 125400 | E162: 125400 | J162: 105378.1513
A163: =CONCATENATE(B163:B650," ",C163:C650) -> 3071362 Rocks (Per unit) | B163: 3071362 | C163: Rocks (Per unit) | D163: 125400 | E163: 125400 | J163: 105378.1513
A164: =CONCATENATE(B164:B651," ",C164:C651) -> 3071346 Base for TV Led - LCD adaptable (Does not include installation) Value of event 1 day | B164: 3071346 | C164: Base for TV Led - LCD adaptable (Does not include installation) Value of event 1 day | D164: 42500 | E164: 42500 | J164: 35714.28571
A165: =CONCATENATE(B165:B652," ",C165:C652) -> 3071346 Base for TV Led - LCD adaptable (Does not include installation) Value of event 2 days (Value per day) | B165: 3071346 | C165: Base for TV Led - LCD adaptable (Does not include installation) Value of event 2 days (Value per day) | D165: 42500 | E165: 42500 | J165: 35714.28571
A166: =CONCATENATE(B166:B653," ",C166:C653) -> 3071346 Base for TV Led - LCD adaptable (Does not include installation) Value from 3 to 6 days (Day value) | B166: 3071346 | C166: Base for TV Led - LCD adaptable (Does not include installation) Value from 3 to 6 days (Day value) | D166: 38600 | E166: 38600 | J166: 32436.97479
A167: =CONCATENATE(B167:B654," ",C167:C654) -> 3071204 Base for TV Led - LCD adaptable (Does not include installation) Value from 7 to 18 days (Fair value) | B167: 3071204 | C167: Base for TV Led - LCD adaptable (Does not include installation) Value from 7 to 18 days (Fair value) | D167: 272500 | E167: 272500 | J167: 228991.5966
A168: =CONCATENATE(B168:B655," ",C168:C655) -> 3071204 Tv Smart 45" 114cms ( Includes tv stand / power cord / 1 HDMI cable) IN: HDMI, USB Value of event 1 day | B168: 3071204 | C168: Tv Smart 45" 114cms ( Includes tv stand / power cord / 1 HDMI cable) IN: HDMI, USB Value of event 1 day | D168: 137900 | E168: 137900 | J168: 115882.3529
A169: =CONCATENATE(B169:B656," ",C169:C656) -> 3071204 Tv Smart 45" 114cms ( Includes tv stand / power cord / 1 HDMI cable) IN: HDMI, USB Value of event 2 days (Value per day) | B169: 3071204 | C169: Tv Smart 45" 114cms ( Includes tv stand / power cord / 1 HDMI cable) IN: HDMI, USB Value of event 2 days (Value per day) | D169: 135900 | E169: 135900 | J169: 114201.6807
A170: =CONCATENATE(B170:B657," ",C170:C657) -> 3071204 Tv Smart 45" 114cms ( Includes tv stand / power cord / 1 HDMI cable) IN: HDMI, USB Value from 3 to 6 days (Day value) | B170: 3071204 | C170: Tv Smart 45" 114cms ( Includes tv stand / power cord / 1 HDMI cable) IN: HDMI, USB Value from 3 to 6 days (Day value) | D170: 125800 | E170: 125800 | J170: 105714.2857
A171: =CONCATENATE(B171:B658," ",C171:C658) -> 3071204 Tv Smart 45" 114cms ( Includes tv stand / power cord / 1 HDMI cable) IN: HDMI, USB Value from 7 to 18 days (Fair value) | B171: 3071204 | C171: Tv Smart 45" 114cms ( Includes tv stand / power cord / 1 HDMI cable) IN: HDMI, USB Value from 7 to 18 days (Fair value) | D171: 816500 | E171: 816500 | J171: 686134.4538
A172: =CONCATENATE(B172:B659," ",C172:C659) -> 30713202 Tv Smart 55" 140cms (Includes tv stand / power cord / 1 HDMI cable) IN: HDMI, USB Value of event 1 day | B172: 30713202 | C172: Tv Smart 55" 140cms (Includes tv stand / power cord / 1 HDMI cable) IN: HDMI, USB Value of event 1 day | D172: 188100 | E172: 188100 | J172: 158067.2269
A173: =CONCATENATE(B173:B660," ",C173:C660) -> 30713202 Tv Smart 55" 140cms (Includes tv stand / power cord / 1 HDMI cable) IN: HDMI, USB Value of event 2 days (Value per day) | B173: 30713202 | C173: Tv Smart 55" 140cms (Includes tv stand / power cord / 1 HDMI cable) IN: HDMI, USB Value of event 2 days (Value per day) | D173: 188100 | E173: 188100 | J173: 158067.2269
A174: =CONCATENATE(B174:B661," ",C174:C661) -> 30713202 Tv Smart 55" 140cms (Includes tv stand / power cord / 1 HDMI cable) IN: HDMI, USB Value from 3 to 6 days (Day value) | B174: 30713202 | C174: Tv Smart 55" 140cms (Includes tv stand / power cord / 1 HDMI cable) IN: HDMI, USB Value from 3 to 6 days (Day value) | D174: 171400 | E174: 171400 | J174: 144033.6134
A175: =CONCATENATE(B175:B662," ",C175:C662) -> 30713202 Tv Smart 55" 140cms (Includes tv stand / power cord / 1 HDMI cable) IN: HDMI, USB Value from 7 to 18 days (Fair value) | B175: 30713202 | C175: Tv Smart 55" 140cms (Includes tv stand / power cord / 1 HDMI cable) IN: HDMI, USB Value from 7 to 18 days (Fair value) | D175: 1381900 | E175: 1381900 | J175: 1161260.504
A176: =CONCATENATE(B176:B663," ",C176:C663) -> 3071206 Tv Smart 65" 165cms (Includes tv stand / power cord /1 HDMI cable) IN: HDMI, USB Value of event 1 day | B176: 3071206 | C176: Tv Smart 65" 165cms (Includes tv stand / power cord /1 HDMI cable) IN: HDMI, USB Value of event 1 day | D176: 330600 | E176: 330600 | J176: 277815.1261
A177: =CONCATENATE(B177:B664," ",C177:C664) -> 3071206 Tv Smart 65" 165cms (Includes tv stand / power cord /1 HDMI cable) IN: HDMI, USB Value of event 2 days (Value per day) | B177: 3071206 | C177: Tv Smart 65" 165cms (Includes tv stand / power cord /1 HDMI cable) IN: HDMI, USB Value of event 2 days (Value per day) | D177: 330600 | E177: 330600 | J177: 277815.1261
A178: =CONCATENATE(B178:B665," ",C178:C665) -> 3071206 Tv Smart 65" 165cms (Includes tv stand / power cord /1 HDMI cable) IN: HDMI, USB Value from 3 to 6 days (Day value) | B178: 3071206 | C178: Tv Smart 65" 165cms (Includes tv stand / power cord /1 HDMI cable) IN: HDMI, USB Value from 3 to 6 days (Day value) | D178: 312400 | E178: 312400 | J178: 262521.0084
A179: =CONCATENATE(B179:B666," ",C179:C666) -> 3071206 Tv Smart 65" 165cms (Includes tv stand / power cord /1 HDMI cable) IN: HDMI, USB Value from 7 to 18 days (Fair value) | B179: 3071206 | C179: Tv Smart 65" 165cms (Includes tv stand / power cord /1 HDMI cable) IN: HDMI, USB Value from 7 to 18 days (Fair value) | D179: 1582600 | E179: 1582600 | J179: 1329915.966
A180: =CONCATENATE(B180:B667," ",C180:C667) -> 3071279 Tv Smart 70" 177,8cms ( Includes tv stand / power cord /1 HDMI cable) IN: HDMI, USB Value of event 1 day | B180: 3071279 | C180: Tv Smart 70" 177,8cms ( Includes tv stand / power cord /1 HDMI cable) IN: HDMI, USB Value of event 1 day | D180: 531400 | E180: 531400 | J180: 446554.6218
A181: =CONCATENATE(B181:B668," ",C181:C668) -> 3071279 Tv Smart 70" 177,8cms ( Includes tv stand / power cord /1 HDMI cable) IN: HDMI, USB Value of event 2 days (Value per day) | B181: 3071279 | C181: Tv Smart 70" 177,8cms ( Includes tv stand / power cord /1 HDMI cable) IN: HDMI, USB Value of event 2 days (Value per day) | D181: 531400 | E181: 531400 | J181: 446554.6218
A182: =CONCATENATE(B182:B669," ",C182:C669) -> 3071279 Tv Smart 70" 177,8cms ( Includes tv stand / power cord /1 HDMI cable) IN: HDMI, USB Value from 3 to 6 days (Day value) | B182: 3071279 | C182: Tv Smart 70" 177,8cms ( Includes tv stand / power cord /1 HDMI cable) IN: HDMI, USB Value from 3 to 6 days (Day value) | D182: 483600 | E182: 483600 | J182: 406386.5546
A183: =CONCATENATE(B183:B670," ",C183:C670) -> 3071279 Tv Smart 70" 177,8cms ( Includes tv stand / power cord /1 HDMI cable) IN: HDMI, USB Value from 7 to 18 days (Fair value) | B183: 3071279 | C183: Tv Smart 70" 177,8cms ( Includes tv stand / power cord /1 HDMI cable) IN: HDMI, USB Value from 7 to 18 days (Fair value) | D183: 3454300 | E183: 3454300 | J183: 2902773.109
A184: =CONCATENATE(B184:B671," ",C184:C671) -> 3071222 Tv Smart 82" 204cms ( Includes tv stand / power cord /1 HDMI cable) IN: HDMI, USB Value of event 1 day | B184: 3071222 | C184: Tv Smart 82" 204cms ( Includes tv stand / power cord /1 HDMI cable) IN: HDMI, USB Value of event 1 day | D184: 987200 | E184: 987200 | J184: 829579.8319
A185: =CONCATENATE(B185:B672," ",C185:C672) -> 3071222 Tv Smart 82" 204cms ( Includes tv stand / power cord /1 HDMI cable) IN: HDMI, USB Value of event 2 days (Value per day) | B185: 3071222 | C185: Tv Smart 82" 204cms ( Includes tv stand / power cord /1 HDMI cable) IN: HDMI, USB Value of event 2 days (Value per day) | D185: 987200 | E185: 987200 | J185: 829579.8319
A186: =CONCATENATE(B186:B673," ",C186:C673) -> 3071222 Tv Smart 82" 204cms ( Includes tv stand / power cord /1 HDMI cable) IN: HDMI, USB Value from 3 to 6 days (Day value) | B186: 3071222 | C186: Tv Smart 82" 204cms ( Includes tv stand / power cord /1 HDMI cable) IN: HDMI, USB Value from 3 to 6 days (Day value) | D186: 898200 | E186: 898200 | J186: 754789.916
A187: =CONCATENATE(B187:B674," ",C187:C674) -> 3071222 Tv Smart 82" 204cms ( Includes tv stand / power cord /1 HDMI cable) IN: HDMI, USB Value from 7 to 18 days (Fair value) | B187: 3071222 | C187: Tv Smart 82" 204cms ( Includes tv stand / power cord /1 HDMI cable) IN: HDMI, USB Value from 7 to 18 days (Fair value) | D187: 6414700 | E187: 6414700 | J187: 5390504.202
A188: =CONCATENATE(B188:B675," ",C188:C675) -> 3071262 40" 101cms touch screen monitor (Includes monitor stand / cabling) IN: HDMI Value of event 1 day | B188: 3071262 | C188: 40" 101cms touch screen monitor (Includes monitor stand / cabling) IN: HDMI Value of event 1 day | D188: 666700 | E188: 666700 | J188: 560252.1008
A189: =CONCATENATE(B189:B676," ",C189:C676) -> 3071262 40" 101cms touch screen monitor (Includes monitor stand / cabling) IN: HDMI Value of event 2 days (Value per day) | B189: 3071262 | C189: 40" 101cms touch screen monitor (Includes monitor stand / cabling) IN: HDMI Value of event 2 days (Value per day) | D189: 666700 | E189: 666700 | J189: 560252.1008
A190: =CONCATENATE(B190:B677," ",C190:C677) -> 3071262 40" 101cms touch screen monitor (Includes monitor stand / cabling) IN: HDMI Value from 3 to 6 days (Day value) | B190: 3071262 | C190: 40" 101cms touch screen monitor (Includes monitor stand / cabling) IN: HDMI Value from 3 to 6 days (Day value) | D190: 485700 | E190: 485700 | J190: 408151.2605
A191: =CONCATENATE(B191:B678," ",C191:C678) -> 3071262 40" 101cms touch screen monitor (Includes monitor stand / cabling) IN: HDMI Value from 7 to 18 days (Fair value) | B191: 3071262 | C191: 40" 101cms touch screen monitor (Includes monitor stand / cabling) IN: HDMI Value from 7 to 18 days (Fair value) | D191: 4847700 | E191: 4847700 | J191: 4073697.479
A192: =CONCATENATE(B192:B679," ",C192:C679) -> 3071284 Tablet tactile 7" RAM:1GB / Connectivity: 3G / Operating System Android 9.0 Value of event 1 day | B192: 3071284 | C192: Tablet tactile 7" RAM:1GB / Connectivity: 3G / Operating System Android 9.0 Value of event 1 day | D192: 50000 | E192: 50000 | J192: 42016.80672
A193: =CONCATENATE(B193:B680," ",C193:C680) -> 3071284 Tablet tactile 7" RAM:1GB / Connectivity: 3G / Operating System Android 9.0 Value of event 2 days (Value per day) | B193: 3071284 | C193: Tablet tactile 7" RAM:1GB / Connectivity: 3G / Operating System Android 9.0 Value of event 2 days (Value per day) | D193: 50000 | E193: 50000 | J193: 42016.80672
A194: =CONCATENATE(B194:B681," ",C194:C681) -> 3071284 Tablet tactile 7" RAM:1GB / Connectivity: 3G / Operating System Android 9.0 Value from 3 to 6 days (Day value) | B194: 3071284 | C194: Tablet tactile 7" RAM:1GB / Connectivity: 3G / Operating System Android 9.0 Value from 3 to 6 days (Day value) | D194: 46000 | E194: 46000 | J194: 38655.46218
A195: =CONCATENATE(B195:B682," ",C195:C682) -> 3071284 Tablet tactile 7" RAM:1GB / Connectivity: 3G / Operating System Android 9.0 Value from 7 to 18 days (Fair value) | B195: 3071284 | C195: Tablet tactile 7" RAM:1GB / Connectivity: 3G / Operating System Android 9.0 Value from 7 to 18 days (Fair value) | D195: 496800 | E195: 496800 | J195: 417478.9916
A196: =CONCATENATE(B196:B683," ",C196:C683) -> 3071265 Led Screen Full Hd Indoor / Size 3,20mts x 2,96mts / Pitch 3,9 / Includes floor to wall mounting structure. | B196: 3071265 | C196: Led Screen Full Hd Indoor / Size 3,20mts x 2,96mts / Pitch 3,9 / Includes floor to wall mounting structure. | D196: 1662336 | E196: 1662336 | J196: 1396921.008
A197: =CONCATENATE(B197:B684," ",C197:C684) -> 3071265 Led Screen Full Hd Indoor / Size 4,48mts x 3,20mts / Pitch 3,9 / Includes floor to wall mounting structure. | B197: 3071265 | C197: Led Screen Full Hd Indoor / Size 4,48mts x 3,20mts / Pitch 3,9 / Includes floor to wall mounting structure. | D197: 1662336 | E197: 1662336 | J197: 1396921.008
A198: =CONCATENATE(B198:B685," ",C198:C685) -> 3071265 Led Screen Full Hd Indoor / Size 6,4mts x 3,20mts /mts2: 20,48 / Pitch 3,9 / Includes floor to wall mounting structure. | B198: 3071265 | C198: Led Screen Full Hd Indoor / Size 6,4mts x 3,20mts /mts2: 20,48 / Pitch 3,9 / Includes floor to wall mounting structure. | D198: =IF(G$3=TRUE,E198/I$3,E198) -> 1496064 | E198: 1496064 | J198: =E198/1.19 -> 1257196.639
A199: =CONCATENATE(B199:B686," ",C199:C686) -> 3071265 Led Screen Full Hd Indoor / Size 6,4mts x 4,48mts /mts2: 28,67 / Pitch 3,9 / Includes floor to wall mounting structure. | B199: 3071265 | C199: Led Screen Full Hd Indoor / Size 6,4mts x 4,48mts /mts2: 28,67 / Pitch 3,9 / Includes floor to wall mounting structure. | D199: 14067200 | E199: 14067200 | J199: 11821176.47
A200: =CONCATENATE(B200:B679," ",C200:C679) -> 3071267 Led Screen Full Hd Indoor / Size 7,4mts x 5,12mts /mts2: 36,04 / Pitch 3,9 / Includes floor to wall mounting structure. | B200: 3071267 | C200: Led Screen Full Hd Indoor / Size 7,4mts x 5,12mts /mts2: 36,04 / Pitch 3,9 / Includes floor to wall mounting structure. | D200: 1926272 | E200: 1926272 | J200: 1618715.966
... 259 more rows

Sheet FERIAS DE 4 A 6 DIAS (hidden)
A1: CLAVE | B1: CODIGO | C1: DESCRIPCIÓN | D1: FORMULA | E1: VALOR
A2: =CONCATENATE(B2:B473," ",C2:C473) -> 3070101 Single-phase installation (Double three-pronged outlet up to 2KW consumption/110V) Rate per 4 to 6 days | B2: 3070101 | C2: =CONCATENATE(K2,"",$I$2) -> Single-phase installation (Double three-pronged outlet up to 2KW consumption/110V) Rate per 4 to 6 days | D2: =IF('FERIAS 3 DIAS'!G$3=TRUE,'FERIAS DE 4 A 6 DIAS'!E2/'FERIAS 3 DIAS'!I$3,'FERIAS DE 4 A 6 DIAS'!E2) -> 306000 | E2: 306000 | G2: =E2/1.19 -> 257142.8571 | I2: Rate per 4 to 6 days | K2: Single-phase installation (Double three-pronged outlet up to 2KW consumption/110V)
A3: =CONCATENATE(B3:B474," ",C3:C474) -> 3070103 Additional Single-phase kilowatts (Requires a main connection MAX 2KW by connection) Rate per 4 to 6 days | B3: 3070103 | C3: =CONCATENATE(K3,"",$I$2) -> Additional Single-phase kilowatts (Requires a main connection MAX 2KW by connection) Rate per 4 to 6 days | D3: =IF('FERIAS 3 DIAS'!G$3=TRUE,'FERIAS DE 4 A 6 DIAS'!E3/'FERIAS 3 DIAS'!I$3,'FERIAS DE 4 A 6 DIAS'!E3) -> 106800 | E3: 106800 | G3: 89747.89916 | K3: Additional Single-phase kilowatts (Requires a main connection MAX 2KW by connection)
A4: =CONCATENATE(B4:B475," ",C4:C475) -> 3070102 Three-phase installation ( Plastic strip up to 4KW consumption/208V) Rate per 4 to 6 days | B4: 3070102 | C4: Three-phase installation ( Plastic strip up to 4KW consumption/208V) Rate per 4 to 6 days | D4: =IF('FERIAS 3 DIAS'!G$3=TRUE,'FERIAS DE 4 A 6 DIAS'!E4/'FERIAS 3 DIAS'!I$3,'FERIAS DE 4 A 6 DIAS'!E4) -> 569800 | E4: 569800 | G4: 478823.5294 | K4: Three-phase installation ( Plastic strip up to 4KW consumption/208V)
A5: =CONCATENATE(B5:B476," ",C5:C476) -> 3070104 Additional Three-phase kilowatts (Requires a main connection) Rate per 4 to 6 days | B5: 3070104 | C5: Additional Three-phase kilowatts (Requires a main connection) Rate per 4 to 6 days | D5: =IF('FERIAS 3 DIAS'!G$3=TRUE,'FERIAS DE 4 A 6 DIAS'!E5/'FERIAS 3 DIAS'!I$3,'FERIAS DE 4 A 6 DIAS'!E5) -> 139400 | E5: 139400 | G5: 117142.8571 | K5: Additional Three-phase kilowatts (Requires a main connection)
A6: =CONCATENATE(B6:B477," ",C6:C477) -> 3071372 21 to 50 additional Three-phase kilowatts (Rate per KW) (Requires a main connection) Rate per 4 to 6 days | B6: 3071372 | C6: 21 to 50 additional Three-phase kilowatts (Rate per KW) (Requires a main connection) Rate per 4 to 6 days | D6: =IF('FERIAS 3 DIAS'!G$3=TRUE,'FERIAS DE 4 A 6 DIAS'!E6/'FERIAS 3 DIAS'!I$3,'FERIAS DE 4 A 6 DIAS'!E6) -> 126800 | E6: 126800 | G6: 106554.6218 | K6: 21 to 50 additional Three-phase kilowatts (Rate per KW) (Requires a main connection)
A7: =CONCATENATE(B7:B478," ",C7:C478) -> 3071373 51 to 100 additionalThree-phase kilowatts (Rate per KW) (Requires a main connection) Rate per 4 to 6 days | B7: 3071373 | C7: 51 to 100 additionalThree-phase kilowatts (Rate per KW) (Requires a main connection) Rate per 4 to 6 days | D7: =IF('FERIAS 3 DIAS'!G$3=TRUE,'FERIAS DE 4 A 6 DIAS'!E7/'FERIAS 3 DIAS'!I$3,'FERIAS DE 4 A 6 DIAS'!E7) -> 121200 | E7: 121200 | G7: 101848.7395 | K7: 51 to 100 additionalThree-phase kilowatts (Rate per KW) (Requires a main connection)
A8: =CONCATENATE(B8:B479," ",C8:C479) -> 3071374 More than 100 additional Three-phase kilowatts (Rate per KW) (Requires a main connection) Rate per 4 to 6 days | B8: 3071374 | C8: More than 100 additional Three-phase kilowatts (Rate per KW) (Requires a main connection) Rate per 4 to 6 days | D8: =IF('FERIAS 3 DIAS'!G$3=TRUE,'FERIAS DE 4 A 6 DIAS'!E8/'FERIAS 3 DIAS'!I$3,'FERIAS DE 4 A 6 DIAS'!E8) -> 116200 | E8: 116200 | G8: 97647.05882 | K8: More than 100 additional Three-phase kilowatts (Rate per KW) (Requires a main connection)
A9: =CONCATENATE(B9:B480," ",C9:C480) -> 3070402 Adjustable spotlight arm (150W/110V) Rate per 4 to 6 days | B9: 3070402 | C9: Adjustable spotlight arm (150W/110V) Rate per 4 to 6 days | D9: =IF('FERIAS 3 DIAS'!G$3=TRUE,'FERIAS DE 4 A 6 DIAS'!E9/'FERIAS 3 DIAS'!I$3,'FERIAS DE 4 A 6 DIAS'!E9) -> 61800 | E9: 61800 | G9: 51932.77311 | K9: Adjustable spotlight arm (150W/110V)
A10: =CONCATENATE(B10:B481," ",C10:C481) -> 3070405 LED Reflector (50W- mltV) Rate per 4 to 6 days | B10: 3070405 | C10: LED Reflector (50W- mltV) Rate per 4 to 6 days | D10: =IF('FERIAS 3 DIAS'!G$3=TRUE,'FERIAS DE 4 A 6 DIAS'!E10/'FERIAS 3 DIAS'!I$3,'FERIAS DE 4 A 6 DIAS'!E10) -> 65000 | E10: 65000 | G10: 54621.84874 | K10: LED Reflector (50W- mltV)
A11: =CONCATENATE(B11:B482," ",C11:C482) -> 3070403 Extension cord – Double three-pronged outlet (1500W/110V)Max 6mts, Requires a main connection. Does not include electricity. Rate per 4 to 6 days | B11: 3070403 | C11: Extension cord – Double three-pronged outlet (1500W/110V)Max 6mts, Requires a main connection. Does not include electricity. Rate per 4 to 6 days | D11: =IF('FERIAS 3 DIAS'!G$3=TRUE,'FERIAS DE 4 A 6 DIAS'!E11/'FERIAS 3 DIAS'!I$3,'FERIAS DE 4 A 6 DIAS'!E11) -> 32000 | E11: 32000 | G11: 26890.7563 | K11: Extension cord – Double three-pronged outlet (1500W/110V)Max 6mts, Requires a main connection. Does not include electricity.
A12: =CONCATENATE(B12:B483," ",C12:C483) -> 3071345 Sink 90cm x 60cm x 90cm (Does not include water supply or drain connection) Rate per 4 to 6 days | B12: 3071345 | C12: Sink 90cm x 60cm x 90cm (Does not include water supply or drain connection) Rate per 4 to 6 days | D12: =IF('FERIAS 3 DIAS'!G$3=TRUE,'FERIAS DE 4 A 6 DIAS'!E12/'FERIAS 3 DIAS'!I$3,'FERIAS DE 4 A 6 DIAS'!E12) -> 141200 | E12: 141200 | G12: 118655.4622 | K12: Sink 90cm x 60cm x 90cm (Does not include water supply or drain connection)
A13: =CONCATENATE(B13:B484," ",C13:C484) -> 3070301 1/2" Water supply (Consumption included) Rate per 4 to 6 days | B13: 3070301 | C13: 1/2" Water supply (Consumption included) Rate per 4 to 6 days | D13: =IF('FERIAS 3 DIAS'!G$3=TRUE,'FERIAS DE 4 A 6 DIAS'!E13/'FERIAS 3 DIAS'!I$3,'FERIAS DE 4 A 6 DIAS'!E13) -> 298400 | E13: 298400 | G13: 250756.3025 | K13: 1/2" Water supply (Consumption included)
A14: =CONCATENATE(B14:B485," ",C14:C485) -> 3070302 1/2" Drain connection (Location determined by Corferias on your booth) Rate per 4 to 6 days | B14: 3070302 | C14: 1/2" Drain connection (Location determined by Corferias on your booth) Rate per 4 to 6 days | D14: =IF('FERIAS 3 DIAS'!G$3=TRUE,'FERIAS DE 4 A 6 DIAS'!E14/'FERIAS 3 DIAS'!I$3,'FERIAS DE 4 A 6 DIAS'!E14) -> 276200 | E14: 276200 | G14: 232100.8403 | K14: 1/2" Drain connection (Location determined by Corferias on your booth)
A15: =CONCATENATE(B15:B486," ",C15:C486) -> 3071341 Compressed air connection. Max pressure: 100 PSI, Max flow: 35CFM. Rate per 4 to 6 days | B15: 3071341 | C15: Compressed air connection. Max pressure: 100 PSI, Max flow: 35CFM. Rate per 4 to 6 days | D15: =IF('FERIAS 3 DIAS'!G$3=TRUE,'FERIAS DE 4 A 6 DIAS'!E15/'FERIAS 3 DIAS'!I$3,'FERIAS DE 4 A 6 DIAS'!E15) -> 399400 | E15: 399400 | G15: 335630.2521 | K15: Compressed air connection. Max pressure: 100 PSI, Max flow: 35CFM.
A16: =CONCATENATE(B16:B487," ",C16:C487) -> 3070307 1/2" Water supply (consumption included) + 1/2" Drain + Sink. Rate per 4 to 6 days | B16: 3070307 | C16: 1/2" Water supply (consumption included) + 1/2" Drain + Sink. Rate per 4 to 6 days | D16: =IF('FERIAS 3 DIAS'!G$3=TRUE,'FERIAS DE 4 A 6 DIAS'!E16/'FERIAS 3 DIAS'!I$3,'FERIAS DE 4 A 6 DIAS'!E16) -> 644200 | E16: 644200 | G16: 541344.5378 | K16: 1/2" Water supply (consumption included) + 1/2" Drain + Sink.
A17: =CONCATENATE(B17:B488," ",C17:C488) -> 3071321 Installation of ONE (1) propane gas point per ONE (1) Equipment (Includes materials and labor) (Does not include gas consumption) Rate per 4 to 6 days | B17: 3071321 | C17: Installation of ONE (1) propane gas point per ONE (1) Equipment (Includes materials and labor) (Does not include gas consumption) Rate per 4 to 6 days | D17: =IF('FERIAS 3 DIAS'!G$3=TRUE,'FERIAS DE 4 A 6 DIAS'!E17/'FERIAS 3 DIAS'!I$3,'FERIAS DE 4 A 6 DIAS'!E17) -> 85800 | E17: 85800 | G17: 72100.84034 | K17: Installation of ONE (1) propane gas point per ONE (1) Equipment (Includes materials and labor) (Does not include gas consumption)
A18: =CONCATENATE(B18:B489," ",C18:C489) -> 3070601 Additional CFE System panel 100cm x 240cm | B18: 3070601 | C18: Additional CFE System panel 100cm x 240cm | D18: =IF('FERIAS 3 DIAS'!G$3=TRUE,'FERIAS DE 4 A 6 DIAS'!E18/'FERIAS 3 DIAS'!I$3,'FERIAS DE 4 A 6 DIAS'!E18) -> 32900 | E18: 32900 | G18: 27647.05882
A19: =CONCATENATE(B19:B490," ",C19:C490) -> 3070801 CFE System door 90cm x 240cm | B19: 3070801 | C19: CFE System door 90cm x 240cm | D19: =IF('FERIAS 3 DIAS'!G$3=TRUE,'FERIAS DE 4 A 6 DIAS'!E19/'FERIAS 3 DIAS'!I$3,'FERIAS DE 4 A 6 DIAS'!E19) -> 81600 | E19: 81600 | G19: 68571.42857
A20: =CONCATENATE(B20:B491," ",C20:C491) -> 3070803 Standard storage with door 150cm x 150cm ( Corferias System) | B20: 3070803 | C20: Standard storage with door 150cm x 150cm ( Corferias System) | D20: =IF('FERIAS 3 DIAS'!G$3=TRUE,'FERIAS DE 4 A 6 DIAS'!E20/'FERIAS 3 DIAS'!I$3,'FERIAS DE 4 A 6 DIAS'!E20) -> 130200 | E20: 130200 | G20: 109411.7647
A21: =CONCATENATE(B21:B492," ",C21:C492) -> 3071319 Articulating boom lift - 15 min fraction (Only for first levels) | B21: 3071319 | C21: Articulating boom lift - 15 min fraction (Only for first levels) | D21: =IF('FERIAS 3 DIAS'!G$3=TRUE,'FERIAS DE 4 A 6 DIAS'!E21/'FERIAS 3 DIAS'!I$3,'FERIAS DE 4 A 6 DIAS'!E21) -> 55798.31933 | E21: 55798.31933 | G21: 46889.34397
A22: =CONCATENATE(B22:B493," ",C22:C493) -> 3071319 Articulating boom lift - 30 min fraction (Only for first levels) | B22: 3071319 | C22: Articulating boom lift - 30 min fraction (Only for first levels) | D22: =IF('FERIAS 3 DIAS'!G$3=TRUE,'FERIAS DE 4 A 6 DIAS'!E22/'FERIAS 3 DIAS'!I$3,'FERIAS DE 4 A 6 DIAS'!E22) -> 95378.15126 | E22: 95378.15126 | G22: 80149.70694
A23: =CONCATENATE(B23:B495," ",C23:C495) -> 3071319 Articulating boom lift - 60 min fraction (Only for first levels) | B23: 3071319 | C23: Articulating boom lift - 60 min fraction (Only for first levels) | D23: =IF('FERIAS 3 DIAS'!G$3=TRUE,'FERIAS DE 4 A 6 DIAS'!E23/'FERIAS 3 DIAS'!I$3,'FERIAS DE 4 A 6 DIAS'!E23) -> 169495.7983 | E23: 169495.7983 | G23: 142433.444
A24: =CONCATENATE(B24:B496," ",C24:C496) -> 3070413 Differential (cap. 1 ton) + Articulating boom lift (Assembly and disassembly) | B24: 3070413 | C24: Differential (cap. 1 ton) + Articulating boom lift (Assembly and disassembly) | D24: =IF('FERIAS 3 DIAS'!G$3=TRUE,'FERIAS DE 4 A 6 DIAS'!E24/'FERIAS 3 DIAS'!I$3,'FERIAS DE 4 A 6 DIAS'!E24) -> 263277.3109 | E24: 263277.3109 | G24: 221241.4378
A25: =CONCATENATE(B25:B497," ",C25:C497) -> 3070414 Electric scissor lifts per - 30 min fraction (Only for second levels) | B25: 3070414 | C25: Electric scissor lifts per - 30 min fraction (Only for second levels) | D25: =IF('FERIAS 3 DIAS'!G$3=TRUE,'FERIAS DE 4 A 6 DIAS'!E25/'FERIAS 3 DIAS'!I$3,'FERIAS DE 4 A 6 DIAS'!E25) -> 65546.21849 | E25: 65546.21849 | G25: 55080.85587
A26: =CONCATENATE(B26:B498," ",C26:C498) -> 3071387 Articulating boom lift + Differential + TRUSS 2,60 X 2,60 | B26: 3071387 | C26: Articulating boom lift + Differential + TRUSS 2,60 X 2,60 | D26: =IF('FERIAS 3 DIAS'!G$3=TRUE,'FERIAS DE 4 A 6 DIAS'!E26/'FERIAS 3 DIAS'!I$3,'FERIAS DE 4 A 6 DIAS'!E26) -> 2242016.807 | E26: 2242016.807 | G26: 1884047.737
A27: =CONCATENATE(B27:B499," ",C27:C499) -> 3071351 Articulating boom lift + Differential + TRUSS 3,60 X 2,60 | B27: 3071351 | C27: Articulating boom lift + Differential + TRUSS 3,60 X 2,60 | D27: =IF('FERIAS 3 DIAS'!G$3=TRUE,'FERIAS DE 4 A 6 DIAS'!E27/'FERIAS 3 DIAS'!I$3,'FERIAS DE 4 A 6 DIAS'!E27) -> 2242016.807 | E27: 2242016.807 | G27: 1884047.737
A28: =CONCATENATE(B28:B500," ",C28:C500) -> 3071395 Articulating boom lift + Differential + TRUSS 3,60 X 3,60 | B28: 3071395 | C28: Articulating boom lift + Differential + TRUSS 3,60 X 3,60 | D28: =IF('FERIAS 3 DIAS'!G$3=TRUE,'FERIAS DE 4 A 6 DIAS'!E28/'FERIAS 3 DIAS'!I$3,'FERIAS DE 4 A 6 DIAS'!E28) -> 2242016.807 | E28: 2242016.807 | G28: 1884047.737
A29: =CONCATENATE(B29:B501," ",C29:C501) -> 3071324 Articulating boom lift + Differential + TRUSS 5,90 X 5,90 | B29: 3071324 | C29: Articulating boom lift + Differential + TRUSS 5,90 X 5,90 | D29: =IF('FERIAS 3 DIAS'!G$3=TRUE,'FERIAS DE 4 A 6 DIAS'!E29/'FERIAS 3 DIAS'!I$3,'FERIAS DE 4 A 6 DIAS'!E29) -> 2802521.008 | E29: 2802521.008 | G29: 2355059.671
A30: =CONCATENATE(B30:B502," ",C30:C502) -> 3071436 Articulating boom lift + Differential + TRUSS 6,90 X 6,90 | B30: 3071436 | C30: Articulating boom lift + Differential + TRUSS 6,90 X 6,90 | D30: =IF('FERIAS 3 DIAS'!G$3=TRUE,'FERIAS DE 4 A 6 DIAS'!E30/'FERIAS 3 DIAS'!I$3,'FERIAS DE 4 A 6 DIAS'!E30) -> 2802521.008 | E30: 2802521.008 | G30: 2355059.671
A31: =CONCATENATE(B31:B503," ",C31:C503) -> 3071350 Articulating boom lift + Differential + TRUSS 5,60 X 5,60 | B31: 3071350 | C31: Articulating boom lift + Differential + TRUSS 5,60 X 5,60 | D31: =IF('FERIAS 3 DIAS'!G$3=TRUE,'FERIAS DE 4 A 6 DIAS'!E31/'FERIAS 3 DIAS'!I$3,'FERIAS DE 4 A 6 DIAS'!E31) -> 2802521.008 | E31: 2802521.008 | G31: 2355059.671
A32: =CONCATENATE(B32:B504," ",C32:C504) -> 3071371 Articulating boom lift + Differential + TRUSS 6,60 X 6,60 | B32: 3071371 | C32: Articulating boom lift + Differential + TRUSS 6,60 X 6,60 | D32: =IF('FERIAS 3 DIAS'!G$3=TRUE,'FERIAS DE 4 A 6 DIAS'!E32/'FERIAS 3 DIAS'!I$3,'FERIAS DE 4 A 6 DIAS'!E32) -> 2802521.008 | E32: 2802521.008 | G32: 2355059.671
A33: =CONCATENATE(B33:B505," ",C33:C505) -> 3071393 Articulating boom lift + Differential + TRUSS 9,60 X 2,60 | B33: 3071393 | C33: Articulating boom lift + Differential + TRUSS 9,60 X 2,60 | D33: =IF('FERIAS 3 DIAS'!G$3=TRUE,'FERIAS DE 4 A 6 DIAS'!E33/'FERIAS 3 DIAS'!I$3,'FERIAS DE 4 A 6 DIAS'!E33) -> 2802521.008 | E33: 2802521.008 | G33: 2355059.671
A34: =CONCATENATE(B34:B506," ",C34:C506) -> 3071394 Articulating boom lift + Differential + TRUSS 9,60 X 3,60 | B34: 3071394 | C34: Articulating boom lift + Differential + TRUSS 9,60 X 3,60 | D34: =IF('FERIAS 3 DIAS'!G$3=TRUE,'FERIAS DE 4 A 6 DIAS'!E34/'FERIAS 3 DIAS'!I$3,'FERIAS DE 4 A 6 DIAS'!E34) -> 2802521.008 | E34: 2802521.008 | G34: 2355059.671
A35: =CONCATENATE(B35:B507," ",C35:C507) -> 3071396 Articulating boom lift + Differential + TRUSS 9,60 X 5,60 | B35: 3071396 | C35: Articulating boom lift + Differential + TRUSS 9,60 X 5,60 | D35: =IF('FERIAS 3 DIAS'!G$3=TRUE,'FERIAS DE 4 A 6 DIAS'!E35/'FERIAS 3 DIAS'!I$3,'FERIAS DE 4 A 6 DIAS'!E35) -> 3710924.37 | E35: 3710924.37 | G35: 3118423.84
A36: =CONCATENATE(B36:B508," ",C36:C508) -> 3071397 Articulating boom lift + Differential + TRUSS 9,60 X 6,60 | B36: 3071397 | C36: Articulating boom lift + Differential + TRUSS 9,60 X 6,60 | D36: =IF('FERIAS 3 DIAS'!G$3=TRUE,'FERIAS DE 4 A 6 DIAS'!E36/'FERIAS 3 DIAS'!I$3,'FERIAS DE 4 A 6 DIAS'!E36) -> 3710924.37 | E36: 3710924.37 | G36: 3118423.84
A37: =CONCATENATE(B37:B509," ",C37:C509) -> 3071418 Wired Internet service "FOR ONE DEVICE DURING ONE DAY" | B37: 3071418 | C37: Wired Internet service "FOR ONE DEVICE DURING ONE DAY" | D37: =IF('FERIAS 3 DIAS'!G$3=TRUE,'FERIAS DE 4 A 6 DIAS'!E37/'FERIAS 3 DIAS'!I$3,'FERIAS DE 4 A 6 DIAS'!E37) -> 63000 | E37: 63000 | G37: 52941.17647
A38: =CONCATENATE(B38:B510," ",C38:C510) -> 3071419 Wi-Fi Network access "FOR ONE DEVICE DURING ONE DAY" | B38: 3071419 | C38: Wi-Fi Network access "FOR ONE DEVICE DURING ONE DAY" | D38: =IF('FERIAS 3 DIAS'!G$3=TRUE,'FERIAS DE 4 A 6 DIAS'!E38/'FERIAS 3 DIAS'!I$3,'FERIAS DE 4 A 6 DIAS'!E38) -> 63000 | E38: 63000 | G38: 52941.17647
A39: =CONCATENATE(B39:B511," ",C39:C511) -> 3071417 Wired Internet service "FOR ONE DEVICE DURING THE TRADE FAIR" Rate per 4 to 6 days | B39: 3071417 | C39: =CONCATENATE(K39,"",$I$2) -> Wired Internet service "FOR ONE DEVICE DURING THE TRADE FAIR" Rate per 4 to 6 days | D39: =IF('FERIAS 3 DIAS'!G$3=TRUE,'FERIAS DE 4 A 6 DIAS'!E39/'FERIAS 3 DIAS'!I$3,'FERIAS DE 4 A 6 DIAS'!E39) -> 171000 | E39: 171000 | G39: 143697.479 | K39: Wired Internet service "FOR ONE DEVICE DURING THE TRADE FAIR"
A40: =CONCATENATE(B40:B512," ",C40:C512) -> 3071420 Wi-Fi Network access "FOR ONE DEVICE DURING THE TRADE FAIR" Rate per 4 to 6 days | B40: 3071420 | C40: Wi-Fi Network access "FOR ONE DEVICE DURING THE TRADE FAIR" Rate per 4 to 6 days | D40: =IF('FERIAS 3 DIAS'!G$3=TRUE,'FERIAS DE 4 A 6 DIAS'!E40/'FERIAS 3 DIAS'!I$3,'FERIAS DE 4 A 6 DIAS'!E40) -> 171000 | E40: 171000 | G40: 143697.479 | K40: Wi-Fi Network access "FOR ONE DEVICE DURING THE TRADE FAIR"
A41: =CONCATENATE(B41:B513," ",C41:C513) -> 3071423 POS terminal connection + Wi-Fi Network access (For one device during the trade fair) Rate per 4 to 6 days | B41: 3071423 | C41: POS terminal connection + Wi-Fi Network access (For one device during the trade fair) Rate per 4 to 6 days | D41: =IF('FERIAS 3 DIAS'!G$3=TRUE,'FERIAS DE 4 A 6 DIAS'!E41/'FERIAS 3 DIAS'!I$3,'FERIAS DE 4 A 6 DIAS'!E41) -> 264000 | E41: 264000 | G41: 221848.7395 | K41: POS terminal connection + Wi-Fi Network access (For one device during the trade fair)
A42: =CONCATENATE(B42:B514," ",C42:C514) -> 3071424 POS terminal connection + Wired Internet service (For one device during the trade fair) Rate per 4 to 6 days | B42: 3071424 | C42: POS terminal connection + Wired Internet service (For one device during the trade fair) Rate per 4 to 6 days | D42: =IF('FERIAS 3 DIAS'!G$3=TRUE,'FERIAS DE 4 A 6 DIAS'!E42/'FERIAS 3 DIAS'!I$3,'FERIAS DE 4 A 6 DIAS'!E42) -> 264000 | E42: 264000 | G42: 221848.7395 | K42: POS terminal connection + Wired Internet service (For one device during the trade fair)
A43: =CONCATENATE(B43:B515," ",C43:C515) -> 3071425 Wired Internet service + Wi-Fi Network access (For one device during the trade fair) Rate per 4 to 6 days | B43: 3071425 | C43: Wired Internet service + Wi-Fi Network access (For one device during the trade fair) Rate per 4 to 6 days | D43: =IF('FERIAS 3 DIAS'!G$3=TRUE,'FERIAS DE 4 A 6 DIAS'!E43/'FERIAS 3 DIAS'!I$3,'FERIAS DE 4 A 6 DIAS'!E43) -> 307800 | E43: 307800 | G43: 258655.4622 | K43: Wired Internet service + Wi-Fi Network access (For one device during the trade fair)
A44: =CONCATENATE(B44:B516," ",C44:C516) -> 3071437 Dedicated internet connection: If you require a wider broadband internet connection for specific networks, please contact the PLUS at Corferias for further advisory and quotation. | B44: 3071437 | C44: Dedicated internet connection: If you require a wider broadband internet connection for specific networks, please contact the PLUS at Corferias for further advisory and quotation. | D44: Under quotation | E44: Under quotation
A45: =CONCATENATE(B45:B517," ",C45:C517) -> 3071406 Network Access Point Installation: Includes UTP cable per point | B45: 3071406 | C45: Network Access Point Installation: Includes UTP cable per point | D45: =IF('FERIAS 3 DIAS'!G$3=TRUE,'FERIAS DE 4 A 6 DIAS'!E45/'FERIAS 3 DIAS'!I$3,'FERIAS DE 4 A 6 DIAS'!E45) -> 76300 | E45: 76300 | G45: 64117.64706
A46: =CONCATENATE(B46:B518," ",C46:C518) -> 3071407 Switch rate per fair | B46: 3071407 | C46: Switch rate per fair | D46: =IF('FERIAS 3 DIAS'!G$3=TRUE,'FERIAS DE 4 A 6 DIAS'!E46/'FERIAS 3 DIAS'!I$3,'FERIAS DE 4 A 6 DIAS'!E46) -> 73400 | E46: 73400 | G46: 61680.67227
A47: =CONCATENATE(B47:B519," ",C47:C519) -> 3071402 VLAN Service: Virtual network service. rate per fair | B47: 3071402 | C47: VLAN Service: Virtual network service. rate per fair | D47: =IF('FERIAS 3 DIAS'!G$3=TRUE,'FERIAS DE 4 A 6 DIAS'!E47/'FERIAS 3 DIAS'!I$3,'FERIAS DE 4 A 6 DIAS'!E47) -> 308500 | E47: 308500 | G47: 259243.6975
A48: =CONCATENATE(B48:B520," ",C48:C520) -> 3071430 LAN Extension rate per fair (Incluye punto de red y aplica para extender el servicio de internet contratado con terceros) | B48: 3071430 | C48: LAN Extension rate per fair (Incluye punto de red y aplica para extender el servicio de internet contratado con terceros) | D48: =IF('FERIAS 3 DIAS'!G$3=TRUE,'FERIAS DE 4 A 6 DIAS'!E48/'FERIAS 3 DIAS'!I$3,'FERIAS DE 4 A 6 DIAS'!E48) -> 1177600 | E48: 1177600 | G48: 989579.8319
A49: =CONCATENATE(B49:B521," ",C49:C521) -> 3071442 Permanent technical support (8 hour shift) Must be requested at least 24h prior daily rate | B49: 3071442 | C49: Permanent technical support (8 hour shift) Must be requested at least 24h prior daily rate | D49: =IF('FERIAS 3 DIAS'!G$3=TRUE,'FERIAS DE 4 A 6 DIAS'!E49/'FERIAS 3 DIAS'!I$3,'FERIAS DE 4 A 6 DIAS'!E49) -> 204600 | E49: 204600 | G49: 171932.7731
A50: =CONCATENATE(B50:B522," ",C50:C522) -> 3070202 Local landline service (Includes unlimited local calls) Rate per 4 to 6 days | B50: 3070202 | C50: =CONCATENATE(K50,"",$I$2) -> Local landline service (Includes unlimited local calls) Rate per 4 to 6 days | D50: =IF('FERIAS 3 DIAS'!G$3=TRUE,'FERIAS DE 4 A 6 DIAS'!E50/'FERIAS 3 DIAS'!I$3,'FERIAS DE 4 A 6 DIAS'!E50) -> 35700 | E50: 35700 | G50: 30000 | K50: Local landline service (Includes unlimited local calls)
A51: =CONCATENATE(B51:B523," ",C51:C523) -> 3070203 Long-distance landline service:The rate does not include national long distance Rate per 4 to 6 days | B51: 3070203 | C51: Long-distance landline service:The rate does not include national long distance Rate per 4 to 6 days | D51: =IF('FERIAS 3 DIAS'!G$3=TRUE,'FERIAS DE 4 A 6 DIAS'!E51/'FERIAS 3 DIAS'!I$3,'FERIAS DE 4 A 6 DIAS'!E51) -> 35700 | E51: 35700 | G51: 30000 | K51: Long-distance landline service:The rate does not include national long distance
A52: =CONCATENATE(B52:B524," ",C52:C524) -> 3070201 Non-switched external line (Must be previously requested to Etb, Claro, EPM, Colomsat or another operator) Rate per 4 to 6 days | B52: 3070201 | C52: Non-switched external line (Must be previously requested to Etb, Claro, EPM, Colomsat or another operator) Rate per 4 to 6 days | D52: =IF('FERIAS 3 DIAS'!G$3=TRUE,'FERIAS DE 4 A 6 DIAS'!E52/'FERIAS 3 DIAS'!I$3,'FERIAS DE 4 A 6 DIAS'!E52) -> 100900 | E52: 100900 | G52: 84789.91597 | K52: Non-switched external line (Must be previously requested to Etb, Claro, EPM, Colomsat or another operator)
A53: =CONCATENATE(B53:B525," ",C53:C525) -> 3070207 POS Terminal wired connection: (Does not include the dataphone) | B53: 3070207 | C53: POS Terminal wired connection: (Does not include the dataphone) | D53: =IF('FERIAS 3 DIAS'!G$3=TRUE,'FERIAS DE 4 A 6 DIAS'!E53/'FERIAS 3 DIAS'!I$3,'FERIAS DE 4 A 6 DIAS'!E53) -> 106800 | E53: 106800 | G53: 89747.89916
A54: =CONCATENATE(B54:B527," ",C54:C527) -> 3070503 Polo shelving unit (Melamine) (200cm x 93cm x 35cm) | B54: 3070503 | C54: Polo shelving unit (Melamine) (200cm x 93cm x 35cm) | D54: =IF('FERIAS 3 DIAS'!G$3=TRUE,'FERIAS DE 4 A 6 DIAS'!E54/'FERIAS 3 DIAS'!I$3,'FERIAS DE 4 A 6 DIAS'!E54) -> 165100 | E54: 165100 | G54: 138739.4958
A55: =CONCATENATE(B55:B528," ",C55:C528) -> 3070503 Polo shelving unit (Honey brown) (200cm x 93cm x 35cm) | B55: 3070503 | C55: Polo shelving unit (Honey brown) (200cm x 93cm x 35cm) | D55: =IF('FERIAS 3 DIAS'!G$3=TRUE,'FERIAS DE 4 A 6 DIAS'!E55/'FERIAS 3 DIAS'!I$3,'FERIAS DE 4 A 6 DIAS'!E55) -> 165100 | E55: 165100 | G55: 138739.4958
A56: =CONCATENATE(B56:B529," ",C56:C529) -> 3070503 Polo shelving unit (Oak finish) (200cm x 93cm x 35cm) | B56: 3070503 | C56: Polo shelving unit (Oak finish) (200cm x 93cm x 35cm) | D56: =IF('FERIAS 3 DIAS'!G$3=TRUE,'FERIAS DE 4 A 6 DIAS'!E56/'FERIAS 3 DIAS'!I$3,'FERIAS DE 4 A 6 DIAS'!E56) -> 165100 | E56: 165100 | G56: 138739.4958
A57: =CONCATENATE(B57:B530," ",C57:C530) -> 3070503 Polo shelving unit (Grey oak) (200cm x 93cm x 35cm) | B57: 3070503 | C57: Polo shelving unit (Grey oak) (200cm x 93cm x 35cm) | D57: =IF('FERIAS 3 DIAS'!G$3=TRUE,'FERIAS DE 4 A 6 DIAS'!E57/'FERIAS 3 DIAS'!I$3,'FERIAS DE 4 A 6 DIAS'!E57) -> 165100 | E57: 165100 | G57: 138739.4958
A58: =CONCATENATE(B58:B532," ",C58:C532) -> 3070503 Polo shelving unit (OSB) (200cm x 93cm x 35cm) | B58: 3070503 | C58: Polo shelving unit (OSB) (200cm x 93cm x 35cm) | D58: =IF('FERIAS 3 DIAS'!G$3=TRUE,'FERIAS DE 4 A 6 DIAS'!E58/'FERIAS 3 DIAS'!I$3,'FERIAS DE 4 A 6 DIAS'!E58) -> 165100 | E58: 165100 | G58: 138739.4958
A59: =CONCATENATE(B59:B533," ",C59:C533) -> 3070517 1-tier glass showcase (100cm x 100cm x 40cm) | B59: 3070517 | C59: 1-tier glass showcase (100cm x 100cm x 40cm) | D59: =IF('FERIAS 3 DIAS'!G$3=TRUE,'FERIAS DE 4 A 6 DIAS'!E59/'FERIAS 3 DIAS'!I$3,'FERIAS DE 4 A 6 DIAS'!E59) -> 194300 | E59: 194300 | G59: 163277.3109
A60: =CONCATENATE(B60:B534," ",C60:C534) -> 3070518 1-tier glass showcase type 2 (White) (92cm x 90 cm x 40cm) | B60: 3070518 | C60: 1-tier glass showcase type 2 (White) (92cm x 90 cm x 40cm) | D60: =IF('FERIAS 3 DIAS'!G$3=TRUE,'FERIAS DE 4 A 6 DIAS'!E60/'FERIAS 3 DIAS'!I$3,'FERIAS DE 4 A 6 DIAS'!E60) -> 194300 | E60: 194300 | G60: 163277.3109
A61: =CONCATENATE(B61:B535," ",C61:C535) -> 3070518 1-tier glass showcase type 2 (Nacar) (92cm x 90 cm x 40cm) | B61: 3070518 | C61: 1-tier glass showcase type 2 (Nacar) (92cm x 90 cm x 40cm) | D61: =IF('FERIAS 3 DIAS'!G$3=TRUE,'FERIAS DE 4 A 6 DIAS'!E61/'FERIAS 3 DIAS'!I$3,'FERIAS DE 4 A 6 DIAS'!E61) -> 194300 | E61: 194300 | G61: 163277.3109
A62: =CONCATENATE(B62:B536," ",C62:C536) -> 3070521 Basic clothes rack 1 pedestal (120cm Width - Height) adjustable + 5 hooks | B62: 3070521 | C62: Basic clothes rack 1 pedestal (120cm Width - Height) adjustable + 5 hooks | D62: =IF('FERIAS 3 DIAS'!G$3=TRUE,'FERIAS DE 4 A 6 DIAS'!E62/'FERIAS 3 DIAS'!I$3,'FERIAS DE 4 A 6 DIAS'!E62) -> 70300 | E62: 70300 | G62: 59075.63025
A63: =CONCATENATE(B63:B537," ",C63:C537) -> 3070521 Double clothes rack 2 pedestal (120cm Width-Height) adjustable + 5 hooks | B63: 3070521 | C63: Double clothes rack 2 pedestal (120cm Width-Height) adjustable + 5 hooks | D63: =IF('FERIAS 3 DIAS'!G$3=TRUE,'FERIAS DE 4 A 6 DIAS'!E63/'FERIAS 3 DIAS'!I$3,'FERIAS DE 4 A 6 DIAS'!E63) -> 81100 | E63: 81100 | G63: 68151.2605
A64: =CONCATENATE(B64:B538," ",C64:C538) -> 3070535 2-tier Island showcase (190cm x 125cm x 41cm) | B64: 3070535 | C64: 2-tier Island showcase (190cm x 125cm x 41cm) | D64: =IF('FERIAS 3 DIAS'!G$3=TRUE,'FERIAS DE 4 A 6 DIAS'!E64/'FERIAS 3 DIAS'!I$3,'FERIAS DE 4 A 6 DIAS'!E64) -> 225100 | E64: 225100 | G64: 189159.6639
A65: =CONCATENATE(B65:B539," ",C65:C539) -> 3070714 Exhibition cube (40cm x 40cm x 25cm) | B65: 3070714 | C65: Exhibition cube (40cm x 40cm x 25cm) | D65: =IF('FERIAS 3 DIAS'!G$3=TRUE,'FERIAS DE 4 A 6 DIAS'!E65/'FERIAS 3 DIAS'!I$3,'FERIAS DE 4 A 6 DIAS'!E65) -> 32400 | E65: 32400 | G65: 27226.89076
A66: =CONCATENATE(B66:B540," ",C66:C540) -> 3070936 Plastic folding table (White or grey) (73cm x 182cm x 76cm) | B66: 3070936 | C66: Plastic folding table (White or grey) (73cm x 182cm x 76cm) | D66: =IF('FERIAS 3 DIAS'!G$3=TRUE,'FERIAS DE 4 A 6 DIAS'!E66/'FERIAS 3 DIAS'!I$3,'FERIAS DE 4 A 6 DIAS'!E66) -> 94900 | E66: 94900 | G66: =E66/1.19 -> 79747.89916
A67: =CONCATENATE(B67:B541," ",C67:C541) -> 3070954 Monaco counter (Melamine) (100cm x 100cm x 30cm) | B67: 3070954 | C67: Monaco counter (Melamine) (100cm x 100cm x 30cm) | D67: =IF('FERIAS 3 DIAS'!G$3=TRUE,'FERIAS DE 4 A 6 DIAS'!E67/'FERIAS 3 DIAS'!I$3,'FERIAS DE 4 A 6 DIAS'!E67) -> 155400 | E67: 155400 | G67: 130588.2353
A68: =CONCATENATE(B68:B542," ",C68:C542) -> 3070954 Monaco counter (Honey brown) (100cm x 100cm x 30cm) | B68: 3070954 | C68: Monaco counter (Honey brown) (100cm x 100cm x 30cm) | D68: =IF('FERIAS 3 DIAS'!G$3=TRUE,'FERIAS DE 4 A 6 DIAS'!E68/'FERIAS 3 DIAS'!I$3,'FERIAS DE 4 A 6 DIAS'!E68) -> 155400 | E68: 155400 | G68: 130588.2353
A69: =CONCATENATE(B69:B543," ",C69:C543) -> 3070954 Monaco counter (Oak finish) (100cm x 100cm x 30cm) | B69: 3070954 | C69: Monaco counter (Oak finish) (100cm x 100cm x 30cm) | D69: =IF('FERIAS 3 DIAS'!G$3=TRUE,'FERIAS DE 4 A 6 DIAS'!E69/'FERIAS 3 DIAS'!I$3,'FERIAS DE 4 A 6 DIAS'!E69) -> 155400 | E69: 155400 | G69: 130588.2353
A70: =CONCATENATE(B70:B544," ",C70:C544) -> 3070954 Monaco counter (Grey oak) (100cm x 100cm x 30cm) | B70: 3070954 | C70: Monaco counter (Grey oak) (100cm x 100cm x 30cm) | D70: =IF('FERIAS 3 DIAS'!G$3=TRUE,'FERIAS DE 4 A 6 DIAS'!E70/'FERIAS 3 DIAS'!I$3,'FERIAS DE 4 A 6 DIAS'!E70) -> 155400 | E70: 155400 | G70: 130588.2353
A71: =CONCATENATE(B71:B545," ",C71:C545) -> 3070955 90cm Rectangular pedestal (90cm x 30cm x 30cm) | B71: 3070955 | C71: 90cm Rectangular pedestal (90cm x 30cm x 30cm) | D71: =IF('FERIAS 3 DIAS'!G$3=TRUE,'FERIAS DE 4 A 6 DIAS'!E71/'FERIAS 3 DIAS'!I$3,'FERIAS DE 4 A 6 DIAS'!E71) -> 40800 | E71: 40800 | G71: 34285.71429
A72: =CONCATENATE(B72:B546," ",C72:C546) -> 3070956 60cm Rectangular pedestal (60cm x 30cm x 30cm) | B72: 3070956 | C72: 60cm Rectangular pedestal (60cm x 30cm x 30cm) | D72: =IF('FERIAS 3 DIAS'!G$3=TRUE,'FERIAS DE 4 A 6 DIAS'!E72/'FERIAS 3 DIAS'!I$3,'FERIAS DE 4 A 6 DIAS'!E72) -> 36000 | E72: 36000 | G72: 30252.10084
A73: =CONCATENATE(B73:B547," ",C73:C547) -> 3070957 Squared pedestal (30cm x 30cm x 30cm) | B73: 3070957 | C73: Squared pedestal (30cm x 30cm x 30cm) | D73: =IF('FERIAS 3 DIAS'!G$3=TRUE,'FERIAS DE 4 A 6 DIAS'!E73/'FERIAS 3 DIAS'!I$3,'FERIAS DE 4 A 6 DIAS'!E73) -> 31200 | E73: 31200 | G73: 26218.48739
A74: =CONCATENATE(B74:B548," ",C74:C548) -> 3071006 Cushioned standard black chair (79cm x 53cm x 42cm) | B74: 3071006 | C74: Cushioned standard black chair (79cm x 53cm x 42cm) | D74: =IF('FERIAS 3 DIAS'!G$3=TRUE,'FERIAS DE 4 A 6 DIAS'!E74/'FERIAS 3 DIAS'!I$3,'FERIAS DE 4 A 6 DIAS'!E74) -> 44900 | E74: 44900 | G74: 37731.09244
A75: =CONCATENATE(B75:B549," ",C75:C549) -> 3071008 Egg standard chair (48cm x 46cm x 45cm) | B75: 3071008 | C75: Egg standard chair (48cm x 46cm x 45cm) | D75: =IF('FERIAS 3 DIAS'!G$3=TRUE,'FERIAS DE 4 A 6 DIAS'!E75/'FERIAS 3 DIAS'!I$3,'FERIAS DE 4 A 6 DIAS'!E75) -> 62500 | E75: 62500 | G75: 52521.0084
A76: =CONCATENATE(B76:B550," ",C76:C550) -> 3071013 Victoria right couch (70cm x 100cm x 75cm) | B76: 3071013 | C76: Victoria right couch (70cm x 100cm x 75cm) | D76: =IF('FERIAS 3 DIAS'!G$3=TRUE,'FERIAS DE 4 A 6 DIAS'!E76/'FERIAS 3 DIAS'!I$3,'FERIAS DE 4 A 6 DIAS'!E76) -> 165200 | E76: 165200 | G76: 138823.5294
A77: =CONCATENATE(B77:B551," ",C77:C551) -> 3071022 Versalles pneumatic high chair (80cm x 40 cm x 40 cm) | B77: 3071022 | C77: Versalles pneumatic high chair (80cm x 40 cm x 40 cm) | D77: =IF('FERIAS 3 DIAS'!G$3=TRUE,'FERIAS DE 4 A 6 DIAS'!E77/'FERIAS 3 DIAS'!I$3,'FERIAS DE 4 A 6 DIAS'!E77) -> 94500 | E77: 94500 | G77: 79411.76471
A78: =CONCATENATE(B78:B552," ",C78:C552) -> 3071023 Victoria left couch(70cm x 100cm x 75cm) | B78: 3071023 | C78: Victoria left couch(70cm x 100cm x 75cm) | D78: =IF('FERIAS 3 DIAS'!G$3=TRUE,'FERIAS DE 4 A 6 DIAS'!E78/'FERIAS 3 DIAS'!I$3,'FERIAS DE 4 A 6 DIAS'!E78) -> 165200 | E78: 165200 | G78: 138823.5294
A79: =CONCATENATE(B79:B553," ",C79:C553) -> 3071031 Terranova Couch - 2 seats (88cm x 173 cm x 80cm) | B79: 3071031 | C79: Terranova Couch - 2 seats (88cm x 173 cm x 80cm) | D79: =IF('FERIAS 3 DIAS'!G$3=TRUE,'FERIAS DE 4 A 6 DIAS'!E79/'FERIAS 3 DIAS'!I$3,'FERIAS DE 4 A 6 DIAS'!E79) -> 203400 | E79: 203400 | G79: 170924.3697
A80: =CONCATENATE(B80:B554," ",C80:C554) -> 3071036 Plastic folding table + 2 cushioned standard black chairs | B80: 3071036 | C80: Plastic folding table + 2 cushioned standard black chairs | D80: =IF('FERIAS 3 DIAS'!G$3=TRUE,'FERIAS DE 4 A 6 DIAS'!E80/'FERIAS 3 DIAS'!I$3,'FERIAS DE 4 A 6 DIAS'!E80) -> 172800 | E80: 172800 | G80: 145210.084
A81: =CONCATENATE(B81:B555," ",C81:C555) -> 3071039 Daysa high table + 2 Marsella pneumatic high chairs | B81: 3071039 | C81: Daysa high table + 2 Marsella pneumatic high chairs | D81: =IF('FERIAS 3 DIAS'!G$3=TRUE,'FERIAS DE 4 A 6 DIAS'!E81/'FERIAS 3 DIAS'!I$3,'FERIAS DE 4 A 6 DIAS'!E81) -> 224300 | E81: 224300 | G81: 188487.395
A82: =CONCATENATE(B82:B556," ",C82:C556) -> 3071054 Lotus standard table + 2 Egg standard chair | B82: 3071054 | C82: Lotus standard table + 2 Egg standard chair | D82: =IF('FERIAS 3 DIAS'!G$3=TRUE,'FERIAS DE 4 A 6 DIAS'!E82/'FERIAS 3 DIAS'!I$3,'FERIAS DE 4 A 6 DIAS'!E82) -> 247000 | E82: 247000 | G82: 207563.0252
A83: =CONCATENATE(B83:B557," ",C83:C557) -> 3071059 Levis armchair (73cm x 86cm x 73cm) | B83: 3071059 | C83: Levis armchair (73cm x 86cm x 73cm) | D83: =IF('FERIAS 3 DIAS'!G$3=TRUE,'FERIAS DE 4 A 6 DIAS'!E83/'FERIAS 3 DIAS'!I$3,'FERIAS DE 4 A 6 DIAS'!E83) -> 179500 | E83: 179500 | G83: 150840.3361
A84: =CONCATENATE(B84:B558," ",C84:C558) -> 3071061 Suiza standard chair (48cm x 46cm x 45cm) | B84: 3071061 | C84: Suiza standard chair (48cm x 46cm x 45cm) | D84: =IF('FERIAS 3 DIAS'!G$3=TRUE,'FERIAS DE 4 A 6 DIAS'!E84/'FERIAS 3 DIAS'!I$3,'FERIAS DE 4 A 6 DIAS'!E84) -> 62500 | E84: 62500 | G84: 52521.0084
A85: =CONCATENATE(B85:B559," ",C85:C559) -> 3071068 Double base rectangular table (Melamine) (50cm x 75cm x 50cm) | B85: 3071068 | C85: Double base rectangular table (Melamine) (50cm x 75cm x 50cm) | D85: =IF('FERIAS 3 DIAS'!G$3=TRUE,'FERIAS DE 4 A 6 DIAS'!E85/'FERIAS 3 DIAS'!I$3,'FERIAS DE 4 A 6 DIAS'!E85) -> 77500 | E85: 77500 | G85: 65126.05042
A86: =CONCATENATE(B86:B560," ",C86:C560) -> 3071077 Marsella pneumatic high chair (80cm x 40cm x 40cm) | B86: 3071077 | C86: Marsella pneumatic high chair (80cm x 40cm x 40cm) | D86: =IF('FERIAS 3 DIAS'!G$3=TRUE,'FERIAS DE 4 A 6 DIAS'!E86/'FERIAS 3 DIAS'!I$3,'FERIAS DE 4 A 6 DIAS'!E86) -> 75200 | E86: 75200 | G86: 63193.27731
A87: =CONCATENATE(B87:B561," ",C87:C561) -> 3071081 Executive Leather Chair (57cm x 93cm x 52cm) | B87: 3071081 | C87: Executive Leather Chair (57cm x 93cm x 52cm) | D87: =IF('FERIAS 3 DIAS'!G$3=TRUE,'FERIAS DE 4 A 6 DIAS'!E87/'FERIAS 3 DIAS'!I$3,'FERIAS DE 4 A 6 DIAS'!E87) -> 68400 | E87: 68400 | G87: 57478.9916
A88: =CONCATENATE(B88:B562," ",C88:C562) -> 3071081 Executive Mesh Chair (57cm x 93cm x 52cm) | B88: 3071081 | C88: Executive Mesh Chair (57cm x 93cm x 52cm) | D88: =IF('FERIAS 3 DIAS'!G$3=TRUE,'FERIAS DE 4 A 6 DIAS'!E88/'FERIAS 3 DIAS'!I$3,'FERIAS DE 4 A 6 DIAS'!E88) -> 140800 | E88: 140800 | G88: 118319.3277
A89: =CONCATENATE(B89:B563," ",C89:C563) -> 3071083 Toronto couch - 3 seats (88cm x 173cm x 80cm) | B89: 3071083 | C89: Toronto couch - 3 seats (88cm x 173cm x 80cm) | D89: =IF('FERIAS 3 DIAS'!G$3=TRUE,'FERIAS DE 4 A 6 DIAS'!E89/'FERIAS 3 DIAS'!I$3,'FERIAS DE 4 A 6 DIAS'!E89) -> 203400 | E89: 203400 | G89: 170924.3697
A90: =CONCATENATE(B90:B564," ",C90:C564) -> 3071085 Ottawa couch - 2 seats (85cm x 120cm x 76cm) | B90: 3071085 | C90: Ottawa couch - 2 seats (85cm x 120cm x 76cm) | D90: =IF('FERIAS 3 DIAS'!G$3=TRUE,'FERIAS DE 4 A 6 DIAS'!E90/'FERIAS 3 DIAS'!I$3,'FERIAS DE 4 A 6 DIAS'!E90) -> 191500 | E90: 191500 | G90: 160924.3697
A91: =CONCATENATE(B91:B565," ",C91:C565) -> 3071090 Standard square puff (43cm x 43cm x 43cm) | B91: 3071090 | C91: Standard square puff (43cm x 43cm x 43cm) | D91: =IF('FERIAS 3 DIAS'!G$3=TRUE,'FERIAS DE 4 A 6 DIAS'!E91/'FERIAS 3 DIAS'!I$3,'FERIAS DE 4 A 6 DIAS'!E91) -> 50100 | E91: 50100 | G91: 42100.84034
A92: =CONCATENATE(B92:B566," ",C92:C566) -> 3071091 Trunk puff - 2 seats (48cm x 81cm x 40cm) | B92: 3071091 | C92: Trunk puff - 2 seats (48cm x 81cm x 40cm) | D92: =IF('FERIAS 3 DIAS'!G$3=TRUE,'FERIAS DE 4 A 6 DIAS'!E92/'FERIAS 3 DIAS'!I$3,'FERIAS DE 4 A 6 DIAS'!E92) -> 95800 | E92: 95800 | G92: 80504.20168
A93: =CONCATENATE(B93:B567," ",C93:C567) -> 3071093 Daysa glass top high table (100cm x 60cm) | B93: 3071093 | C93: Daysa glass top high table (100cm x 60cm) | D93: =IF('FERIAS 3 DIAS'!G$3=TRUE,'FERIAS DE 4 A 6 DIAS'!E93/'FERIAS 3 DIAS'!I$3,'FERIAS DE 4 A 6 DIAS'!E93) -> 107700 | E93: 107700 | G93: 90504.20168
A94: =CONCATENATE(B94:B568," ",C94:C568) -> 3071095 VIP living room (1 Victoria right couch, 1 Victoria left couch, 2 Levis armchairs, 1 Double base square table) | B94: 3071095 | C94: VIP living room (1 Victoria right couch, 1 Victoria left couch, 2 Levis armchairs, 1 Double base square table) | D94: =IF('FERIAS 3 DIAS'!G$3=TRUE,'FERIAS DE 4 A 6 DIAS'!E94/'FERIAS 3 DIAS'!I$3,'FERIAS DE 4 A 6 DIAS'!E94) -> 626400 | E94: 626400 | G94: 526386.5546
A95: =CONCATENATE(B95:B570," ",C95:C570) -> 3071097 Daysa standard table (76cm x 60cm) | B95: 3071097 | C95: Daysa standard table (76cm x 60cm) | D95: =IF('FERIAS 3 DIAS'!G$3=TRUE,'FERIAS DE 4 A 6 DIAS'!E95/'FERIAS 3 DIAS'!I$3,'FERIAS DE 4 A 6 DIAS'!E95) -> 95800 | E95: 95800 | G95: 80504.20168
A96: =CONCATENATE(B96:B571," ",C96:C571) -> 3071098 Shia standard table black (76cm x 60cm x 60cm) | B96: 3071098 | C96: Shia standard table black (76cm x 60cm x 60cm) | D96: =IF('FERIAS 3 DIAS'!G$3=TRUE,'FERIAS DE 4 A 6 DIAS'!E96/'FERIAS 3 DIAS'!I$3,'FERIAS DE 4 A 6 DIAS'!E96) -> 95800 | E96: 95800 | G96: 80504.20168
A97: =CONCATENATE(B97:B572," ",C97:C572) -> 3071098 Shia standard table White (76cm x 60cm x 60cm) | B97: 3071098 | C97: Shia standard table White (76cm x 60cm x 60cm) | D97: =IF('FERIAS 3 DIAS'!G$3=TRUE,'FERIAS DE 4 A 6 DIAS'!E97/'FERIAS 3 DIAS'!I$3,'FERIAS DE 4 A 6 DIAS'!E97) -> 95800 | E97: 95800 | G97: 80504.20168
A98: =CONCATENATE(B98:B573," ",C98:C573) -> 3071100 Double base circular table (Melamine) (50cm x 110cm x 60cm) | B98: 3071100 | C98: Double base circular table (Melamine) (50cm x 110cm x 60cm) | D98: =IF('FERIAS 3 DIAS'!G$3=TRUE,'FERIAS DE 4 A 6 DIAS'!E98/'FERIAS 3 DIAS'!I$3,'FERIAS DE 4 A 6 DIAS'!E98) -> 106600 | E98: 106600 | G98: 89579.83193
A99: =CONCATENATE(B99:B574," ",C99:C574) -> 3071103 Minibar Refrigerator 121 LT (48.5cm X 85.1cm X 60cm) | B99: 3071103 | C99: Minibar Refrigerator 121 LT (48.5cm X 85.1cm X 60cm) | D99: =IF('FERIAS 3 DIAS'!G$3=TRUE,'FERIAS DE 4 A 6 DIAS'!E99/'FERIAS 3 DIAS'!I$3,'FERIAS DE 4 A 6 DIAS'!E99) -> 184600 | E99: 184600 | G99: 155126.0504
A100: =CONCATENATE(B100:B575," ",C100:C575) -> 3071103 Standard Refrigerator 230LT ( 55.6cm X 157.6cm X 67cm) | B100: 3071103 | C100: Standard Refrigerator 230LT ( 55.6cm X 157.6cm X 67cm) | D100: =IF('FERIAS 3 DIAS'!G$3=TRUE,'FERIAS DE 4 A 6 DIAS'!E100/'FERIAS 3 DIAS'!I$3,'FERIAS DE 4 A 6 DIAS'!E100) -> 272300 | E100: 272300 | G100: 228823.5294
A101: =CONCATENATE(B101:B576," ",C101:C576) -> 3071104 Double Base square table (Melamine) (50cm x 60cm x 60cm) | B101: 3071104 | C101: Double Base square table (Melamine) (50cm x 60cm x 60cm) | D101: =IF('FERIAS 3 DIAS'!G$3=TRUE,'FERIAS DE 4 A 6 DIAS'!E101/'FERIAS 3 DIAS'!I$3,'FERIAS DE 4 A 6 DIAS'!E101) -> 77500 | E101: 77500 | G101: 65126.05042
A102: =CONCATENATE(B102:B577," ",C102:C577) -> 3071105 Office KIT 2 (2 cushioned standard black chairs, 1 executive leather chair, 1 office desk) | B102: 3071105 | C102: Office KIT 2 (2 cushioned standard black chairs, 1 executive leather chair, 1 office desk) | D102: =IF('FERIAS 3 DIAS'!G$3=TRUE,'FERIAS DE 4 A 6 DIAS'!E102/'FERIAS 3 DIAS'!I$3,'FERIAS DE 4 A 6 DIAS'!E102) -> 215400 | E102: 215400 | G102: 181008.4034
A103: =CONCATENATE(B103:B578," ",C103:C578) -> 3071108 4-tier shelving unit (190cm x 125cm x 41cm) | B103: 3071108 | C103: 4-tier shelving unit (190cm x 125cm x 41cm) | D103: =IF('FERIAS 3 DIAS'!G$3=TRUE,'FERIAS DE 4 A 6 DIAS'!E103/'FERIAS 3 DIAS'!I$3,'FERIAS DE 4 A 6 DIAS'!E103) -> 137600 | E103: 137600 | G103: 115630.2521
A104: =CONCATENATE(B104:B579," ",C104:C579) -> 3071111 Rectangular 2-tier showcase (200cm x 100cm x 40cm) | B104: 3071111 | C104: Rectangular 2-tier showcase (200cm x 100cm x 40cm) | D104: =IF('FERIAS 3 DIAS'!G$3=TRUE,'FERIAS DE 4 A 6 DIAS'!E104/'FERIAS 3 DIAS'!I$3,'FERIAS DE 4 A 6 DIAS'!E104) -> 260200 | E104: 260200 | G104: 218655.4622
A105: =CONCATENATE(B105:B580," ",C105:C580) -> 3071113 Osaka living room (1 Toronto couch, 2 Donna puffs, 1 Double base square table) | B105: 3071113 | C105: Osaka living room (1 Toronto couch, 2 Donna puffs, 1 Double base square table) | D105: =IF('FERIAS 3 DIAS'!G$3=TRUE,'FERIAS DE 4 A 6 DIAS'!E105/'FERIAS 3 DIAS'!I$3,'FERIAS DE 4 A 6 DIAS'!E105) -> 418600 | E105: 418600 | G105: 351764.7059
A106: =CONCATENATE(B106:B581," ",C106:C581) -> 3071114 Trunk puff - 3 seats (46cm x 120cm x 54cm) | B106: 3071114 | C106: Trunk puff - 3 seats (46cm x 120cm x 54cm) | D106: =IF('FERIAS 3 DIAS'!G$3=TRUE,'FERIAS DE 4 A 6 DIAS'!E106/'FERIAS 3 DIAS'!I$3,'FERIAS DE 4 A 6 DIAS'!E106) -> 95800 | E106: 95800 | G106: 80504.20168
A107: =CONCATENATE(B107:B582," ",C107:C582) -> 3071115 Daysa high table (Melamine) (100cm x 60cm) | B107: 3071115 | C107: Daysa high table (Melamine) (100cm x 60cm) | D107: =IF('FERIAS 3 DIAS'!G$3=TRUE,'FERIAS DE 4 A 6 DIAS'!E107/'FERIAS 3 DIAS'!I$3,'FERIAS DE 4 A 6 DIAS'!E107) -> 95800 | E107: 95800 | G107: 80504.20168
A108: =CONCATENATE(B108:B583," ",C108:C583) -> 3071115 Daysa high table (Honey brown) (100cm x 60cm) | B108: 3071115 | C108: Daysa high table (Honey brown) (100cm x 60cm) | D108: =IF('FERIAS 3 DIAS'!G$3=TRUE,'FERIAS DE 4 A 6 DIAS'!E108/'FERIAS 3 DIAS'!I$3,'FERIAS DE 4 A 6 DIAS'!E108) -> 95800 | E108: 95800 | G108: 80504.20168
A109: =CONCATENATE(B109:B584," ",C109:C584) -> 3071115 Daysa high table (Oak finish) (100cm x 60cm) | B109: 3071115 | C109: Daysa high table (Oak finish) (100cm x 60cm) | D109: =IF('FERIAS 3 DIAS'!G$3=TRUE,'FERIAS DE 4 A 6 DIAS'!E109/'FERIAS 3 DIAS'!I$3,'FERIAS DE 4 A 6 DIAS'!E109) -> 95800 | E109: 95800 | G109: 80504.20168
A110: =CONCATENATE(B110:B585," ",C110:C585) -> 3071115 Daysa high table (Grey oak) (100cm x 60cm) | B110: 3071115 | C110: Daysa high table (Grey oak) (100cm x 60cm) | D110: =IF('FERIAS 3 DIAS'!G$3=TRUE,'FERIAS DE 4 A 6 DIAS'!E110/'FERIAS 3 DIAS'!I$3,'FERIAS DE 4 A 6 DIAS'!E110) -> 95800 | E110: 95800 | G110: 80504.20168
A111: =CONCATENATE(B111:B586," ",C111:C586) -> 3071116 Lotus standard table (70cm x 64cm x 81cm) | B111: 3071116 | C111: Lotus standard table (70cm x 64cm x 81cm) | D111: =IF('FERIAS 3 DIAS'!G$3=TRUE,'FERIAS DE 4 A 6 DIAS'!E111/'FERIAS 3 DIAS'!I$3,'FERIAS DE 4 A 6 DIAS'!E111) -> 143500 | E111: 143500 | G111: 120588.2353
A112: =CONCATENATE(B112:B586," ",C112:C586) -> 3071302 Stainless steel trash can | B112: 3071302 | C112: Stainless steel trash can | D112: =IF('FERIAS 3 DIAS'!G$3=TRUE,'FERIAS DE 4 A 6 DIAS'!E112/'FERIAS 3 DIAS'!I$3,'FERIAS DE 4 A 6 DIAS'!E112) -> 23000 | E112: 23000 | G112: 19327.73109
A113: =CONCATENATE(B113:B587," ",C113:C587) -> 3071325 120cm Queue divider | B113: 3071325 | C113: 120cm Queue divider | D113: =IF('FERIAS 3 DIAS'!G$3=TRUE,'FERIAS DE 4 A 6 DIAS'!E113/'FERIAS 3 DIAS'!I$3,'FERIAS DE 4 A 6 DIAS'!E113) -> 44000 | E113: 44000 | G113: 36974.78992
A114: =CONCATENATE(B114:B588," ",C114:C588) -> 3071370 Folding magazine rack (140cm x 25cm x 29cm) | B114: 3071370 | C114: Folding magazine rack (140cm x 25cm x 29cm) | D114: =IF('FERIAS 3 DIAS'!G$3=TRUE,'FERIAS DE 4 A 6 DIAS'!E114/'FERIAS 3 DIAS'!I$3,'FERIAS DE 4 A 6 DIAS'!E114) -> 71300 | E114: 71300 | G114: 59915.96639
A115: =CONCATENATE(B115:B589," ",C115:C589) -> 30710165 Red Bombonera Chair | B115: 30710165 | C115: Red Bombonera Chair | D115: =IF('FERIAS 3 DIAS'!G$3=TRUE,'FERIAS DE 4 A 6 DIAS'!E115/'FERIAS 3 DIAS'!I$3,'FERIAS DE 4 A 6 DIAS'!E115) -> 59800 | E115: 59800 | G115: 50252.10084
A116: =CONCATENATE(B116:B590," ",C116:C590) -> 30710166 Oslo Chair White | B116: 30710166 | C116: Oslo Chair White | D116: =IF('FERIAS 3 DIAS'!G$3=TRUE,'FERIAS DE 4 A 6 DIAS'!E116/'FERIAS 3 DIAS'!I$3,'FERIAS DE 4 A 6 DIAS'!E116) -> 68400 | E116: 68400 | G116: 57478.9916
A117: =CONCATENATE(B117:B591," ",C117:C591) -> 30710167 Wooden Bar Chair | B117: 30710167 | C117: Wooden Bar Chair | D117: =IF('FERIAS 3 DIAS'!G$3=TRUE,'FERIAS DE 4 A 6 DIAS'!E117/'FERIAS 3 DIAS'!I$3,'FERIAS DE 4 A 6 DIAS'!E117) -> 74300 | E117: 74300 | G117: 62436.97479
A118: =CONCATENATE(B118:B592," ",C118:C592) -> 30710168 Meeting Room | B118: 30710168 | C118: Meeting Room | D118: =IF('FERIAS 3 DIAS'!G$3=TRUE,'FERIAS DE 4 A 6 DIAS'!E118/'FERIAS 3 DIAS'!I$3,'FERIAS DE 4 A 6 DIAS'!E118) -> 270000 | E118: 270000 | G118: 226890.7563
A119: =CONCATENATE(B119:B593," ",C119:C593) -> 30713198 Executive Chair (100cm x 49cm x 49cm) | B119: 30713198 | C119: Executive Chair (100cm x 49cm x 49cm) | D119: =IF('FERIAS 3 DIAS'!G$3=TRUE,'FERIAS DE 4 A 6 DIAS'!E119/'FERIAS 3 DIAS'!I$3,'FERIAS DE 4 A 6 DIAS'!E119) -> 140800 | E119: 140800 | G119: 118319.3277
A120: =CONCATENATE(B120:B594," ",C120:C594) -> 30713200 Office desk (50cm x 120cm x 50cm) | B120: 30713200 | C120: Office desk (50cm x 120cm x 50cm) | D120: =IF('FERIAS 3 DIAS'!G$3=TRUE,'FERIAS DE 4 A 6 DIAS'!E120/'FERIAS 3 DIAS'!I$3,'FERIAS DE 4 A 6 DIAS'!E120) -> 120700 | E120: 120700 | G120: 101428.5714
A121: =CONCATENATE(B121:B595," ",C121:C595) -> 30713201 Buggy easy chair (72cm x 64cm) | B121: 30713201 | C121: Buggy easy chair (72cm x 64cm) | D121: =IF('FERIAS 3 DIAS'!G$3=TRUE,'FERIAS DE 4 A 6 DIAS'!E121/'FERIAS 3 DIAS'!I$3,'FERIAS DE 4 A 6 DIAS'!E121) -> 140800 | E121: 140800 | G121: 118319.3277
A122: =CONCATENATE(B122:B596," ",C122:C596) -> 30713225 Smooth carpet m2 + installation: Contact serviciosplus@corferias.com for advice and a quote. | B122: 30713225 | C122: Smooth carpet m2 + installation: Contact serviciosplus@corferias.com for advice and a quote. | D122: =IF('FERIAS 3 DIAS'!G$3=TRUE,'FERIAS DE 4 A 6 DIAS'!E122/'FERIAS 3 DIAS'!I$3,'FERIAS DE 4 A 6 DIAS'!E122) -> 37800 | E122: 37800 | G122: 31764.70588
A123: =CONCATENATE(B123:B597," ",C123:C597) -> 30713226 Exhibition carpet, ribbed type m2 + installation | B123: 30713226 | C123: Exhibition carpet, ribbed type m2 + installation | D123: =IF('FERIAS 3 DIAS'!G$3=TRUE,'FERIAS DE 4 A 6 DIAS'!E123/'FERIAS 3 DIAS'!I$3,'FERIAS DE 4 A 6 DIAS'!E123) -> 37800 | E123: 37800 | G123: 31764.70588
A124: =CONCATENATE(B124:B598," ",C124:C598) -> 30713227 Rubber mat m2 + installation | B124: 30713227 | C124: Rubber mat m2 + installation | D124: =IF('FERIAS 3 DIAS'!G$3=TRUE,'FERIAS DE 4 A 6 DIAS'!E124/'FERIAS 3 DIAS'!I$3,'FERIAS DE 4 A 6 DIAS'!E124) -> 97200 | E124: 97200
A125: =CONCATENATE(B125:B599," ",C125:C599) -> 30713228 Laminate floor m2 + installation | B125: 30713228 | C125: Laminate floor m2 + installation | D125: =IF('FERIAS 3 DIAS'!G$3=TRUE,'FERIAS DE 4 A 6 DIAS'!E125/'FERIAS 3 DIAS'!I$3,'FERIAS DE 4 A 6 DIAS'!E125) -> 97200 | E125: 97200
A126: =CONCATENATE(B126:B600," ",C126:C600) -> 30713229 Melamine floor m2 + installation | B126: 30713229 | C126: Melamine floor m2 + installation | D126: =IF('FERIAS 3 DIAS'!G$3=TRUE,'FERIAS DE 4 A 6 DIAS'!E126/'FERIAS 3 DIAS'!I$3,'FERIAS DE 4 A 6 DIAS'!E126) -> 172800 | E126: 172800
A127: =CONCATENATE(B127:B601," ",C127:C601) -> Baru Living Room (1 Otawa Sofa, 2 Square Poufs, 1 Pouf 2 Seats, 1 Coffee Table 2 Levels) | C127: Baru Living Room (1 Otawa Sofa, 2 Square Poufs, 1 Pouf 2 Seats, 1 Coffee Table 2 Levels) | D127: =IF('FERIAS 3 DIAS'!G$3=TRUE,'FERIAS DE 4 A 6 DIAS'!E127/'FERIAS 3 DIAS'!I$3,'FERIAS DE 4 A 6 DIAS'!E127) -> 418600 | E127: 418600
A128: =CONCATENATE(B128:B602," ",C128:C602) -> Terranova Lounge (1 Terranova Sofa, 2 Buggy Armchairs, 1 Coffee Table 2 levels) | C128: Terranova Lounge (1 Terranova Sofa, 2 Buggy Armchairs, 1 Coffee Table 2 levels) | D128: =IF('FERIAS 3 DIAS'!G$3=TRUE,'FERIAS DE 4 A 6 DIAS'!E128/'FERIAS 3 DIAS'!I$3,'FERIAS DE 4 A 6 DIAS'!E128) -> 418600 | E128: 418600
A129: =CONCATENATE(B129:B603," ",C129:C603) -> Flowerplot Melaminic (with 12 artificial mats) | C129: Flowerplot Melaminic (with 12 artificial mats) | D129: =IF('FERIAS 3 DIAS'!G$3=TRUE,'FERIAS DE 4 A 6 DIAS'!E129/'FERIAS 3 DIAS'!I$3,'FERIAS DE 4 A 6 DIAS'!E129) -> 40800 | E129: 40800
A130: =CONCATENATE(B130:B604," ",C130:C604) -> 3070942 Office Kit Pine 1 (1 Pino Table, 3 Acrilic Chair K Black) | B130: 3070942 | C130: Office Kit Pine 1 (1 Pino Table, 3 Acrilic Chair K Black) | D130: =IF('FERIAS 3 DIAS'!G$3=TRUE,'FERIAS DE 4 A 6 DIAS'!E130/'FERIAS 3 DIAS'!I$3,'FERIAS DE 4 A 6 DIAS'!E130) -> 181000 | E130: 181000
A131: =CONCATENATE(B131:B605," ",C131:C605) -> 3070940 Pine Office Desk 120 x 60 cms | B131: 3070940 | C131: Pine Office Desk 120 x 60 cms | D131: =IF('FERIAS 3 DIAS'!G$3=TRUE,'FERIAS DE 4 A 6 DIAS'!E131/'FERIAS 3 DIAS'!I$3,'FERIAS DE 4 A 6 DIAS'!E131) -> 106800 | E131: 106800
A132: =CONCATENATE(B132:B606," ",C132:C606) -> 3071002 Acrilic Chair K Black 103C | B132: 3071002 | C132: Acrilic Chair K Black 103C | D132: =IF('FERIAS 3 DIAS'!G$3=TRUE,'FERIAS DE 4 A 6 DIAS'!E132/'FERIAS 3 DIAS'!I$3,'FERIAS DE 4 A 6 DIAS'!E132) -> 45300 | E132: 45300
A133: =CONCATENATE(B133:B621," ",C133:C621) -> 3071346 Base for TV Led - LCD adaptable (Does not include installation) Value of event 1 day | B133: 3071346 | C133: Base for TV Led - LCD adaptable (Does not include installation) Value of event 1 day | D133: =IF('FERIAS 3 DIAS'!G$3=TRUE,'FERIAS DE 4 A 6 DIAS'!E133/'FERIAS 3 DIAS'!I$3,'FERIAS DE 4 A 6 DIAS'!E133) -> 42500 | E133: 42500
A134: =CONCATENATE(B134:B622," ",C134:C622) -> 3071346 Base for TV Led - LCD adaptable (Does not include installation) Value of event 2 days (Value per day) | B134: 3071346 | C134: Base for TV Led - LCD adaptable (Does not include installation) Value of event 2 days (Value per day) | D134: =IF('FERIAS 3 DIAS'!G$3=TRUE,'FERIAS DE 4 A 6 DIAS'!E134/'FERIAS 3 DIAS'!I$3,'FERIAS DE 4 A 6 DIAS'!E134) -> 42500 | E134: 42500
A135: =CONCATENATE(B135:B623," ",C135:C623) -> 3071346 Base for TV Led - LCD adaptable (Does not include installation) Value from 3 to 6 days (Day value) | B135: 3071346 | C135: Base for TV Led - LCD adaptable (Does not include installation) Value from 3 to 6 days (Day value) | D135: =IF('FERIAS 3 DIAS'!G$3=TRUE,'FERIAS DE 4 A 6 DIAS'!E135/'FERIAS 3 DIAS'!I$3,'FERIAS DE 4 A 6 DIAS'!E135) -> 38600 | E135: 38600
A136: =CONCATENATE(B136:B624," ",C136:C624) -> 3071204 Base for TV Led - LCD adaptable (Does not include installation) Value from 7 to 18 days (Fair value) | B136: 3071204 | C136: Base for TV Led - LCD adaptable (Does not include installation) Value from 7 to 18 days (Fair value) | D136: =IF('FERIAS 3 DIAS'!G$3=TRUE,'FERIAS DE 4 A 6 DIAS'!E136/'FERIAS 3 DIAS'!I$3,'FERIAS DE 4 A 6 DIAS'!E136) -> 272500 | E136: 272500 | G136: 228991.5966
A137: =CONCATENATE(B137:B625," ",C137:C625) -> 3071204 Tv Smart 45" 114cms ( Includes tv stand / power cord / 1 HDMI cable) IN: HDMI, USB Value of event 1 day | B137: 3071204 | C137: Tv Smart 45" 114cms ( Includes tv stand / power cord / 1 HDMI cable) IN: HDMI, USB Value of event 1 day | D137: =IF('FERIAS 3 DIAS'!G$3=TRUE,'FERIAS DE 4 A 6 DIAS'!E137/'FERIAS 3 DIAS'!I$3,'FERIAS DE 4 A 6 DIAS'!E137) -> 137900 | E137: 137900 | G137: 115882.3529
A138: =CONCATENATE(B138:B626," ",C138:C626) -> 3071204 Tv Smart 45" 114cms ( Includes tv stand / power cord / 1 HDMI cable) IN: HDMI, USB Value of event 2 days (Value per day) | B138: 3071204 | C138: Tv Smart 45" 114cms ( Includes tv stand / power cord / 1 HDMI cable) IN: HDMI, USB Value of event 2 days (Value per day) | D138: =IF('FERIAS 3 DIAS'!G$3=TRUE,'FERIAS DE 4 A 6 DIAS'!E138/'FERIAS 3 DIAS'!I$3,'FERIAS DE 4 A 6 DIAS'!E138) -> 135900 | E138: 135900 | G138: 114201.6807
A139: =CONCATENATE(B139:B627," ",C139:C627) -> 3071204 Tv Smart 45" 114cms ( Includes tv stand / power cord / 1 HDMI cable) IN: HDMI, USB Value from 3 to 6 days (Day value) | B139: 3071204 | C139: Tv Smart 45" 114cms ( Includes tv stand / power cord / 1 HDMI cable) IN: HDMI, USB Value from 3 to 6 days (Day value) | D139: =IF('FERIAS 3 DIAS'!G$3=TRUE,'FERIAS DE 4 A 6 DIAS'!E139/'FERIAS 3 DIAS'!I$3,'FERIAS DE 4 A 6 DIAS'!E139) -> 125800 | E139: 125800 | G139: 105714.2857
A140: =CONCATENATE(B140:B628," ",C140:C628) -> 3071204 Tv Smart 45" 114cms ( Includes tv stand / power cord / 1 HDMI cable) IN: HDMI, USB Value from 7 to 18 days (Fair value) | B140: 3071204 | C140: Tv Smart 45" 114cms ( Includes tv stand / power cord / 1 HDMI cable) IN: HDMI, USB Value from 7 to 18 days (Fair value) | D140: =IF('FERIAS 3 DIAS'!G$3=TRUE,'FERIAS DE 4 A 6 DIAS'!E140/'FERIAS 3 DIAS'!I$3,'FERIAS DE 4 A 6 DIAS'!E140) -> 816500 | E140: 816500 | G140: 686134.4538
A141: =CONCATENATE(B141:B629," ",C141:C629) -> 30713202 Tv Smart 55" 140cms (Includes tv stand / power cord / 1 HDMI cable) IN: HDMI, USB Value of event 1 day | B141: 30713202 | C141: Tv Smart 55" 140cms (Includes tv stand / power cord / 1 HDMI cable) IN: HDMI, USB Value of event 1 day | D141: =IF('FERIAS 3 DIAS'!G$3=TRUE,'FERIAS DE 4 A 6 DIAS'!E141/'FERIAS 3 DIAS'!I$3,'FERIAS DE 4 A 6 DIAS'!E141) -> 188100 | E141: 188100 | G141: 158067.2269
A142: =CONCATENATE(B142:B630," ",C142:C630) -> 30713202 Tv Smart 55" 140cms (Includes tv stand / power cord / 1 HDMI cable) IN: HDMI, USB Value of event 2 days (Value per day) | B142: 30713202 | C142: Tv Smart 55" 140cms (Includes tv stand / power cord / 1 HDMI cable) IN: HDMI, USB Value of event 2 days (Value per day) | D142: =IF('FERIAS 3 DIAS'!G$3=TRUE,'FERIAS DE 4 A 6 DIAS'!E142/'FERIAS 3 DIAS'!I$3,'FERIAS DE 4 A 6 DIAS'!E142) -> 188100 | E142: 188100 | G142: =E142/1.19 -> 158067.2269
A143: =CONCATENATE(B143:B631," ",C143:C631) -> 30713202 Tv Smart 55" 140cms (Includes tv stand / power cord / 1 HDMI cable) IN: HDMI, USB Value from 3 to 6 days (Day value) | B143: 30713202 | C143: Tv Smart 55" 140cms (Includes tv stand / power cord / 1 HDMI cable) IN: HDMI, USB Value from 3 to 6 days (Day value) | D143: =IF('FERIAS 3 DIAS'!G$3=TRUE,'FERIAS DE 4 A 6 DIAS'!E143/'FERIAS 3 DIAS'!I$3,'FERIAS DE 4 A 6 DIAS'!E143) -> 171400 | E143: 171400 | G143: 144033.6134
A144: =CONCATENATE(B144:B632," ",C144:C632) -> 30713202 Tv Smart 55" 140cms (Includes tv stand / power cord / 1 HDMI cable) IN: HDMI, USB Value from 7 to 18 days (Fair value) | B144: 30713202 | C144: Tv Smart 55" 140cms (Includes tv stand / power cord / 1 HDMI cable) IN: HDMI, USB Value from 7 to 18 days (Fair value) | D144: =IF('FERIAS 3 DIAS'!G$3=TRUE,'FERIAS DE 4 A 6 DIAS'!E144/'FERIAS 3 DIAS'!I$3,'FERIAS DE 4 A 6 DIAS'!E144) -> 1381900 | E144: 1381900 | G144: 1161260.504
A145: =CONCATENATE(B145:B633," ",C145:C633) -> 3071206 Tv Smart 65" 165cms (Includes tv stand / power cord /1 HDMI cable) IN: HDMI, USB Value of event 1 day | B145: 3071206 | C145: Tv Smart 65" 165cms (Includes tv stand / power cord /1 HDMI cable) IN: HDMI, USB Value of event 1 day | D145: =IF('FERIAS 3 DIAS'!G$3=TRUE,'FERIAS DE 4 A 6 DIAS'!E145/'FERIAS 3 DIAS'!I$3,'FERIAS DE 4 A 6 DIAS'!E145) -> 330600 | E145: 330600 | G145: 277815.1261
A146: =CONCATENATE(B146:B634," ",C146:C634) -> 3071206 Tv Smart 65" 165cms (Includes tv stand / power cord /1 HDMI cable) IN: HDMI, USB Value of event 2 days (Value per day) | B146: 3071206 | C146: Tv Smart 65" 165cms (Includes tv stand / power cord /1 HDMI cable) IN: HDMI, USB Value of event 2 days (Value per day) | D146: =IF('FERIAS 3 DIAS'!G$3=TRUE,'FERIAS DE 4 A 6 DIAS'!E146/'FERIAS 3 DIAS'!I$3,'FERIAS DE 4 A 6 DIAS'!E146) -> 330600 | E146: 330600 | G146: 277815.1261
A147: =CONCATENATE(B147:B635," ",C147:C635) -> 3071206 Tv Smart 65" 165cms (Includes tv stand / power cord /1 HDMI cable) IN: HDMI, USB Value from 3 to 6 days (Day value) | B147: 3071206 | C147: Tv Smart 65" 165cms (Includes tv stand / power cord /1 HDMI cable) IN: HDMI, USB Value from 3 to 6 days (Day value) | D147: =IF('FERIAS 3 DIAS'!G$3=TRUE,'FERIAS DE 4 A 6 DIAS'!E147/'FERIAS 3 DIAS'!I$3,'FERIAS DE 4 A 6 DIAS'!E147) -> 312400 | E147: 312400 | G147: 262521.0084
A148: =CONCATENATE(B148:B636," ",C148:C636) -> 3071206 Tv Smart 65" 165cms (Includes tv stand / power cord /1 HDMI cable) IN: HDMI, USB Value from 7 to 18 days (Fair value) | B148: 3071206 | C148: Tv Smart 65" 165cms (Includes tv stand / power cord /1 HDMI cable) IN: HDMI, USB Value from 7 to 18 days (Fair value) | D148: =IF('FERIAS 3 DIAS'!G$3=TRUE,'FERIAS DE 4 A 6 DIAS'!E148/'FERIAS 3 DIAS'!I$3,'FERIAS DE 4 A 6 DIAS'!E148) -> 1582600 | E148: 1582600 | G148: 1329915.966
A149: =CONCATENATE(B149:B637," ",C149:C637) -> 3071279 Tv Smart 70" 177,8cms ( Includes tv stand / power cord /1 HDMI cable) IN: HDMI, USB Value of event 1 day | B149: 3071279 | C149: Tv Smart 70" 177,8cms ( Includes tv stand / power cord /1 HDMI cable) IN: HDMI, USB Value of event 1 day | D149: =IF('FERIAS 3 DIAS'!G$3=TRUE,'FERIAS DE 4 A 6 DIAS'!E149/'FERIAS 3 DIAS'!I$3,'FERIAS DE 4 A 6 DIAS'!E149) -> 531400 | E149: 531400 | G149: 446554.6218
A150: =CONCATENATE(B150:B638," ",C150:C638) -> 3071279 Tv Smart 70" 177,8cms ( Includes tv stand / power cord /1 HDMI cable) IN: HDMI, USB Value of event 2 days (Value per day) | B150: 3071279 | C150: Tv Smart 70" 177,8cms ( Includes tv stand / power cord /1 HDMI cable) IN: HDMI, USB Value of event 2 days (Value per day) | D150: =IF('FERIAS 3 DIAS'!G$3=TRUE,'FERIAS DE 4 A 6 DIAS'!E150/'FERIAS 3 DIAS'!I$3,'FERIAS DE 4 A 6 DIAS'!E150) -> 531400 | E150: 531400 | G150: 446554.6218
A151: =CONCATENATE(B151:B639," ",C151:C639) -> 3071279 Tv Smart 70" 177,8cms ( Includes tv stand / power cord /1 HDMI cable) IN: HDMI, USB Value from 3 to 6 days (Day value) | B151: 3071279 | C151: Tv Smart 70" 177,8cms ( Includes tv stand / power cord /1 HDMI cable) IN: HDMI, USB Value from 3 to 6 days (Day value) | D151: =IF('FERIAS 3 DIAS'!G$3=TRUE,'FERIAS DE 4 A 6 DIAS'!E151/'FERIAS 3 DIAS'!I$3,'FERIAS DE 4 A 6 DIAS'!E151) -> 483600 | E151: 483600 | G151: 406386.5546
A152: =CONCATENATE(B152:B640," ",C152:C640) -> 3071279 Tv Smart 70" 177,8cms ( Includes tv stand / power cord /1 HDMI cable) IN: HDMI, USB Value from 7 to 18 days (Fair value) | B152: 3071279 | C152: Tv Smart 70" 177,8cms ( Includes tv stand / power cord /1 HDMI cable) IN: HDMI, USB Value from 7 to 18 days (Fair value) | D152: =IF('FERIAS 3 DIAS'!G$3=TRUE,'FERIAS DE 4 A 6 DIAS'!E152/'FERIAS 3 DIAS'!I$3,'FERIAS DE 4 A 6 DIAS'!E152) -> 3454300 | E152: 3454300 | G152: 2902773.109
A153: =CONCATENATE(B153:B641," ",C153:C641) -> 3071222 Tv Smart 82" 204cms ( Includes tv stand / power cord /1 HDMI cable) IN: HDMI, USB Value of event 1 day | B153: 3071222 | C153: Tv Smart 82" 204cms ( Includes tv stand / power cord /1 HDMI cable) IN: HDMI, USB Value of event 1 day | D153: =IF('FERIAS 3 DIAS'!G$3=TRUE,'FERIAS DE 4 A 6 DIAS'!E153/'FERIAS 3 DIAS'!I$3,'FERIAS DE 4 A 6 DIAS'!E153) -> 987200 | E153: 987200 | G153: 829579.8319
A154: =CONCATENATE(B154:B642," ",C154:C642) -> 3071222 Tv Smart 82" 204cms ( Includes tv stand / power cord /1 HDMI cable) IN: HDMI, USB Value of event 2 days (Value per day) | B154: 3071222 | C154: Tv Smart 82" 204cms ( Includes tv stand / power cord /1 HDMI cable) IN: HDMI, USB Value of event 2 days (Value per day) | D154: =IF('FERIAS 3 DIAS'!G$3=TRUE,'FERIAS DE 4 A 6 DIAS'!E154/'FERIAS 3 DIAS'!I$3,'FERIAS DE 4 A 6 DIAS'!E154) -> 987200 | E154: 987200 | G154: 829579.8319
A155: =CONCATENATE(B155:B643," ",C155:C643) -> 3071222 Tv Smart 82" 204cms ( Includes tv stand / power cord /1 HDMI cable) IN: HDMI, USB Value from 3 to 6 days (Day value) | B155: 3071222 | C155: Tv Smart 82" 204cms ( Includes tv stand / power cord /1 HDMI cable) IN: HDMI, USB Value from 3 to 6 days (Day value) | D155: =IF('FERIAS 3 DIAS'!G$3=TRUE,'FERIAS DE 4 A 6 DIAS'!E155/'FERIAS 3 DIAS'!I$3,'FERIAS DE 4 A 6 DIAS'!E155) -> 898200 | E155: 898200 | G155: 754789.916
A156: =CONCATENATE(B156:B644," ",C156:C644) -> 3071222 Tv Smart 82" 204cms ( Includes tv stand / power cord /1 HDMI cable) IN: HDMI, USB Value from 7 to 18 days (Fair value) | B156: 3071222 | C156: Tv Smart 82" 204cms ( Includes tv stand / power cord /1 HDMI cable) IN: HDMI, USB Value from 7 to 18 days (Fair value) | D156: =IF('FERIAS 3 DIAS'!G$3=TRUE,'FERIAS DE 4 A 6 DIAS'!E156/'FERIAS 3 DIAS'!I$3,'FERIAS DE 4 A 6 DIAS'!E156) -> 6414700 | E156: 6414700 | G156: 5390504.202
A157: =CONCATENATE(B157:B645," ",C157:C645) -> 3071262 40" 101cms touch screen monitor (Includes monitor stand / cabling) IN: HDMI Value of event 1 day | B157: 3071262 | C157: 40" 101cms touch screen monitor (Includes monitor stand / cabling) IN: HDMI Value of event 1 day | D157: =IF('FERIAS 3 DIAS'!G$3=TRUE,'FERIAS DE 4 A 6 DIAS'!E157/'FERIAS 3 DIAS'!I$3,'FERIAS DE 4 A 6 DIAS'!E157) -> 666700 | E157: 666700 | G157: 560252.1008
A158: =CONCATENATE(B158:B646," ",C158:C646) -> 3071262 40" 101cms touch screen monitor (Includes monitor stand / cabling) IN: HDMI Value of event 2 days (Value per day) | B158: 3071262 | C158: 40" 101cms touch screen monitor (Includes monitor stand / cabling) IN: HDMI Value of event 2 days (Value per day) | D158: =IF('FERIAS 3 DIAS'!G$3=TRUE,'FERIAS DE 4 A 6 DIAS'!E158/'FERIAS 3 DIAS'!I$3,'FERIAS DE 4 A 6 DIAS'!E158) -> 666700 | E158: 666700 | G158: 560252.1008
A159: =CONCATENATE(B159:B647," ",C159:C647) -> 3071262 40" 101cms touch screen monitor (Includes monitor stand / cabling) IN: HDMI Value from 3 to 6 days (Day value) | B159: 3071262 | C159: 40" 101cms touch screen monitor (Includes monitor stand / cabling) IN: HDMI Value from 3 to 6 days (Day value) | D159: =IF('FERIAS 3 DIAS'!G$3=TRUE,'FERIAS DE 4 A 6 DIAS'!E159/'FERIAS 3 DIAS'!I$3,'FERIAS DE 4 A 6 DIAS'!E159) -> 485700 | E159: 485700 | G159: 408151.2605
A160: =CONCATENATE(B160:B648," ",C160:C648) -> 3071262 40" 101cms touch screen monitor (Includes monitor stand / cabling) IN: HDMI Value from 7 to 18 days (Fair value) | B160: 3071262 | C160: 40" 101cms touch screen monitor (Includes monitor stand / cabling) IN: HDMI Value from 7 to 18 days (Fair value) | D160: =IF('FERIAS 3 DIAS'!G$3=TRUE,'FERIAS DE 4 A 6 DIAS'!E160/'FERIAS 3 DIAS'!I$3,'FERIAS DE 4 A 6 DIAS'!E160) -> 4847700 | E160: 4847700 | G160: 4073697.479
A161: =CONCATENATE(B161:B649," ",C161:C649) -> 3071284 Tablet tactile 7" RAM:1GB / Connectivity: 3G / Operating System Android 9.0 Value of event 1 day | B161: 3071284 | C161: Tablet tactile 7" RAM:1GB / Connectivity: 3G / Operating System Android 9.0 Value of event 1 day | D161: =IF('FERIAS 3 DIAS'!G$3=TRUE,'FERIAS DE 4 A 6 DIAS'!E161/'FERIAS 3 DIAS'!I$3,'FERIAS DE 4 A 6 DIAS'!E161) -> 50000 | E161: 50000 | G161: 42016.80672
A162: =CONCATENATE(B162:B650," ",C162:C650) -> 3071284 Tablet tactile 7" RAM:1GB / Connectivity: 3G / Operating System Android 9.0 Value of event 2 days (Value per day) | B162: 3071284 | C162: Tablet tactile 7" RAM:1GB / Connectivity: 3G / Operating System Android 9.0 Value of event 2 days (Value per day) | D162: =IF('FERIAS 3 DIAS'!G$3=TRUE,'FERIAS DE 4 A 6 DIAS'!E162/'FERIAS 3 DIAS'!I$3,'FERIAS DE 4 A 6 DIAS'!E162) -> 50000 | E162: 50000 | G162: 42016.80672
A163: =CONCATENATE(B163:B651," ",C163:C651) -> 3071284 Tablet tactile 7" RAM:1GB / Connectivity: 3G / Operating System Android 9.0 Value from 3 to 6 days (Day value) | B163: 3071284 | C163: Tablet tactile 7" RAM:1GB / Connectivity: 3G / Operating System Android 9.0 Value from 3 to 6 days (Day value) | D163: =IF('FERIAS 3 DIAS'!G$3=TRUE,'FERIAS DE 4 A 6 DIAS'!E163/'FERIAS 3 DIAS'!I$3,'FERIAS DE 4 A 6 DIAS'!E163) -> 46000 | E163: 46000 | G163: 38655.46218
A164: =CONCATENATE(B164:B652," ",C164:C652) -> 3071284 Tablet tactile 7" RAM:1GB / Connectivity: 3G / Operating System Android 9.0 Value from 7 to 18 days (Fair value) | B164: 3071284 | C164: Tablet tactile 7" RAM:1GB / Connectivity: 3G / Operating System Android 9.0 Value from 7 to 18 days (Fair value) | D164: =IF('FERIAS 3 DIAS'!G$3=TRUE,'FERIAS DE 4 A 6 DIAS'!E164/'FERIAS 3 DIAS'!I$3,'FERIAS DE 4 A 6 DIAS'!E164) -> 496800 | E164: 496800 | G164: 417478.9916
A165: =CONCATENATE(B165:B653," ",C165:C653) -> 3071265 Led Screen Full Hd Indoor / Size 3,20mts x 2,96mts / Pitch 3,9 / Includes floor to wall mounting structure. | B165: 3071265 | C165: Led Screen Full Hd Indoor / Size 3,20mts x 2,96mts / Pitch 3,9 / Includes floor to wall mounting structure. | D165: =IF('FERIAS 3 DIAS'!G$3=TRUE,'FERIAS DE 4 A 6 DIAS'!E165/'FERIAS 3 DIAS'!I$3,'FERIAS DE 4 A 6 DIAS'!E165) -> 1662336 | E165: 1662336 | G165: 1396921.008
A166: =CONCATENATE(B166:B654," ",C166:C654) -> 3071265 Led Screen Full Hd Indoor / Size 4,48mts x 3,20mts / Pitch 3,9 / Includes floor to wall mounting structure. | B166: 3071265 | C166: Led Screen Full Hd Indoor / Size 4,48mts x 3,20mts / Pitch 3,9 / Includes floor to wall mounting structure. | D166: =IF('FERIAS 3 DIAS'!G$3=TRUE,'FERIAS DE 4 A 6 DIAS'!E166/'FERIAS 3 DIAS'!I$3,'FERIAS DE 4 A 6 DIAS'!E166) -> 1662336 | E166: 1662336 | G166: 1396921.008
A167: =CONCATENATE(B167:B655," ",C167:C655) -> 3071265 Led Screen Full Hd Indoor / Size 6,4mts x 3,20mts /mts2: 20,48 / Pitch 3,9 / Includes floor to wall mounting structure. | B167: 3071265 | C167: Led Screen Full Hd Indoor / Size 6,4mts x 3,20mts /mts2: 20,48 / Pitch 3,9 / Includes floor to wall mounting structure. | D167: =IF('FERIAS 3 DIAS'!G$3=TRUE,'FERIAS DE 4 A 6 DIAS'!E167/'FERIAS 3 DIAS'!I$3,'FERIAS DE 4 A 6 DIAS'!E167) -> 1496064 | E167: 1496064 | G167: 1257196.639
A168: =CONCATENATE(B168:B656," ",C168:C656) -> 3071265 Led Screen Full Hd Indoor / Size 6,4mts x 4,48mts /mts2: 28,67 / Pitch 3,9 / Includes floor to wall mounting structure. | B168: 3071265 | C168: Led Screen Full Hd Indoor / Size 6,4mts x 4,48mts /mts2: 28,67 / Pitch 3,9 / Includes floor to wall mounting structure. | D168: =IF('FERIAS 3 DIAS'!G$3=TRUE,'FERIAS DE 4 A 6 DIAS'!E168/'FERIAS 3 DIAS'!I$3,'FERIAS DE 4 A 6 DIAS'!E168) -> 14067200 | E168: 14067200 | G168: 11821176.47
A169: =CONCATENATE(B169:B657," ",C169:C657) -> 3071267 Led Screen Full Hd Indoor / Size 7,4mts x 5,12mts /mts2: 36,04 / Pitch 3,9 / Includes floor to wall mounting structure. | B169: 3071267 | C169: Led Screen Full Hd Indoor / Size 7,4mts x 5,12mts /mts2: 36,04 / Pitch 3,9 / Includes floor to wall mounting structure. | D169: =IF('FERIAS 3 DIAS'!G$3=TRUE,'FERIAS DE 4 A 6 DIAS'!E169/'FERIAS 3 DIAS'!I$3,'FERIAS DE 4 A 6 DIAS'!E169) -> 1926272 | E169: 1926272 | G169: 1618715.966
A170: =CONCATENATE(B170:B658," ",C170:C658) -> 3071267 Led Screen Full Hd Indoor / Size 8,32mts x 6,40mts /mts2: 53,25 / Pitch 3,9 / Includes floor to wall mounting structure. | B170: 3071267 | C170: Led Screen Full Hd Indoor / Size 8,32mts x 6,40mts /mts2: 53,25 / Pitch 3,9 / Includes floor to wall mounting structure. | D170: =IF('FERIAS 3 DIAS'!G$3=TRUE,'FERIAS DE 4 A 6 DIAS'!E170/'FERIAS 3 DIAS'!I$3,'FERIAS DE 4 A 6 DIAS'!E170) -> 1926272 | E170: 1926272 | G170: 1618715.966
A171: =CONCATENATE(B171:B659," ",C171:C659) -> 3071267 Led Screen Full Hd Indoor / Size 4,48mts x 3,20mts / Pitch 3,9 / Includes floor to wall mounting structure Value from 3 to 6 days (Day value) | B171: 3071267 | C171: Led Screen Full Hd Indoor / Size 4,48mts x 3,20mts / Pitch 3,9 / Includes floor to wall mounting structure Value from 3 to 6 days (Day value) | D171: =IF('FERIAS 3 DIAS'!G$3=TRUE,'FERIAS DE 4 A 6 DIAS'!E171/'FERIAS 3 DIAS'!I$3,'FERIAS DE 4 A 6 DIAS'!E171) -> 1733632 | E171: 1733632 | G171: 1456833.613
A172: =CONCATENATE(B172:B660," ",C172:C660) -> 3071267 Led Screen Full Hd Indoor / Size 4,48mts x 3,20mts / Pitch 3,9 / Includes floor to wall mounting structure Value from 7 to 18 days (Fair value) | B172: 3071267 | C172: Led Screen Full Hd Indoor / Size 4,48mts x 3,20mts / Pitch 3,9 / Includes floor to wall mounting structure Value from 7 to 18 days (Fair value) | D172: =IF('FERIAS 3 DIAS'!G$3=TRUE,'FERIAS DE 4 A 6 DIAS'!E172/'FERIAS 3 DIAS'!I$3,'FERIAS DE 4 A 6 DIAS'!E172) -> 20284032 | E172: 20284032 | G172: 17045405.04
A173: =CONCATENATE(B173:B661," ",C173:C661) -> 3071268 Led Screen Full Hd Indoor / Size 6,4mts x 3,20mts /mts2: 20,48 / Pitch 3,9 / Includes floor to wall mounting structure Value of event 1 day | B173: 3071268 | C173: Led Screen Full Hd Indoor / Size 6,4mts x 3,20mts /mts2: 20,48 / Pitch 3,9 / Includes floor to wall mounting structure Value of event 1 day | D173: =IF('FERIAS 3 DIAS'!G$3=TRUE,'FERIAS DE 4 A 6 DIAS'!E173/'FERIAS 3 DIAS'!I$3,'FERIAS DE 4 A 6 DIAS'!E173) -> 2287360 | E173: 2287360 | G173: 1922151.261
A174: =CONCATENATE(B174:B662," ",C174:C662) -> 3071268 Led Screen Full Hd Indoor / Size 6,4mts x 3,20mts /mts2: 20,48 / Pitch 3,9 / Includes floor to wall mounting structure Value of event 2 days (Value per day) | B174: 3071268 | C174: Led Screen Full Hd Indoor / Size 6,4mts x 3,20mts /mts2: 20,48 / Pitch 3,9 / Includes floor to wall mounting structure Value of event 2 days (Value per day) | D174: =IF('FERIAS 3 DIAS'!G$3=TRUE,'FERIAS DE 4 A 6 DIAS'!E174/'FERIAS 3 DIAS'!I$3,'FERIAS DE 4 A 6 DIAS'!E174) -> 2287360 | E174: 2287360 | G174: 1922151.261
A175: =CONCATENATE(B175:B663," ",C175:C663) -> 3071268 Led Screen Full Hd Indoor / Size 6,4mts x 3,20mts /mts2: 20,48 / Pitch 3,9 / Includes floor to wall mounting structure Value from 3 to 6 days (Day value) | B175: 3071268 | C175: Led Screen Full Hd Indoor / Size 6,4mts x 3,20mts /mts2: 20,48 / Pitch 3,9 / Includes floor to wall mounting structure Value from 3 to 6 days (Day value) | D175: =IF('FERIAS 3 DIAS'!G$3=TRUE,'FERIAS DE 4 A 6 DIAS'!E175/'FERIAS 3 DIAS'!I$3,'FERIAS DE 4 A 6 DIAS'!E175) -> 2071680 | E175: 2071680 | G175: 1740907.563
A176: =CONCATENATE(B176:B664," ",C176:C664) -> 3071268 Led Screen Full Hd Indoor / Size 6,4mts x 3,20mts /mts2: 20,48 / Pitch 3,9 / Includes floor to wall mounting structure Value from 7 to 18 days (Fair value) | B176: 3071268 | C176: Led Screen Full Hd Indoor / Size 6,4mts x 3,20mts /mts2: 20,48 / Pitch 3,9 / Includes floor to wall mounting structure Value from 7 to 18 days (Fair value) | D176: =IF('FERIAS 3 DIAS'!G$3=TRUE,'FERIAS DE 4 A 6 DIAS'!E176/'FERIAS 3 DIAS'!I$3,'FERIAS DE 4 A 6 DIAS'!E176) -> 14796416 | E176: 14796416 | G176: 12433963.03
A177: =CONCATENATE(B177:B657," ",C177:C657) -> 3071264 Led Screen Full Hd Indoor / Size 6,4mts x 4,48mts /mts2: 28,67 / Pitch 3,9 / Includes floor to wall mounting structure Value of event 1 day | B177: 3071264 | C177: Led Screen Full Hd Indoor / Size 6,4mts x 4,48mts /mts2: 28,67 / Pitch 3,9 / Includes floor to wall mounting structure Value of event 1 day | D177: =IF('FERIAS 3 DIAS'!G$3=TRUE,'FERIAS DE 4 A 6 DIAS'!E177/'FERIAS 3 DIAS'!I$3,'FERIAS DE 4 A 6 DIAS'!E177) -> 3049728 | E177: 3049728 | G177: 2562796.639
A178: =CONCATENATE(B178:B658," ",C178:C658) -> 3071264 Led Screen Full Hd Indoor / Size 6,4mts x 4,48mts /mts2: 28,67 / Pitch 3,9 / Includes floor to wall mounting structure Value of event 2 days (Value per day) | B178: 3071264 | C178: Led Screen Full Hd Indoor / Size 6,4mts x 4,48mts /mts2: 28,67 / Pitch 3,9 / Includes floor to wall mounting structure Value of event 2 days (Value per day) | D178: =IF('FERIAS 3 DIAS'!G$3=TRUE,'FERIAS DE 4 A 6 DIAS'!E178/'FERIAS 3 DIAS'!I$3,'FERIAS DE 4 A 6 DIAS'!E178) -> 3049728 | E178: 3049728 | G178: 2562796.639
A179: =CONCATENATE(B179:B659," ",C179:C659) -> 3071264 Led Screen Full Hd Indoor / Size 6,4mts x 4,48mts /mts2: 28,67 / Pitch 3,9 / Includes floor to wall mounting structure Value from 3 to 6 days (Day value) | B179: 3071264 | C179: Led Screen Full Hd Indoor / Size 6,4mts x 4,48mts /mts2: 28,67 / Pitch 3,9 / Includes floor to wall mounting structure Value from 3 to 6 days (Day value) | D179: =IF('FERIAS 3 DIAS'!G$3=TRUE,'FERIAS DE 4 A 6 DIAS'!E179/'FERIAS 3 DIAS'!I$3,'FERIAS DE 4 A 6 DIAS'!E179) -> 2761984 | E179: 2761984 | G179: 2320994.958
A180: =CONCATENATE(B180:B660," ",C180:C660) -> 3071264 Led Screen Full Hd Indoor / Size 6,4mts x 4,48mts /mts2: 28,67 / Pitch 3,9 / Includes floor to wall mounting structure Value from 7 to 18 days (Fair value) | B180: 3071264 | C180: Led Screen Full Hd Indoor / Size 6,4mts x 4,48mts /mts2: 28,67 / Pitch 3,9 / Includes floor to wall mounting structure Value from 7 to 18 days (Fair value) | D180: =IF('FERIAS 3 DIAS'!G$3=TRUE,'FERIAS DE 4 A 6 DIAS'!E180/'FERIAS 3 DIAS'!I$3,'FERIAS DE 4 A 6 DIAS'!E180) -> 19728512 | E180: 19728512 | G180: 16578581.51
A181: =CONCATENATE(B181:B661," ",C181:C661) -> 3071265 Led Screen Full Hd Indoor / Size 7,4mts x 5,12mts /mts2: 36,04 / Pitch 3,9 / Includes floor to wall mounting structure.Value of event 1 day | B181: 3071265 | C181: Led Screen Full Hd Indoor / Size 7,4mts x 5,12mts /mts2: 36,04 / Pitch 3,9 / Includes floor to wall mounting structure.Value of event 1 day | D181: =IF('FERIAS 3 DIAS'!G$3=TRUE,'FERIAS DE 4 A 6 DIAS'!E181/'FERIAS 3 DIAS'!I$3,'FERIAS DE 4 A 6 DIAS'!E181) -> 4447488 | E181: 4447488 | G181: 3737384.874
A182: =CONCATENATE(B182:B662," ",C182:C662) -> 3071265 Led Screen Full Hd Indoor / Size 7,4mts x 5,12mts /mts2: 36,04 / Pitch 3,9 / Includes floor to wall mounting structure. Value of event 2 days (Value per day) | B182: 3071265 | C182: Led Screen Full Hd Indoor / Size 7,4mts x 5,12mts /mts2: 36,04 / Pitch 3,9 / Includes floor to wall mounting structure. Value of event 2 days (Value per day) | D182: =IF('FERIAS 3 DIAS'!G$3=TRUE,'FERIAS DE 4 A 6 DIAS'!E182/'FERIAS 3 DIAS'!I$3,'FERIAS DE 4 A 6 DIAS'!E182) -> 4447488 | E182: 4447488 | G182: 3737384.874
A183: =CONCATENATE(B183:B663," ",C183:C663) -> 3071265 Led Screen Full Hd Indoor / Size 7,4mts x 5,12mts /mts2: 36,04 / Pitch 3,9 / Includes floor to wall mounting structure. Value from 3 to 6 days (Day value) | B183: 3071265 | C183: Led Screen Full Hd Indoor / Size 7,4mts x 5,12mts /mts2: 36,04 / Pitch 3,9 / Includes floor to wall mounting structure. Value from 3 to 6 days (Day value) | D183: =IF('FERIAS 3 DIAS'!G$3=TRUE,'FERIAS DE 4 A 6 DIAS'!E183/'FERIAS 3 DIAS'!I$3,'FERIAS DE 4 A 6 DIAS'!E183) -> 4027904 | E183: 4027904 | G183: 3384793.277
A184: =CONCATENATE(B184:B664," ",C184:C664) -> 3071265 Led Screen Full Hd Indoor / Size 7,4mts x 5,12mts /mts2: 36,04 / Pitch 3,9 / Includes floor to wall mounting structure. Value from 7 to 18 days (Fair value) | B184: 3071265 | C184: Led Screen Full Hd Indoor / Size 7,4mts x 5,12mts /mts2: 36,04 / Pitch 3,9 / Includes floor to wall mounting structure. Value from 7 to 18 days (Fair value) | D184: =IF('FERIAS 3 DIAS'!G$3=TRUE,'FERIAS DE 4 A 6 DIAS'!E184/'FERIAS 3 DIAS'!I$3,'FERIAS DE 4 A 6 DIAS'!E184) -> 28770688 | E184: 28770688 | G184: 24177048.74
A185: =CONCATENATE(B185:B665," ",C185:C665) -> 3071266 Led Screen Full Hd Indoor / Size 8,32mts x 6,40mts /mts2: 53,25 / Pitch 3,9 / Includes floor to wall mounting structure Value of event 1 day | B185: 3071266 | C185: Led Screen Full Hd Indoor / Size 8,32mts x 6,40mts /mts2: 53,25 / Pitch 3,9 / Includes floor to wall mounting structure Value of event 1 day | D185: =IF('FERIAS 3 DIAS'!G$3=TRUE,'FERIAS DE 4 A 6 DIAS'!E185/'FERIAS 3 DIAS'!I$3,'FERIAS DE 4 A 6 DIAS'!E185) -> 6099456 | E185: 6099456 | G185: 5125593.277
A186: =CONCATENATE(B186:B666," ",C186:C666) -> 3071266 Led Screen Full Hd Indoor / Size 8,32mts x 6,40mts /mts2: 53,25 / Pitch 3,9 / Includes floor to wall mounting structure Value of event 2 days (Value per day) | B186: 3071266 | C186: Led Screen Full Hd Indoor / Size 8,32mts x 6,40mts /mts2: 53,25 / Pitch 3,9 / Includes floor to wall mounting structure Value of event 2 days (Value per day) | D186: =IF('FERIAS 3 DIAS'!G$3=TRUE,'FERIAS DE 4 A 6 DIAS'!E186/'FERIAS 3 DIAS'!I$3,'FERIAS DE 4 A 6 DIAS'!E186) -> 6099456 | E186: 6099456 | G186: 5125593.277
A187: =CONCATENATE(B187:B667," ",C187:C667) -> 3071266 Led Screen Full Hd Indoor / Size 8,32mts x 6,40mts /mts2: 53,25 / Pitch 3,9 / Includes floor to wall mounting structure Value from 3 to 6 days (Day value) | B187: 3071266 | C187: Led Screen Full Hd Indoor / Size 8,32mts x 6,40mts /mts2: 53,25 / Pitch 3,9 / Includes floor to wall mounting structure Value from 3 to 6 days (Day value) | D187: =IF('FERIAS 3 DIAS'!G$3=TRUE,'FERIAS DE 4 A 6 DIAS'!E187/'FERIAS 3 DIAS'!I$3,'FERIAS DE 4 A 6 DIAS'!E187) -> 5524224 | E187: 5524224 | G187: 4642205.042
A188: =CONCATENATE(B188:B668," ",C188:C668) -> 3071266 Led Screen Full Hd Indoor / Size 8,32mts x 6,40mts /mts2: 53,25 / Pitch 3,9 / Includes floor to wall mounting structure Value from 7 to 18 days (Fair value) | B188: 3071266 | C188: Led Screen Full Hd Indoor / Size 8,32mts x 6,40mts /mts2: 53,25 / Pitch 3,9 / Includes floor to wall mounting structure Value from 7 to 18 days (Fair value) | D188: =IF('FERIAS 3 DIAS'!G$3=TRUE,'FERIAS DE 4 A 6 DIAS'!E188/'FERIAS 3 DIAS'!I$3,'FERIAS DE 4 A 6 DIAS'!E188) -> 39457024 | E188: 39457024 | G188: 33157163.03
A189: =CONCATENATE(B189:B669," ",C189:C669) -> 3071267 Led Screen Full Hd Outdoor / Size 6,4mts x 4,48mts /mts2: 28,67 / Pitch 4,8 / Does not include mounting structure. Value of event 1 day | B189: 3071267 | C189: Led Screen Full Hd Outdoor / Size 6,4mts x 4,48mts /mts2: 28,67 / Pitch 4,8 / Does not include mounting structure. Value of event 1 day | D189: =IF('FERIAS 3 DIAS'!G$3=TRUE,'FERIAS DE 4 A 6 DIAS'!E189/'FERIAS 3 DIAS'!I$3,'FERIAS DE 4 A 6 DIAS'!E189) -> 3049728 | E189: 3049728 | G189: 2562796.639
A190: =CONCATENATE(B190:B670," ",C190:C670) -> 3071267 Led Screen Full Hd Outdoor / Size 6,4mts x 4,48mts /mts2: 28,67 / Pitch 4,8 / Does not include mounting structure. Value of event 2 days (Value per day) | B190: 3071267 | C190: Led Screen Full Hd Outdoor / Size 6,4mts x 4,48mts /mts2: 28,67 / Pitch 4,8 / Does not include mounting structure. Value of event 2 days (Value per day) | D190: =IF('FERIAS 3 DIAS'!G$3=TRUE,'FERIAS DE 4 A 6 DIAS'!E190/'FERIAS 3 DIAS'!I$3,'FERIAS DE 4 A 6 DIAS'!E190) -> 3049728 | E190: 3049728 | G190: 2562796.639
A191: =CONCATENATE(B191:B671," ",C191:C671) -> 3071267 Led Screen Full Hd Outdoor / Size 6,4mts x 4,48mts /mts2: 28,67 / Pitch 4,8 / Does not include mounting structure. Value from 3 to 6 days (Day value) | B191: 3071267 | C191: Led Screen Full Hd Outdoor / Size 6,4mts x 4,48mts /mts2: 28,67 / Pitch 4,8 / Does not include mounting structure. Value from 3 to 6 days (Day value) | D191: =IF('FERIAS 3 DIAS'!G$3=TRUE,'FERIAS DE 4 A 6 DIAS'!E191/'FERIAS 3 DIAS'!I$3,'FERIAS DE 4 A 6 DIAS'!E191) -> 2760320 | E191: 2760320 | G191: 2319596.639
A192: =CONCATENATE(B192:B672," ",C192:C672) -> 3071267 Led Screen Full Hd Outdoor / Size 6,4mts x 4,48mts /mts2: 28,67 / Pitch 4,8 / Does not include mounting structure. Value from 7 to 18 days (Fair value) | B192: 3071267 | C192: Led Screen Full Hd Outdoor / Size 6,4mts x 4,48mts /mts2: 28,67 / Pitch 4,8 / Does not include mounting structure. Value from 7 to 18 days (Fair value) | D192: =IF('FERIAS 3 DIAS'!G$3=TRUE,'FERIAS DE 4 A 6 DIAS'!E192/'FERIAS 3 DIAS'!I$3,'FERIAS DE 4 A 6 DIAS'!E192) -> 19715072 | E192: 19715072 | G192: 16567287.39
A193: =CONCATENATE(B193:B673," ",C193:C673) -> 3071268 Led Screen Full Hd Outdoor / Size 7,4mts x 5,12mts /mts2: 36,04/ Pitch 4,8 / Does not include mounting structure. Value of event 1 day | B193: 3071268 | C193: Led Screen Full Hd Outdoor / Size 7,4mts x 5,12mts /mts2: 36,04/ Pitch 4,8 / Does not include mounting structure. Value of event 1 day | D193: =IF('FERIAS 3 DIAS'!G$3=TRUE,'FERIAS DE 4 A 6 DIAS'!E193/'FERIAS 3 DIAS'!I$3,'FERIAS DE 4 A 6 DIAS'!E193) -> 4447488 | E193: 4447488 | G193: 3737384.874
A194: =CONCATENATE(B194:B674," ",C194:C674) -> 3071268 Led Screen Full Hd Outdoor / Size 7,4mts x 5,12mts /mts2: 36,04/ Pitch 4,8 / Does not include mounting structure. Value of event 2 days (Value per day) | B194: 3071268 | C194: Led Screen Full Hd Outdoor / Size 7,4mts x 5,12mts /mts2: 36,04/ Pitch 4,8 / Does not include mounting structure. Value of event 2 days (Value per day) | D194: =IF('FERIAS 3 DIAS'!G$3=TRUE,'FERIAS DE 4 A 6 DIAS'!E194/'FERIAS 3 DIAS'!I$3,'FERIAS DE 4 A 6 DIAS'!E194) -> 4447488 | E194: 4447488 | G194: 3737384.874
A195: =CONCATENATE(B195:B675," ",C195:C675) -> 3071268 Led Screen Full Hd Outdoor / Size 7,4mts x 5,12mts /mts2: 36,04/ Pitch 4,8 / Does not include mounting structure. Value from 3 to 6 days (Day value) | B195: 3071268 | C195: Led Screen Full Hd Outdoor / Size 7,4mts x 5,12mts /mts2: 36,04/ Pitch 4,8 / Does not include mounting structure. Value from 3 to 6 days (Day value) | D195: =IF('FERIAS 3 DIAS'!G$3=TRUE,'FERIAS DE 4 A 6 DIAS'!E195/'FERIAS 3 DIAS'!I$3,'FERIAS DE 4 A 6 DIAS'!E195) -> 4025216 | E195: 4025216 | G195: 3382534.454
A196: =CONCATENATE(B196:B676," ",C196:C676) -> 3071268 Led Screen Full Hd Outdoor / Size 7,4mts x 5,12mts /mts2: 36,04/ Pitch 4,8 / Does not include mounting structure. Value from 7 to 18 days (Fair value) | B196: 3071268 | C196: Led Screen Full Hd Outdoor / Size 7,4mts x 5,12mts /mts2: 36,04/ Pitch 4,8 / Does not include mounting structure. Value from 7 to 18 days (Fair value) | D196: =IF('FERIAS 3 DIAS'!G$3=TRUE,'FERIAS DE 4 A 6 DIAS'!E196/'FERIAS 3 DIAS'!I$3,'FERIAS DE 4 A 6 DIAS'!E196) -> 28750976 | E196: 28750976 | G196: 24160484.03
A197: =CONCATENATE(B197:B677," ",C197:C677) -> 3071269 Led Screen Full Hd Outdoor / Measure 8,32mts x 6,40mts /mts2: 53,25/ Pitch 4,8 / Does not include structure for assembly Value of event 1 day | B197: 3071269 | C197: Led Screen Full Hd Outdoor / Measure 8,32mts x 6,40mts /mts2: 53,25/ Pitch 4,8 / Does not include structure for assembly Value of event 1 day | D197: =IF('FERIAS 3 DIAS'!G$3=TRUE,'FERIAS DE 4 A 6 DIAS'!E197/'FERIAS 3 DIAS'!I$3,'FERIAS DE 4 A 6 DIAS'!E197) -> 6099456 | E197: 6099456 | G197: 5125593.277
A198: =CONCATENATE(B198:B678," ",C198:C678) -> 3071269 Led Screen Full Hd Outdoor / Measure 8,32mts x 6,40mts /mts2: 53,25/ Pitch 4,8 / Does not include structure for assembly Value of event 2 days (Value per day) | B198: 3071269 | C198: Led Screen Full Hd Outdoor / Measure 8,32mts x 6,40mts /mts2: 53,25/ Pitch 4,8 / Does not include structure for assembly Value of event 2 days (Value per day) | D198: =IF('FERIAS 3 DIAS'!G$3=TRUE,'FERIAS DE 4 A 6 DIAS'!E198/'FERIAS 3 DIAS'!I$3,'FERIAS DE 4 A 6 DIAS'!E198) -> 6099456 | E198: 6099456 | G198: 5125593.277
A199: =CONCATENATE(B199:B679," ",C199:C679) -> 3071269 Led Screen Full Hd Outdoor / Measure 8,32mts x 6,40mts /mts2: 53,25/ Pitch 4,8 / Does not include structure for assembly Value from 3 to 6 days (Day value) | B199: 3071269 | C199: Led Screen Full Hd Outdoor / Measure 8,32mts x 6,40mts /mts2: 53,25/ Pitch 4,8 / Does not include structure for assembly Value from 3 to 6 days (Day value) | D199: =IF('FERIAS 3 DIAS'!G$3=TRUE,'FERIAS DE 4 A 6 DIAS'!E199/'FERIAS 3 DIAS'!I$3,'FERIAS DE 4 A 6 DIAS'!E199) -> 5520384 | E199: 5520384 | G199: 4638978.151
A200: =CONCATENATE(B200:B680," ",C200:C680) -> 3071269 Led Screen Full Hd Outdoor / Measure 8,32mts x 6,40mts /mts2: 53,25/ Pitch 4,8 / Does not include structure for assembly Value from 7 to 18 days (Fair value) | B200: 3071269 | C200: Led Screen Full Hd Outdoor / Measure 8,32mts x 6,40mts /mts2: 53,25/ Pitch 4,8 / Does not include structure for assembly Value from 7 to 18 days (Fair value) | D200: =IF('FERIAS 3 DIAS'!G$3=TRUE,'FERIAS DE 4 A 6 DIAS'!E200/'FERIAS 3 DIAS'!I$3,'FERIAS DE 4 A 6 DIAS'!E200) -> 39429760 | E200: 39429760 | G200: 33134252.1
... 259 more rows

Sheet FERIAS DE 7 A 11 DIAS (hidden)
A1: CLAVE | B1: CODIGO | C1: DESCRIPCIÓN | D1: FORMULA | E1: VALOR
A2: =CONCATENATE(B2:B464," ",C2:C464) -> 3070101 Single-phase installation (Double three-pronged outlet up to 2KW consumption/110V) Rate per 7 to 11 days | B2: 3070101 | C2: =CONCATENATE(K2,"",$I$2) -> Single-phase installation (Double three-pronged outlet up to 2KW consumption/110V) Rate per 7 to 11 days | D2: =IF('FERIAS 3 DIAS'!G$3=TRUE,'FERIAS DE 7 A 11 DIAS'!E2/'FERIAS 3 DIAS'!I$3,E2) -> 370000 | E2: 370000 | G2: =E2/1.19 -> 310924.3697 | I2: Rate per 7 to 11 days | K2: Single-phase installation (Double three-pronged outlet up to 2KW consumption/110V)
A3: =CONCATENATE(B3:B465," ",C3:C465) -> 3070103 Additional Single-phase kilowatts (Requires a main connection MAX 2KW by connection) Rate per 7 to 11 days | B3: 3070103 | C3: =CONCATENATE(K3,"",$I$2) -> Additional Single-phase kilowatts (Requires a main connection MAX 2KW by connection) Rate per 7 to 11 days | D3: =IF('FERIAS 3 DIAS'!G$3=TRUE,'FERIAS DE 7 A 11 DIAS'!E3/'FERIAS 3 DIAS'!I$3,E3) -> 187000 | E3: 187000 | G3: =E3/1.19 -> 157142.8571 | K3: Additional Single-phase kilowatts (Requires a main connection MAX 2KW by connection)
A4: =CONCATENATE(B4:B466," ",C4:C466) -> 3070102 Three-phase installation ( Plastic strip up to 4KW consumption/208V) Rate per 7 to 11 days | B4: 3070102 | C4: Three-phase installation ( Plastic strip up to 4KW consumption/208V) Rate per 7 to 11 days | D4: =IF('FERIAS 3 DIAS'!G$3=TRUE,'FERIAS DE 7 A 11 DIAS'!E4/'FERIAS 3 DIAS'!I$3,E4) -> 640000 | E4: 640000 | G4: 537815.1261 | K4: Three-phase installation ( Plastic strip up to 4KW consumption/208V)
A5: =CONCATENATE(B5:B467," ",C5:C467) -> 3070104 AdditionalThree-phase kilowatts (Requires a main connection) Rate per 7 to 11 days | B5: 3070104 | C5: AdditionalThree-phase kilowatts (Requires a main connection) Rate per 7 to 11 days | D5: =IF('FERIAS 3 DIAS'!G$3=TRUE,'FERIAS DE 7 A 11 DIAS'!E5/'FERIAS 3 DIAS'!I$3,E5) -> 205000 | E5: 205000 | G5: 172268.9076 | K5: AdditionalThree-phase kilowatts (Requires a main connection)
A6: =CONCATENATE(B6:B468," ",C6:C468) -> 3071372 21 to 50 additional Three-phase kilowatts (Rate per KW) (Requires a main connection) Rate per 7 to 11 days | B6: 3071372 | C6: 21 to 50 additional Three-phase kilowatts (Rate per KW) (Requires a main connection) Rate per 7 to 11 days | D6: =IF('FERIAS 3 DIAS'!G$3=TRUE,'FERIAS DE 7 A 11 DIAS'!E6/'FERIAS 3 DIAS'!I$3,E6) -> 185000 | E6: 185000 | G6: 155462.1849 | K6: 21 to 50 additional Three-phase kilowatts (Rate per KW) (Requires a main connection)
A7: =CONCATENATE(B7:B469," ",C7:C469) -> 3071373 51 to 100 additionalThree-phase kilowatts (Rate per KW) (Requires a main connection) Rate per 7 to 11 days | B7: 3071373 | C7: 51 to 100 additionalThree-phase kilowatts (Rate per KW) (Requires a main connection) Rate per 7 to 11 days | D7: =IF('FERIAS 3 DIAS'!G$3=TRUE,'FERIAS DE 7 A 11 DIAS'!E7/'FERIAS 3 DIAS'!I$3,E7) -> 176000 | E7: 176000 | G7: 147899.1597 | K7: 51 to 100 additionalThree-phase kilowatts (Rate per KW) (Requires a main connection)
A8: =CONCATENATE(B8:B470," ",C8:C470) -> 3071374 More than 100 additional Three-phase kilowatts (Rate per KW) (Requires a main connection) Rate per 7 to 11 days | B8: 3071374 | C8: More than 100 additional Three-phase kilowatts (Rate per KW) (Requires a main connection) Rate per 7 to 11 days | D8: =IF('FERIAS 3 DIAS'!G$3=TRUE,'FERIAS DE 7 A 11 DIAS'!E8/'FERIAS 3 DIAS'!I$3,E8) -> 124000 | E8: 124000 | G8: 104201.6807 | K8: More than 100 additional Three-phase kilowatts (Rate per KW) (Requires a main connection)
A9: =CONCATENATE(B9:B471," ",C9:C471) -> 3070402 Adjustable spotlight arm (150W/110V) Rate per 7 to 11 days | B9: 3070402 | C9: Adjustable spotlight arm (150W/110V) Rate per 7 to 11 days | D9: =IF('FERIAS 3 DIAS'!G$3=TRUE,'FERIAS DE 7 A 11 DIAS'!E9/'FERIAS 3 DIAS'!I$3,E9) -> 65000 | E9: 65000 | G9: 54621.84874 | K9: Adjustable spotlight arm (150W/110V)
A10: =CONCATENATE(B10:B472," ",C10:C472) -> 3070405 LED Reflector (50W- mltV) Rate per 7 to 11 days | B10: 3070405 | C10: LED Reflector (50W- mltV) Rate per 7 to 11 days | D10: =IF('FERIAS 3 DIAS'!G$3=TRUE,'FERIAS DE 7 A 11 DIAS'!E10/'FERIAS 3 DIAS'!I$3,E10) -> 69000 | E10: 69000 | G10: 57983.19328 | K10: LED Reflector (50W- mltV)
A11: =CONCATENATE(B11:B473," ",C11:C473) -> 3070403 Extension cord – Double three-pronged outlet (1500W/110V)Max 6mts, Requires a main connection. Does not include electricity. Rate per 7 to 11 days | B11: 3070403 | C11: Extension cord – Double three-pronged outlet (1500W/110V)Max 6mts, Requires a main connection. Does not include electricity. Rate per 7 to 11 days | D11: =IF('FERIAS 3 DIAS'!G$3=TRUE,'FERIAS DE 7 A 11 DIAS'!E11/'FERIAS 3 DIAS'!I$3,E11) -> 38000 | E11: 38000 | G11: 31932.77311 | K11: Extension cord – Double three-pronged outlet (1500W/110V)Max 6mts, Requires a main connection. Does not include electricity.
A12: =CONCATENATE(B12:B474," ",C12:C474) -> 3071345 Sink 90cm x 60cm x 90cm (Does not include water supply or drain connection) Rate per 7 to 11 days | B12: 3071345 | C12: Sink 90cm x 60cm x 90cm (Does not include water supply or drain connection) Rate per 7 to 11 days | D12: =IF('FERIAS 3 DIAS'!G$3=TRUE,'FERIAS DE 7 A 11 DIAS'!E12/'FERIAS 3 DIAS'!I$3,E12) -> 153000 | E12: 153000 | G12: 128571.4286 | K12: Sink 90cm x 60cm x 90cm (Does not include water supply or drain connection)
A13: =CONCATENATE(B13:B475," ",C13:C475) -> 3070301 1/2" Water supply (Consumption included) Rate per 7 to 11 days | B13: 3070301 | C13: 1/2" Water supply (Consumption included) Rate per 7 to 11 days | D13: =IF('FERIAS 3 DIAS'!G$3=TRUE,'FERIAS DE 7 A 11 DIAS'!E13/'FERIAS 3 DIAS'!I$3,E13) -> 438000 | E13: 438000 | G13: 368067.2269 | K13: 1/2" Water supply (Consumption included)
A14: =CONCATENATE(B14:B476," ",C14:C476) -> 3070302 1/2" Drain connection (Location determined by Corferias on your booth) Rate per 7 to 11 days | B14: 3070302 | C14: 1/2" Drain connection (Location determined by Corferias on your booth) Rate per 7 to 11 days | D14: =IF('FERIAS 3 DIAS'!G$3=TRUE,'FERIAS DE 7 A 11 DIAS'!E14/'FERIAS 3 DIAS'!I$3,E14) -> 385000 | E14: 385000 | G14: 323529.4118 | K14: 1/2" Drain connection (Location determined by Corferias on your booth)
A15: =CONCATENATE(B15:B477," ",C15:C477) -> 3071341 Compressed air connection. Max pressure: 100 PSI, Max flow: 35CFM. Rate per 7 to 11 days | B15: 3071341 | C15: Compressed air connection. Max pressure: 100 PSI, Max flow: 35CFM. Rate per 7 to 11 days | D15: =IF('FERIAS 3 DIAS'!G$3=TRUE,'FERIAS DE 7 A 11 DIAS'!E15/'FERIAS 3 DIAS'!I$3,E15) -> 538000 | E15: 538000 | G15: 452100.8403 | K15: Compressed air connection. Max pressure: 100 PSI, Max flow: 35CFM.
A16: =CONCATENATE(B16:B478," ",C16:C478) -> 3070307 1/2" Water supply (consumption included) + 1/2" Drain + Sink. Rate per 7 to 11 days | B16: 3070307 | C16: 1/2" Water supply (consumption included) + 1/2" Drain + Sink. Rate per 7 to 11 days | D16: =IF('FERIAS 3 DIAS'!G$3=TRUE,'FERIAS DE 7 A 11 DIAS'!E16/'FERIAS 3 DIAS'!I$3,E16) -> 879000 | E16: 879000 | G16: 738655.4622 | K16: 1/2" Water supply (consumption included) + 1/2" Drain + Sink.
A17: =CONCATENATE(B17:B479," ",C17:C479) -> 3071321 Installation of ONE (1) propane gas point per ONE (1) Equipment (Includes materials and labor) (Does not include gas consumption) Rate per 7 to 11 days | B17: 3071321 | C17: Installation of ONE (1) propane gas point per ONE (1) Equipment (Includes materials and labor) (Does not include gas consumption) Rate per 7 to 11 days | D17: =IF('FERIAS 3 DIAS'!G$3=TRUE,'FERIAS DE 7 A 11 DIAS'!E17/'FERIAS 3 DIAS'!I$3,E17) -> 180000 | E17: 180000 | G17: 151260.5042 | K17: Installation of ONE (1) propane gas point per ONE (1) Equipment (Includes materials and labor) (Does not include gas consumption)
A18: =CONCATENATE(B18:B480," ",C18:C480) -> 3070601 Additional CFE System panel 100cm x 240cm | B18: 3070601 | C18: Additional CFE System panel 100cm x 240cm | D18: =IF('FERIAS 3 DIAS'!G$3=TRUE,'FERIAS DE 7 A 11 DIAS'!E18/'FERIAS 3 DIAS'!I$3,E18) -> 38000 | E18: 38000 | G18: 31932.77311
A19: =CONCATENATE(B19:B481," ",C19:C481) -> 3070801 CFE System door 90cm x 240cm | B19: 3070801 | C19: CFE System door 90cm x 240cm | D19: =IF('FERIAS 3 DIAS'!G$3=TRUE,'FERIAS DE 7 A 11 DIAS'!E19/'FERIAS 3 DIAS'!I$3,E19) -> 93000 | E19: 93000 | G19: 78151.2605
A20: =CONCATENATE(B20:B482," ",C20:C482) -> 3070803 Standard storage with door 150cm x 150cm ( Corferias System) | B20: 3070803 | C20: Standard storage with door 150cm x 150cm ( Corferias System) | D20: =IF('FERIAS 3 DIAS'!G$3=TRUE,'FERIAS DE 7 A 11 DIAS'!E20/'FERIAS 3 DIAS'!I$3,E20) -> 148000 | E20: 148000 | G20: 124369.7479
A21: =CONCATENATE(B21:B483," ",C21:C483) -> 3071319 Articulating boom lift - 15 min fraction (Only for first levels) | B21: 3071319 | C21: Articulating boom lift - 15 min fraction (Only for first levels) | D21: =IF('FERIAS 3 DIAS'!G$3=TRUE,'FERIAS DE 7 A 11 DIAS'!E21/'FERIAS 3 DIAS'!I$3,E21) -> 71700 | E21: 71700 | G21: 60252.10084
A22: =CONCATENATE(B22:B484," ",C22:C484) -> 3071319 Articulating boom lift - 30 min fraction (Only for first levels) | B22: 3071319 | C22: Articulating boom lift - 30 min fraction (Only for first levels) | D22: =IF('FERIAS 3 DIAS'!G$3=TRUE,'FERIAS DE 7 A 11 DIAS'!E22/'FERIAS 3 DIAS'!I$3,E22) -> 122600 | E22: 122600 | G22: 103025.2101
A23: =CONCATENATE(B23:B486," ",C23:C486) -> 3071319 Articulating boom lift - 60 min fraction (Only for first levels) | B23: 3071319 | C23: Articulating boom lift - 60 min fraction (Only for first levels) | D23: =IF('FERIAS 3 DIAS'!G$3=TRUE,'FERIAS DE 7 A 11 DIAS'!E23/'FERIAS 3 DIAS'!I$3,E23) -> 217800 | E23: 217800 | G23: 183025.2101
A24: =CONCATENATE(B24:B487," ",C24:C487) -> 3070413 Differential (cap. 1 ton) + Articulating boom lift (Assembly and disassembly) | B24: 3070413 | C24: Differential (cap. 1 ton) + Articulating boom lift (Assembly and disassembly) | D24: =IF('FERIAS 3 DIAS'!G$3=TRUE,'FERIAS DE 7 A 11 DIAS'!E24/'FERIAS 3 DIAS'!I$3,E24) -> 350900 | E24: 350900 | G24: 294873.9496
A25: =CONCATENATE(B25:B488," ",C25:C488) -> 3070414 Electric scissor lifts per - 30 min fraction (Only for second levels) | B25: 3070414 | C25: Electric scissor lifts per - 30 min fraction (Only for second levels) | D25: =IF('FERIAS 3 DIAS'!G$3=TRUE,'FERIAS DE 7 A 11 DIAS'!E25/'FERIAS 3 DIAS'!I$3,E25) -> 84200 | E25: 84200 | G25: 70756.30252
A26: =CONCATENATE(B26:B489," ",C26:C489) -> 3071387 Articulating boom lift + Differential + TRUSS 2,60 X 2,60 | B26: 3071387 | C26: Articulating boom lift + Differential + TRUSS 2,60 X 2,60 | D26: =IF('FERIAS 3 DIAS'!G$3=TRUE,'FERIAS DE 7 A 11 DIAS'!E26/'FERIAS 3 DIAS'!I$3,E26) -> 2881400 | E26: 2881400 | G26: 2421344.538
A27: =CONCATENATE(B27:B490," ",C27:C490) -> 3071351 Articulating boom lift + Differential + TRUSS 3,60 X 2,60 | B27: 3071351 | C27: Articulating boom lift + Differential + TRUSS 3,60 X 2,60 | D27: =IF('FERIAS 3 DIAS'!G$3=TRUE,'FERIAS DE 7 A 11 DIAS'!E27/'FERIAS 3 DIAS'!I$3,E27) -> 2881400 | E27: 2881400 | G27: 2421344.538
A28: =CONCATENATE(B28:B491," ",C28:C491) -> 3071395 Articulating boom lift + Differential + TRUSS 3,60 X 3,60 | B28: 3071395 | C28: Articulating boom lift + Differential + TRUSS 3,60 X 3,60 | D28: =IF('FERIAS 3 DIAS'!G$3=TRUE,'FERIAS DE 7 A 11 DIAS'!E28/'FERIAS 3 DIAS'!I$3,E28) -> 2881400 | E28: 2881400 | G28: 2421344.538
A29: =CONCATENATE(B29:B492," ",C29:C492) -> 3071324 Articulating boom lift + Differential + TRUSS 5,90 X 5,90 | B29: 3071324 | C29: Articulating boom lift + Differential + TRUSS 5,90 X 5,90 | D29: =IF('FERIAS 3 DIAS'!G$3=TRUE,'FERIAS DE 7 A 11 DIAS'!E29/'FERIAS 3 DIAS'!I$3,E29) -> 3601800 | E29: 3601800 | G29: 3026722.689
A30: =CONCATENATE(B30:B493," ",C30:C493) -> 3071436 Articulating boom lift + Differential + TRUSS 6,90 X 6,90 | B30: 3071436 | C30: Articulating boom lift + Differential + TRUSS 6,90 X 6,90 | D30: =IF('FERIAS 3 DIAS'!G$3=TRUE,'FERIAS DE 7 A 11 DIAS'!E30/'FERIAS 3 DIAS'!I$3,E30) -> 3601800 | E30: 3601800 | G30: 3026722.689
A31: =CONCATENATE(B31:B494," ",C31:C494) -> 3071350 Articulating boom lift + Differential + TRUSS 5,60 X 5,60 | B31: 3071350 | C31: Articulating boom lift + Differential + TRUSS 5,60 X 5,60 | D31: =IF('FERIAS 3 DIAS'!G$3=TRUE,'FERIAS DE 7 A 11 DIAS'!E31/'FERIAS 3 DIAS'!I$3,E31) -> 3601800 | E31: 3601800 | G31: 3026722.689
A32: =CONCATENATE(B32:B495," ",C32:C495) -> 3071371 Articulating boom lift + Differential + TRUSS 6,60 X 6,60 | B32: 3071371 | C32: Articulating boom lift + Differential + TRUSS 6,60 X 6,60 | D32: =IF('FERIAS 3 DIAS'!G$3=TRUE,'FERIAS DE 7 A 11 DIAS'!E32/'FERIAS 3 DIAS'!I$3,E32) -> 3601800 | E32: 3601800 | G32: 3026722.689
A33: =CONCATENATE(B33:B496," ",C33:C496) -> 3071393 Articulating boom lift + Differential + TRUSS 9,60 X 2,60 | B33: 3071393 | C33: Articulating boom lift + Differential + TRUSS 9,60 X 2,60 | D33: =IF('FERIAS 3 DIAS'!G$3=TRUE,'FERIAS DE 7 A 11 DIAS'!E33/'FERIAS 3 DIAS'!I$3,E33) -> 3601800 | E33: 3601800 | G33: 3026722.689
A34: =CONCATENATE(B34:B497," ",C34:C497) -> 3071394 Articulating boom lift + Differential + TRUSS 9,60 X 3,60 | B34: 3071394 | C34: Articulating boom lift + Differential + TRUSS 9,60 X 3,60 | D34: =IF('FERIAS 3 DIAS'!G$3=TRUE,'FERIAS DE 7 A 11 DIAS'!E34/'FERIAS 3 DIAS'!I$3,E34) -> 3601800 | E34: 3601800 | G34: 3026722.689
A35: =CONCATENATE(B35:B498," ",C35:C498) -> 3071396 Articulating boom lift + Differential + TRUSS 9,60 X 5,60 | B35: 3071396 | C35: Articulating boom lift + Differential + TRUSS 9,60 X 5,60 | D35: =IF('FERIAS 3 DIAS'!G$3=TRUE,'FERIAS DE 7 A 11 DIAS'!E35/'FERIAS 3 DIAS'!I$3,E35) -> 4769300 | E35: 4769300 | G35: 4007815.126
A36: =CONCATENATE(B36:B499," ",C36:C499) -> 3071397 Articulating boom lift + Differential + TRUSS 9,60 X 6,60 | B36: 3071397 | C36: Articulating boom lift + Differential + TRUSS 9,60 X 6,60 | D36: =IF('FERIAS 3 DIAS'!G$3=TRUE,'FERIAS DE 7 A 11 DIAS'!E36/'FERIAS 3 DIAS'!I$3,E36) -> 4769300 | E36: 4769300 | G36: 4007815.126
A37: =CONCATENATE(B37:B500," ",C37:C500) -> 3071418 Wired Internet service "FOR ONE DEVICE DURING ONE DAY" | B37: 3071418 | C37: Wired Internet service "FOR ONE DEVICE DURING ONE DAY" | D37: =IF('FERIAS 3 DIAS'!G$3=TRUE,'FERIAS DE 7 A 11 DIAS'!E37/'FERIAS 3 DIAS'!I$3,E37) -> 93000 | E37: 93000 | G37: 78151.2605
A38: =CONCATENATE(B38:B501," ",C38:C501) -> 3071419 Wi-Fi Network access "FOR ONE DEVICE DURING ONE DAY" | B38: 3071419 | C38: Wi-Fi Network access "FOR ONE DEVICE DURING ONE DAY" | D38: =IF('FERIAS 3 DIAS'!G$3=TRUE,'FERIAS DE 7 A 11 DIAS'!E38/'FERIAS 3 DIAS'!I$3,E38) -> 93000 | E38: 93000 | G38: 78151.2605
A39: =CONCATENATE(B39:B502," ",C39:C502) -> 3071417 Wired Internet service "FOR ONE DEVICE DURING THE TRADE FAIR" Rate per 7 to 11 days | B39: 3071417 | C39: =CONCATENATE(K39,"",$I$2) -> Wired Internet service "FOR ONE DEVICE DURING THE TRADE FAIR" Rate per 7 to 11 days | D39: =IF('FERIAS 3 DIAS'!G$3=TRUE,'FERIAS DE 7 A 11 DIAS'!E39/'FERIAS 3 DIAS'!I$3,E39) -> 235000 | E39: 235000 | G39: 197478.9916 | K39: Wired Internet service "FOR ONE DEVICE DURING THE TRADE FAIR"
A40: =CONCATENATE(B40:B503," ",C40:C503) -> 3071420 Wi-Fi Network access "FOR ONE DEVICE DURING THE TRADE FAIR" Rate per 7 to 11 days | B40: 3071420 | C40: Wi-Fi Network access "FOR ONE DEVICE DURING THE TRADE FAIR" Rate per 7 to 11 days | D40: =IF('FERIAS 3 DIAS'!G$3=TRUE,'FERIAS DE 7 A 11 DIAS'!E40/'FERIAS 3 DIAS'!I$3,E40) -> 235000 | E40: 235000 | G40: 197478.9916 | K40: Wi-Fi Network access "FOR ONE DEVICE DURING THE TRADE FAIR"
A41: =CONCATENATE(B41:B504," ",C41:C504) -> 3071423 POS terminal connection + Wi-Fi Network access (For one device during the trade fair) Rate per 7 to 11 days | B41: 3071423 | C41: POS terminal connection + Wi-Fi Network access (For one device during the trade fair) Rate per 7 to 11 days | D41: =IF('FERIAS 3 DIAS'!G$3=TRUE,'FERIAS DE 7 A 11 DIAS'!E41/'FERIAS 3 DIAS'!I$3,E41) -> 320000 | E41: 320000 | G41: 268907.563 | K41: POS terminal connection + Wi-Fi Network access (For one device during the trade fair)
A42: =CONCATENATE(B42:B232," ",C42:C232) -> 3071424 POS terminal connection + Wired Internet service (For one device during the trade fair) Rate per 7 to 11 days | B42: 3071424 | C42: POS terminal connection + Wired Internet service (For one device during the trade fair) Rate per 7 to 11 days | D42: =IF('FERIAS 3 DIAS'!G$3=TRUE,'FERIAS DE 7 A 11 DIAS'!E42/'FERIAS 3 DIAS'!I$3,E42) -> 300000 | E42: 300000 | G42: 252100.8403 | K42: POS terminal connection + Wired Internet service (For one device during the trade fair)
A43: =CONCATENATE(B43:B233," ",C43:C233) -> 3071425 Wired Internet service + Wi-Fi Network access (For one device during the trade fair) Rate per 7 to 11 days | B43: 3071425 | C43: Wired Internet service + Wi-Fi Network access (For one device during the trade fair) Rate per 7 to 11 days | D43: =IF('FERIAS 3 DIAS'!G$3=TRUE,'FERIAS DE 7 A 11 DIAS'!E43/'FERIAS 3 DIAS'!I$3,E43) -> 421000 | E43: 421000 | G43: 353781.5126 | K43: Wired Internet service + Wi-Fi Network access (For one device during the trade fair)
A44: =CONCATENATE(B44:B234," ",C44:C234) -> 3071437 Dedicated internet connection: If you require a wider broadband internet connection for specific networks, please contact the PLUS at Corferias for further advisory and quotation. | B44: 3071437 | C44: Dedicated internet connection: If you require a wider broadband internet connection for specific networks, please contact the PLUS at Corferias for further advisory and quotation. | D44: Under quotation | E44: Según Cotización
A45: =CONCATENATE(B45:B235," ",C45:C235) -> 3071406 Network Access Point Installation: Includes UTP cable per point | B45: 3071406 | C45: Network Access Point Installation: Includes UTP cable per point | D45: =IF('FERIAS 3 DIAS'!G$3=TRUE,'FERIAS DE 7 A 11 DIAS'!E45/'FERIAS 3 DIAS'!I$3,E45) -> 78000 | E45: 78000 | G45: 65546.21849
A46: =CONCATENATE(B46:B236," ",C46:C236) -> 3071407 Switch rate per fair | B46: 3071407 | C46: Switch rate per fair | D46: =IF('FERIAS 3 DIAS'!G$3=TRUE,'FERIAS DE 7 A 11 DIAS'!E46/'FERIAS 3 DIAS'!I$3,E46) -> 75000 | E46: 75000 | G46: 63025.21008
A47: =CONCATENATE(B47:B237," ",C47:C237) -> 3071402 VLAN Service: Virtual network service. rate per fair | B47: 3071402 | C47: VLAN Service: Virtual network service. rate per fair | D47: =IF('FERIAS 3 DIAS'!G$3=TRUE,'FERIAS DE 7 A 11 DIAS'!E47/'FERIAS 3 DIAS'!I$3,E47) -> 325000 | E47: 325000 | G47: 273109.2437
A48: =CONCATENATE(B48:B238," ",C48:C238) -> 3071430 LAN Extension rate per fair (Incluye punto de red y aplica para extender el servicio de internet contratado con terceros) | B48: 3071430 | C48: LAN Extension rate per fair (Incluye punto de red y aplica para extender el servicio de internet contratado con terceros) | D48: =IF('FERIAS 3 DIAS'!G$3=TRUE,'FERIAS DE 7 A 11 DIAS'!E48/'FERIAS 3 DIAS'!I$3,E48) -> 1500000 | E48: 1500000 | G48: 1260504.202
A49: =CONCATENATE(B49:B239," ",C49:C239) -> 3071442 Permanent technical support (8 hour shift) Must be requested at least 24h prior daily rate | B49: 3071442 | C49: Permanent technical support (8 hour shift) Must be requested at least 24h prior daily rate | D49: =IF('FERIAS 3 DIAS'!G$3=TRUE,'FERIAS DE 7 A 11 DIAS'!E49/'FERIAS 3 DIAS'!I$3,E49) -> 205000 | E49: 205000 | G49: 172268.9076
A50: =CONCATENATE(B50:B240," ",C50:C240) -> 3070202 Local landline service (Includes unlimited local calls) Rate per 7 to 11 days | B50: 3070202 | C50: =CONCATENATE(K50,"",$I$2) -> Local landline service (Includes unlimited local calls) Rate per 7 to 11 days | D50: =IF('FERIAS 3 DIAS'!G$3=TRUE,'FERIAS DE 7 A 11 DIAS'!E50/'FERIAS 3 DIAS'!I$3,E50) -> 43000 | E50: 43000 | G50: 36134.45378 | K50: Local landline service (Includes unlimited local calls)
A51: =CONCATENATE(B51:B241," ",C51:C241) -> 3070203 Long-distance landline service:The rate does not include national long distance Rate per 7 to 11 days | B51: 3070203 | C51: Long-distance landline service:The rate does not include national long distance Rate per 7 to 11 days | D51: =IF('FERIAS 3 DIAS'!G$3=TRUE,'FERIAS DE 7 A 11 DIAS'!E51/'FERIAS 3 DIAS'!I$3,E51) -> 43000 | E51: 43000 | G51: 36134.45378 | K51: Long-distance landline service:The rate does not include national long distance
A52: =CONCATENATE(B52:B242," ",C52:C242) -> 3070201 Non-switched external line (Must be previously requested to Etb, Claro, EPM, Colomsat or another operator) Rate per 7 to 11 days | B52: 3070201 | C52: Non-switched external line (Must be previously requested to Etb, Claro, EPM, Colomsat or another operator) Rate per 7 to 11 days | D52: =IF('FERIAS 3 DIAS'!G$3=TRUE,'FERIAS DE 7 A 11 DIAS'!E52/'FERIAS 3 DIAS'!I$3,E52) -> 119000 | E52: 119000 | G52: 100000 | K52: Non-switched external line (Must be previously requested to Etb, Claro, EPM, Colomsat or another operator)
A53: =CONCATENATE(B53:B243," ",C53:C243) -> 3070207 POS Terminal wired connection: (Does not include the dataphone) | B53: 3070207 | C53: POS Terminal wired connection: (Does not include the dataphone) | D53: =IF('FERIAS 3 DIAS'!G$3=TRUE,'FERIAS DE 7 A 11 DIAS'!E53/'FERIAS 3 DIAS'!I$3,E53) -> 107000 | E53: 107000 | G53: 89915.96639
A54: =CONCATENATE(B54:B245," ",C54:C245) -> 3070503 Polo shelving unit (Melamine) (200cm x 93cm x 35cm) | B54: 3070503 | C54: Polo shelving unit (Melamine) (200cm x 93cm x 35cm) | D54: =IF('FERIAS 3 DIAS'!G$3=TRUE,'FERIAS DE 7 A 11 DIAS'!E54/'FERIAS 3 DIAS'!I$3,E54) -> 165100 | E54: 165100 | G54: 138739.4958
A55: =CONCATENATE(B55:B246," ",C55:C246) -> 3070503 Polo shelving unit (Honey brown) (200cm x 93cm x 35cm) | B55: 3070503 | C55: Polo shelving unit (Honey brown) (200cm x 93cm x 35cm) | D55: =IF('FERIAS 3 DIAS'!G$3=TRUE,'FERIAS DE 7 A 11 DIAS'!E55/'FERIAS 3 DIAS'!I$3,E55) -> 165100 | E55: 165100 | G55: 138739.4958
A56: =CONCATENATE(B56:B247," ",C56:C247) -> 3070503 Polo shelving unit (Oak finish) (200cm x 93cm x 35cm) | B56: 3070503 | C56: Polo shelving unit (Oak finish) (200cm x 93cm x 35cm) | D56: =IF('FERIAS 3 DIAS'!G$3=TRUE,'FERIAS DE 7 A 11 DIAS'!E56/'FERIAS 3 DIAS'!I$3,E56) -> 165100 | E56: 165100 | G56: 138739.4958
A57: =CONCATENATE(B57:B248," ",C57:C248) -> 3070503 Polo shelving unit (Grey oak) (200cm x 93cm x 35cm) | B57: 3070503 | C57: Polo shelving unit (Grey oak) (200cm x 93cm x 35cm) | D57: =IF('FERIAS 3 DIAS'!G$3=TRUE,'FERIAS DE 7 A 11 DIAS'!E57/'FERIAS 3 DIAS'!I$3,E57) -> 165100 | E57: 165100 | G57: 138739.4958
A58: =CONCATENATE(B58:B250," ",C58:C250) -> 3070503 Polo shelving unit (OSB) (200cm x 93cm x 35cm) | B58: 3070503 | C58: Polo shelving unit (OSB) (200cm x 93cm x 35cm) | D58: =IF('FERIAS 3 DIAS'!G$3=TRUE,'FERIAS DE 7 A 11 DIAS'!E58/'FERIAS 3 DIAS'!I$3,E58) -> 165100 | E58: 165100 | G58: 138739.4958
A59: =CONCATENATE(B59:B251," ",C59:C251) -> 3070517 1-tier glass showcase (100cm x 100cm x 40cm) | B59: 3070517 | C59: 1-tier glass showcase (100cm x 100cm x 40cm) | D59: =IF('FERIAS 3 DIAS'!G$3=TRUE,'FERIAS DE 7 A 11 DIAS'!E59/'FERIAS 3 DIAS'!I$3,E59) -> 194300 | E59: 194300 | G59: 163277.3109
A60: =CONCATENATE(B60:B252," ",C60:C252) -> 3070518 1-tier glass showcase type 2 (White) (92cm x 90 cm x 40cm) | B60: 3070518 | C60: 1-tier glass showcase type 2 (White) (92cm x 90 cm x 40cm) | D60: =IF('FERIAS 3 DIAS'!G$3=TRUE,'FERIAS DE 7 A 11 DIAS'!E60/'FERIAS 3 DIAS'!I$3,E60) -> 194300 | E60: 194300 | G60: 163277.3109
A61: =CONCATENATE(B61:B253," ",C61:C253) -> 3070518 1-tier glass showcase type 2 (Nacar) (92cm x 90 cm x 40cm) | B61: 3070518 | C61: 1-tier glass showcase type 2 (Nacar) (92cm x 90 cm x 40cm) | D61: =IF('FERIAS 3 DIAS'!G$3=TRUE,'FERIAS DE 7 A 11 DIAS'!E61/'FERIAS 3 DIAS'!I$3,E61) -> 194300 | E61: 194300 | G61: 163277.3109
A62: =CONCATENATE(B62:B254," ",C62:C254) -> 3070521 Basic clothes rack 1 pedestal (120cm Width - Height) adjustable + 5 hooks | B62: 3070521 | C62: Basic clothes rack 1 pedestal (120cm Width - Height) adjustable + 5 hooks | D62: =IF('FERIAS 3 DIAS'!G$3=TRUE,'FERIAS DE 7 A 11 DIAS'!E62/'FERIAS 3 DIAS'!I$3,E62) -> 70300 | E62: 70300 | G62: 59075.63025
A63: =CONCATENATE(B63:B255," ",C63:C255) -> 3070521 Double clothes rack 2 pedestal (120cm Width-Height) adjustable + 5 hooks | B63: 3070521 | C63: Double clothes rack 2 pedestal (120cm Width-Height) adjustable + 5 hooks | D63: =IF('FERIAS 3 DIAS'!G$3=TRUE,'FERIAS DE 7 A 11 DIAS'!E63/'FERIAS 3 DIAS'!I$3,E63) -> 81100 | E63: 81100 | G63: 68151.2605
A64: =CONCATENATE(B64:B256," ",C64:C256) -> 3070535 2-tier Island showcase (190cm x 125cm x 41cm) | B64: 3070535 | C64: 2-tier Island showcase (190cm x 125cm x 41cm) | D64: =IF('FERIAS 3 DIAS'!G$3=TRUE,'FERIAS DE 7 A 11 DIAS'!E64/'FERIAS 3 DIAS'!I$3,E64) -> 225100 | E64: 225100 | G64: 189159.6639
A65: =CONCATENATE(B65:B257," ",C65:C257) -> 3070714 Exhibition cube (40cm x 40cm x 25cm) | B65: 3070714 | C65: Exhibition cube (40cm x 40cm x 25cm) | D65: =IF('FERIAS 3 DIAS'!G$3=TRUE,'FERIAS DE 7 A 11 DIAS'!E65/'FERIAS 3 DIAS'!I$3,E65) -> 32400 | E65: 32400 | G65: 27226.89076
A66: =CONCATENATE(B66:B258," ",C66:C258) -> 3070936 Plastic folding table (White or grey) (73cm x 182cm x 76cm) | B66: 3070936 | C66: Plastic folding table (White or grey) (73cm x 182cm x 76cm) | D66: =IF('FERIAS 3 DIAS'!G$3=TRUE,'FERIAS DE 7 A 11 DIAS'!E66/'FERIAS 3 DIAS'!I$3,E66) -> 94900 | E66: 94900 | G66: 79747.89916
A67: =CONCATENATE(B67:B259," ",C67:C259) -> 3070954 Monaco counter (Melamine) (100cm x 100cm x 30cm) | B67: 3070954 | C67: Monaco counter (Melamine) (100cm x 100cm x 30cm) | D67: =IF('FERIAS 3 DIAS'!G$3=TRUE,'FERIAS DE 7 A 11 DIAS'!E67/'FERIAS 3 DIAS'!I$3,E67) -> 155400 | E67: 155400 | G67: =E67/1.19 -> 130588.2353
A68: =CONCATENATE(B68:B260," ",C68:C260) -> 3070954 Monaco counter (Honey brown) (100cm x 100cm x 30cm) | B68: 3070954 | C68: Monaco counter (Honey brown) (100cm x 100cm x 30cm) | D68: =IF('FERIAS 3 DIAS'!G$3=TRUE,'FERIAS DE 7 A 11 DIAS'!E68/'FERIAS 3 DIAS'!I$3,E68) -> 155400 | E68: 155400 | G68: 130588.2353
A69: =CONCATENATE(B69:B261," ",C69:C261) -> 3070954 Monaco counter (Oak finish) (100cm x 100cm x 30cm) | B69: 3070954 | C69: Monaco counter (Oak finish) (100cm x 100cm x 30cm) | D69: =IF('FERIAS 3 DIAS'!G$3=TRUE,'FERIAS DE 7 A 11 DIAS'!E69/'FERIAS 3 DIAS'!I$3,E69) -> 155400 | E69: 155400 | G69: 130588.2353
A70: =CONCATENATE(B70:B262," ",C70:C262) -> 3070954 Monaco counter (Grey oak) (100cm x 100cm x 30cm) | B70: 3070954 | C70: Monaco counter (Grey oak) (100cm x 100cm x 30cm) | D70: =IF('FERIAS 3 DIAS'!G$3=TRUE,'FERIAS DE 7 A 11 DIAS'!E70/'FERIAS 3 DIAS'!I$3,E70) -> 155400 | E70: 155400 | G70: 130588.2353
A71: =CONCATENATE(B71:B263," ",C71:C263) -> 3070955 90cm Rectangular pedestal (90cm x 30cm x 30cm) | B71: 3070955 | C71: 90cm Rectangular pedestal (90cm x 30cm x 30cm) | D71: =IF('FERIAS 3 DIAS'!G$3=TRUE,'FERIAS DE 7 A 11 DIAS'!E71/'FERIAS 3 DIAS'!I$3,E71) -> 40800 | E71: 40800 | G71: 34285.71429
A72: =CONCATENATE(B72:B264," ",C72:C264) -> 3070956 60cm Rectangular pedestal (60cm x 30cm x 30cm) | B72: 3070956 | C72: 60cm Rectangular pedestal (60cm x 30cm x 30cm) | D72: =IF('FERIAS 3 DIAS'!G$3=TRUE,'FERIAS DE 7 A 11 DIAS'!E72/'FERIAS 3 DIAS'!I$3,E72) -> 36000 | E72: 36000 | G72: 30252.10084
A73: =CONCATENATE(B73:B265," ",C73:C265) -> 3070957 Squared pedestal (30cm x 30cm x 30cm) | B73: 3070957 | C73: Squared pedestal (30cm x 30cm x 30cm) | D73: =IF('FERIAS 3 DIAS'!G$3=TRUE,'FERIAS DE 7 A 11 DIAS'!E73/'FERIAS 3 DIAS'!I$3,E73) -> 31200 | E73: 31200 | G73: 26218.48739
A74: =CONCATENATE(B74:B266," ",C74:C266) -> 3071006 Cushioned standard black chair (79cm x 53cm x 42cm) | B74: 3071006 | C74: Cushioned standard black chair (79cm x 53cm x 42cm) | D74: =IF('FERIAS 3 DIAS'!G$3=TRUE,'FERIAS DE 7 A 11 DIAS'!E74/'FERIAS 3 DIAS'!I$3,E74) -> 44900 | E74: 44900 | G74: 37731.09244
A75: =CONCATENATE(B75:B267," ",C75:C267) -> 3071008 Egg standard chair (48cm x 46cm x 45cm) | B75: 3071008 | C75: Egg standard chair (48cm x 46cm x 45cm) | D75: =IF('FERIAS 3 DIAS'!G$3=TRUE,'FERIAS DE 7 A 11 DIAS'!E75/'FERIAS 3 DIAS'!I$3,E75) -> 62500 | E75: 62500 | G75: 52521.0084
A76: =CONCATENATE(B76:B268," ",C76:C268) -> 3071013 Victoria right couch (70cm x 100cm x 75cm) | B76: 3071013 | C76: Victoria right couch (70cm x 100cm x 75cm) | D76: =IF('FERIAS 3 DIAS'!G$3=TRUE,'FERIAS DE 7 A 11 DIAS'!E76/'FERIAS 3 DIAS'!I$3,E76) -> 165200 | E76: 165200 | G76: 138823.5294
A77: =CONCATENATE(B77:B269," ",C77:C269) -> 3071022 Versalles pneumatic high chair (80cm x 40 cm x 40 cm) | B77: 3071022 | C77: Versalles pneumatic high chair (80cm x 40 cm x 40 cm) | D77: =IF('FERIAS 3 DIAS'!G$3=TRUE,'FERIAS DE 7 A 11 DIAS'!E77/'FERIAS 3 DIAS'!I$3,E77) -> 94500 | E77: 94500 | G77: 79411.76471
A78: =CONCATENATE(B78:B270," ",C78:C270) -> 3071023 Victoria left couch(70cm x 100cm x 75cm) | B78: 3071023 | C78: Victoria left couch(70cm x 100cm x 75cm) | D78: =IF('FERIAS 3 DIAS'!G$3=TRUE,'FERIAS DE 7 A 11 DIAS'!E78/'FERIAS 3 DIAS'!I$3,E78) -> 165200 | E78: 165200 | G78: 138823.5294
A79: =CONCATENATE(B79:B271," ",C79:C271) -> 3071031 Terranova Couch - 2 seats (88cm x 173 cm x 80cm) | B79: 3071031 | C79: Terranova Couch - 2 seats (88cm x 173 cm x 80cm) | D79: =IF('FERIAS 3 DIAS'!G$3=TRUE,'FERIAS DE 7 A 11 DIAS'!E79/'FERIAS 3 DIAS'!I$3,E79) -> 203400 | E79: 203400 | G79: 170924.3697
A80: =CONCATENATE(B80:B272," ",C80:C272) -> 3071036 Plastic folding table + 2 cushioned standard black chairs | B80: 3071036 | C80: Plastic folding table + 2 cushioned standard black chairs | D80: =IF('FERIAS 3 DIAS'!G$3=TRUE,'FERIAS DE 7 A 11 DIAS'!E80/'FERIAS 3 DIAS'!I$3,E80) -> 172800 | E80: 172800 | G80: 145210.084
A81: =CONCATENATE(B81:B273," ",C81:C273) -> 3071039 Daysa high table + 2 Marsella pneumatic high chairs | B81: 3071039 | C81: Daysa high table + 2 Marsella pneumatic high chairs | D81: =IF('FERIAS 3 DIAS'!G$3=TRUE,'FERIAS DE 7 A 11 DIAS'!E81/'FERIAS 3 DIAS'!I$3,E81) -> 224300 | E81: 224300 | G81: 188487.395
A82: =CONCATENATE(B82:B274," ",C82:C274) -> 3071054 Lotus standard table + 2 Egg standard chair | B82: 3071054 | C82: Lotus standard table + 2 Egg standard chair | D82: =IF('FERIAS 3 DIAS'!G$3=TRUE,'FERIAS DE 7 A 11 DIAS'!E82/'FERIAS 3 DIAS'!I$3,E82) -> 247000 | E82: 247000 | G82: 207563.0252
A83: =CONCATENATE(B83:B275," ",C83:C275) -> 3071059 Levis armchair (73cm x 86cm x 73cm) | B83: 3071059 | C83: Levis armchair (73cm x 86cm x 73cm) | D83: =IF('FERIAS 3 DIAS'!G$3=TRUE,'FERIAS DE 7 A 11 DIAS'!E83/'FERIAS 3 DIAS'!I$3,E83) -> 179500 | E83: 179500 | G83: 150840.3361
A84: =CONCATENATE(B84:B276," ",C84:C276) -> 3071061 Suiza standard chair (48cm x 46cm x 45cm) | B84: 3071061 | C84: Suiza standard chair (48cm x 46cm x 45cm) | D84: =IF('FERIAS 3 DIAS'!G$3=TRUE,'FERIAS DE 7 A 11 DIAS'!E84/'FERIAS 3 DIAS'!I$3,E84) -> 62500 | E84: 62500 | G84: 52521.0084
A85: =CONCATENATE(B85:B277," ",C85:C277) -> 3071068 Double base rectangular table (Melamine) (50cm x 75cm x 50cm) | B85: 3071068 | C85: Double base rectangular table (Melamine) (50cm x 75cm x 50cm) | D85: =IF('FERIAS 3 DIAS'!G$3=TRUE,'FERIAS DE 7 A 11 DIAS'!E85/'FERIAS 3 DIAS'!I$3,E85) -> 77500 | E85: 77500 | G85: 65126.05042
A86: =CONCATENATE(B86:B278," ",C86:C278) -> 3071077 Marsella pneumatic high chair (80cm x 40cm x 40cm) | B86: 3071077 | C86: Marsella pneumatic high chair (80cm x 40cm x 40cm) | D86: =IF('FERIAS 3 DIAS'!G$3=TRUE,'FERIAS DE 7 A 11 DIAS'!E86/'FERIAS 3 DIAS'!I$3,E86) -> 75200 | E86: 75200 | G86: 63193.27731
A87: =CONCATENATE(B87:B279," ",C87:C279) -> 3071081 Executive Leather Chair (57cm x 93cm x 52cm) | B87: 3071081 | C87: Executive Leather Chair (57cm x 93cm x 52cm) | D87: =IF('FERIAS 3 DIAS'!G$3=TRUE,'FERIAS DE 7 A 11 DIAS'!E87/'FERIAS 3 DIAS'!I$3,E87) -> 68400 | E87: 68400 | G87: 57478.9916
A88: =CONCATENATE(B88:B280," ",C88:C280) -> 3071081 Executive Mesh Chair (57cm x 93cm x 52cm) | B88: 3071081 | C88: Executive Mesh Chair (57cm x 93cm x 52cm) | D88: =IF('FERIAS 3 DIAS'!G$3=TRUE,'FERIAS DE 7 A 11 DIAS'!E88/'FERIAS 3 DIAS'!I$3,E88) -> 140800 | E88: 140800 | G88: 118319.3277
A89: =CONCATENATE(B89:B281," ",C89:C281) -> 3071083 Toronto couch - 3 seats (88cm x 173cm x 80cm) | B89: 3071083 | C89: Toronto couch - 3 seats (88cm x 173cm x 80cm) | D89: =IF('FERIAS 3 DIAS'!G$3=TRUE,'FERIAS DE 7 A 11 DIAS'!E89/'FERIAS 3 DIAS'!I$3,E89) -> 203400 | E89: 203400 | G89: 170924.3697
A90: =CONCATENATE(B90:B282," ",C90:C282) -> 3071085 Ottawa couch - 2 seats (85cm x 120cm x 76cm) | B90: 3071085 | C90: Ottawa couch - 2 seats (85cm x 120cm x 76cm) | D90: =IF('FERIAS 3 DIAS'!G$3=TRUE,'FERIAS DE 7 A 11 DIAS'!E90/'FERIAS 3 DIAS'!I$3,E90) -> 191500 | E90: 191500 | G90: 160924.3697
A91: =CONCATENATE(B91:B283," ",C91:C283) -> 3071090 Standard square puff (43cm x 43cm x 43cm) | B91: 3071090 | C91: Standard square puff (43cm x 43cm x 43cm) | D91: =IF('FERIAS 3 DIAS'!G$3=TRUE,'FERIAS DE 7 A 11 DIAS'!E91/'FERIAS 3 DIAS'!I$3,E91) -> 50100 | E91: 50100 | G91: 42100.84034
A92: =CONCATENATE(B92:B284," ",C92:C284) -> 3071091 Trunk puff - 2 seats (48cm x 81cm x 40cm) | B92: 3071091 | C92: Trunk puff - 2 seats (48cm x 81cm x 40cm) | D92: =IF('FERIAS 3 DIAS'!G$3=TRUE,'FERIAS DE 7 A 11 DIAS'!E92/'FERIAS 3 DIAS'!I$3,E92) -> 95800 | E92: 95800 | G92: 80504.20168
A93: =CONCATENATE(B93:B285," ",C93:C285) -> 3071093 Daysa glass top high table (100cm x 60cm) | B93: 3071093 | C93: Daysa glass top high table (100cm x 60cm) | D93: =IF('FERIAS 3 DIAS'!G$3=TRUE,'FERIAS DE 7 A 11 DIAS'!E93/'FERIAS 3 DIAS'!I$3,E93) -> 107700 | E93: 107700 | G93: 90504.20168
A94: =CONCATENATE(B94:B286," ",C94:C286) -> 3071095 VIP living room (1 Victoria right couch, 1 Victoria left couch, 2 Levis armchairs, 1 Double base square table) | B94: 3071095 | C94: VIP living room (1 Victoria right couch, 1 Victoria left couch, 2 Levis armchairs, 1 Double base square table) | D94: =IF('FERIAS 3 DIAS'!G$3=TRUE,'FERIAS DE 7 A 11 DIAS'!E94/'FERIAS 3 DIAS'!I$3,E94) -> 626400 | E94: 626400 | G94: 526386.5546
A95: =CONCATENATE(B95:B296," ",C95:C296) -> 3071097 Daysa standard table (76cm x 60cm) | B95: 3071097 | C95: Daysa standard table (76cm x 60cm) | D95: =IF('FERIAS 3 DIAS'!G$3=TRUE,'FERIAS DE 7 A 11 DIAS'!E95/'FERIAS 3 DIAS'!I$3,E95) -> 95800 | E95: 95800 | G95: 80504.20168
A96: =CONCATENATE(B96:B297," ",C96:C297) -> 3071098 Shia standard table black (76cm x 60cm x 60cm) | B96: 3071098 | C96: Shia standard table black (76cm x 60cm x 60cm) | D96: =IF('FERIAS 3 DIAS'!G$3=TRUE,'FERIAS DE 7 A 11 DIAS'!E96/'FERIAS 3 DIAS'!I$3,E96) -> 95800 | E96: 95800 | G96: 80504.20168
A97: =CONCATENATE(B97:B298," ",C97:C298) -> 3071098 Shia standard table White (76cm x 60cm x 60cm) | B97: 3071098 | C97: Shia standard table White (76cm x 60cm x 60cm) | D97: =IF('FERIAS 3 DIAS'!G$3=TRUE,'FERIAS DE 7 A 11 DIAS'!E97/'FERIAS 3 DIAS'!I$3,E97) -> 95800 | E97: 95800 | G97: 80504.20168
A98: =CONCATENATE(B98:B299," ",C98:C299) -> 3071100 Double base circular table (Melamine) (50cm x 110cm x 60cm) | B98: 3071100 | C98: Double base circular table (Melamine) (50cm x 110cm x 60cm) | D98: =IF('FERIAS 3 DIAS'!G$3=TRUE,'FERIAS DE 7 A 11 DIAS'!E98/'FERIAS 3 DIAS'!I$3,E98) -> 106600 | E98: 106600 | G98: 89579.83193
A99: =CONCATENATE(B99:B300," ",C99:C300) -> 3071103 Minibar Refrigerator 121 LT (48.5cm X 85.1cm X 60cm) | B99: 3071103 | C99: Minibar Refrigerator 121 LT (48.5cm X 85.1cm X 60cm) | D99: =IF('FERIAS 3 DIAS'!G$3=TRUE,'FERIAS DE 7 A 11 DIAS'!E99/'FERIAS 3 DIAS'!I$3,E99) -> 184600 | E99: 184600 | G99: 155126.0504
A100: =CONCATENATE(B100:B301," ",C100:C301) -> 3071103 Standard Refrigerator 230LT ( 55.6cm X 157.6cm X 67cm) | B100: 3071103 | C100: Standard Refrigerator 230LT ( 55.6cm X 157.6cm X 67cm) | D100: =IF('FERIAS 3 DIAS'!G$3=TRUE,'FERIAS DE 7 A 11 DIAS'!E100/'FERIAS 3 DIAS'!I$3,E100) -> 272300 | E100: 272300 | G100: 228823.5294
A101: =CONCATENATE(B101:B302," ",C101:C302) -> 3071104 Double Base square table (Melamine) (50cm x 60cm x 60cm) | B101: 3071104 | C101: Double Base square table (Melamine) (50cm x 60cm x 60cm) | D101: =IF('FERIAS 3 DIAS'!G$3=TRUE,'FERIAS DE 7 A 11 DIAS'!E101/'FERIAS 3 DIAS'!I$3,E101) -> 77500 | E101: 77500 | G101: 65126.05042
A102: =CONCATENATE(B102:B303," ",C102:C303) -> 3071105 Office KIT 2 (2 cushioned standard black chairs, 1 executive leather chair, 1 office desk) | B102: 3071105 | C102: Office KIT 2 (2 cushioned standard black chairs, 1 executive leather chair, 1 office desk) | D102: =IF('FERIAS 3 DIAS'!G$3=TRUE,'FERIAS DE 7 A 11 DIAS'!E102/'FERIAS 3 DIAS'!I$3,E102) -> 215400 | E102: 215400 | G102: 181008.4034
A103: =CONCATENATE(B103:B304," ",C103:C304) -> 3071108 4-tier shelving unit (190cm x 125cm x 41cm) | B103: 3071108 | C103: 4-tier shelving unit (190cm x 125cm x 41cm) | D103: =IF('FERIAS 3 DIAS'!G$3=TRUE,'FERIAS DE 7 A 11 DIAS'!E103/'FERIAS 3 DIAS'!I$3,E103) -> 137600 | E103: 137600 | G103: 115630.2521
A104: =CONCATENATE(B104:B305," ",C104:C305) -> 3071111 Rectangular 2-tier showcase (200cm x 100cm x 40cm) | B104: 3071111 | C104: Rectangular 2-tier showcase (200cm x 100cm x 40cm) | D104: =IF('FERIAS 3 DIAS'!G$3=TRUE,'FERIAS DE 7 A 11 DIAS'!E104/'FERIAS 3 DIAS'!I$3,E104) -> 260200 | E104: 260200 | G104: 218655.4622
A105: =CONCATENATE(B105:B306," ",C105:C306) -> 3071113 Osaka living room (1 Toronto couch, 2 Donna puffs, 1 Double base square table) | B105: 3071113 | C105: Osaka living room (1 Toronto couch, 2 Donna puffs, 1 Double base square table) | D105: =IF('FERIAS 3 DIAS'!G$3=TRUE,'FERIAS DE 7 A 11 DIAS'!E105/'FERIAS 3 DIAS'!I$3,E105) -> 418600 | E105: 418600 | G105: 351764.7059
A106: =CONCATENATE(B106:B307," ",C106:C307) -> 3071114 Trunk puff - 3 seats (46cm x 120cm x 54cm) | B106: 3071114 | C106: Trunk puff - 3 seats (46cm x 120cm x 54cm) | D106: =IF('FERIAS 3 DIAS'!G$3=TRUE,'FERIAS DE 7 A 11 DIAS'!E106/'FERIAS 3 DIAS'!I$3,E106) -> 95800 | E106: 95800 | G106: 80504.20168
A107: =CONCATENATE(B107:B308," ",C107:C308) -> 3071115 Daysa high table (Melamine) (100cm x 60cm) | B107: 3071115 | C107: Daysa high table (Melamine) (100cm x 60cm) | D107: =IF('FERIAS 3 DIAS'!G$3=TRUE,'FERIAS DE 7 A 11 DIAS'!E107/'FERIAS 3 DIAS'!I$3,E107) -> 95800 | E107: 95800 | G107: 80504.20168
A108: =CONCATENATE(B108:B309," ",C108:C309) -> 3071115 Daysa high table (Honey brown) (100cm x 60cm) | B108: 3071115 | C108: Daysa high table (Honey brown) (100cm x 60cm) | D108: =IF('FERIAS 3 DIAS'!G$3=TRUE,'FERIAS DE 7 A 11 DIAS'!E108/'FERIAS 3 DIAS'!I$3,E108) -> 95800 | E108: 95800 | G108: 80504.20168
A109: =CONCATENATE(B109:B310," ",C109:C310) -> 3071115 Daysa high table (Oak finish) (100cm x 60cm) | B109: 3071115 | C109: Daysa high table (Oak finish) (100cm x 60cm) | D109: =IF('FERIAS 3 DIAS'!G$3=TRUE,'FERIAS DE 7 A 11 DIAS'!E109/'FERIAS 3 DIAS'!I$3,E109) -> 95800 | E109: 95800 | G109: 80504.20168
A110: =CONCATENATE(B110:B311," ",C110:C311) -> 3071115 Daysa high table (Grey oak) (100cm x 60cm) | B110: 3071115 | C110: Daysa high table (Grey oak) (100cm x 60cm) | D110: =IF('FERIAS 3 DIAS'!G$3=TRUE,'FERIAS DE 7 A 11 DIAS'!E110/'FERIAS 3 DIAS'!I$3,E110) -> 95800 | E110: 95800 | G110: 80504.20168
A111: =CONCATENATE(B111:B312," ",C111:C312) -> 3071116 Lotus standard table (70cm x 64cm x 81cm) | B111: 3071116 | C111: Lotus standard table (70cm x 64cm x 81cm) | D111: =IF('FERIAS 3 DIAS'!G$3=TRUE,'FERIAS DE 7 A 11 DIAS'!E111/'FERIAS 3 DIAS'!I$3,E111) -> 143500 | E111: 143500 | G111: 120588.2353
A112: =CONCATENATE(B112:B313," ",C112:C313) -> 3071302 Stainless steel trash can | B112: 3071302 | C112: Stainless steel trash can | D112: =IF('FERIAS 3 DIAS'!G$3=TRUE,'FERIAS DE 7 A 11 DIAS'!E112/'FERIAS 3 DIAS'!I$3,E112) -> 23000 | E112: 23000 | G112: 19327.73109
A113: =CONCATENATE(B113:B314," ",C113:C314) -> 3071325 120cm Queue divider | B113: 3071325 | C113: 120cm Queue divider | D113: =IF('FERIAS 3 DIAS'!G$3=TRUE,'FERIAS DE 7 A 11 DIAS'!E113/'FERIAS 3 DIAS'!I$3,E113) -> 44000 | E113: 44000 | G113: 36974.78992
A114: =CONCATENATE(B114:B315," ",C114:C315) -> 3071370 Folding magazine rack (140cm x 25cm x 29cm) | B114: 3071370 | C114: Folding magazine rack (140cm x 25cm x 29cm) | D114: =IF('FERIAS 3 DIAS'!G$3=TRUE,'FERIAS DE 7 A 11 DIAS'!E114/'FERIAS 3 DIAS'!I$3,E114) -> 71300 | E114: 71300 | G114: 59915.96639
A115: =CONCATENATE(B115:B316," ",C115:C316) -> 30710165 Red Bombonera Chair | B115: 30710165 | C115: Red Bombonera Chair | D115: =IF('FERIAS 3 DIAS'!G$3=TRUE,'FERIAS DE 7 A 11 DIAS'!E115/'FERIAS 3 DIAS'!I$3,E115) -> 59800 | E115: 59800 | G115: 50252.10084
A116: =CONCATENATE(B116:B317," ",C116:C317) -> 30710166 Oslo Chair White | B116: 30710166 | C116: Oslo Chair White | D116: =IF('FERIAS 3 DIAS'!G$3=TRUE,'FERIAS DE 7 A 11 DIAS'!E116/'FERIAS 3 DIAS'!I$3,E116) -> 68400 | E116: 68400 | G116: 57478.9916
A117: =CONCATENATE(B117:B318," ",C117:C318) -> 30710167 Wooden Bar Chair | B117: 30710167 | C117: Wooden Bar Chair | D117: =IF('FERIAS 3 DIAS'!G$3=TRUE,'FERIAS DE 7 A 11 DIAS'!E117/'FERIAS 3 DIAS'!I$3,E117) -> 74300 | E117: 74300 | G117: 62436.97479
A118: =CONCATENATE(B118:B319," ",C118:C319) -> 30710168 Meeting Room | B118: 30710168 | C118: Meeting Room | D118: =IF('FERIAS 3 DIAS'!G$3=TRUE,'FERIAS DE 7 A 11 DIAS'!E118/'FERIAS 3 DIAS'!I$3,E118) -> 270000 | E118: 270000 | G118: 226890.7563
A119: =CONCATENATE(B119:B320," ",C119:C320) -> 30713198 Executive Chair (100cm x 49cm x 49cm) | B119: 30713198 | C119: Executive Chair (100cm x 49cm x 49cm) | D119: =IF('FERIAS 3 DIAS'!G$3=TRUE,'FERIAS DE 7 A 11 DIAS'!E119/'FERIAS 3 DIAS'!I$3,E119) -> 140800 | E119: 140800 | G119: 118319.3277
A120: =CONCATENATE(B120:B321," ",C120:C321) -> 30713200 Office desk (50cm x 120cm x 50cm) | B120: 30713200 | C120: Office desk (50cm x 120cm x 50cm) | D120: =IF('FERIAS 3 DIAS'!G$3=TRUE,'FERIAS DE 7 A 11 DIAS'!E120/'FERIAS 3 DIAS'!I$3,E120) -> 120700 | E120: 120700 | G120: 101428.5714
A121: =CONCATENATE(B121:B322," ",C121:C322) -> 30713201 Buggy easy chair (72cm x 64cm) | B121: 30713201 | C121: Buggy easy chair (72cm x 64cm) | D121: =IF('FERIAS 3 DIAS'!G$3=TRUE,'FERIAS DE 7 A 11 DIAS'!E121/'FERIAS 3 DIAS'!I$3,E121) -> 140800 | E121: 140800 | G121: 118319.3277
A122: =CONCATENATE(B122:B323," ",C122:C323) -> 30713225 Smooth carpet m2 + installation: Contact serviciosplus@corferias.com for advice and a quote. | B122: 30713225 | C122: Smooth carpet m2 + installation: Contact serviciosplus@corferias.com for advice and a quote. | D122: =IF('FERIAS 3 DIAS'!G$3=TRUE,'FERIAS DE 7 A 11 DIAS'!E122/'FERIAS 3 DIAS'!I$3,E122) -> 37800 | E122: 37800 | G122: 31764.70588
A123: =CONCATENATE(B123:B324," ",C123:C324) -> 30713226 Exhibition carpet, ribbed type m2 + installation | B123: 30713226 | C123: Exhibition carpet, ribbed type m2 + installation | D123: =IF('FERIAS 3 DIAS'!G$3=TRUE,'FERIAS DE 7 A 11 DIAS'!E123/'FERIAS 3 DIAS'!I$3,E123) -> 37800 | E123: 37800 | G123: 31764.70588
A124: =CONCATENATE(B124:B322," ",C124:C322) -> 30713227 Rubber mat m2 + installation | B124: 30713227 | C124: Rubber mat m2 + installation | D124: =IF('FERIAS 3 DIAS'!G$3=TRUE,'FERIAS DE 7 A 11 DIAS'!E124/'FERIAS 3 DIAS'!I$3,E124) -> 97200 | E124: 97200 | G124: 81680.67227
A125: =CONCATENATE(B125:B323," ",C125:C323) -> 30713228 Laminate floor m2 + installation | B125: 30713228 | C125: Laminate floor m2 + installation | D125: =IF('FERIAS 3 DIAS'!G$3=TRUE,'FERIAS DE 7 A 11 DIAS'!E125/'FERIAS 3 DIAS'!I$3,E125) -> 97200 | E125: 97200 | G125: 81680.67227
A126: =CONCATENATE(B126:B324," ",C126:C324) -> 30713229 Melamine floor m2 + installation | B126: 30713229 | C126: Melamine floor m2 + installation | D126: =IF('FERIAS 3 DIAS'!G$3=TRUE,'FERIAS DE 7 A 11 DIAS'!E126/'FERIAS 3 DIAS'!I$3,E126) -> 172800 | E126: 172800 | G126: 145210.084
A127: =CONCATENATE(B127:B325," ",C127:C325) -> Baru Living Room (1 Otawa Sofa, 2 Square Poufs, 1 Pouf 2 Seats, 1 Coffee Table 2 Levels) | C127: Baru Living Room (1 Otawa Sofa, 2 Square Poufs, 1 Pouf 2 Seats, 1 Coffee Table 2 Levels) | D127: =IF('FERIAS 3 DIAS'!G$3=TRUE,'FERIAS DE 7 A 11 DIAS'!E127/'FERIAS 3 DIAS'!I$3,E127) -> 418600 | E127: 418600 | G127: 351764.7059
A128: =CONCATENATE(B128:B326," ",C128:C326) -> Terranova Lounge (1 Terranova Sofa, 2 Buggy Armchairs, 1 Coffee Table 2 levels) | C128: Terranova Lounge (1 Terranova Sofa, 2 Buggy Armchairs, 1 Coffee Table 2 levels) | D128: =IF('FERIAS 3 DIAS'!G$3=TRUE,'FERIAS DE 7 A 11 DIAS'!E128/'FERIAS 3 DIAS'!I$3,E128) -> 418600 | E128: 418600 | G128: 351764.7059
A129: =CONCATENATE(B129:B327," ",C129:C327) -> Flowerplot Melaminic (with 12 artificial mats) | C129: Flowerplot Melaminic (with 12 artificial mats) | D129: =IF('FERIAS 3 DIAS'!G$3=TRUE,'FERIAS DE 7 A 11 DIAS'!E129/'FERIAS 3 DIAS'!I$3,E129) -> 40800 | E129: 40800 | G129: 34285.71429
A130: =CONCATENATE(B130:B328," ",C130:C328) -> 3070942 Office Kit Pine 1 (1 Pino Table, 3 Acrilic Chair K Black) | B130: 3070942 | C130: Office Kit Pine 1 (1 Pino Table, 3 Acrilic Chair K Black) | D130: =IF('FERIAS 3 DIAS'!G$3=TRUE,'FERIAS DE 7 A 11 DIAS'!E130/'FERIAS 3 DIAS'!I$3,E130) -> 181000 | E130: 181000
A131: =CONCATENATE(B131:B329," ",C131:C329) -> 3070940 Pine Office Desk 120 x 60 cms | B131: 3070940 | C131: Pine Office Desk 120 x 60 cms | D131: =IF('FERIAS 3 DIAS'!G$3=TRUE,'FERIAS DE 7 A 11 DIAS'!E131/'FERIAS 3 DIAS'!I$3,E131) -> 106800 | E131: 106800
A132: =CONCATENATE(B132:B330," ",C132:C330) -> 3071002 Acrilic Chair K Black 103C | B132: 3071002 | C132: Acrilic Chair K Black 103C | D132: =IF('FERIAS 3 DIAS'!G$3=TRUE,'FERIAS DE 7 A 11 DIAS'!E132/'FERIAS 3 DIAS'!I$3,E132) -> 45300 | E132: 45300
A133: =CONCATENATE(B133:B359," ",C133:C359) -> 3071346 Base for TV Led - LCD adaptable (Does not include installation) Value of event 1 day | B133: 3071346 | C133: Base for TV Led - LCD adaptable (Does not include installation) Value of event 1 day | D133: =IF('FERIAS 3 DIAS'!G$3=TRUE,'FERIAS DE 7 A 11 DIAS'!E133/'FERIAS 3 DIAS'!I$3,E133) -> 42500 | E133: 42500 | G133: 35714.28571
A134: =CONCATENATE(B134:B360," ",C134:C360) -> 3071346 Base for TV Led - LCD adaptable (Does not include installation) Value of event 2 days (Value per day) | B134: 3071346 | C134: Base for TV Led - LCD adaptable (Does not include installation) Value of event 2 days (Value per day) | D134: =IF('FERIAS 3 DIAS'!G$3=TRUE,'FERIAS DE 7 A 11 DIAS'!E134/'FERIAS 3 DIAS'!I$3,E134) -> 42500 | E134: 42500 | G134: =E134/1.19 -> 35714.28571
A135: =CONCATENATE(B135:B361," ",C135:C361) -> 3071346 Base for TV Led - LCD adaptable (Does not include installation) Value from 3 to 6 days (Day value) | B135: 3071346 | C135: Base for TV Led - LCD adaptable (Does not include installation) Value from 3 to 6 days (Day value) | D135: =IF('FERIAS 3 DIAS'!G$3=TRUE,'FERIAS DE 7 A 11 DIAS'!E135/'FERIAS 3 DIAS'!I$3,E135) -> 38600 | E135: 38600 | G135: 32436.97479
A136: =CONCATENATE(B136:B362," ",C136:C362) -> 3071204 Base for TV Led - LCD adaptable (Does not include installation) Value from 7 to 18 days (Fair value) | B136: 3071204 | C136: Base for TV Led - LCD adaptable (Does not include installation) Value from 7 to 18 days (Fair value) | D136: =IF('FERIAS 3 DIAS'!G$3=TRUE,'FERIAS DE 7 A 11 DIAS'!E136/'FERIAS 3 DIAS'!I$3,E136) -> 272500 | E136: 272500 | G136: 228991.5966
A137: =CONCATENATE(B137:B363," ",C137:C363) -> 3071204 Tv Smart 45" 114cms ( Includes tv stand / power cord / 1 HDMI cable) IN: HDMI, USB Value of event 1 day | B137: 3071204 | C137: Tv Smart 45" 114cms ( Includes tv stand / power cord / 1 HDMI cable) IN: HDMI, USB Value of event 1 day | D137: =IF('FERIAS 3 DIAS'!G$3=TRUE,'FERIAS DE 7 A 11 DIAS'!E137/'FERIAS 3 DIAS'!I$3,E137) -> 137900 | E137: 137900 | G137: 115882.3529
A138: =CONCATENATE(B138:B364," ",C138:C364) -> 3071204 Tv Smart 45" 114cms ( Includes tv stand / power cord / 1 HDMI cable) IN: HDMI, USB Value of event 2 days (Value per day) | B138: 3071204 | C138: Tv Smart 45" 114cms ( Includes tv stand / power cord / 1 HDMI cable) IN: HDMI, USB Value of event 2 days (Value per day) | D138: =IF('FERIAS 3 DIAS'!G$3=TRUE,'FERIAS DE 7 A 11 DIAS'!E138/'FERIAS 3 DIAS'!I$3,E138) -> 135900 | E138: 135900 | G138: 114201.6807
A139: =CONCATENATE(B139:B365," ",C139:C365) -> 3071204 Tv Smart 45" 114cms ( Includes tv stand / power cord / 1 HDMI cable) IN: HDMI, USB Value from 3 to 6 days (Day value) | B139: 3071204 | C139: Tv Smart 45" 114cms ( Includes tv stand / power cord / 1 HDMI cable) IN: HDMI, USB Value from 3 to 6 days (Day value) | D139: =IF('FERIAS 3 DIAS'!G$3=TRUE,'FERIAS DE 7 A 11 DIAS'!E139/'FERIAS 3 DIAS'!I$3,E139) -> 125800 | E139: 125800 | G139: 105714.2857
A140: =CONCATENATE(B140:B366," ",C140:C366) -> 3071204 Tv Smart 45" 114cms ( Includes tv stand / power cord / 1 HDMI cable) IN: HDMI, USB Value from 7 to 18 days (Fair value) | B140: 3071204 | C140: Tv Smart 45" 114cms ( Includes tv stand / power cord / 1 HDMI cable) IN: HDMI, USB Value from 7 to 18 days (Fair value) | D140: =IF('FERIAS 3 DIAS'!G$3=TRUE,'FERIAS DE 7 A 11 DIAS'!E140/'FERIAS 3 DIAS'!I$3,E140) -> 816500 | E140: 816500 | G140: 686134.4538
A141: =CONCATENATE(B141:B367," ",C141:C367) -> 30713202 Tv Smart 55" 140cms (Includes tv stand / power cord / 1 HDMI cable) IN: HDMI, USB Value of event 1 day | B141: 30713202 | C141: Tv Smart 55" 140cms (Includes tv stand / power cord / 1 HDMI cable) IN: HDMI, USB Value of event 1 day | D141: =IF('FERIAS 3 DIAS'!G$3=TRUE,'FERIAS DE 7 A 11 DIAS'!E141/'FERIAS 3 DIAS'!I$3,E141) -> 188100 | E141: 188100 | G141: 158067.2269
A142: =CONCATENATE(B142:B368," ",C142:C368) -> 30713202 Tv Smart 55" 140cms (Includes tv stand / power cord / 1 HDMI cable) IN: HDMI, USB Value of event 2 days (Value per day) | B142: 30713202 | C142: Tv Smart 55" 140cms (Includes tv stand / power cord / 1 HDMI cable) IN: HDMI, USB Value of event 2 days (Value per day) | D142: =IF('FERIAS 3 DIAS'!G$3=TRUE,'FERIAS DE 7 A 11 DIAS'!E142/'FERIAS 3 DIAS'!I$3,E142) -> 188100 | E142: 188100 | G142: 158067.2269
A143: =CONCATENATE(B143:B369," ",C143:C369) -> 30713202 Tv Smart 55" 140cms (Includes tv stand / power cord / 1 HDMI cable) IN: HDMI, USB Value from 3 to 6 days (Day value) | B143: 30713202 | C143: Tv Smart 55" 140cms (Includes tv stand / power cord / 1 HDMI cable) IN: HDMI, USB Value from 3 to 6 days (Day value) | D143: =IF('FERIAS 3 DIAS'!G$3=TRUE,'FERIAS DE 7 A 11 DIAS'!E143/'FERIAS 3 DIAS'!I$3,E143) -> 171400 | E143: 171400 | G143: 144033.6134
A144: =CONCATENATE(B144:B370," ",C144:C370) -> 30713202 Tv Smart 55" 140cms (Includes tv stand / power cord / 1 HDMI cable) IN: HDMI, USB Value from 7 to 18 days (Fair value) | B144: 30713202 | C144: Tv Smart 55" 140cms (Includes tv stand / power cord / 1 HDMI cable) IN: HDMI, USB Value from 7 to 18 days (Fair value) | D144: =IF('FERIAS 3 DIAS'!G$3=TRUE,'FERIAS DE 7 A 11 DIAS'!E144/'FERIAS 3 DIAS'!I$3,E144) -> 1381900 | E144: 1381900 | G144: 1161260.504
A145: =CONCATENATE(B145:B371," ",C145:C371) -> 3071206 Tv Smart 65" 165cms (Includes tv stand / power cord /1 HDMI cable) IN: HDMI, USB Value of event 1 day | B145: 3071206 | C145: Tv Smart 65" 165cms (Includes tv stand / power cord /1 HDMI cable) IN: HDMI, USB Value of event 1 day | D145: =IF('FERIAS 3 DIAS'!G$3=TRUE,'FERIAS DE 7 A 11 DIAS'!E145/'FERIAS 3 DIAS'!I$3,E145) -> 330600 | E145: 330600 | G145: 277815.1261
A146: =CONCATENATE(B146:B372," ",C146:C372) -> 3071206 Tv Smart 65" 165cms (Includes tv stand / power cord /1 HDMI cable) IN: HDMI, USB Value of event 2 days (Value per day) | B146: 3071206 | C146: Tv Smart 65" 165cms (Includes tv stand / power cord /1 HDMI cable) IN: HDMI, USB Value of event 2 days (Value per day) | D146: =IF('FERIAS 3 DIAS'!G$3=TRUE,'FERIAS DE 7 A 11 DIAS'!E146/'FERIAS 3 DIAS'!I$3,E146) -> 330600 | E146: 330600 | G146: 277815.1261
A147: =CONCATENATE(B147:B373," ",C147:C373) -> 3071206 Tv Smart 65" 165cms (Includes tv stand / power cord /1 HDMI cable) IN: HDMI, USB Value from 3 to 6 days (Day value) | B147: 3071206 | C147: Tv Smart 65" 165cms (Includes tv stand / power cord /1 HDMI cable) IN: HDMI, USB Value from 3 to 6 days (Day value) | D147: =IF('FERIAS 3 DIAS'!G$3=TRUE,'FERIAS DE 7 A 11 DIAS'!E147/'FERIAS 3 DIAS'!I$3,E147) -> 312400 | E147: 312400 | G147: 262521.0084
A148: =CONCATENATE(B148:B374," ",C148:C374) -> 3071206 Tv Smart 65" 165cms (Includes tv stand / power cord /1 HDMI cable) IN: HDMI, USB Value from 7 to 18 days (Fair value) | B148: 3071206 | C148: Tv Smart 65" 165cms (Includes tv stand / power cord /1 HDMI cable) IN: HDMI, USB Value from 7 to 18 days (Fair value) | D148: =IF('FERIAS 3 DIAS'!G$3=TRUE,'FERIAS DE 7 A 11 DIAS'!E148/'FERIAS 3 DIAS'!I$3,E148) -> 1582600 | E148: 1582600 | G148: 1329915.966
A149: =CONCATENATE(B149:B375," ",C149:C375) -> 3071279 Tv Smart 70" 177,8cms ( Includes tv stand / power cord /1 HDMI cable) IN: HDMI, USB Value of event 1 day | B149: 3071279 | C149: Tv Smart 70" 177,8cms ( Includes tv stand / power cord /1 HDMI cable) IN: HDMI, USB Value of event 1 day | D149: =IF('FERIAS 3 DIAS'!G$3=TRUE,'FERIAS DE 7 A 11 DIAS'!E149/'FERIAS 3 DIAS'!I$3,E149) -> 531400 | E149: 531400 | G149: 446554.6218
A150: =CONCATENATE(B150:B376," ",C150:C376) -> 3071279 Tv Smart 70" 177,8cms ( Includes tv stand / power cord /1 HDMI cable) IN: HDMI, USB Value of event 2 days (Value per day) | B150: 3071279 | C150: Tv Smart 70" 177,8cms ( Includes tv stand / power cord /1 HDMI cable) IN: HDMI, USB Value of event 2 days (Value per day) | D150: =IF('FERIAS 3 DIAS'!G$3=TRUE,'FERIAS DE 7 A 11 DIAS'!E150/'FERIAS 3 DIAS'!I$3,E150) -> 531400 | E150: 531400 | G150: 446554.6218
A151: =CONCATENATE(B151:B377," ",C151:C377) -> 3071279 Tv Smart 70" 177,8cms ( Includes tv stand / power cord /1 HDMI cable) IN: HDMI, USB Value from 3 to 6 days (Day value) | B151: 3071279 | C151: Tv Smart 70" 177,8cms ( Includes tv stand / power cord /1 HDMI cable) IN: HDMI, USB Value from 3 to 6 days (Day value) | D151: =IF('FERIAS 3 DIAS'!G$3=TRUE,'FERIAS DE 7 A 11 DIAS'!E151/'FERIAS 3 DIAS'!I$3,E151) -> 483600 | E151: 483600 | G151: 406386.5546
A152: =CONCATENATE(B152:B378," ",C152:C378) -> 3071279 Tv Smart 70" 177,8cms ( Includes tv stand / power cord /1 HDMI cable) IN: HDMI, USB Value from 7 to 18 days (Fair value) | B152: 3071279 | C152: Tv Smart 70" 177,8cms ( Includes tv stand / power cord /1 HDMI cable) IN: HDMI, USB Value from 7 to 18 days (Fair value) | D152: =IF('FERIAS 3 DIAS'!G$3=TRUE,'FERIAS DE 7 A 11 DIAS'!E152/'FERIAS 3 DIAS'!I$3,E152) -> 3454300 | E152: 3454300 | G152: 2902773.109
A153: =CONCATENATE(B153:B379," ",C153:C379) -> 3071222 Tv Smart 82" 204cms ( Includes tv stand / power cord /1 HDMI cable) IN: HDMI, USB Value of event 1 day | B153: 3071222 | C153: Tv Smart 82" 204cms ( Includes tv stand / power cord /1 HDMI cable) IN: HDMI, USB Value of event 1 day | D153: =IF('FERIAS 3 DIAS'!G$3=TRUE,'FERIAS DE 7 A 11 DIAS'!E153/'FERIAS 3 DIAS'!I$3,E153) -> 987200 | E153: 987200 | G153: 829579.8319
A154: =CONCATENATE(B154:B380," ",C154:C380) -> 3071222 Tv Smart 82" 204cms ( Includes tv stand / power cord /1 HDMI cable) IN: HDMI, USB Value of event 2 days (Value per day) | B154: 3071222 | C154: Tv Smart 82" 204cms ( Includes tv stand / power cord /1 HDMI cable) IN: HDMI, USB Value of event 2 days (Value per day) | D154: =IF('FERIAS 3 DIAS'!G$3=TRUE,'FERIAS DE 7 A 11 DIAS'!E154/'FERIAS 3 DIAS'!I$3,E154) -> 987200 | E154: 987200 | G154: 829579.8319
A155: =CONCATENATE(B155:B381," ",C155:C381) -> 3071222 Tv Smart 82" 204cms ( Includes tv stand / power cord /1 HDMI cable) IN: HDMI, USB Value from 3 to 6 days (Day value) | B155: 3071222 | C155: Tv Smart 82" 204cms ( Includes tv stand / power cord /1 HDMI cable) IN: HDMI, USB Value from 3 to 6 days (Day value) | D155: =IF('FERIAS 3 DIAS'!G$3=TRUE,'FERIAS DE 7 A 11 DIAS'!E155/'FERIAS 3 DIAS'!I$3,E155) -> 898200 | E155: 898200 | G155: 754789.916
A156: =CONCATENATE(B156:B382," ",C156:C382) -> 3071222 Tv Smart 82" 204cms ( Includes tv stand / power cord /1 HDMI cable) IN: HDMI, USB Value from 7 to 18 days (Fair value) | B156: 3071222 | C156: Tv Smart 82" 204cms ( Includes tv stand / power cord /1 HDMI cable) IN: HDMI, USB Value from 7 to 18 days (Fair value) | D156: =IF('FERIAS 3 DIAS'!G$3=TRUE,'FERIAS DE 7 A 11 DIAS'!E156/'FERIAS 3 DIAS'!I$3,E156) -> 6414700 | E156: 6414700 | G156: 5390504.202
A157: =CONCATENATE(B157:B383," ",C157:C383) -> 3071262 40" 101cms touch screen monitor (Includes monitor stand / cabling) IN: HDMI Value of event 1 day | B157: 3071262 | C157: 40" 101cms touch screen monitor (Includes monitor stand / cabling) IN: HDMI Value of event 1 day | D157: =IF('FERIAS 3 DIAS'!G$3=TRUE,'FERIAS DE 7 A 11 DIAS'!E157/'FERIAS 3 DIAS'!I$3,E157) -> 666700 | E157: 666700 | G157: 560252.1008
A158: =CONCATENATE(B158:B384," ",C158:C384) -> 3071262 40" 101cms touch screen monitor (Includes monitor stand / cabling) IN: HDMI Value of event 2 days (Value per day) | B158: 3071262 | C158: 40" 101cms touch screen monitor (Includes monitor stand / cabling) IN: HDMI Value of event 2 days (Value per day) | D158: =IF('FERIAS 3 DIAS'!G$3=TRUE,'FERIAS DE 7 A 11 DIAS'!E158/'FERIAS 3 DIAS'!I$3,E158) -> 666700 | E158: 666700 | G158: 560252.1008
A159: =CONCATENATE(B159:B385," ",C159:C385) -> 3071262 40" 101cms touch screen monitor (Includes monitor stand / cabling) IN: HDMI Value from 3 to 6 days (Day value) | B159: 3071262 | C159: 40" 101cms touch screen monitor (Includes monitor stand / cabling) IN: HDMI Value from 3 to 6 days (Day value) | D159: =IF('FERIAS 3 DIAS'!G$3=TRUE,'FERIAS DE 7 A 11 DIAS'!E159/'FERIAS 3 DIAS'!I$3,E159) -> 485700 | E159: 485700 | G159: 408151.2605
A160: =CONCATENATE(B160:B386," ",C160:C386) -> 3071262 40" 101cms touch screen monitor (Includes monitor stand / cabling) IN: HDMI Value from 7 to 18 days (Fair value) | B160: 3071262 | C160: 40" 101cms touch screen monitor (Includes monitor stand / cabling) IN: HDMI Value from 7 to 18 days (Fair value) | D160: =IF('FERIAS 3 DIAS'!G$3=TRUE,'FERIAS DE 7 A 11 DIAS'!E160/'FERIAS 3 DIAS'!I$3,E160) -> 4847700 | E160: 4847700 | G160: 4073697.479
A161: =CONCATENATE(B161:B387," ",C161:C387) -> 3071284 Tablet tactile 7" RAM:1GB / Connectivity: 3G / Operating System Android 9.0 Value of event 1 day | B161: 3071284 | C161: Tablet tactile 7" RAM:1GB / Connectivity: 3G / Operating System Android 9.0 Value of event 1 day | D161: =IF('FERIAS 3 DIAS'!G$3=TRUE,'FERIAS DE 7 A 11 DIAS'!E161/'FERIAS 3 DIAS'!I$3,E161) -> 50000 | E161: 50000 | G161: 42016.80672
A162: =CONCATENATE(B162:B388," ",C162:C388) -> 3071284 Tablet tactile 7" RAM:1GB / Connectivity: 3G / Operating System Android 9.0 Value of event 2 days (Value per day) | B162: 3071284 | C162: Tablet tactile 7" RAM:1GB / Connectivity: 3G / Operating System Android 9.0 Value of event 2 days (Value per day) | D162: =IF('FERIAS 3 DIAS'!G$3=TRUE,'FERIAS DE 7 A 11 DIAS'!E162/'FERIAS 3 DIAS'!I$3,E162) -> 50000 | E162: 50000 | G162: 42016.80672
A163: =CONCATENATE(B163:B389," ",C163:C389) -> 3071284 Tablet tactile 7" RAM:1GB / Connectivity: 3G / Operating System Android 9.0 Value from 3 to 6 days (Day value) | B163: 3071284 | C163: Tablet tactile 7" RAM:1GB / Connectivity: 3G / Operating System Android 9.0 Value from 3 to 6 days (Day value) | D163: =IF('FERIAS 3 DIAS'!G$3=TRUE,'FERIAS DE 7 A 11 DIAS'!E163/'FERIAS 3 DIAS'!I$3,E163) -> 46000 | E163: 46000 | G163: 38655.46218
A164: =CONCATENATE(B164:B390," ",C164:C390) -> 3071284 Tablet tactile 7" RAM:1GB / Connectivity: 3G / Operating System Android 9.0 Value from 7 to 18 days (Fair value) | B164: 3071284 | C164: Tablet tactile 7" RAM:1GB / Connectivity: 3G / Operating System Android 9.0 Value from 7 to 18 days (Fair value) | D164: =IF('FERIAS 3 DIAS'!G$3=TRUE,'FERIAS DE 7 A 11 DIAS'!E164/'FERIAS 3 DIAS'!I$3,E164) -> 496800 | E164: 496800 | G164: 417478.9916
A165: =CONCATENATE(B165:B391," ",C165:C391) -> 3071265 Led Screen Full Hd Indoor / Size 3,20mts x 2,96mts / Pitch 3,9 / Includes floor to wall mounting structure. | B165: 3071265 | C165: Led Screen Full Hd Indoor / Size 3,20mts x 2,96mts / Pitch 3,9 / Includes floor to wall mounting structure. | D165: =IF('FERIAS 3 DIAS'!G$3=TRUE,'FERIAS DE 7 A 11 DIAS'!E165/'FERIAS 3 DIAS'!I$3,E165) -> 1662336 | E165: 1662336 | G165: 1396921.008
A166: =CONCATENATE(B166:B392," ",C166:C392) -> 3071265 Led Screen Full Hd Indoor / Size 4,48mts x 3,20mts / Pitch 3,9 / Includes floor to wall mounting structure. | B166: 3071265 | C166: Led Screen Full Hd Indoor / Size 4,48mts x 3,20mts / Pitch 3,9 / Includes floor to wall mounting structure. | D166: =IF('FERIAS 3 DIAS'!G$3=TRUE,'FERIAS DE 7 A 11 DIAS'!E166/'FERIAS 3 DIAS'!I$3,E166) -> 1662336 | E166: 1662336 | G166: 1396921.008
A167: =CONCATENATE(B167:B393," ",C167:C393) -> 3071265 Led Screen Full Hd Indoor / Size 6,4mts x 3,20mts /mts2: 20,48 / Pitch 3,9 / Includes floor to wall mounting structure. | B167: 3071265 | C167: Led Screen Full Hd Indoor / Size 6,4mts x 3,20mts /mts2: 20,48 / Pitch 3,9 / Includes floor to wall mounting structure. | D167: =IF('FERIAS 3 DIAS'!G$3=TRUE,'FERIAS DE 7 A 11 DIAS'!E167/'FERIAS 3 DIAS'!I$3,E167) -> 1496064 | E167: 1496064 | G167: 1257196.639
A168: =CONCATENATE(B168:B394," ",C168:C394) -> 3071265 Led Screen Full Hd Indoor / Size 6,4mts x 4,48mts /mts2: 28,67 / Pitch 3,9 / Includes floor to wall mounting structure. | B168: 3071265 | C168: Led Screen Full Hd Indoor / Size 6,4mts x 4,48mts /mts2: 28,67 / Pitch 3,9 / Includes floor to wall mounting structure. | D168: =IF('FERIAS 3 DIAS'!G$3=TRUE,'FERIAS DE 7 A 11 DIAS'!E168/'FERIAS 3 DIAS'!I$3,E168) -> 14067200 | E168: 14067200 | G168: 11821176.47
A169: =CONCATENATE(B169:B395," ",C169:C395) -> 3071267 Led Screen Full Hd Indoor / Size 7,4mts x 5,12mts /mts2: 36,04 / Pitch 3,9 / Includes floor to wall mounting structure. | B169: 3071267 | C169: Led Screen Full Hd Indoor / Size 7,4mts x 5,12mts /mts2: 36,04 / Pitch 3,9 / Includes floor to wall mounting structure. | D169: =IF('FERIAS 3 DIAS'!G$3=TRUE,'FERIAS DE 7 A 11 DIAS'!E169/'FERIAS 3 DIAS'!I$3,E169) -> 1926272 | E169: 1926272 | G169: 1618715.966
A170: =CONCATENATE(B170:B396," ",C170:C396) -> 3071267 Led Screen Full Hd Indoor / Size 8,32mts x 6,40mts /mts2: 53,25 / Pitch 3,9 / Includes floor to wall mounting structure. | B170: 3071267 | C170: Led Screen Full Hd Indoor / Size 8,32mts x 6,40mts /mts2: 53,25 / Pitch 3,9 / Includes floor to wall mounting structure. | D170: =IF('FERIAS 3 DIAS'!G$3=TRUE,'FERIAS DE 7 A 11 DIAS'!E170/'FERIAS 3 DIAS'!I$3,E170) -> 1926272 | E170: 1926272 | G170: 1618715.966
A171: =CONCATENATE(B171:B389," ",C171:C389) -> 3071267 Led Screen Full Hd Indoor / Size 4,48mts x 3,20mts / Pitch 3,9 / Includes floor to wall mounting structure Value from 3 to 6 days (Day value) | B171: 3071267 | C171: Led Screen Full Hd Indoor / Size 4,48mts x 3,20mts / Pitch 3,9 / Includes floor to wall mounting structure Value from 3 to 6 days (Day value) | D171: =IF('FERIAS 3 DIAS'!G$3=TRUE,'FERIAS DE 7 A 11 DIAS'!E171/'FERIAS 3 DIAS'!I$3,E171) -> 1733632 | E171: 1733632 | G171: 1456833.613
A172: =CONCATENATE(B172:B390," ",C172:C390) -> 3071267 Led Screen Full Hd Indoor / Size 4,48mts x 3,20mts / Pitch 3,9 / Includes floor to wall mounting structure Value from 7 to 18 days (Fair value) | B172: 3071267 | C172: Led Screen Full Hd Indoor / Size 4,48mts x 3,20mts / Pitch 3,9 / Includes floor to wall mounting structure Value from 7 to 18 days (Fair value) | D172: =IF('FERIAS 3 DIAS'!G$3=TRUE,'FERIAS DE 7 A 11 DIAS'!E172/'FERIAS 3 DIAS'!I$3,E172) -> 20284032 | E172: 20284032 | G172: 17045405.04
A173: =CONCATENATE(B173:B391," ",C173:C391) -> 3071268 Led Screen Full Hd Indoor / Size 6,4mts x 3,20mts /mts2: 20,48 / Pitch 3,9 / Includes floor to wall mounting structure Value of event 1 day | B173: 3071268 | C173: Led Screen Full Hd Indoor / Size 6,4mts x 3,20mts /mts2: 20,48 / Pitch 3,9 / Includes floor to wall mounting structure Value of event 1 day | D173: =IF('FERIAS 3 DIAS'!G$3=TRUE,'FERIAS DE 7 A 11 DIAS'!E173/'FERIAS 3 DIAS'!I$3,E173) -> 2287360 | E173: 2287360 | G173: 1922151.261
A174: =CONCATENATE(B174:B392," ",C174:C392) -> 3071268 Led Screen Full Hd Indoor / Size 6,4mts x 3,20mts /mts2: 20,48 / Pitch 3,9 / Includes floor to wall mounting structure Value of event 2 days (Value per day) | B174: 3071268 | C174: Led Screen Full Hd Indoor / Size 6,4mts x 3,20mts /mts2: 20,48 / Pitch 3,9 / Includes floor to wall mounting structure Value of event 2 days (Value per day) | D174: =IF('FERIAS 3 DIAS'!G$3=TRUE,'FERIAS DE 7 A 11 DIAS'!E174/'FERIAS 3 DIAS'!I$3,E174) -> 2287360 | E174: 2287360 | G174: 1922151.261
A175: =CONCATENATE(B175:B393," ",C175:C393) -> 3071268 Led Screen Full Hd Indoor / Size 6,4mts x 3,20mts /mts2: 20,48 / Pitch 3,9 / Includes floor to wall mounting structure Value from 3 to 6 days (Day value) | B175: 3071268 | C175: Led Screen Full Hd Indoor / Size 6,4mts x 3,20mts /mts2: 20,48 / Pitch 3,9 / Includes floor to wall mounting structure Value from 3 to 6 days (Day value) | D175: =IF('FERIAS 3 DIAS'!G$3=TRUE,'FERIAS DE 7 A 11 DIAS'!E175/'FERIAS 3 DIAS'!I$3,E175) -> 2071680 | E175: 2071680 | G175: 1740907.563
A176: =CONCATENATE(B176:B394," ",C176:C394) -> 3071268 Led Screen Full Hd Indoor / Size 6,4mts x 3,20mts /mts2: 20,48 / Pitch 3,9 / Includes floor to wall mounting structure Value from 7 to 18 days (Fair value) | B176: 3071268 | C176: Led Screen Full Hd Indoor / Size 6,4mts x 3,20mts /mts2: 20,48 / Pitch 3,9 / Includes floor to wall mounting structure Value from 7 to 18 days (Fair value) | D176: =IF('FERIAS 3 DIAS'!G$3=TRUE,'FERIAS DE 7 A 11 DIAS'!E176/'FERIAS 3 DIAS'!I$3,E176) -> 14796416 | E176: 14796416 | G176: 12433963.03
A177: =CONCATENATE(B177:B395," ",C177:C395) -> 3071264 Led Screen Full Hd Indoor / Size 6,4mts x 4,48mts /mts2: 28,67 / Pitch 3,9 / Includes floor to wall mounting structure Value of event 1 day | B177: 3071264 | C177: Led Screen Full Hd Indoor / Size 6,4mts x 4,48mts /mts2: 28,67 / Pitch 3,9 / Includes floor to wall mounting structure Value of event 1 day | D177: =IF('FERIAS 3 DIAS'!G$3=TRUE,'FERIAS DE 7 A 11 DIAS'!E177/'FERIAS 3 DIAS'!I$3,E177) -> 3049728 | E177: 3049728 | G177: 2562796.639
A178: =CONCATENATE(B178:B396," ",C178:C396) -> 3071264 Led Screen Full Hd Indoor / Size 6,4mts x 4,48mts /mts2: 28,67 / Pitch 3,9 / Includes floor to wall mounting structure Value of event 2 days (Value per day) | B178: 3071264 | C178: Led Screen Full Hd Indoor / Size 6,4mts x 4,48mts /mts2: 28,67 / Pitch 3,9 / Includes floor to wall mounting structure Value of event 2 days (Value per day) | D178: =IF('FERIAS 3 DIAS'!G$3=TRUE,'FERIAS DE 7 A 11 DIAS'!E178/'FERIAS 3 DIAS'!I$3,E178) -> 3049728 | E178: 3049728 | G178: 2562796.639
A179: =CONCATENATE(B179:B397," ",C179:C397) -> 3071264 Led Screen Full Hd Indoor / Size 6,4mts x 4,48mts /mts2: 28,67 / Pitch 3,9 / Includes floor to wall mounting structure Value from 3 to 6 days (Day value) | B179: 3071264 | C179: Led Screen Full Hd Indoor / Size 6,4mts x 4,48mts /mts2: 28,67 / Pitch 3,9 / Includes floor to wall mounting structure Value from 3 to 6 days (Day value) | D179: =IF('FERIAS 3 DIAS'!G$3=TRUE,'FERIAS DE 7 A 11 DIAS'!E179/'FERIAS 3 DIAS'!I$3,E179) -> 2761984 | E179: 2761984 | G179: 2320994.958
A180: =CONCATENATE(B180:B398," ",C180:C398) -> 3071264 Led Screen Full Hd Indoor / Size 6,4mts x 4,48mts /mts2: 28,67 / Pitch 3,9 / Includes floor to wall mounting structure Value from 7 to 18 days (Fair value) | B180: 3071264 | C180: Led Screen Full Hd Indoor / Size 6,4mts x 4,48mts /mts2: 28,67 / Pitch 3,9 / Includes floor to wall mounting structure Value from 7 to 18 days (Fair value) | D180: =IF('FERIAS 3 DIAS'!G$3=TRUE,'FERIAS DE 7 A 11 DIAS'!E180/'FERIAS 3 DIAS'!I$3,E180) -> 19728512 | E180: 19728512 | G180: 16578581.51
A181: =CONCATENATE(B181:B399," ",C181:C399) -> 3071265 Led Screen Full Hd Indoor / Size 7,4mts x 5,12mts /mts2: 36,04 / Pitch 3,9 / Includes floor to wall mounting structure.Value of event 1 day | B181: 3071265 | C181: Led Screen Full Hd Indoor / Size 7,4mts x 5,12mts /mts2: 36,04 / Pitch 3,9 / Includes floor to wall mounting structure.Value of event 1 day | D181: =IF('FERIAS 3 DIAS'!G$3=TRUE,'FERIAS DE 7 A 11 DIAS'!E181/'FERIAS 3 DIAS'!I$3,E181) -> 4447488 | E181: 4447488 | G181: 3737384.874
A182: =CONCATENATE(B182:B400," ",C182:C400) -> 3071265 Led Screen Full Hd Indoor / Size 7,4mts x 5,12mts /mts2: 36,04 / Pitch 3,9 / Includes floor to wall mounting structure. Value of event 2 days (Value per day) | B182: 3071265 | C182: Led Screen Full Hd Indoor / Size 7,4mts x 5,12mts /mts2: 36,04 / Pitch 3,9 / Includes floor to wall mounting structure. Value of event 2 days (Value per day) | D182: =IF('FERIAS 3 DIAS'!G$3=TRUE,'FERIAS DE 7 A 11 DIAS'!E182/'FERIAS 3 DIAS'!I$3,E182) -> 4447488 | E182: 4447488 | G182: 3737384.874
A183: =CONCATENATE(B183:B401," ",C183:C401) -> 3071265 Led Screen Full Hd Indoor / Size 7,4mts x 5,12mts /mts2: 36,04 / Pitch 3,9 / Includes floor to wall mounting structure. Value from 3 to 6 days (Day value) | B183: 3071265 | C183: Led Screen Full Hd Indoor / Size 7,4mts x 5,12mts /mts2: 36,04 / Pitch 3,9 / Includes floor to wall mounting structure. Value from 3 to 6 days (Day value) | D183: =IF('FERIAS 3 DIAS'!G$3=TRUE,'FERIAS DE 7 A 11 DIAS'!E183/'FERIAS 3 DIAS'!I$3,E183) -> 4027904 | E183: 4027904 | G183: 3384793.277
A184: =CONCATENATE(B184:B402," ",C184:C402) -> 3071265 Led Screen Full Hd Indoor / Size 7,4mts x 5,12mts /mts2: 36,04 / Pitch 3,9 / Includes floor to wall mounting structure. Value from 7 to 18 days (Fair value) | B184: 3071265 | C184: Led Screen Full Hd Indoor / Size 7,4mts x 5,12mts /mts2: 36,04 / Pitch 3,9 / Includes floor to wall mounting structure. Value from 7 to 18 days (Fair value) | D184: =IF('FERIAS 3 DIAS'!G$3=TRUE,'FERIAS DE 7 A 11 DIAS'!E184/'FERIAS 3 DIAS'!I$3,E184) -> 28770688 | E184: 28770688 | G184: 24177048.74
A185: =CONCATENATE(B185:B403," ",C185:C403) -> 3071266 Led Screen Full Hd Indoor / Size 8,32mts x 6,40mts /mts2: 53,25 / Pitch 3,9 / Includes floor to wall mounting structure Value of event 1 day | B185: 3071266 | C185: Led Screen Full Hd Indoor / Size 8,32mts x 6,40mts /mts2: 53,25 / Pitch 3,9 / Includes floor to wall mounting structure Value of event 1 day | D185: =IF('FERIAS 3 DIAS'!G$3=TRUE,'FERIAS DE 7 A 11 DIAS'!E185/'FERIAS 3 DIAS'!I$3,E185) -> 6099456 | E185: 6099456 | G185: 5125593.277
A186: =CONCATENATE(B186:B404," ",C186:C404) -> 3071266 Led Screen Full Hd Indoor / Size 8,32mts x 6,40mts /mts2: 53,25 / Pitch 3,9 / Includes floor to wall mounting structure Value of event 2 days (Value per day) | B186: 3071266 | C186: Led Screen Full Hd Indoor / Size 8,32mts x 6,40mts /mts2: 53,25 / Pitch 3,9 / Includes floor to wall mounting structure Value of event 2 days (Value per day) | D186: =IF('FERIAS 3 DIAS'!G$3=TRUE,'FERIAS DE 7 A 11 DIAS'!E186/'FERIAS 3 DIAS'!I$3,E186) -> 6099456 | E186: 6099456 | G186: 5125593.277
A187: =CONCATENATE(B187:B405," ",C187:C405) -> 3071266 Led Screen Full Hd Indoor / Size 8,32mts x 6,40mts /mts2: 53,25 / Pitch 3,9 / Includes floor to wall mounting structure Value from 3 to 6 days (Day value) | B187: 3071266 | C187: Led Screen Full Hd Indoor / Size 8,32mts x 6,40mts /mts2: 53,25 / Pitch 3,9 / Includes floor to wall mounting structure Value from 3 to 6 days (Day value) | D187: =IF('FERIAS 3 DIAS'!G$3=TRUE,'FERIAS DE 7 A 11 DIAS'!E187/'FERIAS 3 DIAS'!I$3,E187) -> 5524224 | E187: 5524224 | G187: 4642205.042
A188: =CONCATENATE(B188:B406," ",C188:C406) -> 3071266 Led Screen Full Hd Indoor / Size 8,32mts x 6,40mts /mts2: 53,25 / Pitch 3,9 / Includes floor to wall mounting structure Value from 7 to 18 days (Fair value) | B188: 3071266 | C188: Led Screen Full Hd Indoor / Size 8,32mts x 6,40mts /mts2: 53,25 / Pitch 3,9 / Includes floor to wall mounting structure Value from 7 to 18 days (Fair value) | D188: =IF('FERIAS 3 DIAS'!G$3=TRUE,'FERIAS DE 7 A 11 DIAS'!E188/'FERIAS 3 DIAS'!I$3,E188) -> 39457024 | E188: 39457024 | G188: 33157163.03
A189: =CONCATENATE(B189:B407," ",C189:C407) -> 3071267 Led Screen Full Hd Outdoor / Size 6,4mts x 4,48mts /mts2: 28,67 / Pitch 4,8 / Does not include mounting structure. Value of event 1 day | B189: 3071267 | C189: Led Screen Full Hd Outdoor / Size 6,4mts x 4,48mts /mts2: 28,67 / Pitch 4,8 / Does not include mounting structure. Value of event 1 day | D189: =IF('FERIAS 3 DIAS'!G$3=TRUE,'FERIAS DE 7 A 11 DIAS'!E189/'FERIAS 3 DIAS'!I$3,E189) -> 3049728 | E189: 3049728 | G189: 2562796.639
A190: =CONCATENATE(B190:B408," ",C190:C408) -> 3071267 Led Screen Full Hd Outdoor / Size 6,4mts x 4,48mts /mts2: 28,67 / Pitch 4,8 / Does not include mounting structure. Value of event 2 days (Value per day) | B190: 3071267 | C190: Led Screen Full Hd Outdoor / Size 6,4mts x 4,48mts /mts2: 28,67 / Pitch 4,8 / Does not include mounting structure. Value of event 2 days (Value per day) | D190: =IF('FERIAS 3 DIAS'!G$3=TRUE,'FERIAS DE 7 A 11 DIAS'!E190/'FERIAS 3 DIAS'!I$3,E190) -> 3049728 | E190: 3049728 | G190: 2562796.639
A191: =CONCATENATE(B191:B409," ",C191:C409) -> 3071267 Led Screen Full Hd Outdoor / Size 6,4mts x 4,48mts /mts2: 28,67 / Pitch 4,8 / Does not include mounting structure. Value from 3 to 6 days (Day value) | B191: 3071267 | C191: Led Screen Full Hd Outdoor / Size 6,4mts x 4,48mts /mts2: 28,67 / Pitch 4,8 / Does not include mounting structure. Value from 3 to 6 days (Day value) | D191: =IF('FERIAS 3 DIAS'!G$3=TRUE,'FERIAS DE 7 A 11 DIAS'!E191/'FERIAS 3 DIAS'!I$3,E191) -> 2760320 | E191: 2760320 | G191: 2319596.639
A192: =CONCATENATE(B192:B410," ",C192:C410) -> 3071267 Led Screen Full Hd Outdoor / Size 6,4mts x 4,48mts /mts2: 28,67 / Pitch 4,8 / Does not include mounting structure. Value from 7 to 18 days (Fair value) | B192: 3071267 | C192: Led Screen Full Hd Outdoor / Size 6,4mts x 4,48mts /mts2: 28,67 / Pitch 4,8 / Does not include mounting structure. Value from 7 to 18 days (Fair value) | D192: =IF('FERIAS 3 DIAS'!G$3=TRUE,'FERIAS DE 7 A 11 DIAS'!E192/'FERIAS 3 DIAS'!I$3,E192) -> 19715072 | E192: 19715072 | G192: 16567287.39
A193: =CONCATENATE(B193:B411," ",C193:C411) -> 3071268 Led Screen Full Hd Outdoor / Size 7,4mts x 5,12mts /mts2: 36,04/ Pitch 4,8 / Does not include mounting structure. Value of event 1 day | B193: 3071268 | C193: Led Screen Full Hd Outdoor / Size 7,4mts x 5,12mts /mts2: 36,04/ Pitch 4,8 / Does not include mounting structure. Value of event 1 day | D193: =IF('FERIAS 3 DIAS'!G$3=TRUE,'FERIAS DE 7 A 11 DIAS'!E193/'FERIAS 3 DIAS'!I$3,E193) -> 4447488 | E193: 4447488 | G193: 3737384.874
A194: =CONCATENATE(B194:B412," ",C194:C412) -> 3071268 Led Screen Full Hd Outdoor / Size 7,4mts x 5,12mts /mts2: 36,04/ Pitch 4,8 / Does not include mounting structure. Value of event 2 days (Value per day) | B194: 3071268 | C194: Led Screen Full Hd Outdoor / Size 7,4mts x 5,12mts /mts2: 36,04/ Pitch 4,8 / Does not include mounting structure. Value of event 2 days (Value per day) | D194: =IF('FERIAS 3 DIAS'!G$3=TRUE,'FERIAS DE 7 A 11 DIAS'!E194/'FERIAS 3 DIAS'!I$3,E194) -> 4447488 | E194: 4447488 | G194: 3737384.874
A195: =CONCATENATE(B195:B413," ",C195:C413) -> 3071268 Led Screen Full Hd Outdoor / Size 7,4mts x 5,12mts /mts2: 36,04/ Pitch 4,8 / Does not include mounting structure. Value from 3 to 6 days (Day value) | B195: 3071268 | C195: Led Screen Full Hd Outdoor / Size 7,4mts x 5,12mts /mts2: 36,04/ Pitch 4,8 / Does not include mounting structure. Value from 3 to 6 days (Day value) | D195: =IF('FERIAS 3 DIAS'!G$3=TRUE,'FERIAS DE 7 A 11 DIAS'!E195/'FERIAS 3 DIAS'!I$3,E195) -> 4025216 | E195: 4025216 | G195: 3382534.454
A196: =CONCATENATE(B196:B414," ",C196:C414) -> 3071268 Led Screen Full Hd Outdoor / Size 7,4mts x 5,12mts /mts2: 36,04/ Pitch 4,8 / Does not include mounting structure. Value from 7 to 18 days (Fair value) | B196: 3071268 | C196: Led Screen Full Hd Outdoor / Size 7,4mts x 5,12mts /mts2: 36,04/ Pitch 4,8 / Does not include mounting structure. Value from 7 to 18 days (Fair value) | D196: =IF('FERIAS 3 DIAS'!G$3=TRUE,'FERIAS DE 7 A 11 DIAS'!E196/'FERIAS 3 DIAS'!I$3,E196) -> 28750976 | E196: 28750976 | G196: 24160484.03
A197: =CONCATENATE(B197:B415," ",C197:C415) -> 3071269 Led Screen Full Hd Outdoor / Measure 8,32mts x 6,40mts /mts2: 53,25/ Pitch 4,8 / Does not include structure for assembly Value of event 1 day | B197: 3071269 | C197: Led Screen Full Hd Outdoor / Measure 8,32mts x 6,40mts /mts2: 53,25/ Pitch 4,8 / Does not include structure for assembly Value of event 1 day | D197: =IF('FERIAS 3 DIAS'!G$3=TRUE,'FERIAS DE 7 A 11 DIAS'!E197/'FERIAS 3 DIAS'!I$3,E197) -> 6099456 | E197: 6099456 | G197: 5125593.277
A198: =CONCATENATE(B198:B416," ",C198:C416) -> 3071269 Led Screen Full Hd Outdoor / Measure 8,32mts x 6,40mts /mts2: 53,25/ Pitch 4,8 / Does not include structure for assembly Value of event 2 days (Value per day) | B198: 3071269 | C198: Led Screen Full Hd Outdoor / Measure 8,32mts x 6,40mts /mts2: 53,25/ Pitch 4,8 / Does not include structure for assembly Value of event 2 days (Value per day) | D198: =IF('FERIAS 3 DIAS'!G$3=TRUE,'FERIAS DE 7 A 11 DIAS'!E198/'FERIAS 3 DIAS'!I$3,E198) -> 6099456 | E198: 6099456 | G198: =E198/1.19 -> 5125593.277
A199: =CONCATENATE(B199:B417," ",C199:C417) -> 3071269 Led Screen Full Hd Outdoor / Measure 8,32mts x 6,40mts /mts2: 53,25/ Pitch 4,8 / Does not include structure for assembly Value from 3 to 6 days (Day value) | B199: 3071269 | C199: Led Screen Full Hd Outdoor / Measure 8,32mts x 6,40mts /mts2: 53,25/ Pitch 4,8 / Does not include structure for assembly Value from 3 to 6 days (Day value) | D199: =IF('FERIAS 3 DIAS'!G$3=TRUE,'FERIAS DE 7 A 11 DIAS'!E199/'FERIAS 3 DIAS'!I$3,E199) -> 5520384 | E199: 5520384 | G199: 4638978.151
A200: =CONCATENATE(B200:B418," ",C200:C418) -> 3071269 Led Screen Full Hd Outdoor / Measure 8,32mts x 6,40mts /mts2: 53,25/ Pitch 4,8 / Does not include structure for assembly Value from 7 to 18 days (Fair value) | B200: 3071269 | C200: Led Screen Full Hd Outdoor / Measure 8,32mts x 6,40mts /mts2: 53,25/ Pitch 4,8 / Does not include structure for assembly Value from 7 to 18 days (Fair value) | D200: =IF('FERIAS 3 DIAS'!G$3=TRUE,'FERIAS DE 7 A 11 DIAS'!E200/'FERIAS 3 DIAS'!I$3,E200) -> 39429760 | E200: 39429760 | G200: 33134252.1
... 259 more rows

Sheet FERIAS DE 12 A 18 DIAS (hidden)
A1: CLAVE | B1: CODIGO | C1: DESCRIPCIÓN | D1: FORMULA | E1: VALOR
A2: =CONCATENATE(B2:B464," ",C2:C464) -> 3070101 Single-phase installation (Double three-pronged outlet up to 2KW consumption/110V) Rate per 12 to 18 days | B2: 3070101 | C2: =CONCATENATE(K2,"",$I$2) -> Single-phase installation (Double three-pronged outlet up to 2KW consumption/110V) Rate per 12 to 18 days | D2: =IF('FERIAS 3 DIAS'!G$3=TRUE,'FERIAS DE 12 A 18 DIAS'!E2/'FERIAS 3 DIAS'!I$3,E2) -> 395000 | E2: 395000 | G2: =E2/1.19 -> 331932.7731 | I2: Rate per 12 to 18 days | K2: Single-phase installation (Double three-pronged outlet up to 2KW consumption/110V)
A3: =CONCATENATE(B3:B465," ",C3:C465) -> 3070103 Additional Single-phase kilowatts (Requires a main connection MAX 2KW by connection) Rate per 12 to 18 days | B3: 3070103 | C3: =CONCATENATE(K3,"",$I$2) -> Additional Single-phase kilowatts (Requires a main connection MAX 2KW by connection) Rate per 12 to 18 days | D3: =IF('FERIAS 3 DIAS'!G$3=TRUE,'FERIAS DE 12 A 18 DIAS'!E3/'FERIAS 3 DIAS'!I$3,E3) -> 232000 | E3: 232000 | G3: =E3/1.19 -> 194957.9832 | K3: Additional Single-phase kilowatts (Requires a main connection MAX 2KW by connection)
A4: =CONCATENATE(B4:B466," ",C4:C466) -> 3070102 Three-phase installation ( Plastic strip up to 4KW consumption/208V) Rate per 12 to 18 days | B4: 3070102 | C4: Three-phase installation ( Plastic strip up to 4KW consumption/208V) Rate per 12 to 18 days | D4: =IF('FERIAS 3 DIAS'!G$3=TRUE,'FERIAS DE 12 A 18 DIAS'!E4/'FERIAS 3 DIAS'!I$3,E4) -> 830000 | E4: 830000 | G4: 697478.9916 | K4: Three-phase installation ( Plastic strip up to 4KW consumption/208V)
A5: =CONCATENATE(B5:B467," ",C5:C467) -> 3070104 AdditionalThree-phase kilowatts (Requires a main connection) Rate per 12 to 18 days | B5: 3070104 | C5: AdditionalThree-phase kilowatts (Requires a main connection) Rate per 12 to 18 days | D5: =IF('FERIAS 3 DIAS'!G$3=TRUE,'FERIAS DE 12 A 18 DIAS'!E5/'FERIAS 3 DIAS'!I$3,E5) -> 235000 | E5: 235000 | G5: 197478.9916 | K5: AdditionalThree-phase kilowatts (Requires a main connection)
A6: =CONCATENATE(B6:B468," ",C6:C468) -> 3071372 21 to 50 additional Three-phase kilowatts (Rate per KW) (Requires a main connection) Rate per 12 to 18 days | B6: 3071372 | C6: 21 to 50 additional Three-phase kilowatts (Rate per KW) (Requires a main connection) Rate per 12 to 18 days | D6: =IF('FERIAS 3 DIAS'!G$3=TRUE,'FERIAS DE 12 A 18 DIAS'!E6/'FERIAS 3 DIAS'!I$3,E6) -> 212000 | E6: 212000 | G6: 178151.2605 | K6: 21 to 50 additional Three-phase kilowatts (Rate per KW) (Requires a main connection)
A7: =CONCATENATE(B7:B469," ",C7:C469) -> 3071373 51 to 100 additionalThree-phase kilowatts (Rate per KW) (Requires a main connection) Rate per 12 to 18 days | B7: 3071373 | C7: 51 to 100 additionalThree-phase kilowatts (Rate per KW) (Requires a main connection) Rate per 12 to 18 days | D7: =IF('FERIAS 3 DIAS'!G$3=TRUE,'FERIAS DE 12 A 18 DIAS'!E7/'FERIAS 3 DIAS'!I$3,E7) -> 202000 | E7: 202000 | G7: 169747.8992 | K7: 51 to 100 additionalThree-phase kilowatts (Rate per KW) (Requires a main connection)
A8: =CONCATENATE(B8:B470," ",C8:C470) -> 3071374 More than 100 additional Three-phase kilowatts (Rate per KW) (Requires a main connection) Rate per 12 to 18 days | B8: 3071374 | C8: More than 100 additional Three-phase kilowatts (Rate per KW) (Requires a main connection) Rate per 12 to 18 days | D8: =IF('FERIAS 3 DIAS'!G$3=TRUE,'FERIAS DE 12 A 18 DIAS'!E8/'FERIAS 3 DIAS'!I$3,E8) -> 162000 | E8: 162000 | G8: 136134.4538 | K8: More than 100 additional Three-phase kilowatts (Rate per KW) (Requires a main connection)
A9: =CONCATENATE(B9:B471," ",C9:C471) -> 3070402 Adjustable spotlight arm (150W/110V) Rate per 12 to 18 days | B9: 3070402 | C9: Adjustable spotlight arm (150W/110V) Rate per 12 to 18 days | D9: =IF('FERIAS 3 DIAS'!G$3=TRUE,'FERIAS DE 12 A 18 DIAS'!E9/'FERIAS 3 DIAS'!I$3,E9) -> 67000 | E9: 67000 | G9: 56302.52101 | K9: Adjustable spotlight arm (150W/110V)
A10: =CONCATENATE(B10:B472," ",C10:C472) -> 3070405 LED Reflector (50W- mltV) Rate per 12 to 18 days | B10: 3070405 | C10: LED Reflector (50W- mltV) Rate per 12 to 18 days | D10: =IF('FERIAS 3 DIAS'!G$3=TRUE,'FERIAS DE 12 A 18 DIAS'!E10/'FERIAS 3 DIAS'!I$3,E10) -> 71000 | E10: 71000 | G10: 59663.86555 | K10: LED Reflector (50W- mltV)
A11: =CONCATENATE(B11:B473," ",C11:C473) -> 3070403 Extension cord – Double three-pronged outlet (1500W/110V)Max 6mts, Requires a main connection. Does not include electricity. Rate per 12 to 18 days | B11: 3070403 | C11: Extension cord – Double three-pronged outlet (1500W/110V)Max 6mts, Requires a main connection. Does not include electricity. Rate per 12 to 18 days | D11: =IF('FERIAS 3 DIAS'!G$3=TRUE,'FERIAS DE 12 A 18 DIAS'!E11/'FERIAS 3 DIAS'!I$3,E11) -> 40000 | E11: 40000 | G11: 33613.44538 | K11: Extension cord – Double three-pronged outlet (1500W/110V)Max 6mts, Requires a main connection. Does not include electricity.
A12: =CONCATENATE(B12:B474," ",C12:C474) -> 3071345 Sink 90cm x 60cm x 90cm (Does not include water supply or drain connection) Rate per 12 to 18 days | B12: 3071345 | C12: Sink 90cm x 60cm x 90cm (Does not include water supply or drain connection) Rate per 12 to 18 days | D12: =IF('FERIAS 3 DIAS'!G$3=TRUE,'FERIAS DE 12 A 18 DIAS'!E12/'FERIAS 3 DIAS'!I$3,E12) -> 156000 | E12: 156000 | G12: 131092.437 | K12: Sink 90cm x 60cm x 90cm (Does not include water supply or drain connection)
A13: =CONCATENATE(B13:B475," ",C13:C475) -> 3070301 1/2" Water supply (Consumption included) Rate per 12 to 18 days | B13: 3070301 | C13: 1/2" Water supply (Consumption included) Rate per 12 to 18 days | D13: =IF('FERIAS 3 DIAS'!G$3=TRUE,'FERIAS DE 12 A 18 DIAS'!E13/'FERIAS 3 DIAS'!I$3,E13) -> 445000 | E13: 445000 | G13: 373949.5798 | K13: 1/2" Water supply (Consumption included)
A14: =CONCATENATE(B14:B476," ",C14:C476) -> 3070302 1/2" Drain connection (Location determined by Corferias on your booth) Rate per 12 to 18 days | B14: 3070302 | C14: 1/2" Drain connection (Location determined by Corferias on your booth) Rate per 12 to 18 days | D14: =IF('FERIAS 3 DIAS'!G$3=TRUE,'FERIAS DE 12 A 18 DIAS'!E14/'FERIAS 3 DIAS'!I$3,E14) -> 395000 | E14: 395000 | G14: 331932.7731 | K14: 1/2" Drain connection (Location determined by Corferias on your booth)
A15: =CONCATENATE(B15:B477," ",C15:C477) -> 3071341 Compressed air connection. Max pressure: 100 PSI, Max flow: 35CFM. Rate per 12 to 18 days | B15: 3071341 | C15: Compressed air connection. Max pressure: 100 PSI, Max flow: 35CFM. Rate per 12 to 18 days | D15: =IF('FERIAS 3 DIAS'!G$3=TRUE,'FERIAS DE 12 A 18 DIAS'!E15/'FERIAS 3 DIAS'!I$3,E15) -> 540000 | E15: 540000 | G15: 453781.5126 | K15: Compressed air connection. Max pressure: 100 PSI, Max flow: 35CFM.
A16: =CONCATENATE(B16:B478," ",C16:C478) -> 3070307 1/2" Water supply (consumption included) + 1/2" Drain + Sink. Rate per 12 to 18 days | B16: 3070307 | C16: 1/2" Water supply (consumption included) + 1/2" Drain + Sink. Rate per 12 to 18 days | D16: =IF('FERIAS 3 DIAS'!G$3=TRUE,'FERIAS DE 12 A 18 DIAS'!E16/'FERIAS 3 DIAS'!I$3,E16) -> 897000 | E16: 897000 | G16: 753781.5126 | K16: 1/2" Water supply (consumption included) + 1/2" Drain + Sink.
A17: =CONCATENATE(B17:B479," ",C17:C479) -> 3071321 Installation of ONE (1) propane gas point per ONE (1) Equipment (Includes materials and labor) (Does not include gas consumption) Rate per 12 to 18 days | B17: 3071321 | C17: Installation of ONE (1) propane gas point per ONE (1) Equipment (Includes materials and labor) (Does not include gas consumption) Rate per 12 to 18 days | D17: =IF('FERIAS 3 DIAS'!G$3=TRUE,'FERIAS DE 12 A 18 DIAS'!E17/'FERIAS 3 DIAS'!I$3,E17) -> 185000 | E17: 185000 | G17: 155462.1849 | K17: Installation of ONE (1) propane gas point per ONE (1) Equipment (Includes materials and labor) (Does not include gas consumption)
A18: =CONCATENATE(B18:B480," ",C18:C480) -> 3070601 Additional CFE System panel 100cm x 240cm | B18: 3070601 | C18: Additional CFE System panel 100cm x 240cm | D18: =IF('FERIAS 3 DIAS'!G$3=TRUE,'FERIAS DE 12 A 18 DIAS'!E18/'FERIAS 3 DIAS'!I$3,E18) -> 38000 | E18: 38000 | G18: 31932.77311
A19: =CONCATENATE(B19:B481," ",C19:C481) -> 3070801 CFE System door 90cm x 240cm | B19: 3070801 | C19: CFE System door 90cm x 240cm | D19: =IF('FERIAS 3 DIAS'!G$3=TRUE,'FERIAS DE 12 A 18 DIAS'!E19/'FERIAS 3 DIAS'!I$3,E19) -> 93000 | E19: 93000 | G19: 78151.2605
A20: =CONCATENATE(B20:B482," ",C20:C482) -> 3070803 Standard storage with door 150cm x 150cm ( Corferias System) | B20: 3070803 | C20: Standard storage with door 150cm x 150cm ( Corferias System) | D20: =IF('FERIAS 3 DIAS'!G$3=TRUE,'FERIAS DE 12 A 18 DIAS'!E20/'FERIAS 3 DIAS'!I$3,E20) -> 148000 | E20: 148000 | G20: 124369.7479
A21: =CONCATENATE(B21:B483," ",C21:C483) -> 3071319 Articulating boom lift - 15 min fraction (Only for first levels) | B21: 3071319 | C21: Articulating boom lift - 15 min fraction (Only for first levels) | D21: =IF('FERIAS 3 DIAS'!G$3=TRUE,'FERIAS DE 12 A 18 DIAS'!E21/'FERIAS 3 DIAS'!I$3,E21) -> 71700 | E21: 71700 | G21: 60252.10084
A22: =CONCATENATE(B22:B484," ",C22:C484) -> 3071319 Articulating boom lift - 30 min fraction (Only for first levels) | B22: 3071319 | C22: Articulating boom lift - 30 min fraction (Only for first levels) | D22: =IF('FERIAS 3 DIAS'!G$3=TRUE,'FERIAS DE 12 A 18 DIAS'!E22/'FERIAS 3 DIAS'!I$3,E22) -> 122600 | E22: 122600 | G22: 103025.2101
A23: =CONCATENATE(B23:B486," ",C23:C486) -> 3071319 Articulating boom lift - 60 min fraction (Only for first levels) | B23: 3071319 | C23: Articulating boom lift - 60 min fraction (Only for first levels) | D23: =IF('FERIAS 3 DIAS'!G$3=TRUE,'FERIAS DE 12 A 18 DIAS'!E23/'FERIAS 3 DIAS'!I$3,E23) -> 217800 | E23: 217800 | G23: 183025.2101
A24: =CONCATENATE(B24:B487," ",C24:C487) -> 3070413 Differential (cap. 1 ton) + Articulating boom lift (Assembly and disassembly) | B24: 3070413 | C24: Differential (cap. 1 ton) + Articulating boom lift (Assembly and disassembly) | D24: =IF('FERIAS 3 DIAS'!G$3=TRUE,'FERIAS DE 12 A 18 DIAS'!E24/'FERIAS 3 DIAS'!I$3,E24) -> 350900 | E24: 350900 | G24: 294873.9496
A25: =CONCATENATE(B25:B488," ",C25:C488) -> 3070414 Electric scissor lifts per - 30 min fraction (Only for second levels) | B25: 3070414 | C25: Electric scissor lifts per - 30 min fraction (Only for second levels) | D25: =IF('FERIAS 3 DIAS'!G$3=TRUE,'FERIAS DE 12 A 18 DIAS'!E25/'FERIAS 3 DIAS'!I$3,E25) -> 84200 | E25: 84200 | G25: 70756.30252
A26: =CONCATENATE(B26:B489," ",C26:C489) -> 3071387 Articulating boom lift + Differential + TRUSS 2,60 X 2,60 | B26: 3071387 | C26: Articulating boom lift + Differential + TRUSS 2,60 X 2,60 | D26: =IF('FERIAS 3 DIAS'!G$3=TRUE,'FERIAS DE 12 A 18 DIAS'!E26/'FERIAS 3 DIAS'!I$3,E26) -> 2881400 | E26: 2881400 | G26: 2421344.538
A27: =CONCATENATE(B27:B490," ",C27:C490) -> 3071351 Articulating boom lift + Differential + TRUSS 3,60 X 2,60 | B27: 3071351 | C27: Articulating boom lift + Differential + TRUSS 3,60 X 2,60 | D27: =IF('FERIAS 3 DIAS'!G$3=TRUE,'FERIAS DE 12 A 18 DIAS'!E27/'FERIAS 3 DIAS'!I$3,E27) -> 2881400 | E27: 2881400 | G27: 2421344.538
A28: =CONCATENATE(B28:B491," ",C28:C491) -> 3071395 Articulating boom lift + Differential + TRUSS 3,60 X 3,60 | B28: 3071395 | C28: Articulating boom lift + Differential + TRUSS 3,60 X 3,60 | D28: =IF('FERIAS 3 DIAS'!G$3=TRUE,'FERIAS DE 12 A 18 DIAS'!E28/'FERIAS 3 DIAS'!I$3,E28) -> 2881400 | E28: 2881400 | G28: 2421344.538
A29: =CONCATENATE(B29:B492," ",C29:C492) -> 3071324 Articulating boom lift + Differential + TRUSS 5,90 X 5,90 | B29: 3071324 | C29: Articulating boom lift + Differential + TRUSS 5,90 X 5,90 | D29: =IF('FERIAS 3 DIAS'!G$3=TRUE,'FERIAS DE 12 A 18 DIAS'!E29/'FERIAS 3 DIAS'!I$3,E29) -> 3601800 | E29: 3601800 | G29: 3026722.689
A30: =CONCATENATE(B30:B493," ",C30:C493) -> 3071436 Articulating boom lift + Differential + TRUSS 6,90 X 6,90 | B30: 3071436 | C30: Articulating boom lift + Differential + TRUSS 6,90 X 6,90 | D30: =IF('FERIAS 3 DIAS'!G$3=TRUE,'FERIAS DE 12 A 18 DIAS'!E30/'FERIAS 3 DIAS'!I$3,E30) -> 3601800 | E30: 3601800 | G30: 3026722.689
A31: =CONCATENATE(B31:B494," ",C31:C494) -> 3071350 Articulating boom lift + Differential + TRUSS 5,60 X 5,60 | B31: 3071350 | C31: Articulating boom lift + Differential + TRUSS 5,60 X 5,60 | D31: =IF('FERIAS 3 DIAS'!G$3=TRUE,'FERIAS DE 12 A 18 DIAS'!E31/'FERIAS 3 DIAS'!I$3,E31) -> 3601800 | E31: 3601800 | G31: 3026722.689
A32: =CONCATENATE(B32:B495," ",C32:C495) -> 3071371 Articulating boom lift + Differential + TRUSS 6,60 X 6,60 | B32: 3071371 | C32: Articulating boom lift + Differential + TRUSS 6,60 X 6,60 | D32: =IF('FERIAS 3 DIAS'!G$3=TRUE,'FERIAS DE 12 A 18 DIAS'!E32/'FERIAS 3 DIAS'!I$3,E32) -> 3601800 | E32: 3601800 | G32: 3026722.689
A33: =CONCATENATE(B33:B496," ",C33:C496) -> 3071393 Articulating boom lift + Differential + TRUSS 9,60 X 2,60 | B33: 3071393 | C33: Articulating boom lift + Differential + TRUSS 9,60 X 2,60 | D33: =IF('FERIAS 3 DIAS'!G$3=TRUE,'FERIAS DE 12 A 18 DIAS'!E33/'FERIAS 3 DIAS'!I$3,E33) -> 3601800 | E33: 3601800 | G33: 3026722.689
A34: =CONCATENATE(B34:B497," ",C34:C497) -> 3071394 Articulating boom lift + Differential + TRUSS 9,60 X 3,60 | B34: 3071394 | C34: Articulating boom lift + Differential + TRUSS 9,60 X 3,60 | D34: =IF('FERIAS 3 DIAS'!G$3=TRUE,'FERIAS DE 12 A 18 DIAS'!E34/'FERIAS 3 DIAS'!I$3,E34) -> 3601800 | E34: 3601800 | G34: 3026722.689
A35: =CONCATENATE(B35:B498," ",C35:C498) -> 3071396 Articulating boom lift + Differential + TRUSS 9,60 X 5,60 | B35: 3071396 | C35: Articulating boom lift + Differential + TRUSS 9,60 X 5,60 | D35: =IF('FERIAS 3 DIAS'!G$3=TRUE,'FERIAS DE 12 A 18 DIAS'!E35/'FERIAS 3 DIAS'!I$3,E35) -> 4769300 | E35: 4769300 | G35: 4007815.126
A36: =CONCATENATE(B36:B499," ",C36:C499) -> 3071397 Articulating boom lift + Differential + TRUSS 9,60 X 6,60 | B36: 3071397 | C36: Articulating boom lift + Differential + TRUSS 9,60 X 6,60 | D36: =IF('FERIAS 3 DIAS'!G$3=TRUE,'FERIAS DE 12 A 18 DIAS'!E36/'FERIAS 3 DIAS'!I$3,E36) -> 4769300 | E36: 4769300 | G36: 4007815.126
A37: =CONCATENATE(B37:B500," ",C37:C500) -> 3071418 Wired Internet service "FOR ONE DEVICE DURING ONE DAY" | B37: 3071418 | C37: Wired Internet service "FOR ONE DEVICE DURING ONE DAY" | D37: =IF('FERIAS 3 DIAS'!G$3=TRUE,'FERIAS DE 12 A 18 DIAS'!E37/'FERIAS 3 DIAS'!I$3,E37) -> 93000 | E37: 93000 | G37: 78151.2605
A38: =CONCATENATE(B38:B501," ",C38:C501) -> 3071419 Wi-Fi Network access "FOR ONE DEVICE DURING ONE DAY" | B38: 3071419 | C38: Wi-Fi Network access "FOR ONE DEVICE DURING ONE DAY" | D38: =IF('FERIAS 3 DIAS'!G$3=TRUE,'FERIAS DE 12 A 18 DIAS'!E38/'FERIAS 3 DIAS'!I$3,E38) -> 93000 | E38: 93000 | G38: 78151.2605
A39: =CONCATENATE(B39:B502," ",C39:C502) -> 3071417 Wired Internet service "FOR ONE DEVICE DURING THE TRADE FAIR" Rate per 12 to 18 days | B39: 3071417 | C39: =CONCATENATE(K39,"",$I$2) -> Wired Internet service "FOR ONE DEVICE DURING THE TRADE FAIR" Rate per 12 to 18 days | D39: =IF('FERIAS 3 DIAS'!G$3=TRUE,'FERIAS DE 12 A 18 DIAS'!E39/'FERIAS 3 DIAS'!I$3,E39) -> 300000 | E39: 300000 | G39: 252100.8403 | K39: Wired Internet service "FOR ONE DEVICE DURING THE TRADE FAIR"
A40: =CONCATENATE(B40:B503," ",C40:C503) -> 3071420 Wi-Fi Network access "FOR ONE DEVICE DURING THE TRADE FAIR" Rate per 12 to 18 days | B40: 3071420 | C40: Wi-Fi Network access "FOR ONE DEVICE DURING THE TRADE FAIR" Rate per 12 to 18 days | D40: =IF('FERIAS 3 DIAS'!G$3=TRUE,'FERIAS DE 12 A 18 DIAS'!E40/'FERIAS 3 DIAS'!I$3,E40) -> 300000 | E40: 300000 | G40: 252100.8403 | K40: Wi-Fi Network access "FOR ONE DEVICE DURING THE TRADE FAIR"
A41: =CONCATENATE(B41:B504," ",C41:C504) -> 3071423 POS terminal connection + Wi-Fi Network access (For one device during the trade fair) Rate per 12 to 18 days | B41: 3071423 | C41: POS terminal connection + Wi-Fi Network access (For one device during the trade fair) Rate per 12 to 18 days | D41: =IF('FERIAS 3 DIAS'!G$3=TRUE,'FERIAS DE 12 A 18 DIAS'!E41/'FERIAS 3 DIAS'!I$3,E41) -> 370000 | E41: 370000 | G41: 310924.3697 | K41: POS terminal connection + Wi-Fi Network access (For one device during the trade fair)
A42: =CONCATENATE(B42:B232," ",C42:C232) -> 3071424 POS terminal connection + Wired Internet service (For one device during the trade fair) Rate per 12 to 18 days | B42: 3071424 | C42: POS terminal connection + Wired Internet service (For one device during the trade fair) Rate per 12 to 18 days | D42: =IF('FERIAS 3 DIAS'!G$3=TRUE,'FERIAS DE 12 A 18 DIAS'!E42/'FERIAS 3 DIAS'!I$3,E42) -> 320000 | E42: 320000 | G42: 268907.563 | K42: POS terminal connection + Wired Internet service (For one device during the trade fair)
A43: =CONCATENATE(B43:B233," ",C43:C233) -> 3071425 Wired Internet service + Wi-Fi Network access (For one device during the trade fair) Rate per 12 to 18 days | B43: 3071425 | C43: Wired Internet service + Wi-Fi Network access (For one device during the trade fair) Rate per 12 to 18 days | D43: =IF('FERIAS 3 DIAS'!G$3=TRUE,'FERIAS DE 12 A 18 DIAS'!E43/'FERIAS 3 DIAS'!I$3,E43) -> 480000 | E43: 480000 | G43: 403361.3445 | K43: Wired Internet service + Wi-Fi Network access (For one device during the trade fair)
A44: =CONCATENATE(B44:B234," ",C44:C234) -> 3071437 Dedicated internet connection: If you require a wider broadband internet connection for specific networks, please contact the PLUS at Corferias for further advisory and quotation. | B44: 3071437 | C44: Dedicated internet connection: If you require a wider broadband internet connection for specific networks, please contact the PLUS at Corferias for further advisory and quotation. | D44: Under quotation | E44: Según Cotización
A45: =CONCATENATE(B45:B235," ",C45:C235) -> 3071406 Network Access Point Installation: Includes UTP cable per point | B45: 3071406 | C45: Network Access Point Installation: Includes UTP cable per point | D45: =IF('FERIAS 3 DIAS'!G$3=TRUE,'FERIAS DE 12 A 18 DIAS'!E45/'FERIAS 3 DIAS'!I$3,E45) -> 78000 | E45: 78000 | G45: 65546.21849
A46: =CONCATENATE(B46:B236," ",C46:C236) -> 3071407 Switch rate per fair | B46: 3071407 | C46: Switch rate per fair | D46: =IF('FERIAS 3 DIAS'!G$3=TRUE,'FERIAS DE 12 A 18 DIAS'!E46/'FERIAS 3 DIAS'!I$3,E46) -> 75000 | E46: 75000 | G46: 63025.21008
A47: =CONCATENATE(B47:B237," ",C47:C237) -> 3071402 VLAN Service: Virtual network service. rate per fair | B47: 3071402 | C47: VLAN Service: Virtual network service. rate per fair | D47: =IF('FERIAS 3 DIAS'!G$3=TRUE,'FERIAS DE 12 A 18 DIAS'!E47/'FERIAS 3 DIAS'!I$3,E47) -> 325000 | E47: 325000 | G47: 273109.2437
A48: =CONCATENATE(B48:B238," ",C48:C238) -> 3071430 LAN Extension rate per fair (Incluye punto de red y aplica para extender el servicio de internet contratado con terceros) | B48: 3071430 | C48: LAN Extension rate per fair (Incluye punto de red y aplica para extender el servicio de internet contratado con terceros) | D48: =IF('FERIAS 3 DIAS'!G$3=TRUE,'FERIAS DE 12 A 18 DIAS'!E48/'FERIAS 3 DIAS'!I$3,E48) -> 1500000 | E48: 1500000 | G48: 1260504.202
A49: =CONCATENATE(B49:B239," ",C49:C239) -> 3071442 Permanent technical support (8 hour shift) Must be requested at least 24h prior daily rate | B49: 3071442 | C49: Permanent technical support (8 hour shift) Must be requested at least 24h prior daily rate | D49: =IF('FERIAS 3 DIAS'!G$3=TRUE,'FERIAS DE 12 A 18 DIAS'!E49/'FERIAS 3 DIAS'!I$3,E49) -> 205000 | E49: 205000 | G49: 172268.9076
A50: =CONCATENATE(B50:B240," ",C50:C240) -> 3070202 Local landline service (Includes unlimited local calls) Rate per 12 to 18 days | B50: 3070202 | C50: =CONCATENATE(K50,"",$I$2) -> Local landline service (Includes unlimited local calls) Rate per 12 to 18 days | D50: =IF('FERIAS 3 DIAS'!G$3=TRUE,'FERIAS DE 12 A 18 DIAS'!E50/'FERIAS 3 DIAS'!I$3,E50) -> 45000 | E50: 45000 | G50: 37815.12605 | K50: Local landline service (Includes unlimited local calls)
A51: =CONCATENATE(B51:B241," ",C51:C241) -> 3070203 Long-distance landline service:The rate does not include national long distance Rate per 12 to 18 days | B51: 3070203 | C51: Long-distance landline service:The rate does not include national long distance Rate per 12 to 18 days | D51: =IF('FERIAS 3 DIAS'!G$3=TRUE,'FERIAS DE 12 A 18 DIAS'!E51/'FERIAS 3 DIAS'!I$3,E51) -> 45000 | E51: 45000 | G51: 37815.12605 | K51: Long-distance landline service:The rate does not include national long distance
A52: =CONCATENATE(B52:B242," ",C52:C242) -> 3070201 Non-switched external line (Must be previously requested to Etb, Claro, EPM, Colomsat or another operator) Rate per 12 to 18 days | B52: 3070201 | C52: Non-switched external line (Must be previously requested to Etb, Claro, EPM, Colomsat or another operator) Rate per 12 to 18 days | D52: =IF('FERIAS 3 DIAS'!G$3=TRUE,'FERIAS DE 12 A 18 DIAS'!E52/'FERIAS 3 DIAS'!I$3,E52) -> 121000 | E52: 121000 | G52: 101680.6723 | K52: Non-switched external line (Must be previously requested to Etb, Claro, EPM, Colomsat or another operator)
A53: =CONCATENATE(B53:B243," ",C53:C243) -> 3070207 POS Terminal wired connection: (Does not include the dataphone) | B53: 3070207 | C53: POS Terminal wired connection: (Does not include the dataphone) | D53: =IF('FERIAS 3 DIAS'!G$3=TRUE,'FERIAS DE 12 A 18 DIAS'!E53/'FERIAS 3 DIAS'!I$3,E53) -> 107000 | E53: 107000 | G53: 89915.96639
A54: =CONCATENATE(B54:B245," ",C54:C245) -> 3070503 Polo shelving unit (Melamine) (200cm x 93cm x 35cm) | B54: 3070503 | C54: Polo shelving unit (Melamine) (200cm x 93cm x 35cm) | D54: =IF('FERIAS 3 DIAS'!G$3=TRUE,'FERIAS DE 12 A 18 DIAS'!E54/'FERIAS 3 DIAS'!I$3,E54) -> 165100 | E54: 165100 | G54: 138739.4958
A55: =CONCATENATE(B55:B246," ",C55:C246) -> 3070503 Polo shelving unit (Honey brown) (200cm x 93cm x 35cm) | B55: 3070503 | C55: Polo shelving unit (Honey brown) (200cm x 93cm x 35cm) | D55: =IF('FERIAS 3 DIAS'!G$3=TRUE,'FERIAS DE 12 A 18 DIAS'!E55/'FERIAS 3 DIAS'!I$3,E55) -> 165100 | E55: 165100 | G55: 138739.4958
A56: =CONCATENATE(B56:B247," ",C56:C247) -> 3070503 Polo shelving unit (Oak finish) (200cm x 93cm x 35cm) | B56: 3070503 | C56: Polo shelving unit (Oak finish) (200cm x 93cm x 35cm) | D56: =IF('FERIAS 3 DIAS'!G$3=TRUE,'FERIAS DE 12 A 18 DIAS'!E56/'FERIAS 3 DIAS'!I$3,E56) -> 165100 | E56: 165100 | G56: 138739.4958
A57: =CONCATENATE(B57:B248," ",C57:C248) -> 3070503 Polo shelving unit (Grey oak) (200cm x 93cm x 35cm) | B57: 3070503 | C57: Polo shelving unit (Grey oak) (200cm x 93cm x 35cm) | D57: =IF('FERIAS 3 DIAS'!G$3=TRUE,'FERIAS DE 12 A 18 DIAS'!E57/'FERIAS 3 DIAS'!I$3,E57) -> 165100 | E57: 165100 | G57: 138739.4958
A58: =CONCATENATE(B58:B250," ",C58:C250) -> 3070503 Polo shelving unit (OSB) (200cm x 93cm x 35cm) | B58: 3070503 | C58: Polo shelving unit (OSB) (200cm x 93cm x 35cm) | D58: =IF('FERIAS 3 DIAS'!G$3=TRUE,'FERIAS DE 12 A 18 DIAS'!E58/'FERIAS 3 DIAS'!I$3,E58) -> 165100 | E58: 165100 | G58: 138739.4958
A59: =CONCATENATE(B59:B251," ",C59:C251) -> 3070517 1-tier glass showcase (100cm x 100cm x 40cm) | B59: 3070517 | C59: 1-tier glass showcase (100cm x 100cm x 40cm) | D59: =IF('FERIAS 3 DIAS'!G$3=TRUE,'FERIAS DE 12 A 18 DIAS'!E59/'FERIAS 3 DIAS'!I$3,E59) -> 194300 | E59: 194300 | G59: 163277.3109
A60: =CONCATENATE(B60:B252," ",C60:C252) -> 3070518 1-tier glass showcase type 2 (White) (92cm x 90 cm x 40cm) | B60: 3070518 | C60: 1-tier glass showcase type 2 (White) (92cm x 90 cm x 40cm) | D60: =IF('FERIAS 3 DIAS'!G$3=TRUE,'FERIAS DE 12 A 18 DIAS'!E60/'FERIAS 3 DIAS'!I$3,E60) -> 194300 | E60: 194300 | G60: 163277.3109
A61: =CONCATENATE(B61:B253," ",C61:C253) -> 3070518 1-tier glass showcase type 2 (Nacar) (92cm x 90 cm x 40cm) | B61: 3070518 | C61: 1-tier glass showcase type 2 (Nacar) (92cm x 90 cm x 40cm) | D61: =IF('FERIAS 3 DIAS'!G$3=TRUE,'FERIAS DE 12 A 18 DIAS'!E61/'FERIAS 3 DIAS'!I$3,E61) -> 194300 | E61: 194300 | G61: 163277.3109
A62: =CONCATENATE(B62:B254," ",C62:C254) -> 3070521 Basic clothes rack 1 pedestal (120cm Width - Height) adjustable + 5 hooks | B62: 3070521 | C62: Basic clothes rack 1 pedestal (120cm Width - Height) adjustable + 5 hooks | D62: =IF('FERIAS 3 DIAS'!G$3=TRUE,'FERIAS DE 12 A 18 DIAS'!E62/'FERIAS 3 DIAS'!I$3,E62) -> 70300 | E62: 70300 | G62: 59075.63025
A63: =CONCATENATE(B63:B255," ",C63:C255) -> 3070521 Double clothes rack 2 pedestal (120cm Width-Height) adjustable + 5 hooks | B63: 3070521 | C63: Double clothes rack 2 pedestal (120cm Width-Height) adjustable + 5 hooks | D63: =IF('FERIAS 3 DIAS'!G$3=TRUE,'FERIAS DE 12 A 18 DIAS'!E63/'FERIAS 3 DIAS'!I$3,E63) -> 81100 | E63: 81100 | G63: 68151.2605
A64: =CONCATENATE(B64:B256," ",C64:C256) -> 3070535 2-tier Island showcase (190cm x 125cm x 41cm) | B64: 3070535 | C64: 2-tier Island showcase (190cm x 125cm x 41cm) | D64: =IF('FERIAS 3 DIAS'!G$3=TRUE,'FERIAS DE 12 A 18 DIAS'!E64/'FERIAS 3 DIAS'!I$3,E64) -> 225100 | E64: 225100 | G64: 189159.6639
A65: =CONCATENATE(B65:B257," ",C65:C257) -> 3070714 Exhibition cube (40cm x 40cm x 25cm) | B65: 3070714 | C65: Exhibition cube (40cm x 40cm x 25cm) | D65: =IF('FERIAS 3 DIAS'!G$3=TRUE,'FERIAS DE 12 A 18 DIAS'!E65/'FERIAS 3 DIAS'!I$3,E65) -> 32400 | E65: 32400 | G65: 27226.89076
A66: =CONCATENATE(B66:B258," ",C66:C258) -> 3070936 Plastic folding table (White or grey) (73cm x 182cm x 76cm) | B66: 3070936 | C66: Plastic folding table (White or grey) (73cm x 182cm x 76cm) | D66: =IF('FERIAS 3 DIAS'!G$3=TRUE,'FERIAS DE 12 A 18 DIAS'!E66/'FERIAS 3 DIAS'!I$3,E66) -> 94900 | E66: 94900 | G66: 79747.89916
A67: =CONCATENATE(B67:B259," ",C67:C259) -> 3070954 Monaco counter (Melamine) (100cm x 100cm x 30cm) | B67: 3070954 | C67: Monaco counter (Melamine) (100cm x 100cm x 30cm) | D67: =IF('FERIAS 3 DIAS'!G$3=TRUE,'FERIAS DE 12 A 18 DIAS'!E67/'FERIAS 3 DIAS'!I$3,E67) -> 155400 | E67: 155400 | G67: =E67/1.19 -> 130588.2353
A68: =CONCATENATE(B68:B260," ",C68:C260) -> 3070954 Monaco counter (Honey brown) (100cm x 100cm x 30cm) | B68: 3070954 | C68: Monaco counter (Honey brown) (100cm x 100cm x 30cm) | D68: =IF('FERIAS 3 DIAS'!G$3=TRUE,'FERIAS DE 12 A 18 DIAS'!E68/'FERIAS 3 DIAS'!I$3,E68) -> 155400 | E68: 155400 | G68: 130588.2353
A69: =CONCATENATE(B69:B261," ",C69:C261) -> 3070954 Monaco counter (Oak finish) (100cm x 100cm x 30cm) | B69: 3070954 | C69: Monaco counter (Oak finish) (100cm x 100cm x 30cm) | D69: =IF('FERIAS 3 DIAS'!G$3=TRUE,'FERIAS DE 12 A 18 DIAS'!E69/'FERIAS 3 DIAS'!I$3,E69) -> 155400 | E69: 155400 | G69: 130588.2353
A70: =CONCATENATE(B70:B262," ",C70:C262) -> 3070954 Monaco counter (Grey oak) (100cm x 100cm x 30cm) | B70: 3070954 | C70: Monaco counter (Grey oak) (100cm x 100cm x 30cm) | D70: =IF('FERIAS 3 DIAS'!G$3=TRUE,'FERIAS DE 12 A 18 DIAS'!E70/'FERIAS 3 DIAS'!I$3,E70) -> 155400 | E70: 155400 | G70: 130588.2353
A71: =CONCATENATE(B71:B263," ",C71:C263) -> 3070955 90cm Rectangular pedestal (90cm x 30cm x 30cm) | B71: 3070955 | C71: 90cm Rectangular pedestal (90cm x 30cm x 30cm) | D71: =IF('FERIAS 3 DIAS'!G$3=TRUE,'FERIAS DE 12 A 18 DIAS'!E71/'FERIAS 3 DIAS'!I$3,E71) -> 40800 | E71: 40800 | G71: 34285.71429
A72: =CONCATENATE(B72:B264," ",C72:C264) -> 3070956 60cm Rectangular pedestal (60cm x 30cm x 30cm) | B72: 3070956 | C72: 60cm Rectangular pedestal (60cm x 30cm x 30cm) | D72: =IF('FERIAS 3 DIAS'!G$3=TRUE,'FERIAS DE 12 A 18 DIAS'!E72/'FERIAS 3 DIAS'!I$3,E72) -> 36000 | E72: 36000 | G72: 30252.10084
A73: =CONCATENATE(B73:B265," ",C73:C265) -> 3070957 Squared pedestal (30cm x 30cm x 30cm) | B73: 3070957 | C73: Squared pedestal (30cm x 30cm x 30cm) | D73: =IF('FERIAS 3 DIAS'!G$3=TRUE,'FERIAS DE 12 A 18 DIAS'!E73/'FERIAS 3 DIAS'!I$3,E73) -> 31200 | E73: 31200 | G73: 26218.48739
A74: =CONCATENATE(B74:B266," ",C74:C266) -> 3071006 Cushioned standard black chair (79cm x 53cm x 42cm) | B74: 3071006 | C74: Cushioned standard black chair (79cm x 53cm x 42cm) | D74: =IF('FERIAS 3 DIAS'!G$3=TRUE,'FERIAS DE 12 A 18 DIAS'!E74/'FERIAS 3 DIAS'!I$3,E74) -> 44900 | E74: 44900 | G74: 37731.09244
A75: =CONCATENATE(B75:B267," ",C75:C267) -> 3071008 Egg standard chair (48cm x 46cm x 45cm) | B75: 3071008 | C75: Egg standard chair (48cm x 46cm x 45cm) | D75: =IF('FERIAS 3 DIAS'!G$3=TRUE,'FERIAS DE 12 A 18 DIAS'!E75/'FERIAS 3 DIAS'!I$3,E75) -> 62500 | E75: 62500 | G75: 52521.0084
A76: =CONCATENATE(B76:B268," ",C76:C268) -> 3071013 Victoria right couch (70cm x 100cm x 75cm) | B76: 3071013 | C76: Victoria right couch (70cm x 100cm x 75cm) | D76: =IF('FERIAS 3 DIAS'!G$3=TRUE,'FERIAS DE 12 A 18 DIAS'!E76/'FERIAS 3 DIAS'!I$3,E76) -> 165200 | E76: 165200 | G76: 138823.5294
A77: =CONCATENATE(B77:B269," ",C77:C269) -> 3071022 Versalles pneumatic high chair (80cm x 40 cm x 40 cm) | B77: 3071022 | C77: Versalles pneumatic high chair (80cm x 40 cm x 40 cm) | D77: =IF('FERIAS 3 DIAS'!G$3=TRUE,'FERIAS DE 12 A 18 DIAS'!E77/'FERIAS 3 DIAS'!I$3,E77) -> 94500 | E77: 94500 | G77: 79411.76471
A78: =CONCATENATE(B78:B270," ",C78:C270) -> 3071023 Victoria left couch(70cm x 100cm x 75cm) | B78: 3071023 | C78: Victoria left couch(70cm x 100cm x 75cm) | D78: =IF('FERIAS 3 DIAS'!G$3=TRUE,'FERIAS DE 12 A 18 DIAS'!E78/'FERIAS 3 DIAS'!I$3,E78) -> 165200 | E78: 165200 | G78: 138823.5294
A79: =CONCATENATE(B79:B271," ",C79:C271) -> 3071031 Terranova Couch - 2 seats (88cm x 173 cm x 80cm) | B79: 3071031 | C79: Terranova Couch - 2 seats (88cm x 173 cm x 80cm) | D79: =IF('FERIAS 3 DIAS'!G$3=TRUE,'FERIAS DE 12 A 18 DIAS'!E79/'FERIAS 3 DIAS'!I$3,E79) -> 203400 | E79: 203400 | G79: 170924.3697
A80: =CONCATENATE(B80:B272," ",C80:C272) -> 3071036 Plastic folding table + 2 cushioned standard black chairs | B80: 3071036 | C80: Plastic folding table + 2 cushioned standard black chairs | D80: =IF('FERIAS 3 DIAS'!G$3=TRUE,'FERIAS DE 12 A 18 DIAS'!E80/'FERIAS 3 DIAS'!I$3,E80) -> 172800 | E80: 172800 | G80: 145210.084
A81: =CONCATENATE(B81:B273," ",C81:C273) -> 3071039 Daysa high table + 2 Marsella pneumatic high chairs | B81: 3071039 | C81: Daysa high table + 2 Marsella pneumatic high chairs | D81: =IF('FERIAS 3 DIAS'!G$3=TRUE,'FERIAS DE 12 A 18 DIAS'!E81/'FERIAS 3 DIAS'!I$3,E81) -> 224300 | E81: 224300 | G81: 188487.395
A82: =CONCATENATE(B82:B274," ",C82:C274) -> 3071054 Lotus standard table + 2 Egg standard chair | B82: 3071054 | C82: Lotus standard table + 2 Egg standard chair | D82: =IF('FERIAS 3 DIAS'!G$3=TRUE,'FERIAS DE 12 A 18 DIAS'!E82/'FERIAS 3 DIAS'!I$3,E82) -> 247000 | E82: 247000 | G82: 207563.0252
A83: =CONCATENATE(B83:B275," ",C83:C275) -> 3071059 Levis armchair (73cm x 86cm x 73cm) | B83: 3071059 | C83: Levis armchair (73cm x 86cm x 73cm) | D83: =IF('FERIAS 3 DIAS'!G$3=TRUE,'FERIAS DE 12 A 18 DIAS'!E83/'FERIAS 3 DIAS'!I$3,E83) -> 179500 | E83: 179500 | G83: 150840.3361
A84: =CONCATENATE(B84:B276," ",C84:C276) -> 3071061 Suiza standard chair (48cm x 46cm x 45cm) | B84: 3071061 | C84: Suiza standard chair (48cm x 46cm x 45cm) | D84: =IF('FERIAS 3 DIAS'!G$3=TRUE,'FERIAS DE 12 A 18 DIAS'!E84/'FERIAS 3 DIAS'!I$3,E84) -> 62500 | E84: 62500 | G84: 52521.0084
A85: =CONCATENATE(B85:B277," ",C85:C277) -> 3071068 Double base rectangular table (Melamine) (50cm x 75cm x 50cm) | B85: 3071068 | C85: Double base rectangular table (Melamine) (50cm x 75cm x 50cm) | D85: =IF('FERIAS 3 DIAS'!G$3=TRUE,'FERIAS DE 12 A 18 DIAS'!E85/'FERIAS 3 DIAS'!I$3,E85) -> 77500 | E85: 77500 | G85: 65126.05042
A86: =CONCATENATE(B86:B278," ",C86:C278) -> 3071077 Marsella pneumatic high chair (80cm x 40cm x 40cm) | B86: 3071077 | C86: Marsella pneumatic high chair (80cm x 40cm x 40cm) | D86: =IF('FERIAS 3 DIAS'!G$3=TRUE,'FERIAS DE 12 A 18 DIAS'!E86/'FERIAS 3 DIAS'!I$3,E86) -> 75200 | E86: 75200 | G86: 63193.27731
A87: =CONCATENATE(B87:B279," ",C87:C279) -> 3071081 Executive Leather Chair (57cm x 93cm x 52cm) | B87: 3071081 | C87: Executive Leather Chair (57cm x 93cm x 52cm) | D87: =IF('FERIAS 3 DIAS'!G$3=TRUE,'FERIAS DE 12 A 18 DIAS'!E87/'FERIAS 3 DIAS'!I$3,E87) -> 68400 | E87: 68400 | G87: 57478.9916
A88: =CONCATENATE(B88:B280," ",C88:C280) -> 3071081 Executive Mesh Chair (57cm x 93cm x 52cm) | B88: 3071081 | C88: Executive Mesh Chair (57cm x 93cm x 52cm) | D88: =IF('FERIAS 3 DIAS'!G$3=TRUE,'FERIAS DE 12 A 18 DIAS'!E88/'FERIAS 3 DIAS'!I$3,E88) -> 140800 | E88: 140800 | G88: 118319.3277
A89: =CONCATENATE(B89:B281," ",C89:C281) -> 3071083 Toronto couch - 3 seats (88cm x 173cm x 80cm) | B89: 3071083 | C89: Toronto couch - 3 seats (88cm x 173cm x 80cm) | D89: =IF('FERIAS 3 DIAS'!G$3=TRUE,'FERIAS DE 12 A 18 DIAS'!E89/'FERIAS 3 DIAS'!I$3,E89) -> 203400 | E89: 203400 | G89: 170924.3697
A90: =CONCATENATE(B90:B282," ",C90:C282) -> 3071085 Ottawa couch - 2 seats (85cm x 120cm x 76cm) | B90: 3071085 | C90: Ottawa couch - 2 seats (85cm x 120cm x 76cm) | D90: =IF('FERIAS 3 DIAS'!G$3=TRUE,'FERIAS DE 12 A 18 DIAS'!E90/'FERIAS 3 DIAS'!I$3,E90) -> 191500 | E90: 191500 | G90: 160924.3697
A91: =CONCATENATE(B91:B283," ",C91:C283) -> 3071090 Standard square puff (43cm x 43cm x 43cm) | B91: 3071090 | C91: Standard square puff (43cm x 43cm x 43cm) | D91: =IF('FERIAS 3 DIAS'!G$3=TRUE,'FERIAS DE 12 A 18 DIAS'!E91/'FERIAS 3 DIAS'!I$3,E91) -> 50100 | E91: 50100 | G91: 42100.84034
A92: =CONCATENATE(B92:B284," ",C92:C284) -> 3071091 Trunk puff - 2 seats (48cm x 81cm x 40cm) | B92: 3071091 | C92: Trunk puff - 2 seats (48cm x 81cm x 40cm) | D92: =IF('FERIAS 3 DIAS'!G$3=TRUE,'FERIAS DE 12 A 18 DIAS'!E92/'FERIAS 3 DIAS'!I$3,E92) -> 95800 | E92: 95800 | G92: 80504.20168
A93: =CONCATENATE(B93:B285," ",C93:C285) -> 3071093 Daysa glass top high table (100cm x 60cm) | B93: 3071093 | C93: Daysa glass top high table (100cm x 60cm) | D93: =IF('FERIAS 3 DIAS'!G$3=TRUE,'FERIAS DE 12 A 18 DIAS'!E93/'FERIAS 3 DIAS'!I$3,E93) -> 107700 | E93: 107700 | G93: 90504.20168
A94: =CONCATENATE(B94:B286," ",C94:C286) -> 3071095 VIP living room (1 Victoria right couch, 1 Victoria left couch, 2 Levis armchairs, 1 Double base square table) | B94: 3071095 | C94: VIP living room (1 Victoria right couch, 1 Victoria left couch, 2 Levis armchairs, 1 Double base square table) | D94: =IF('FERIAS 3 DIAS'!G$3=TRUE,'FERIAS DE 12 A 18 DIAS'!E94/'FERIAS 3 DIAS'!I$3,E94) -> 626400 | E94: 626400 | G94: 526386.5546
A95: =CONCATENATE(B95:B296," ",C95:C296) -> 3071097 Daysa standard table (76cm x 60cm) | B95: 3071097 | C95: Daysa standard table (76cm x 60cm) | D95: =IF('FERIAS 3 DIAS'!G$3=TRUE,'FERIAS DE 12 A 18 DIAS'!E95/'FERIAS 3 DIAS'!I$3,E95) -> 95800 | E95: 95800 | G95: 80504.20168
A96: =CONCATENATE(B96:B297," ",C96:C297) -> 3071098 Shia standard table black (76cm x 60cm x 60cm) | B96: 3071098 | C96: Shia standard table black (76cm x 60cm x 60cm) | D96: =IF('FERIAS 3 DIAS'!G$3=TRUE,'FERIAS DE 12 A 18 DIAS'!E96/'FERIAS 3 DIAS'!I$3,E96) -> 95800 | E96: 95800 | G96: 80504.20168
A97: =CONCATENATE(B97:B298," ",C97:C298) -> 3071098 Shia standard table White (76cm x 60cm x 60cm) | B97: 3071098 | C97: Shia standard table White (76cm x 60cm x 60cm) | D97: =IF('FERIAS 3 DIAS'!G$3=TRUE,'FERIAS DE 12 A 18 DIAS'!E97/'FERIAS 3 DIAS'!I$3,E97) -> 95800 | E97: 95800 | G97: 80504.20168
A98: =CONCATENATE(B98:B299," ",C98:C299) -> 3071100 Double base circular table (Melamine) (50cm x 110cm x 60cm) | B98: 3071100 | C98: Double base circular table (Melamine) (50cm x 110cm x 60cm) | D98: =IF('FERIAS 3 DIAS'!G$3=TRUE,'FERIAS DE 12 A 18 DIAS'!E98/'FERIAS 3 DIAS'!I$3,E98) -> 106600 | E98: 106600 | G98: 89579.83193
A99: =CONCATENATE(B99:B300," ",C99:C300) -> 3071103 Minibar Refrigerator 121 LT (48.5cm X 85.1cm X 60cm) | B99: 3071103 | C99: Minibar Refrigerator 121 LT (48.5cm X 85.1cm X 60cm) | D99: =IF('FERIAS 3 DIAS'!G$3=TRUE,'FERIAS DE 12 A 18 DIAS'!E99/'FERIAS 3 DIAS'!I$3,E99) -> 184600 | E99: 184600 | G99: 155126.0504
A100: =CONCATENATE(B100:B301," ",C100:C301) -> 3071103 Standard Refrigerator 230LT ( 55.6cm X 157.6cm X 67cm) | B100: 3071103 | C100: Standard Refrigerator 230LT ( 55.6cm X 157.6cm X 67cm) | D100: =IF('FERIAS 3 DIAS'!G$3=TRUE,'FERIAS DE 12 A 18 DIAS'!E100/'FERIAS 3 DIAS'!I$3,E100) -> 272300 | E100: 272300 | G100: 228823.5294
A101: =CONCATENATE(B101:B302," ",C101:C302) -> 3071104 Double Base square table (Melamine) (50cm x 60cm x 60cm) | B101: 3071104 | C101: Double Base square table (Melamine) (50cm x 60cm x 60cm) | D101: =IF('FERIAS 3 DIAS'!G$3=TRUE,'FERIAS DE 12 A 18 DIAS'!E101/'FERIAS 3 DIAS'!I$3,E101) -> 77500 | E101: 77500 | G101: 65126.05042
A102: =CONCATENATE(B102:B303," ",C102:C303) -> 3071105 Office KIT 2 (2 cushioned standard black chairs, 1 executive leather chair, 1 office desk) | B102: 3071105 | C102: Office KIT 2 (2 cushioned standard black chairs, 1 executive leather chair, 1 office desk) | D102: =IF('FERIAS 3 DIAS'!G$3=TRUE,'FERIAS DE 12 A 18 DIAS'!E102/'FERIAS 3 DIAS'!I$3,E102) -> 215400 | E102: 215400 | G102: 181008.4034
A103: =CONCATENATE(B103:B304," ",C103:C304) -> 3071108 4-tier shelving unit (190cm x 125cm x 41cm) | B103: 3071108 | C103: 4-tier shelving unit (190cm x 125cm x 41cm) | D103: =IF('FERIAS 3 DIAS'!G$3=TRUE,'FERIAS DE 12 A 18 DIAS'!E103/'FERIAS 3 DIAS'!I$3,E103) -> 137600 | E103: 137600 | G103: 115630.2521
A104: =CONCATENATE(B104:B305," ",C104:C305) -> 3071111 Rectangular 2-tier showcase (200cm x 100cm x 40cm) | B104: 3071111 | C104: Rectangular 2-tier showcase (200cm x 100cm x 40cm) | D104: =IF('FERIAS 3 DIAS'!G$3=TRUE,'FERIAS DE 12 A 18 DIAS'!E104/'FERIAS 3 DIAS'!I$3,E104) -> 260200 | E104: 260200 | G104: 218655.4622
A105: =CONCATENATE(B105:B306," ",C105:C306) -> 3071113 Osaka living room (1 Toronto couch, 2 Donna puffs, 1 Double base square table) | B105: 3071113 | C105: Osaka living room (1 Toronto couch, 2 Donna puffs, 1 Double base square table) | D105: =IF('FERIAS 3 DIAS'!G$3=TRUE,'FERIAS DE 12 A 18 DIAS'!E105/'FERIAS 3 DIAS'!I$3,E105) -> 418600 | E105: 418600 | G105: 351764.7059
A106: =CONCATENATE(B106:B307," ",C106:C307) -> 3071114 Trunk puff - 3 seats (46cm x 120cm x 54cm) | B106: 3071114 | C106: Trunk puff - 3 seats (46cm x 120cm x 54cm) | D106: =IF('FERIAS 3 DIAS'!G$3=TRUE,'FERIAS DE 12 A 18 DIAS'!E106/'FERIAS 3 DIAS'!I$3,E106) -> 95800 | E106: 95800 | G106: 80504.20168
A107: =CONCATENATE(B107:B308," ",C107:C308) -> 3071115 Daysa high table (Melamine) (100cm x 60cm) | B107: 3071115 | C107: Daysa high table (Melamine) (100cm x 60cm) | D107: =IF('FERIAS 3 DIAS'!G$3=TRUE,'FERIAS DE 12 A 18 DIAS'!E107/'FERIAS 3 DIAS'!I$3,E107) -> 95800 | E107: 95800 | G107: 80504.20168
A108: =CONCATENATE(B108:B309," ",C108:C309) -> 3071115 Daysa high table (Honey brown) (100cm x 60cm) | B108: 3071115 | C108: Daysa high table (Honey brown) (100cm x 60cm) | D108: =IF('FERIAS 3 DIAS'!G$3=TRUE,'FERIAS DE 12 A 18 DIAS'!E108/'FERIAS 3 DIAS'!I$3,E108) -> 95800 | E108: 95800 | G108: 80504.20168
A109: =CONCATENATE(B109:B310," ",C109:C310) -> 3071115 Daysa high table (Oak finish) (100cm x 60cm) | B109: 3071115 | C109: Daysa high table (Oak finish) (100cm x 60cm) | D109: =IF('FERIAS 3 DIAS'!G$3=TRUE,'FERIAS DE 12 A 18 DIAS'!E109/'FERIAS 3 DIAS'!I$3,E109) -> 95800 | E109: 95800 | G109: 80504.20168
A110: =CONCATENATE(B110:B311," ",C110:C311) -> 3071115 Daysa high table (Grey oak) (100cm x 60cm) | B110: 3071115 | C110: Daysa high table (Grey oak) (100cm x 60cm) | D110: =IF('FERIAS 3 DIAS'!G$3=TRUE,'FERIAS DE 12 A 18 DIAS'!E110/'FERIAS 3 DIAS'!I$3,E110) -> 95800 | E110: 95800 | G110: 80504.20168
A111: =CONCATENATE(B111:B312," ",C111:C312) -> 3071116 Lotus standard table (70cm x 64cm x 81cm) | B111: 3071116 | C111: Lotus standard table (70cm x 64cm x 81cm) | D111: =IF('FERIAS 3 DIAS'!G$3=TRUE,'FERIAS DE 12 A 18 DIAS'!E111/'FERIAS 3 DIAS'!I$3,E111) -> 143500 | E111: 143500 | G111: 120588.2353
A112: =CONCATENATE(B112:B313," ",C112:C313) -> 3071302 Stainless steel trash can | B112: 3071302 | C112: Stainless steel trash can | D112: =IF('FERIAS 3 DIAS'!G$3=TRUE,'FERIAS DE 12 A 18 DIAS'!E112/'FERIAS 3 DIAS'!I$3,E112) -> 23000 | E112: 23000 | G112: 19327.73109
A113: =CONCATENATE(B113:B314," ",C113:C314) -> 3071325 120cm Queue divider | B113: 3071325 | C113: 120cm Queue divider | D113: =IF('FERIAS 3 DIAS'!G$3=TRUE,'FERIAS DE 12 A 18 DIAS'!E113/'FERIAS 3 DIAS'!I$3,E113) -> 44000 | E113: 44000 | G113: 36974.78992
A114: =CONCATENATE(B114:B315," ",C114:C315) -> 3071370 Folding magazine rack (140cm x 25cm x 29cm) | B114: 3071370 | C114: Folding magazine rack (140cm x 25cm x 29cm) | D114: =IF('FERIAS 3 DIAS'!G$3=TRUE,'FERIAS DE 12 A 18 DIAS'!E114/'FERIAS 3 DIAS'!I$3,E114) -> 71300 | E114: 71300 | G114: 59915.96639
A115: =CONCATENATE(B115:B316," ",C115:C316) -> 30710165 Red Bombonera Chair | B115: 30710165 | C115: Red Bombonera Chair | D115: =IF('FERIAS 3 DIAS'!G$3=TRUE,'FERIAS DE 12 A 18 DIAS'!E115/'FERIAS 3 DIAS'!I$3,E115) -> 59800 | E115: 59800 | G115: 50252.10084
A116: =CONCATENATE(B116:B317," ",C116:C317) -> 30710166 Oslo Chair White | B116: 30710166 | C116: Oslo Chair White | D116: =IF('FERIAS 3 DIAS'!G$3=TRUE,'FERIAS DE 12 A 18 DIAS'!E116/'FERIAS 3 DIAS'!I$3,E116) -> 68400 | E116: 68400 | G116: 57478.9916
A117: =CONCATENATE(B117:B318," ",C117:C318) -> 30710167 Wooden Bar Chair | B117: 30710167 | C117: Wooden Bar Chair | D117: =IF('FERIAS 3 DIAS'!G$3=TRUE,'FERIAS DE 12 A 18 DIAS'!E117/'FERIAS 3 DIAS'!I$3,E117) -> 74300 | E117: 74300 | G117: 62436.97479
A118: =CONCATENATE(B118:B319," ",C118:C319) -> 30710168 Meeting Room | B118: 30710168 | C118: Meeting Room | D118: =IF('FERIAS 3 DIAS'!G$3=TRUE,'FERIAS DE 12 A 18 DIAS'!E118/'FERIAS 3 DIAS'!I$3,E118) -> 270000 | E118: 270000 | G118: 226890.7563
A119: =CONCATENATE(B119:B320," ",C119:C320) -> 30713198 Executive Chair (100cm x 49cm x 49cm) | B119: 30713198 | C119: Executive Chair (100cm x 49cm x 49cm) | D119: =IF('FERIAS 3 DIAS'!G$3=TRUE,'FERIAS DE 12 A 18 DIAS'!E119/'FERIAS 3 DIAS'!I$3,E119) -> 140800 | E119: 140800 | G119: 118319.3277
A120: =CONCATENATE(B120:B321," ",C120:C321) -> 30713200 Office desk (50cm x 120cm x 50cm) | B120: 30713200 | C120: Office desk (50cm x 120cm x 50cm) | D120: =IF('FERIAS 3 DIAS'!G$3=TRUE,'FERIAS DE 12 A 18 DIAS'!E120/'FERIAS 3 DIAS'!I$3,E120) -> 120700 | E120: 120700 | G120: 101428.5714
A121: =CONCATENATE(B121:B322," ",C121:C322) -> 30713201 Buggy easy chair (72cm x 64cm) | B121: 30713201 | C121: Buggy easy chair (72cm x 64cm) | D121: =IF('FERIAS 3 DIAS'!G$3=TRUE,'FERIAS DE 12 A 18 DIAS'!E121/'FERIAS 3 DIAS'!I$3,E121) -> 140800 | E121: 140800 | G121: 118319.3277
A122: =CONCATENATE(B122:B323," ",C122:C323) -> 30713225 Smooth carpet m2 + installation: Contact serviciosplus@corferias.com for advice and a quote. | B122: 30713225 | C122: Smooth carpet m2 + installation: Contact serviciosplus@corferias.com for advice and a quote. | D122: =IF('FERIAS 3 DIAS'!G$3=TRUE,'FERIAS DE 12 A 18 DIAS'!E122/'FERIAS 3 DIAS'!I$3,E122) -> 37800 | E122: 37800 | G122: 31764.70588
A123: =CONCATENATE(B123:B324," ",C123:C324) -> 30713226 Exhibition carpet, ribbed type m2 + installation | B123: 30713226 | C123: Exhibition carpet, ribbed type m2 + installation | D123: =IF('FERIAS 3 DIAS'!G$3=TRUE,'FERIAS DE 12 A 18 DIAS'!E123/'FERIAS 3 DIAS'!I$3,E123) -> 37800 | E123: 37800 | G123: 31764.70588
A124: =CONCATENATE(B124:B322," ",C124:C322) -> 30713227 Rubber mat m2 + installation | B124: 30713227 | C124: Rubber mat m2 + installation | D124: =IF('FERIAS 3 DIAS'!G$3=TRUE,'FERIAS DE 12 A 18 DIAS'!E124/'FERIAS 3 DIAS'!I$3,E124) -> 97200 | E124: 97200 | G124: 81680.67227
A125: =CONCATENATE(B125:B323," ",C125:C323) -> 30713228 Laminate floor m2 + installation | B125: 30713228 | C125: Laminate floor m2 + installation | D125: =IF('FERIAS 3 DIAS'!G$3=TRUE,'FERIAS DE 12 A 18 DIAS'!E125/'FERIAS 3 DIAS'!I$3,E125) -> 97200 | E125: 97200 | G125: 81680.67227
A126: =CONCATENATE(B126:B324," ",C126:C324) -> 30713229 Melamine floor m2 + installation | B126: 30713229 | C126: Melamine floor m2 + installation | D126: =IF('FERIAS 3 DIAS'!G$3=TRUE,'FERIAS DE 12 A 18 DIAS'!E126/'FERIAS 3 DIAS'!I$3,E126) -> 172800 | E126: 172800 | G126: 145210.084
